Workbook

Sheet DashBoard
D4: Fugitive Dust Risk Management Tool
D7: Step 1 | E7: Calculation of risks associated with fugitive dust sources
D9: Step 2 | E9: Assessment of alternatives for fugitive dust control

Sheet 1_Risk_Calc
B1: Fugitive Dust Risk Management Tool | F1: Source | G1: Path | H1: Path | I1: Source | J1: Receptor | K1: Path / Receptor | L1: Path | M1: Source | N1: Source | O1: Source | P1: Source | AG1: 0 | AH1: =AC6 -> 75 | AI1: =AC7 -> 50
AG2: 100 | AH2: =AC6 -> 75 | AI2: =AC7 -> 50
A3: ="Step 1 - "&DashBoard!E7 -> Step 1 - Calculation of risks associated with fugitive dust sources
C5: Cells to be populated | AC5: 100 | AD5: Max:
C6: Drop-down menu | AC6: 75 | AD6: Red: >
C7: Automatically | F7: Risk Factors | AC7: 50 | AD7: Yellow: >
F8: 1 | G8: 2 | H8: 3 | I8: 4 | J8: 5 | K8: 6 | L8: 7 | M8: 8 | N8: 9 | O8: 10 | P8: 11 | Q8: Risk Score
B9: Source ID Number | C9: Description of the structure / equipment | D9: Location | E9: Category | F9: Frequency of process / activity that generates fugitive dust: | G9: Position of the source related to sensitive areas (e.g.: communities, working areas): | H9: Predominant wind direction is from the source to the closest sensible area? | I9: Relative amount of visible dust generated in the process / activity: | J9: Dust composition | K9: Dust size range (higher mass percentage) | L9: Is there some wind barrier (e.g.: trees, buldings, landscape) which can prevent the emissions from this source to reach the closest sensitive area? | M9: Is there some measure applied on regular basis to prevent dust emission from this source (preventative)? | N9: Is there some measure applied to this source to reduce dust emission once it occur (reactive)? | O9: Is there some monitoring procedure applied to this source related to fugitive dust control? | P9: Monitoring data / information trigger some control measure? | Q9: A | R9: B | S9: C | T9: D | U9: E | V9: F | W9: G | X9: H | Y9: I | Z9: J | AA9: K | AB9: Total | AC9: Total Normal.
B10: S_001 | C10: WCS - Worst Case Scenario | D10: — | E10: Process | F10: Continuous | G10: Close | H10: Yes | I10: High | J10: Metals | K10: Fine | L10: No | M10: No | N10: No | O10: No | P10: No | Q10: =IF(F10=0,"",INDEX(Risk_Factors!$O$12:$T$14,MATCH(F10,Frequency,0),MATCH($E10,Risk_Factors!$O$8:$T$8,0))) -> 0.1317536034 | R10: =IF(G10=0,"",INDEX(Risk_Factors!$O$15:$T$17,MATCH('1_Risk_Calc'!G10,Position,0),MATCH($E10,Risk_Factors!$O$8:$T$8,0))) -> 0.05606808025 | S10: =IF(H10=0,"",INDEX(Risk_Factors!$O$18:$T$19,MATCH('1_Risk_Calc'!H10,Yes_No,0),MATCH($E10,Risk_Factors!$O$8:$T$8,0))) -> 0.07220694375 | T10: =IF(I10=0,"",INDEX(Risk_Factors!$O$20:$T$22,MATCH('1_Risk_Calc'!I10,Dust_amount,0),MATCH($E10,Risk_Factors!$O$8:$T$8,0))) -> 0.03827042651 | U10: =IF(J10=0,"",INDEX(Risk_Factors!$O$23:$T$25,MATCH('1_Risk_Calc'!J10,Dust_composition,0),MATCH($E10,Risk_Factors!$O$8:$T$8,0))) -> 0.027475 | V10: =IF(K10=0,"",INDEX(Risk_Factors!$O$26:$T$28,MATCH('1_Risk_Calc'!K10,Dust_size,0),MATCH($E10,Risk_Factors!$O$8:$T$8,0))) -> 0.04702152483 | W10: =IF(L10=0,"",INDEX(Risk_Factors!$O$29:$T$30,MATCH('1_Risk_Calc'!L10,Risk_Factors!$E$29:$E$30,0),MATCH($E10,Risk_Factors!$O$8:$T$8,0))) -> 0.03 | X10: =IF(M10=0,"",INDEX(Risk_Factors!$O$32:$T$33,MATCH('1_Risk_Calc'!M10,Risk_Factors!$E$32:$E$33,0),MATCH($E10,Risk_Factors!$O$8:$T$8,0))) -> 0.03003958125 | Y10: =IF(N10=0,"",INDEX(Risk_Factors!$O$35:$T$36,MATCH('1_Risk_Calc'!N10,Risk_Factors!$E$35:$E$36,0),MATCH($E10,Risk_Factors!$O$8:$T$8,0))) -> 0.03003958125 | Z10: =IF(O10=0,"",INDEX(Risk_Factors!$O$38:$T$39,MATCH('1_Risk_Calc'!O10,Risk_Factors!$E$38:$E$39,0),MATCH($E10,Risk_Factors!$O$8:$T$8,0))) -> 0.03003958125 | AA10: =IF(P10=0,"",INDEX(Risk_Factors!$O$41:$T$42,MATCH('1_Risk_Calc'!P10,Risk_Factors!$E$41:$E$42,0),MATCH($E10,Risk_Factors!$O$8:$T$8,0))) -> 0.03003958125 | AB10: =SUM(Q10:AA10) -> 0.5229539037 | AC10: =(AB10/MAX($AB$10:$AB$109))*$AC$5 -> 100 | AG10: =B10 -> S_001 | AH10: =AC10 -> 100
B11: S_002 | Q11: =IF(F11=0,"",INDEX(Risk_Factors!$O$12:$T$14,MATCH(F11,Frequency,0),MATCH($E11,Risk_Factors!$O$8:$T$8,0))) ->  | R11: =IF(G11=0,"",INDEX(Risk_Factors!$O$15:$T$17,MATCH('1_Risk_Calc'!G11,Position,0),MATCH($E11,Risk_Factors!$O$8:$T$8,0))) ->  | S11: =IF(H11=0,"",INDEX(Risk_Factors!$O$18:$T$19,MATCH('1_Risk_Calc'!H11,Yes_No,0),MATCH($E11,Risk_Factors!$O$8:$T$8,0))) ->  | T11: =IF(I11=0,"",INDEX(Risk_Factors!$O$20:$T$22,MATCH('1_Risk_Calc'!I11,Dust_amount,0),MATCH($E11,Risk_Factors!$O$8:$T$8,0))) ->  | U11: =IF(J11=0,"",INDEX(Risk_Factors!$O$23:$T$25,MATCH('1_Risk_Calc'!J11,Dust_composition,0),MATCH($E11,Risk_Factors!$O$8:$T$8,0))) ->  | V11: =IF(K11=0,"",INDEX(Risk_Factors!$O$26:$T$28,MATCH('1_Risk_Calc'!K11,Dust_size,0),MATCH($E11,Risk_Factors!$O$8:$T$8,0))) ->  | W11: =IF(L11=0,"",INDEX(Risk_Factors!$O$29:$T$30,MATCH('1_Risk_Calc'!L11,Risk_Factors!$E$29:$E$30,0),MATCH($E11,Risk_Factors!$O$8:$T$8,0))) ->  | X11: =IF(M11=0,"",INDEX(Risk_Factors!$O$32:$T$33,MATCH('1_Risk_Calc'!M11,Risk_Factors!$E$32:$E$33,0),MATCH($E11,Risk_Factors!$O$8:$T$8,0))) ->  | Y11: =IF(N11=0,"",INDEX(Risk_Factors!$O$35:$T$36,MATCH('1_Risk_Calc'!N11,Risk_Factors!$E$35:$E$36,0),MATCH($E11,Risk_Factors!$O$8:$T$8,0))) ->  | Z11: =IF(O11=0,"",INDEX(Risk_Factors!$O$38:$T$39,MATCH('1_Risk_Calc'!O11,Risk_Factors!$E$38:$E$39,0),MATCH($E11,Risk_Factors!$O$8:$T$8,0))) ->  | AA11: =IF(P11=0,"",INDEX(Risk_Factors!$O$41:$T$42,MATCH('1_Risk_Calc'!P11,Risk_Factors!$E$41:$E$42,0),MATCH($E11,Risk_Factors!$O$8:$T$8,0))) ->  | AB11: =SUM(Q11:AA11) -> 0 | AC11: 0 | AG11: =B11 -> S_002 | AH11: =AC11 -> 0
B12: S_003 | Q12: =IF(F12=0,"",INDEX(Risk_Factors!$O$12:$T$14,MATCH(F12,Frequency,0),MATCH($E12,Risk_Factors!$O$8:$T$8,0))) ->  | R12: =IF(G12=0,"",INDEX(Risk_Factors!$O$15:$T$17,MATCH('1_Risk_Calc'!G12,Position,0),MATCH($E12,Risk_Factors!$O$8:$T$8,0))) ->  | S12: =IF(H12=0,"",INDEX(Risk_Factors!$O$18:$T$19,MATCH('1_Risk_Calc'!H12,Yes_No,0),MATCH($E12,Risk_Factors!$O$8:$T$8,0))) ->  | T12: =IF(I12=0,"",INDEX(Risk_Factors!$O$20:$T$22,MATCH('1_Risk_Calc'!I12,Dust_amount,0),MATCH($E12,Risk_Factors!$O$8:$T$8,0))) ->  | U12: =IF(J12=0,"",INDEX(Risk_Factors!$O$23:$T$25,MATCH('1_Risk_Calc'!J12,Dust_composition,0),MATCH($E12,Risk_Factors!$O$8:$T$8,0))) ->  | V12: =IF(K12=0,"",INDEX(Risk_Factors!$O$26:$T$28,MATCH('1_Risk_Calc'!K12,Dust_size,0),MATCH($E12,Risk_Factors!$O$8:$T$8,0))) ->  | W12: =IF(L12=0,"",INDEX(Risk_Factors!$O$29:$T$30,MATCH('1_Risk_Calc'!L12,Risk_Factors!$E$29:$E$30,0),MATCH($E12,Risk_Factors!$O$8:$T$8,0))) ->  | X12: =IF(M12=0,"",INDEX(Risk_Factors!$O$32:$T$33,MATCH('1_Risk_Calc'!M12,Risk_Factors!$E$32:$E$33,0),MATCH($E12,Risk_Factors!$O$8:$T$8,0))) ->  | Y12: =IF(N12=0,"",INDEX(Risk_Factors!$O$35:$T$36,MATCH('1_Risk_Calc'!N12,Risk_Factors!$E$35:$E$36,0),MATCH($E12,Risk_Factors!$O$8:$T$8,0))) ->  | Z12: =IF(O12=0,"",INDEX(Risk_Factors!$O$38:$T$39,MATCH('1_Risk_Calc'!O12,Risk_Factors!$E$38:$E$39,0),MATCH($E12,Risk_Factors!$O$8:$T$8,0))) ->  | AA12: =IF(P12=0,"",INDEX(Risk_Factors!$O$41:$T$42,MATCH('1_Risk_Calc'!P12,Risk_Factors!$E$41:$E$42,0),MATCH($E12,Risk_Factors!$O$8:$T$8,0))) ->  | AB12: 0 | AC12: 0 | AG12: S_003 | AH12: 0
B13: S_004 | Q13: =IF(F13=0,"",INDEX(Risk_Factors!$O$12:$T$14,MATCH(F13,Frequency,0),MATCH($E13,Risk_Factors!$O$8:$T$8,0))) ->  | R13: =IF(G13=0,"",INDEX(Risk_Factors!$O$15:$T$17,MATCH('1_Risk_Calc'!G13,Position,0),MATCH($E13,Risk_Factors!$O$8:$T$8,0))) ->  | S13: =IF(H13=0,"",INDEX(Risk_Factors!$O$18:$T$19,MATCH('1_Risk_Calc'!H13,Yes_No,0),MATCH($E13,Risk_Factors!$O$8:$T$8,0))) ->  | T13: =IF(I13=0,"",INDEX(Risk_Factors!$O$20:$T$22,MATCH('1_Risk_Calc'!I13,Dust_amount,0),MATCH($E13,Risk_Factors!$O$8:$T$8,0))) ->  | U13: =IF(J13=0,"",INDEX(Risk_Factors!$O$23:$T$25,MATCH('1_Risk_Calc'!J13,Dust_composition,0),MATCH($E13,Risk_Factors!$O$8:$T$8,0))) ->  | V13: =IF(K13=0,"",INDEX(Risk_Factors!$O$26:$T$28,MATCH('1_Risk_Calc'!K13,Dust_size,0),MATCH($E13,Risk_Factors!$O$8:$T$8,0))) ->  | W13: =IF(L13=0,"",INDEX(Risk_Factors!$O$29:$T$30,MATCH('1_Risk_Calc'!L13,Risk_Factors!$E$29:$E$30,0),MATCH($E13,Risk_Factors!$O$8:$T$8,0))) ->  | X13: =IF(M13=0,"",INDEX(Risk_Factors!$O$32:$T$33,MATCH('1_Risk_Calc'!M13,Risk_Factors!$E$32:$E$33,0),MATCH($E13,Risk_Factors!$O$8:$T$8,0))) ->  | Y13: =IF(N13=0,"",INDEX(Risk_Factors!$O$35:$T$36,MATCH('1_Risk_Calc'!N13,Risk_Factors!$E$35:$E$36,0),MATCH($E13,Risk_Factors!$O$8:$T$8,0))) ->  | Z13: =IF(O13=0,"",INDEX(Risk_Factors!$O$38:$T$39,MATCH('1_Risk_Calc'!O13,Risk_Factors!$E$38:$E$39,0),MATCH($E13,Risk_Factors!$O$8:$T$8,0))) ->  | AA13: =IF(P13=0,"",INDEX(Risk_Factors!$O$41:$T$42,MATCH('1_Risk_Calc'!P13,Risk_Factors!$E$41:$E$42,0),MATCH($E13,Risk_Factors!$O$8:$T$8,0))) ->  | AB13: 0 | AC13: 0 | AG13: S_004 | AH13: 0
B14: S_005 | Q14: =IF(F14=0,"",INDEX(Risk_Factors!$O$12:$T$14,MATCH(F14,Frequency,0),MATCH($E14,Risk_Factors!$O$8:$T$8,0))) ->  | R14: =IF(G14=0,"",INDEX(Risk_Factors!$O$15:$T$17,MATCH('1_Risk_Calc'!G14,Position,0),MATCH($E14,Risk_Factors!$O$8:$T$8,0))) ->  | S14: =IF(H14=0,"",INDEX(Risk_Factors!$O$18:$T$19,MATCH('1_Risk_Calc'!H14,Yes_No,0),MATCH($E14,Risk_Factors!$O$8:$T$8,0))) ->  | T14: =IF(I14=0,"",INDEX(Risk_Factors!$O$20:$T$22,MATCH('1_Risk_Calc'!I14,Dust_amount,0),MATCH($E14,Risk_Factors!$O$8:$T$8,0))) ->  | U14: =IF(J14=0,"",INDEX(Risk_Factors!$O$23:$T$25,MATCH('1_Risk_Calc'!J14,Dust_composition,0),MATCH($E14,Risk_Factors!$O$8:$T$8,0))) ->  | V14: =IF(K14=0,"",INDEX(Risk_Factors!$O$26:$T$28,MATCH('1_Risk_Calc'!K14,Dust_size,0),MATCH($E14,Risk_Factors!$O$8:$T$8,0))) ->  | W14: =IF(L14=0,"",INDEX(Risk_Factors!$O$29:$T$30,MATCH('1_Risk_Calc'!L14,Risk_Factors!$E$29:$E$30,0),MATCH($E14,Risk_Factors!$O$8:$T$8,0))) ->  | X14: =IF(M14=0,"",INDEX(Risk_Factors!$O$32:$T$33,MATCH('1_Risk_Calc'!M14,Risk_Factors!$E$32:$E$33,0),MATCH($E14,Risk_Factors!$O$8:$T$8,0))) ->  | Y14: =IF(N14=0,"",INDEX(Risk_Factors!$O$35:$T$36,MATCH('1_Risk_Calc'!N14,Risk_Factors!$E$35:$E$36,0),MATCH($E14,Risk_Factors!$O$8:$T$8,0))) ->  | Z14: =IF(O14=0,"",INDEX(Risk_Factors!$O$38:$T$39,MATCH('1_Risk_Calc'!O14,Risk_Factors!$E$38:$E$39,0),MATCH($E14,Risk_Factors!$O$8:$T$8,0))) ->  | AA14: =IF(P14=0,"",INDEX(Risk_Factors!$O$41:$T$42,MATCH('1_Risk_Calc'!P14,Risk_Factors!$E$41:$E$42,0),MATCH($E14,Risk_Factors!$O$8:$T$8,0))) ->  | AB14: 0 | AC14: 0 | AG14: S_005 | AH14: 0
B15: S_006 | Q15: =IF(F15=0,"",INDEX(Risk_Factors!$O$12:$T$14,MATCH(F15,Frequency,0),MATCH($E15,Risk_Factors!$O$8:$T$8,0))) ->  | R15: =IF(G15=0,"",INDEX(Risk_Factors!$O$15:$T$17,MATCH('1_Risk_Calc'!G15,Position,0),MATCH($E15,Risk_Factors!$O$8:$T$8,0))) ->  | S15: =IF(H15=0,"",INDEX(Risk_Factors!$O$18:$T$19,MATCH('1_Risk_Calc'!H15,Yes_No,0),MATCH($E15,Risk_Factors!$O$8:$T$8,0))) ->  | T15: =IF(I15=0,"",INDEX(Risk_Factors!$O$20:$T$22,MATCH('1_Risk_Calc'!I15,Dust_amount,0),MATCH($E15,Risk_Factors!$O$8:$T$8,0))) ->  | U15: =IF(J15=0,"",INDEX(Risk_Factors!$O$23:$T$25,MATCH('1_Risk_Calc'!J15,Dust_composition,0),MATCH($E15,Risk_Factors!$O$8:$T$8,0))) ->  | V15: =IF(K15=0,"",INDEX(Risk_Factors!$O$26:$T$28,MATCH('1_Risk_Calc'!K15,Dust_size,0),MATCH($E15,Risk_Factors!$O$8:$T$8,0))) ->  | W15: =IF(L15=0,"",INDEX(Risk_Factors!$O$29:$T$30,MATCH('1_Risk_Calc'!L15,Risk_Factors!$E$29:$E$30,0),MATCH($E15,Risk_Factors!$O$8:$T$8,0))) ->  | X15: =IF(M15=0,"",INDEX(Risk_Factors!$O$32:$T$33,MATCH('1_Risk_Calc'!M15,Risk_Factors!$E$32:$E$33,0),MATCH($E15,Risk_Factors!$O$8:$T$8,0))) ->  | Y15: =IF(N15=0,"",INDEX(Risk_Factors!$O$35:$T$36,MATCH('1_Risk_Calc'!N15,Risk_Factors!$E$35:$E$36,0),MATCH($E15,Risk_Factors!$O$8:$T$8,0))) ->  | Z15: =IF(O15=0,"",INDEX(Risk_Factors!$O$38:$T$39,MATCH('1_Risk_Calc'!O15,Risk_Factors!$E$38:$E$39,0),MATCH($E15,Risk_Factors!$O$8:$T$8,0))) ->  | AA15: =IF(P15=0,"",INDEX(Risk_Factors!$O$41:$T$42,MATCH('1_Risk_Calc'!P15,Risk_Factors!$E$41:$E$42,0),MATCH($E15,Risk_Factors!$O$8:$T$8,0))) ->  | AB15: 0 | AC15: 0 | AG15: S_006 | AH15: 0
B16: S_007 | Q16: =IF(F16=0,"",INDEX(Risk_Factors!$O$12:$T$14,MATCH(F16,Frequency,0),MATCH($E16,Risk_Factors!$O$8:$T$8,0))) ->  | R16: =IF(G16=0,"",INDEX(Risk_Factors!$O$15:$T$17,MATCH('1_Risk_Calc'!G16,Position,0),MATCH($E16,Risk_Factors!$O$8:$T$8,0))) ->  | S16: =IF(H16=0,"",INDEX(Risk_Factors!$O$18:$T$19,MATCH('1_Risk_Calc'!H16,Yes_No,0),MATCH($E16,Risk_Factors!$O$8:$T$8,0))) ->  | T16: =IF(I16=0,"",INDEX(Risk_Factors!$O$20:$T$22,MATCH('1_Risk_Calc'!I16,Dust_amount,0),MATCH($E16,Risk_Factors!$O$8:$T$8,0))) ->  | U16: =IF(J16=0,"",INDEX(Risk_Factors!$O$23:$T$25,MATCH('1_Risk_Calc'!J16,Dust_composition,0),MATCH($E16,Risk_Factors!$O$8:$T$8,0))) ->  | V16: =IF(K16=0,"",INDEX(Risk_Factors!$O$26:$T$28,MATCH('1_Risk_Calc'!K16,Dust_size,0),MATCH($E16,Risk_Factors!$O$8:$T$8,0))) ->  | W16: =IF(L16=0,"",INDEX(Risk_Factors!$O$29:$T$30,MATCH('1_Risk_Calc'!L16,Risk_Factors!$E$29:$E$30,0),MATCH($E16,Risk_Factors!$O$8:$T$8,0))) ->  | X16: =IF(M16=0,"",INDEX(Risk_Factors!$O$32:$T$33,MATCH('1_Risk_Calc'!M16,Risk_Factors!$E$32:$E$33,0),MATCH($E16,Risk_Factors!$O$8:$T$8,0))) ->  | Y16: =IF(N16=0,"",INDEX(Risk_Factors!$O$35:$T$36,MATCH('1_Risk_Calc'!N16,Risk_Factors!$E$35:$E$36,0),MATCH($E16,Risk_Factors!$O$8:$T$8,0))) ->  | Z16: =IF(O16=0,"",INDEX(Risk_Factors!$O$38:$T$39,MATCH('1_Risk_Calc'!O16,Risk_Factors!$E$38:$E$39,0),MATCH($E16,Risk_Factors!$O$8:$T$8,0))) ->  | AA16: =IF(P16=0,"",INDEX(Risk_Factors!$O$41:$T$42,MATCH('1_Risk_Calc'!P16,Risk_Factors!$E$41:$E$42,0),MATCH($E16,Risk_Factors!$O$8:$T$8,0))) ->  | AB16: 0 | AC16: 0 | AG16: S_007 | AH16: 0
B17: S_008 | Q17: =IF(F17=0,"",INDEX(Risk_Factors!$O$12:$T$14,MATCH(F17,Frequency,0),MATCH($E17,Risk_Factors!$O$8:$T$8,0))) ->  | R17: =IF(G17=0,"",INDEX(Risk_Factors!$O$15:$T$17,MATCH('1_Risk_Calc'!G17,Position,0),MATCH($E17,Risk_Factors!$O$8:$T$8,0))) ->  | S17: =IF(H17=0,"",INDEX(Risk_Factors!$O$18:$T$19,MATCH('1_Risk_Calc'!H17,Yes_No,0),MATCH($E17,Risk_Factors!$O$8:$T$8,0))) ->  | T17: =IF(I17=0,"",INDEX(Risk_Factors!$O$20:$T$22,MATCH('1_Risk_Calc'!I17,Dust_amount,0),MATCH($E17,Risk_Factors!$O$8:$T$8,0))) ->  | U17: =IF(J17=0,"",INDEX(Risk_Factors!$O$23:$T$25,MATCH('1_Risk_Calc'!J17,Dust_composition,0),MATCH($E17,Risk_Factors!$O$8:$T$8,0))) ->  | V17: =IF(K17=0,"",INDEX(Risk_Factors!$O$26:$T$28,MATCH('1_Risk_Calc'!K17,Dust_size,0),MATCH($E17,Risk_Factors!$O$8:$T$8,0))) ->  | W17: =IF(L17=0,"",INDEX(Risk_Factors!$O$29:$T$30,MATCH('1_Risk_Calc'!L17,Risk_Factors!$E$29:$E$30,0),MATCH($E17,Risk_Factors!$O$8:$T$8,0))) ->  | X17: =IF(M17=0,"",INDEX(Risk_Factors!$O$32:$T$33,MATCH('1_Risk_Calc'!M17,Risk_Factors!$E$32:$E$33,0),MATCH($E17,Risk_Factors!$O$8:$T$8,0))) ->  | Y17: =IF(N17=0,"",INDEX(Risk_Factors!$O$35:$T$36,MATCH('1_Risk_Calc'!N17,Risk_Factors!$E$35:$E$36,0),MATCH($E17,Risk_Factors!$O$8:$T$8,0))) ->  | Z17: =IF(O17=0,"",INDEX(Risk_Factors!$O$38:$T$39,MATCH('1_Risk_Calc'!O17,Risk_Factors!$E$38:$E$39,0),MATCH($E17,Risk_Factors!$O$8:$T$8,0))) ->  | AA17: =IF(P17=0,"",INDEX(Risk_Factors!$O$41:$T$42,MATCH('1_Risk_Calc'!P17,Risk_Factors!$E$41:$E$42,0),MATCH($E17,Risk_Factors!$O$8:$T$8,0))) ->  | AB17: 0 | AC17: 0 | AG17: S_008 | AH17: 0
B18: S_009 | Q18: =IF(F18=0,"",INDEX(Risk_Factors!$O$12:$T$14,MATCH(F18,Frequency,0),MATCH($E18,Risk_Factors!$O$8:$T$8,0))) ->  | R18: =IF(G18=0,"",INDEX(Risk_Factors!$O$15:$T$17,MATCH('1_Risk_Calc'!G18,Position,0),MATCH($E18,Risk_Factors!$O$8:$T$8,0))) ->  | S18: =IF(H18=0,"",INDEX(Risk_Factors!$O$18:$T$19,MATCH('1_Risk_Calc'!H18,Yes_No,0),MATCH($E18,Risk_Factors!$O$8:$T$8,0))) ->  | T18: =IF(I18=0,"",INDEX(Risk_Factors!$O$20:$T$22,MATCH('1_Risk_Calc'!I18,Dust_amount,0),MATCH($E18,Risk_Factors!$O$8:$T$8,0))) ->  | U18: =IF(J18=0,"",INDEX(Risk_Factors!$O$23:$T$25,MATCH('1_Risk_Calc'!J18,Dust_composition,0),MATCH($E18,Risk_Factors!$O$8:$T$8,0))) ->  | V18: =IF(K18=0,"",INDEX(Risk_Factors!$O$26:$T$28,MATCH('1_Risk_Calc'!K18,Dust_size,0),MATCH($E18,Risk_Factors!$O$8:$T$8,0))) ->  | W18: =IF(L18=0,"",INDEX(Risk_Factors!$O$29:$T$30,MATCH('1_Risk_Calc'!L18,Risk_Factors!$E$29:$E$30,0),MATCH($E18,Risk_Factors!$O$8:$T$8,0))) ->  | X18: =IF(M18=0,"",INDEX(Risk_Factors!$O$32:$T$33,MATCH('1_Risk_Calc'!M18,Risk_Factors!$E$32:$E$33,0),MATCH($E18,Risk_Factors!$O$8:$T$8,0))) ->  | Y18: =IF(N18=0,"",INDEX(Risk_Factors!$O$35:$T$36,MATCH('1_Risk_Calc'!N18,Risk_Factors!$E$35:$E$36,0),MATCH($E18,Risk_Factors!$O$8:$T$8,0))) ->  | Z18: =IF(O18=0,"",INDEX(Risk_Factors!$O$38:$T$39,MATCH('1_Risk_Calc'!O18,Risk_Factors!$E$38:$E$39,0),MATCH($E18,Risk_Factors!$O$8:$T$8,0))) ->  | AA18: =IF(P18=0,"",INDEX(Risk_Factors!$O$41:$T$42,MATCH('1_Risk_Calc'!P18,Risk_Factors!$E$41:$E$42,0),MATCH($E18,Risk_Factors!$O$8:$T$8,0))) ->  | AB18: 0 | AC18: 0 | AG18: S_009 | AH18: 0
B19: S_010 | Q19: =IF(F19=0,"",INDEX(Risk_Factors!$O$12:$T$14,MATCH(F19,Frequency,0),MATCH($E19,Risk_Factors!$O$8:$T$8,0))) ->  | R19: =IF(G19=0,"",INDEX(Risk_Factors!$O$15:$T$17,MATCH('1_Risk_Calc'!G19,Position,0),MATCH($E19,Risk_Factors!$O$8:$T$8,0))) ->  | S19: =IF(H19=0,"",INDEX(Risk_Factors!$O$18:$T$19,MATCH('1_Risk_Calc'!H19,Yes_No,0),MATCH($E19,Risk_Factors!$O$8:$T$8,0))) ->  | T19: =IF(I19=0,"",INDEX(Risk_Factors!$O$20:$T$22,MATCH('1_Risk_Calc'!I19,Dust_amount,0),MATCH($E19,Risk_Factors!$O$8:$T$8,0))) ->  | U19: =IF(J19=0,"",INDEX(Risk_Factors!$O$23:$T$25,MATCH('1_Risk_Calc'!J19,Dust_composition,0),MATCH($E19,Risk_Factors!$O$8:$T$8,0))) ->  | V19: =IF(K19=0,"",INDEX(Risk_Factors!$O$26:$T$28,MATCH('1_Risk_Calc'!K19,Dust_size,0),MATCH($E19,Risk_Factors!$O$8:$T$8,0))) ->  | W19: =IF(L19=0,"",INDEX(Risk_Factors!$O$29:$T$30,MATCH('1_Risk_Calc'!L19,Risk_Factors!$E$29:$E$30,0),MATCH($E19,Risk_Factors!$O$8:$T$8,0))) ->  | X19: =IF(M19=0,"",INDEX(Risk_Factors!$O$32:$T$33,MATCH('1_Risk_Calc'!M19,Risk_Factors!$E$32:$E$33,0),MATCH($E19,Risk_Factors!$O$8:$T$8,0))) ->  | Y19: =IF(N19=0,"",INDEX(Risk_Factors!$O$35:$T$36,MATCH('1_Risk_Calc'!N19,Risk_Factors!$E$35:$E$36,0),MATCH($E19,Risk_Factors!$O$8:$T$8,0))) ->  | Z19: =IF(O19=0,"",INDEX(Risk_Factors!$O$38:$T$39,MATCH('1_Risk_Calc'!O19,Risk_Factors!$E$38:$E$39,0),MATCH($E19,Risk_Factors!$O$8:$T$8,0))) ->  | AA19: =IF(P19=0,"",INDEX(Risk_Factors!$O$41:$T$42,MATCH('1_Risk_Calc'!P19,Risk_Factors!$E$41:$E$42,0),MATCH($E19,Risk_Factors!$O$8:$T$8,0))) ->  | AB19: 0 | AC19: 0 | AG19: S_010 | AH19: 0
B20: S_011 | Q20: =IF(F20=0,"",INDEX(Risk_Factors!$O$12:$T$14,MATCH(F20,Frequency,0),MATCH($E20,Risk_Factors!$O$8:$T$8,0))) ->  | R20: =IF(G20=0,"",INDEX(Risk_Factors!$O$15:$T$17,MATCH('1_Risk_Calc'!G20,Position,0),MATCH($E20,Risk_Factors!$O$8:$T$8,0))) ->  | S20: =IF(H20=0,"",INDEX(Risk_Factors!$O$18:$T$19,MATCH('1_Risk_Calc'!H20,Yes_No,0),MATCH($E20,Risk_Factors!$O$8:$T$8,0))) ->  | T20: =IF(I20=0,"",INDEX(Risk_Factors!$O$20:$T$22,MATCH('1_Risk_Calc'!I20,Dust_amount,0),MATCH($E20,Risk_Factors!$O$8:$T$8,0))) ->  | U20: =IF(J20=0,"",INDEX(Risk_Factors!$O$23:$T$25,MATCH('1_Risk_Calc'!J20,Dust_composition,0),MATCH($E20,Risk_Factors!$O$8:$T$8,0))) ->  | V20: =IF(K20=0,"",INDEX(Risk_Factors!$O$26:$T$28,MATCH('1_Risk_Calc'!K20,Dust_size,0),MATCH($E20,Risk_Factors!$O$8:$T$8,0))) ->  | W20: =IF(L20=0,"",INDEX(Risk_Factors!$O$29:$T$30,MATCH('1_Risk_Calc'!L20,Risk_Factors!$E$29:$E$30,0),MATCH($E20,Risk_Factors!$O$8:$T$8,0))) ->  | X20: =IF(M20=0,"",INDEX(Risk_Factors!$O$32:$T$33,MATCH('1_Risk_Calc'!M20,Risk_Factors!$E$32:$E$33,0),MATCH($E20,Risk_Factors!$O$8:$T$8,0))) ->  | Y20: =IF(N20=0,"",INDEX(Risk_Factors!$O$35:$T$36,MATCH('1_Risk_Calc'!N20,Risk_Factors!$E$35:$E$36,0),MATCH($E20,Risk_Factors!$O$8:$T$8,0))) ->  | Z20: =IF(O20=0,"",INDEX(Risk_Factors!$O$38:$T$39,MATCH('1_Risk_Calc'!O20,Risk_Factors!$E$38:$E$39,0),MATCH($E20,Risk_Factors!$O$8:$T$8,0))) ->  | AA20: =IF(P20=0,"",INDEX(Risk_Factors!$O$41:$T$42,MATCH('1_Risk_Calc'!P20,Risk_Factors!$E$41:$E$42,0),MATCH($E20,Risk_Factors!$O$8:$T$8,0))) ->  | AB20: 0 | AC20: 0 | AG20: S_011 | AH20: 0
B21: S_012 | Q21: =IF(F21=0,"",INDEX(Risk_Factors!$O$12:$T$14,MATCH(F21,Frequency,0),MATCH($E21,Risk_Factors!$O$8:$T$8,0))) ->  | R21: =IF(G21=0,"",INDEX(Risk_Factors!$O$15:$T$17,MATCH('1_Risk_Calc'!G21,Position,0),MATCH($E21,Risk_Factors!$O$8:$T$8,0))) ->  | S21: =IF(H21=0,"",INDEX(Risk_Factors!$O$18:$T$19,MATCH('1_Risk_Calc'!H21,Yes_No,0),MATCH($E21,Risk_Factors!$O$8:$T$8,0))) ->  | T21: =IF(I21=0,"",INDEX(Risk_Factors!$O$20:$T$22,MATCH('1_Risk_Calc'!I21,Dust_amount,0),MATCH($E21,Risk_Factors!$O$8:$T$8,0))) ->  | U21: =IF(J21=0,"",INDEX(Risk_Factors!$O$23:$T$25,MATCH('1_Risk_Calc'!J21,Dust_composition,0),MATCH($E21,Risk_Factors!$O$8:$T$8,0))) ->  | V21: =IF(K21=0,"",INDEX(Risk_Factors!$O$26:$T$28,MATCH('1_Risk_Calc'!K21,Dust_size,0),MATCH($E21,Risk_Factors!$O$8:$T$8,0))) ->  | W21: =IF(L21=0,"",INDEX(Risk_Factors!$O$29:$T$30,MATCH('1_Risk_Calc'!L21,Risk_Factors!$E$29:$E$30,0),MATCH($E21,Risk_Factors!$O$8:$T$8,0))) ->  | X21: =IF(M21=0,"",INDEX(Risk_Factors!$O$32:$T$33,MATCH('1_Risk_Calc'!M21,Risk_Factors!$E$32:$E$33,0),MATCH($E21,Risk_Factors!$O$8:$T$8,0))) ->  | Y21: =IF(N21=0,"",INDEX(Risk_Factors!$O$35:$T$36,MATCH('1_Risk_Calc'!N21,Risk_Factors!$E$35:$E$36,0),MATCH($E21,Risk_Factors!$O$8:$T$8,0))) ->  | Z21: =IF(O21=0,"",INDEX(Risk_Factors!$O$38:$T$39,MATCH('1_Risk_Calc'!O21,Risk_Factors!$E$38:$E$39,0),MATCH($E21,Risk_Factors!$O$8:$T$8,0))) ->  | AA21: =IF(P21=0,"",INDEX(Risk_Factors!$O$41:$T$42,MATCH('1_Risk_Calc'!P21,Risk_Factors!$E$41:$E$42,0),MATCH($E21,Risk_Factors!$O$8:$T$8,0))) ->  | AB21: 0 | AC21: 0 | AG21: S_012 | AH21: 0
B22: S_013 | Q22: =IF(F22=0,"",INDEX(Risk_Factors!$O$12:$T$14,MATCH(F22,Frequency,0),MATCH($E22,Risk_Factors!$O$8:$T$8,0))) ->  | R22: =IF(G22=0,"",INDEX(Risk_Factors!$O$15:$T$17,MATCH('1_Risk_Calc'!G22,Position,0),MATCH($E22,Risk_Factors!$O$8:$T$8,0))) ->  | S22: =IF(H22=0,"",INDEX(Risk_Factors!$O$18:$T$19,MATCH('1_Risk_Calc'!H22,Yes_No,0),MATCH($E22,Risk_Factors!$O$8:$T$8,0))) ->  | T22: =IF(I22=0,"",INDEX(Risk_Factors!$O$20:$T$22,MATCH('1_Risk_Calc'!I22,Dust_amount,0),MATCH($E22,Risk_Factors!$O$8:$T$8,0))) ->  | U22: =IF(J22=0,"",INDEX(Risk_Factors!$O$23:$T$25,MATCH('1_Risk_Calc'!J22,Dust_composition,0),MATCH($E22,Risk_Factors!$O$8:$T$8,0))) ->  | V22: =IF(K22=0,"",INDEX(Risk_Factors!$O$26:$T$28,MATCH('1_Risk_Calc'!K22,Dust_size,0),MATCH($E22,Risk_Factors!$O$8:$T$8,0))) ->  | W22: =IF(L22=0,"",INDEX(Risk_Factors!$O$29:$T$30,MATCH('1_Risk_Calc'!L22,Risk_Factors!$E$29:$E$30,0),MATCH($E22,Risk_Factors!$O$8:$T$8,0))) ->  | X22: =IF(M22=0,"",INDEX(Risk_Factors!$O$32:$T$33,MATCH('1_Risk_Calc'!M22,Risk_Factors!$E$32:$E$33,0),MATCH($E22,Risk_Factors!$O$8:$T$8,0))) ->  | Y22: =IF(N22=0,"",INDEX(Risk_Factors!$O$35:$T$36,MATCH('1_Risk_Calc'!N22,Risk_Factors!$E$35:$E$36,0),MATCH($E22,Risk_Factors!$O$8:$T$8,0))) ->  | Z22: =IF(O22=0,"",INDEX(Risk_Factors!$O$38:$T$39,MATCH('1_Risk_Calc'!O22,Risk_Factors!$E$38:$E$39,0),MATCH($E22,Risk_Factors!$O$8:$T$8,0))) ->  | AA22: =IF(P22=0,"",INDEX(Risk_Factors!$O$41:$T$42,MATCH('1_Risk_Calc'!P22,Risk_Factors!$E$41:$E$42,0),MATCH($E22,Risk_Factors!$O$8:$T$8,0))) ->  | AB22: 0 | AC22: 0 | AG22: S_013 | AH22: 0
B23: S_014 | Q23: =IF(F23=0,"",INDEX(Risk_Factors!$O$12:$T$14,MATCH(F23,Frequency,0),MATCH($E23,Risk_Factors!$O$8:$T$8,0))) ->  | R23: =IF(G23=0,"",INDEX(Risk_Factors!$O$15:$T$17,MATCH('1_Risk_Calc'!G23,Position,0),MATCH($E23,Risk_Factors!$O$8:$T$8,0))) ->  | S23: =IF(H23=0,"",INDEX(Risk_Factors!$O$18:$T$19,MATCH('1_Risk_Calc'!H23,Yes_No,0),MATCH($E23,Risk_Factors!$O$8:$T$8,0))) ->  | T23: =IF(I23=0,"",INDEX(Risk_Factors!$O$20:$T$22,MATCH('1_Risk_Calc'!I23,Dust_amount,0),MATCH($E23,Risk_Factors!$O$8:$T$8,0))) ->  | U23: =IF(J23=0,"",INDEX(Risk_Factors!$O$23:$T$25,MATCH('1_Risk_Calc'!J23,Dust_composition,0),MATCH($E23,Risk_Factors!$O$8:$T$8,0))) ->  | V23: =IF(K23=0,"",INDEX(Risk_Factors!$O$26:$T$28,MATCH('1_Risk_Calc'!K23,Dust_size,0),MATCH($E23,Risk_Factors!$O$8:$T$8,0))) ->  | W23: =IF(L23=0,"",INDEX(Risk_Factors!$O$29:$T$30,MATCH('1_Risk_Calc'!L23,Risk_Factors!$E$29:$E$30,0),MATCH($E23,Risk_Factors!$O$8:$T$8,0))) ->  | X23: =IF(M23=0,"",INDEX(Risk_Factors!$O$32:$T$33,MATCH('1_Risk_Calc'!M23,Risk_Factors!$E$32:$E$33,0),MATCH($E23,Risk_Factors!$O$8:$T$8,0))) ->  | Y23: =IF(N23=0,"",INDEX(Risk_Factors!$O$35:$T$36,MATCH('1_Risk_Calc'!N23,Risk_Factors!$E$35:$E$36,0),MATCH($E23,Risk_Factors!$O$8:$T$8,0))) ->  | Z23: =IF(O23=0,"",INDEX(Risk_Factors!$O$38:$T$39,MATCH('1_Risk_Calc'!O23,Risk_Factors!$E$38:$E$39,0),MATCH($E23,Risk_Factors!$O$8:$T$8,0))) ->  | AA23: =IF(P23=0,"",INDEX(Risk_Factors!$O$41:$T$42,MATCH('1_Risk_Calc'!P23,Risk_Factors!$E$41:$E$42,0),MATCH($E23,Risk_Factors!$O$8:$T$8,0))) ->  | AB23: 0 | AC23: 0 | AG23: S_014 | AH23: 0
B24: S_015 | Q24: =IF(F24=0,"",INDEX(Risk_Factors!$O$12:$T$14,MATCH(F24,Frequency,0),MATCH($E24,Risk_Factors!$O$8:$T$8,0))) ->  | R24: =IF(G24=0,"",INDEX(Risk_Factors!$O$15:$T$17,MATCH('1_Risk_Calc'!G24,Position,0),MATCH($E24,Risk_Factors!$O$8:$T$8,0))) ->  | S24: =IF(H24=0,"",INDEX(Risk_Factors!$O$18:$T$19,MATCH('1_Risk_Calc'!H24,Yes_No,0),MATCH($E24,Risk_Factors!$O$8:$T$8,0))) ->  | T24: =IF(I24=0,"",INDEX(Risk_Factors!$O$20:$T$22,MATCH('1_Risk_Calc'!I24,Dust_amount,0),MATCH($E24,Risk_Factors!$O$8:$T$8,0))) ->  | U24: =IF(J24=0,"",INDEX(Risk_Factors!$O$23:$T$25,MATCH('1_Risk_Calc'!J24,Dust_composition,0),MATCH($E24,Risk_Factors!$O$8:$T$8,0))) ->  | V24: =IF(K24=0,"",INDEX(Risk_Factors!$O$26:$T$28,MATCH('1_Risk_Calc'!K24,Dust_size,0),MATCH($E24,Risk_Factors!$O$8:$T$8,0))) ->  | W24: =IF(L24=0,"",INDEX(Risk_Factors!$O$29:$T$30,MATCH('1_Risk_Calc'!L24,Risk_Factors!$E$29:$E$30,0),MATCH($E24,Risk_Factors!$O$8:$T$8,0))) ->  | X24: =IF(M24=0,"",INDEX(Risk_Factors!$O$32:$T$33,MATCH('1_Risk_Calc'!M24,Risk_Factors!$E$32:$E$33,0),MATCH($E24,Risk_Factors!$O$8:$T$8,0))) ->  | Y24: =IF(N24=0,"",INDEX(Risk_Factors!$O$35:$T$36,MATCH('1_Risk_Calc'!N24,Risk_Factors!$E$35:$E$36,0),MATCH($E24,Risk_Factors!$O$8:$T$8,0))) ->  | Z24: =IF(O24=0,"",INDEX(Risk_Factors!$O$38:$T$39,MATCH('1_Risk_Calc'!O24,Risk_Factors!$E$38:$E$39,0),MATCH($E24,Risk_Factors!$O$8:$T$8,0))) ->  | AA24: =IF(P24=0,"",INDEX(Risk_Factors!$O$41:$T$42,MATCH('1_Risk_Calc'!P24,Risk_Factors!$E$41:$E$42,0),MATCH($E24,Risk_Factors!$O$8:$T$8,0))) ->  | AB24: 0 | AC24: 0 | AG24: S_015 | AH24: 0
B25: S_016 | Q25: =IF(F25=0,"",INDEX(Risk_Factors!$O$12:$T$14,MATCH(F25,Frequency,0),MATCH($E25,Risk_Factors!$O$8:$T$8,0))) ->  | R25: =IF(G25=0,"",INDEX(Risk_Factors!$O$15:$T$17,MATCH('1_Risk_Calc'!G25,Position,0),MATCH($E25,Risk_Factors!$O$8:$T$8,0))) ->  | S25: =IF(H25=0,"",INDEX(Risk_Factors!$O$18:$T$19,MATCH('1_Risk_Calc'!H25,Yes_No,0),MATCH($E25,Risk_Factors!$O$8:$T$8,0))) ->  | T25: =IF(I25=0,"",INDEX(Risk_Factors!$O$20:$T$22,MATCH('1_Risk_Calc'!I25,Dust_amount,0),MATCH($E25,Risk_Factors!$O$8:$T$8,0))) ->  | U25: =IF(J25=0,"",INDEX(Risk_Factors!$O$23:$T$25,MATCH('1_Risk_Calc'!J25,Dust_composition,0),MATCH($E25,Risk_Factors!$O$8:$T$8,0))) ->  | V25: =IF(K25=0,"",INDEX(Risk_Factors!$O$26:$T$28,MATCH('1_Risk_Calc'!K25,Dust_size,0),MATCH($E25,Risk_Factors!$O$8:$T$8,0))) ->  | W25: =IF(L25=0,"",INDEX(Risk_Factors!$O$29:$T$30,MATCH('1_Risk_Calc'!L25,Risk_Factors!$E$29:$E$30,0),MATCH($E25,Risk_Factors!$O$8:$T$8,0))) ->  | X25: =IF(M25=0,"",INDEX(Risk_Factors!$O$32:$T$33,MATCH('1_Risk_Calc'!M25,Risk_Factors!$E$32:$E$33,0),MATCH($E25,Risk_Factors!$O$8:$T$8,0))) ->  | Y25: =IF(N25=0,"",INDEX(Risk_Factors!$O$35:$T$36,MATCH('1_Risk_Calc'!N25,Risk_Factors!$E$35:$E$36,0),MATCH($E25,Risk_Factors!$O$8:$T$8,0))) ->  | Z25: =IF(O25=0,"",INDEX(Risk_Factors!$O$38:$T$39,MATCH('1_Risk_Calc'!O25,Risk_Factors!$E$38:$E$39,0),MATCH($E25,Risk_Factors!$O$8:$T$8,0))) ->  | AA25: =IF(P25=0,"",INDEX(Risk_Factors!$O$41:$T$42,MATCH('1_Risk_Calc'!P25,Risk_Factors!$E$41:$E$42,0),MATCH($E25,Risk_Factors!$O$8:$T$8,0))) ->  | AB25: 0 | AC25: 0 | AG25: S_016 | AH25: 0
B26: S_017 | Q26: =IF(F26=0,"",INDEX(Risk_Factors!$O$12:$T$14,MATCH(F26,Frequency,0),MATCH($E26,Risk_Factors!$O$8:$T$8,0))) ->  | R26: =IF(G26=0,"",INDEX(Risk_Factors!$O$15:$T$17,MATCH('1_Risk_Calc'!G26,Position,0),MATCH($E26,Risk_Factors!$O$8:$T$8,0))) ->  | S26: =IF(H26=0,"",INDEX(Risk_Factors!$O$18:$T$19,MATCH('1_Risk_Calc'!H26,Yes_No,0),MATCH($E26,Risk_Factors!$O$8:$T$8,0))) ->  | T26: =IF(I26=0,"",INDEX(Risk_Factors!$O$20:$T$22,MATCH('1_Risk_Calc'!I26,Dust_amount,0),MATCH($E26,Risk_Factors!$O$8:$T$8,0))) ->  | U26: =IF(J26=0,"",INDEX(Risk_Factors!$O$23:$T$25,MATCH('1_Risk_Calc'!J26,Dust_composition,0),MATCH($E26,Risk_Factors!$O$8:$T$8,0))) ->  | V26: =IF(K26=0,"",INDEX(Risk_Factors!$O$26:$T$28,MATCH('1_Risk_Calc'!K26,Dust_size,0),MATCH($E26,Risk_Factors!$O$8:$T$8,0))) ->  | W26: =IF(L26=0,"",INDEX(Risk_Factors!$O$29:$T$30,MATCH('1_Risk_Calc'!L26,Risk_Factors!$E$29:$E$30,0),MATCH($E26,Risk_Factors!$O$8:$T$8,0))) ->  | X26: =IF(M26=0,"",INDEX(Risk_Factors!$O$32:$T$33,MATCH('1_Risk_Calc'!M26,Risk_Factors!$E$32:$E$33,0),MATCH($E26,Risk_Factors!$O$8:$T$8,0))) ->  | Y26: =IF(N26=0,"",INDEX(Risk_Factors!$O$35:$T$36,MATCH('1_Risk_Calc'!N26,Risk_Factors!$E$35:$E$36,0),MATCH($E26,Risk_Factors!$O$8:$T$8,0))) ->  | Z26: =IF(O26=0,"",INDEX(Risk_Factors!$O$38:$T$39,MATCH('1_Risk_Calc'!O26,Risk_Factors!$E$38:$E$39,0),MATCH($E26,Risk_Factors!$O$8:$T$8,0))) ->  | AA26: =IF(P26=0,"",INDEX(Risk_Factors!$O$41:$T$42,MATCH('1_Risk_Calc'!P26,Risk_Factors!$E$41:$E$42,0),MATCH($E26,Risk_Factors!$O$8:$T$8,0))) ->  | AB26: 0 | AC26: 0 | AG26: S_017 | AH26: 0
B27: S_018 | Q27: =IF(F27=0,"",INDEX(Risk_Factors!$O$12:$T$14,MATCH(F27,Frequency,0),MATCH($E27,Risk_Factors!$O$8:$T$8,0))) ->  | R27: =IF(G27=0,"",INDEX(Risk_Factors!$O$15:$T$17,MATCH('1_Risk_Calc'!G27,Position,0),MATCH($E27,Risk_Factors!$O$8:$T$8,0))) ->  | S27: =IF(H27=0,"",INDEX(Risk_Factors!$O$18:$T$19,MATCH('1_Risk_Calc'!H27,Yes_No,0),MATCH($E27,Risk_Factors!$O$8:$T$8,0))) ->  | T27: =IF(I27=0,"",INDEX(Risk_Factors!$O$20:$T$22,MATCH('1_Risk_Calc'!I27,Dust_amount,0),MATCH($E27,Risk_Factors!$O$8:$T$8,0))) ->  | U27: =IF(J27=0,"",INDEX(Risk_Factors!$O$23:$T$25,MATCH('1_Risk_Calc'!J27,Dust_composition,0),MATCH($E27,Risk_Factors!$O$8:$T$8,0))) ->  | V27: =IF(K27=0,"",INDEX(Risk_Factors!$O$26:$T$28,MATCH('1_Risk_Calc'!K27,Dust_size,0),MATCH($E27,Risk_Factors!$O$8:$T$8,0))) ->  | W27: =IF(L27=0,"",INDEX(Risk_Factors!$O$29:$T$30,MATCH('1_Risk_Calc'!L27,Risk_Factors!$E$29:$E$30,0),MATCH($E27,Risk_Factors!$O$8:$T$8,0))) ->  | X27: =IF(M27=0,"",INDEX(Risk_Factors!$O$32:$T$33,MATCH('1_Risk_Calc'!M27,Risk_Factors!$E$32:$E$33,0),MATCH($E27,Risk_Factors!$O$8:$T$8,0))) ->  | Y27: =IF(N27=0,"",INDEX(Risk_Factors!$O$35:$T$36,MATCH('1_Risk_Calc'!N27,Risk_Factors!$E$35:$E$36,0),MATCH($E27,Risk_Factors!$O$8:$T$8,0))) ->  | Z27: =IF(O27=0,"",INDEX(Risk_Factors!$O$38:$T$39,MATCH('1_Risk_Calc'!O27,Risk_Factors!$E$38:$E$39,0),MATCH($E27,Risk_Factors!$O$8:$T$8,0))) ->  | AA27: =IF(P27=0,"",INDEX(Risk_Factors!$O$41:$T$42,MATCH('1_Risk_Calc'!P27,Risk_Factors!$E$41:$E$42,0),MATCH($E27,Risk_Factors!$O$8:$T$8,0))) ->  | AB27: 0 | AC27: 0 | AG27: S_018 | AH27: 0
B28: S_019 | Q28: =IF(F28=0,"",INDEX(Risk_Factors!$O$12:$T$14,MATCH(F28,Frequency,0),MATCH($E28,Risk_Factors!$O$8:$T$8,0))) ->  | R28: =IF(G28=0,"",INDEX(Risk_Factors!$O$15:$T$17,MATCH('1_Risk_Calc'!G28,Position,0),MATCH($E28,Risk_Factors!$O$8:$T$8,0))) ->  | S28: =IF(H28=0,"",INDEX(Risk_Factors!$O$18:$T$19,MATCH('1_Risk_Calc'!H28,Yes_No,0),MATCH($E28,Risk_Factors!$O$8:$T$8,0))) ->  | T28: =IF(I28=0,"",INDEX(Risk_Factors!$O$20:$T$22,MATCH('1_Risk_Calc'!I28,Dust_amount,0),MATCH($E28,Risk_Factors!$O$8:$T$8,0))) ->  | U28: =IF(J28=0,"",INDEX(Risk_Factors!$O$23:$T$25,MATCH('1_Risk_Calc'!J28,Dust_composition,0),MATCH($E28,Risk_Factors!$O$8:$T$8,0))) ->  | V28: =IF(K28=0,"",INDEX(Risk_Factors!$O$26:$T$28,MATCH('1_Risk_Calc'!K28,Dust_size,0),MATCH($E28,Risk_Factors!$O$8:$T$8,0))) ->  | W28: =IF(L28=0,"",INDEX(Risk_Factors!$O$29:$T$30,MATCH('1_Risk_Calc'!L28,Risk_Factors!$E$29:$E$30,0),MATCH($E28,Risk_Factors!$O$8:$T$8,0))) ->  | X28: =IF(M28=0,"",INDEX(Risk_Factors!$O$32:$T$33,MATCH('1_Risk_Calc'!M28,Risk_Factors!$E$32:$E$33,0),MATCH($E28,Risk_Factors!$O$8:$T$8,0))) ->  | Y28: =IF(N28=0,"",INDEX(Risk_Factors!$O$35:$T$36,MATCH('1_Risk_Calc'!N28,Risk_Factors!$E$35:$E$36,0),MATCH($E28,Risk_Factors!$O$8:$T$8,0))) ->  | Z28: =IF(O28=0,"",INDEX(Risk_Factors!$O$38:$T$39,MATCH('1_Risk_Calc'!O28,Risk_Factors!$E$38:$E$39,0),MATCH($E28,Risk_Factors!$O$8:$T$8,0))) ->  | AA28: =IF(P28=0,"",INDEX(Risk_Factors!$O$41:$T$42,MATCH('1_Risk_Calc'!P28,Risk_Factors!$E$41:$E$42,0),MATCH($E28,Risk_Factors!$O$8:$T$8,0))) ->  | AB28: 0 | AC28: 0 | AG28: S_019 | AH28: 0
B29: S_020 | Q29: =IF(F29=0,"",INDEX(Risk_Factors!$O$12:$T$14,MATCH(F29,Frequency,0),MATCH($E29,Risk_Factors!$O$8:$T$8,0))) ->  | R29: =IF(G29=0,"",INDEX(Risk_Factors!$O$15:$T$17,MATCH('1_Risk_Calc'!G29,Position,0),MATCH($E29,Risk_Factors!$O$8:$T$8,0))) ->  | S29: =IF(H29=0,"",INDEX(Risk_Factors!$O$18:$T$19,MATCH('1_Risk_Calc'!H29,Yes_No,0),MATCH($E29,Risk_Factors!$O$8:$T$8,0))) ->  | T29: =IF(I29=0,"",INDEX(Risk_Factors!$O$20:$T$22,MATCH('1_Risk_Calc'!I29,Dust_amount,0),MATCH($E29,Risk_Factors!$O$8:$T$8,0))) ->  | U29: =IF(J29=0,"",INDEX(Risk_Factors!$O$23:$T$25,MATCH('1_Risk_Calc'!J29,Dust_composition,0),MATCH($E29,Risk_Factors!$O$8:$T$8,0))) ->  | V29: =IF(K29=0,"",INDEX(Risk_Factors!$O$26:$T$28,MATCH('1_Risk_Calc'!K29,Dust_size,0),MATCH($E29,Risk_Factors!$O$8:$T$8,0))) ->  | W29: =IF(L29=0,"",INDEX(Risk_Factors!$O$29:$T$30,MATCH('1_Risk_Calc'!L29,Risk_Factors!$E$29:$E$30,0),MATCH($E29,Risk_Factors!$O$8:$T$8,0))) ->  | X29: =IF(M29=0,"",INDEX(Risk_Factors!$O$32:$T$33,MATCH('1_Risk_Calc'!M29,Risk_Factors!$E$32:$E$33,0),MATCH($E29,Risk_Factors!$O$8:$T$8,0))) ->  | Y29: =IF(N29=0,"",INDEX(Risk_Factors!$O$35:$T$36,MATCH('1_Risk_Calc'!N29,Risk_Factors!$E$35:$E$36,0),MATCH($E29,Risk_Factors!$O$8:$T$8,0))) ->  | Z29: =IF(O29=0,"",INDEX(Risk_Factors!$O$38:$T$39,MATCH('1_Risk_Calc'!O29,Risk_Factors!$E$38:$E$39,0),MATCH($E29,Risk_Factors!$O$8:$T$8,0))) ->  | AA29: =IF(P29=0,"",INDEX(Risk_Factors!$O$41:$T$42,MATCH('1_Risk_Calc'!P29,Risk_Factors!$E$41:$E$42,0),MATCH($E29,Risk_Factors!$O$8:$T$8,0))) ->  | AB29: 0 | AC29: 0 | AG29: S_020 | AH29: 0
B30: S_021 | Q30: =IF(F30=0,"",INDEX(Risk_Factors!$O$12:$T$14,MATCH(F30,Frequency,0),MATCH($E30,Risk_Factors!$O$8:$T$8,0))) ->  | R30: =IF(G30=0,"",INDEX(Risk_Factors!$O$15:$T$17,MATCH('1_Risk_Calc'!G30,Position,0),MATCH($E30,Risk_Factors!$O$8:$T$8,0))) ->  | S30: =IF(H30=0,"",INDEX(Risk_Factors!$O$18:$T$19,MATCH('1_Risk_Calc'!H30,Yes_No,0),MATCH($E30,Risk_Factors!$O$8:$T$8,0))) ->  | T30: =IF(I30=0,"",INDEX(Risk_Factors!$O$20:$T$22,MATCH('1_Risk_Calc'!I30,Dust_amount,0),MATCH($E30,Risk_Factors!$O$8:$T$8,0))) ->  | U30: =IF(J30=0,"",INDEX(Risk_Factors!$O$23:$T$25,MATCH('1_Risk_Calc'!J30,Dust_composition,0),MATCH($E30,Risk_Factors!$O$8:$T$8,0))) ->  | V30: =IF(K30=0,"",INDEX(Risk_Factors!$O$26:$T$28,MATCH('1_Risk_Calc'!K30,Dust_size,0),MATCH($E30,Risk_Factors!$O$8:$T$8,0))) ->  | W30: =IF(L30=0,"",INDEX(Risk_Factors!$O$29:$T$30,MATCH('1_Risk_Calc'!L30,Risk_Factors!$E$29:$E$30,0),MATCH($E30,Risk_Factors!$O$8:$T$8,0))) ->  | X30: =IF(M30=0,"",INDEX(Risk_Factors!$O$32:$T$33,MATCH('1_Risk_Calc'!M30,Risk_Factors!$E$32:$E$33,0),MATCH($E30,Risk_Factors!$O$8:$T$8,0))) ->  | Y30: =IF(N30=0,"",INDEX(Risk_Factors!$O$35:$T$36,MATCH('1_Risk_Calc'!N30,Risk_Factors!$E$35:$E$36,0),MATCH($E30,Risk_Factors!$O$8:$T$8,0))) ->  | Z30: =IF(O30=0,"",INDEX(Risk_Factors!$O$38:$T$39,MATCH('1_Risk_Calc'!O30,Risk_Factors!$E$38:$E$39,0),MATCH($E30,Risk_Factors!$O$8:$T$8,0))) ->  | AA30: =IF(P30=0,"",INDEX(Risk_Factors!$O$41:$T$42,MATCH('1_Risk_Calc'!P30,Risk_Factors!$E$41:$E$42,0),MATCH($E30,Risk_Factors!$O$8:$T$8,0))) ->  | AB30: 0 | AC30: 0 | AG30: S_021 | AH30: 0
B31: S_022 | Q31: =IF(F31=0,"",INDEX(Risk_Factors!$O$12:$T$14,MATCH(F31,Frequency,0),MATCH($E31,Risk_Factors!$O$8:$T$8,0))) ->  | R31: =IF(G31=0,"",INDEX(Risk_Factors!$O$15:$T$17,MATCH('1_Risk_Calc'!G31,Position,0),MATCH($E31,Risk_Factors!$O$8:$T$8,0))) ->  | S31: =IF(H31=0,"",INDEX(Risk_Factors!$O$18:$T$19,MATCH('1_Risk_Calc'!H31,Yes_No,0),MATCH($E31,Risk_Factors!$O$8:$T$8,0))) ->  | T31: =IF(I31=0,"",INDEX(Risk_Factors!$O$20:$T$22,MATCH('1_Risk_Calc'!I31,Dust_amount,0),MATCH($E31,Risk_Factors!$O$8:$T$8,0))) ->  | U31: =IF(J31=0,"",INDEX(Risk_Factors!$O$23:$T$25,MATCH('1_Risk_Calc'!J31,Dust_composition,0),MATCH($E31,Risk_Factors!$O$8:$T$8,0))) ->  | V31: =IF(K31=0,"",INDEX(Risk_Factors!$O$26:$T$28,MATCH('1_Risk_Calc'!K31,Dust_size,0),MATCH($E31,Risk_Factors!$O$8:$T$8,0))) ->  | W31: =IF(L31=0,"",INDEX(Risk_Factors!$O$29:$T$30,MATCH('1_Risk_Calc'!L31,Risk_Factors!$E$29:$E$30,0),MATCH($E31,Risk_Factors!$O$8:$T$8,0))) ->  | X31: =IF(M31=0,"",INDEX(Risk_Factors!$O$32:$T$33,MATCH('1_Risk_Calc'!M31,Risk_Factors!$E$32:$E$33,0),MATCH($E31,Risk_Factors!$O$8:$T$8,0))) ->  | Y31: =IF(N31=0,"",INDEX(Risk_Factors!$O$35:$T$36,MATCH('1_Risk_Calc'!N31,Risk_Factors!$E$35:$E$36,0),MATCH($E31,Risk_Factors!$O$8:$T$8,0))) ->  | Z31: =IF(O31=0,"",INDEX(Risk_Factors!$O$38:$T$39,MATCH('1_Risk_Calc'!O31,Risk_Factors!$E$38:$E$39,0),MATCH($E31,Risk_Factors!$O$8:$T$8,0))) ->  | AA31: =IF(P31=0,"",INDEX(Risk_Factors!$O$41:$T$42,MATCH('1_Risk_Calc'!P31,Risk_Factors!$E$41:$E$42,0),MATCH($E31,Risk_Factors!$O$8:$T$8,0))) ->  | AB31: 0 | AC31: 0 | AG31: S_022 | AH31: 0
B32: S_023 | Q32: =IF(F32=0,"",INDEX(Risk_Factors!$O$12:$T$14,MATCH(F32,Frequency,0),MATCH($E32,Risk_Factors!$O$8:$T$8,0))) ->  | R32: =IF(G32=0,"",INDEX(Risk_Factors!$O$15:$T$17,MATCH('1_Risk_Calc'!G32,Position,0),MATCH($E32,Risk_Factors!$O$8:$T$8,0))) ->  | S32: =IF(H32=0,"",INDEX(Risk_Factors!$O$18:$T$19,MATCH('1_Risk_Calc'!H32,Yes_No,0),MATCH($E32,Risk_Factors!$O$8:$T$8,0))) ->  | T32: =IF(I32=0,"",INDEX(Risk_Factors!$O$20:$T$22,MATCH('1_Risk_Calc'!I32,Dust_amount,0),MATCH($E32,Risk_Factors!$O$8:$T$8,0))) ->  | U32: =IF(J32=0,"",INDEX(Risk_Factors!$O$23:$T$25,MATCH('1_Risk_Calc'!J32,Dust_composition,0),MATCH($E32,Risk_Factors!$O$8:$T$8,0))) ->  | V32: =IF(K32=0,"",INDEX(Risk_Factors!$O$26:$T$28,MATCH('1_Risk_Calc'!K32,Dust_size,0),MATCH($E32,Risk_Factors!$O$8:$T$8,0))) ->  | W32: =IF(L32=0,"",INDEX(Risk_Factors!$O$29:$T$30,MATCH('1_Risk_Calc'!L32,Risk_Factors!$E$29:$E$30,0),MATCH($E32,Risk_Factors!$O$8:$T$8,0))) ->  | X32: =IF(M32=0,"",INDEX(Risk_Factors!$O$32:$T$33,MATCH('1_Risk_Calc'!M32,Risk_Factors!$E$32:$E$33,0),MATCH($E32,Risk_Factors!$O$8:$T$8,0))) ->  | Y32: =IF(N32=0,"",INDEX(Risk_Factors!$O$35:$T$36,MATCH('1_Risk_Calc'!N32,Risk_Factors!$E$35:$E$36,0),MATCH($E32,Risk_Factors!$O$8:$T$8,0))) ->  | Z32: =IF(O32=0,"",INDEX(Risk_Factors!$O$38:$T$39,MATCH('1_Risk_Calc'!O32,Risk_Factors!$E$38:$E$39,0),MATCH($E32,Risk_Factors!$O$8:$T$8,0))) ->  | AA32: =IF(P32=0,"",INDEX(Risk_Factors!$O$41:$T$42,MATCH('1_Risk_Calc'!P32,Risk_Factors!$E$41:$E$42,0),MATCH($E32,Risk_Factors!$O$8:$T$8,0))) ->  | AB32: 0 | AC32: 0 | AG32: S_023 | AH32: 0
B33: S_024 | Q33: =IF(F33=0,"",INDEX(Risk_Factors!$O$12:$T$14,MATCH(F33,Frequency,0),MATCH($E33,Risk_Factors!$O$8:$T$8,0))) ->  | R33: =IF(G33=0,"",INDEX(Risk_Factors!$O$15:$T$17,MATCH('1_Risk_Calc'!G33,Position,0),MATCH($E33,Risk_Factors!$O$8:$T$8,0))) ->  | S33: =IF(H33=0,"",INDEX(Risk_Factors!$O$18:$T$19,MATCH('1_Risk_Calc'!H33,Yes_No,0),MATCH($E33,Risk_Factors!$O$8:$T$8,0))) ->  | T33: =IF(I33=0,"",INDEX(Risk_Factors!$O$20:$T$22,MATCH('1_Risk_Calc'!I33,Dust_amount,0),MATCH($E33,Risk_Factors!$O$8:$T$8,0))) ->  | U33: =IF(J33=0,"",INDEX(Risk_Factors!$O$23:$T$25,MATCH('1_Risk_Calc'!J33,Dust_composition,0),MATCH($E33,Risk_Factors!$O$8:$T$8,0))) ->  | V33: =IF(K33=0,"",INDEX(Risk_Factors!$O$26:$T$28,MATCH('1_Risk_Calc'!K33,Dust_size,0),MATCH($E33,Risk_Factors!$O$8:$T$8,0))) ->  | W33: =IF(L33=0,"",INDEX(Risk_Factors!$O$29:$T$30,MATCH('1_Risk_Calc'!L33,Risk_Factors!$E$29:$E$30,0),MATCH($E33,Risk_Factors!$O$8:$T$8,0))) ->  | X33: =IF(M33=0,"",INDEX(Risk_Factors!$O$32:$T$33,MATCH('1_Risk_Calc'!M33,Risk_Factors!$E$32:$E$33,0),MATCH($E33,Risk_Factors!$O$8:$T$8,0))) ->  | Y33: =IF(N33=0,"",INDEX(Risk_Factors!$O$35:$T$36,MATCH('1_Risk_Calc'!N33,Risk_Factors!$E$35:$E$36,0),MATCH($E33,Risk_Factors!$O$8:$T$8,0))) ->  | Z33: =IF(O33=0,"",INDEX(Risk_Factors!$O$38:$T$39,MATCH('1_Risk_Calc'!O33,Risk_Factors!$E$38:$E$39,0),MATCH($E33,Risk_Factors!$O$8:$T$8,0))) ->  | AA33: =IF(P33=0,"",INDEX(Risk_Factors!$O$41:$T$42,MATCH('1_Risk_Calc'!P33,Risk_Factors!$E$41:$E$42,0),MATCH($E33,Risk_Factors!$O$8:$T$8,0))) ->  | AB33: 0 | AC33: 0 | AG33: S_024 | AH33: 0
B34: S_025 | Q34: =IF(F34=0,"",INDEX(Risk_Factors!$O$12:$T$14,MATCH(F34,Frequency,0),MATCH($E34,Risk_Factors!$O$8:$T$8,0))) ->  | R34: =IF(G34=0,"",INDEX(Risk_Factors!$O$15:$T$17,MATCH('1_Risk_Calc'!G34,Position,0),MATCH($E34,Risk_Factors!$O$8:$T$8,0))) ->  | S34: =IF(H34=0,"",INDEX(Risk_Factors!$O$18:$T$19,MATCH('1_Risk_Calc'!H34,Yes_No,0),MATCH($E34,Risk_Factors!$O$8:$T$8,0))) ->  | T34: =IF(I34=0,"",INDEX(Risk_Factors!$O$20:$T$22,MATCH('1_Risk_Calc'!I34,Dust_amount,0),MATCH($E34,Risk_Factors!$O$8:$T$8,0))) ->  | U34: =IF(J34=0,"",INDEX(Risk_Factors!$O$23:$T$25,MATCH('1_Risk_Calc'!J34,Dust_composition,0),MATCH($E34,Risk_Factors!$O$8:$T$8,0))) ->  | V34: =IF(K34=0,"",INDEX(Risk_Factors!$O$26:$T$28,MATCH('1_Risk_Calc'!K34,Dust_size,0),MATCH($E34,Risk_Factors!$O$8:$T$8,0))) ->  | W34: =IF(L34=0,"",INDEX(Risk_Factors!$O$29:$T$30,MATCH('1_Risk_Calc'!L34,Risk_Factors!$E$29:$E$30,0),MATCH($E34,Risk_Factors!$O$8:$T$8,0))) ->  | X34: =IF(M34=0,"",INDEX(Risk_Factors!$O$32:$T$33,MATCH('1_Risk_Calc'!M34,Risk_Factors!$E$32:$E$33,0),MATCH($E34,Risk_Factors!$O$8:$T$8,0))) ->  | Y34: =IF(N34=0,"",INDEX(Risk_Factors!$O$35:$T$36,MATCH('1_Risk_Calc'!N34,Risk_Factors!$E$35:$E$36,0),MATCH($E34,Risk_Factors!$O$8:$T$8,0))) ->  | Z34: =IF(O34=0,"",INDEX(Risk_Factors!$O$38:$T$39,MATCH('1_Risk_Calc'!O34,Risk_Factors!$E$38:$E$39,0),MATCH($E34,Risk_Factors!$O$8:$T$8,0))) ->  | AA34: =IF(P34=0,"",INDEX(Risk_Factors!$O$41:$T$42,MATCH('1_Risk_Calc'!P34,Risk_Factors!$E$41:$E$42,0),MATCH($E34,Risk_Factors!$O$8:$T$8,0))) ->  | AB34: 0 | AC34: 0 | AG34: S_025 | AH34: 0
B35: S_026 | Q35: =IF(F35=0,"",INDEX(Risk_Factors!$O$12:$T$14,MATCH(F35,Frequency,0),MATCH($E35,Risk_Factors!$O$8:$T$8,0))) ->  | R35: =IF(G35=0,"",INDEX(Risk_Factors!$O$15:$T$17,MATCH('1_Risk_Calc'!G35,Position,0),MATCH($E35,Risk_Factors!$O$8:$T$8,0))) ->  | S35: =IF(H35=0,"",INDEX(Risk_Factors!$O$18:$T$19,MATCH('1_Risk_Calc'!H35,Yes_No,0),MATCH($E35,Risk_Factors!$O$8:$T$8,0))) ->  | T35: =IF(I35=0,"",INDEX(Risk_Factors!$O$20:$T$22,MATCH('1_Risk_Calc'!I35,Dust_amount,0),MATCH($E35,Risk_Factors!$O$8:$T$8,0))) ->  | U35: =IF(J35=0,"",INDEX(Risk_Factors!$O$23:$T$25,MATCH('1_Risk_Calc'!J35,Dust_composition,0),MATCH($E35,Risk_Factors!$O$8:$T$8,0))) ->  | V35: =IF(K35=0,"",INDEX(Risk_Factors!$O$26:$T$28,MATCH('1_Risk_Calc'!K35,Dust_size,0),MATCH($E35,Risk_Factors!$O$8:$T$8,0))) ->  | W35: =IF(L35=0,"",INDEX(Risk_Factors!$O$29:$T$30,MATCH('1_Risk_Calc'!L35,Risk_Factors!$E$29:$E$30,0),MATCH($E35,Risk_Factors!$O$8:$T$8,0))) ->  | X35: =IF(M35=0,"",INDEX(Risk_Factors!$O$32:$T$33,MATCH('1_Risk_Calc'!M35,Risk_Factors!$E$32:$E$33,0),MATCH($E35,Risk_Factors!$O$8:$T$8,0))) ->  | Y35: =IF(N35=0,"",INDEX(Risk_Factors!$O$35:$T$36,MATCH('1_Risk_Calc'!N35,Risk_Factors!$E$35:$E$36,0),MATCH($E35,Risk_Factors!$O$8:$T$8,0))) ->  | Z35: =IF(O35=0,"",INDEX(Risk_Factors!$O$38:$T$39,MATCH('1_Risk_Calc'!O35,Risk_Factors!$E$38:$E$39,0),MATCH($E35,Risk_Factors!$O$8:$T$8,0))) ->  | AA35: =IF(P35=0,"",INDEX(Risk_Factors!$O$41:$T$42,MATCH('1_Risk_Calc'!P35,Risk_Factors!$E$41:$E$42,0),MATCH($E35,Risk_Factors!$O$8:$T$8,0))) ->  | AB35: 0 | AC35: 0 | AG35: S_026 | AH35: 0
B36: S_027 | Q36: =IF(F36=0,"",INDEX(Risk_Factors!$O$12:$T$14,MATCH(F36,Frequency,0),MATCH($E36,Risk_Factors!$O$8:$T$8,0))) ->  | R36: =IF(G36=0,"",INDEX(Risk_Factors!$O$15:$T$17,MATCH('1_Risk_Calc'!G36,Position,0),MATCH($E36,Risk_Factors!$O$8:$T$8,0))) ->  | S36: =IF(H36=0,"",INDEX(Risk_Factors!$O$18:$T$19,MATCH('1_Risk_Calc'!H36,Yes_No,0),MATCH($E36,Risk_Factors!$O$8:$T$8,0))) ->  | T36: =IF(I36=0,"",INDEX(Risk_Factors!$O$20:$T$22,MATCH('1_Risk_Calc'!I36,Dust_amount,0),MATCH($E36,Risk_Factors!$O$8:$T$8,0))) ->  | U36: =IF(J36=0,"",INDEX(Risk_Factors!$O$23:$T$25,MATCH('1_Risk_Calc'!J36,Dust_composition,0),MATCH($E36,Risk_Factors!$O$8:$T$8,0))) ->  | V36: =IF(K36=0,"",INDEX(Risk_Factors!$O$26:$T$28,MATCH('1_Risk_Calc'!K36,Dust_size,0),MATCH($E36,Risk_Factors!$O$8:$T$8,0))) ->  | W36: =IF(L36=0,"",INDEX(Risk_Factors!$O$29:$T$30,MATCH('1_Risk_Calc'!L36,Risk_Factors!$E$29:$E$30,0),MATCH($E36,Risk_Factors!$O$8:$T$8,0))) ->  | X36: =IF(M36=0,"",INDEX(Risk_Factors!$O$32:$T$33,MATCH('1_Risk_Calc'!M36,Risk_Factors!$E$32:$E$33,0),MATCH($E36,Risk_Factors!$O$8:$T$8,0))) ->  | Y36: =IF(N36=0,"",INDEX(Risk_Factors!$O$35:$T$36,MATCH('1_Risk_Calc'!N36,Risk_Factors!$E$35:$E$36,0),MATCH($E36,Risk_Factors!$O$8:$T$8,0))) ->  | Z36: =IF(O36=0,"",INDEX(Risk_Factors!$O$38:$T$39,MATCH('1_Risk_Calc'!O36,Risk_Factors!$E$38:$E$39,0),MATCH($E36,Risk_Factors!$O$8:$T$8,0))) ->  | AA36: =IF(P36=0,"",INDEX(Risk_Factors!$O$41:$T$42,MATCH('1_Risk_Calc'!P36,Risk_Factors!$E$41:$E$42,0),MATCH($E36,Risk_Factors!$O$8:$T$8,0))) ->  | AB36: 0 | AC36: 0 | AG36: S_027 | AH36: 0
B37: S_028 | Q37: =IF(F37=0,"",INDEX(Risk_Factors!$O$12:$T$14,MATCH(F37,Frequency,0),MATCH($E37,Risk_Factors!$O$8:$T$8,0))) ->  | R37: =IF(G37=0,"",INDEX(Risk_Factors!$O$15:$T$17,MATCH('1_Risk_Calc'!G37,Position,0),MATCH($E37,Risk_Factors!$O$8:$T$8,0))) ->  | S37: =IF(H37=0,"",INDEX(Risk_Factors!$O$18:$T$19,MATCH('1_Risk_Calc'!H37,Yes_No,0),MATCH($E37,Risk_Factors!$O$8:$T$8,0))) ->  | T37: =IF(I37=0,"",INDEX(Risk_Factors!$O$20:$T$22,MATCH('1_Risk_Calc'!I37,Dust_amount,0),MATCH($E37,Risk_Factors!$O$8:$T$8,0))) ->  | U37: =IF(J37=0,"",INDEX(Risk_Factors!$O$23:$T$25,MATCH('1_Risk_Calc'!J37,Dust_composition,0),MATCH($E37,Risk_Factors!$O$8:$T$8,0))) ->  | V37: =IF(K37=0,"",INDEX(Risk_Factors!$O$26:$T$28,MATCH('1_Risk_Calc'!K37,Dust_size,0),MATCH($E37,Risk_Factors!$O$8:$T$8,0))) ->  | W37: =IF(L37=0,"",INDEX(Risk_Factors!$O$29:$T$30,MATCH('1_Risk_Calc'!L37,Risk_Factors!$E$29:$E$30,0),MATCH($E37,Risk_Factors!$O$8:$T$8,0))) ->  | X37: =IF(M37=0,"",INDEX(Risk_Factors!$O$32:$T$33,MATCH('1_Risk_Calc'!M37,Risk_Factors!$E$32:$E$33,0),MATCH($E37,Risk_Factors!$O$8:$T$8,0))) ->  | Y37: =IF(N37=0,"",INDEX(Risk_Factors!$O$35:$T$36,MATCH('1_Risk_Calc'!N37,Risk_Factors!$E$35:$E$36,0),MATCH($E37,Risk_Factors!$O$8:$T$8,0))) ->  | Z37: =IF(O37=0,"",INDEX(Risk_Factors!$O$38:$T$39,MATCH('1_Risk_Calc'!O37,Risk_Factors!$E$38:$E$39,0),MATCH($E37,Risk_Factors!$O$8:$T$8,0))) ->  | AA37: =IF(P37=0,"",INDEX(Risk_Factors!$O$41:$T$42,MATCH('1_Risk_Calc'!P37,Risk_Factors!$E$41:$E$42,0),MATCH($E37,Risk_Factors!$O$8:$T$8,0))) ->  | AB37: 0 | AC37: 0 | AG37: S_028 | AH37: 0
B38: S_029 | Q38: =IF(F38=0,"",INDEX(Risk_Factors!$O$12:$T$14,MATCH(F38,Frequency,0),MATCH($E38,Risk_Factors!$O$8:$T$8,0))) ->  | R38: =IF(G38=0,"",INDEX(Risk_Factors!$O$15:$T$17,MATCH('1_Risk_Calc'!G38,Position,0),MATCH($E38,Risk_Factors!$O$8:$T$8,0))) ->  | S38: =IF(H38=0,"",INDEX(Risk_Factors!$O$18:$T$19,MATCH('1_Risk_Calc'!H38,Yes_No,0),MATCH($E38,Risk_Factors!$O$8:$T$8,0))) ->  | T38: =IF(I38=0,"",INDEX(Risk_Factors!$O$20:$T$22,MATCH('1_Risk_Calc'!I38,Dust_amount,0),MATCH($E38,Risk_Factors!$O$8:$T$8,0))) ->  | U38: =IF(J38=0,"",INDEX(Risk_Factors!$O$23:$T$25,MATCH('1_Risk_Calc'!J38,Dust_composition,0),MATCH($E38,Risk_Factors!$O$8:$T$8,0))) ->  | V38: =IF(K38=0,"",INDEX(Risk_Factors!$O$26:$T$28,MATCH('1_Risk_Calc'!K38,Dust_size,0),MATCH($E38,Risk_Factors!$O$8:$T$8,0))) ->  | W38: =IF(L38=0,"",INDEX(Risk_Factors!$O$29:$T$30,MATCH('1_Risk_Calc'!L38,Risk_Factors!$E$29:$E$30,0),MATCH($E38,Risk_Factors!$O$8:$T$8,0))) ->  | X38: =IF(M38=0,"",INDEX(Risk_Factors!$O$32:$T$33,MATCH('1_Risk_Calc'!M38,Risk_Factors!$E$32:$E$33,0),MATCH($E38,Risk_Factors!$O$8:$T$8,0))) ->  | Y38: =IF(N38=0,"",INDEX(Risk_Factors!$O$35:$T$36,MATCH('1_Risk_Calc'!N38,Risk_Factors!$E$35:$E$36,0),MATCH($E38,Risk_Factors!$O$8:$T$8,0))) ->  | Z38: =IF(O38=0,"",INDEX(Risk_Factors!$O$38:$T$39,MATCH('1_Risk_Calc'!O38,Risk_Factors!$E$38:$E$39,0),MATCH($E38,Risk_Factors!$O$8:$T$8,0))) ->  | AA38: =IF(P38=0,"",INDEX(Risk_Factors!$O$41:$T$42,MATCH('1_Risk_Calc'!P38,Risk_Factors!$E$41:$E$42,0),MATCH($E38,Risk_Factors!$O$8:$T$8,0))) ->  | AB38: 0 | AC38: 0 | AG38: S_029 | AH38: 0
B39: S_030 | Q39: =IF(F39=0,"",INDEX(Risk_Factors!$O$12:$T$14,MATCH(F39,Frequency,0),MATCH($E39,Risk_Factors!$O$8:$T$8,0))) ->  | R39: =IF(G39=0,"",INDEX(Risk_Factors!$O$15:$T$17,MATCH('1_Risk_Calc'!G39,Position,0),MATCH($E39,Risk_Factors!$O$8:$T$8,0))) ->  | S39: =IF(H39=0,"",INDEX(Risk_Factors!$O$18:$T$19,MATCH('1_Risk_Calc'!H39,Yes_No,0),MATCH($E39,Risk_Factors!$O$8:$T$8,0))) ->  | T39: =IF(I39=0,"",INDEX(Risk_Factors!$O$20:$T$22,MATCH('1_Risk_Calc'!I39,Dust_amount,0),MATCH($E39,Risk_Factors!$O$8:$T$8,0))) ->  | U39: =IF(J39=0,"",INDEX(Risk_Factors!$O$23:$T$25,MATCH('1_Risk_Calc'!J39,Dust_composition,0),MATCH($E39,Risk_Factors!$O$8:$T$8,0))) ->  | V39: =IF(K39=0,"",INDEX(Risk_Factors!$O$26:$T$28,MATCH('1_Risk_Calc'!K39,Dust_size,0),MATCH($E39,Risk_Factors!$O$8:$T$8,0))) ->  | W39: =IF(L39=0,"",INDEX(Risk_Factors!$O$29:$T$30,MATCH('1_Risk_Calc'!L39,Risk_Factors!$E$29:$E$30,0),MATCH($E39,Risk_Factors!$O$8:$T$8,0))) ->  | X39: =IF(M39=0,"",INDEX(Risk_Factors!$O$32:$T$33,MATCH('1_Risk_Calc'!M39,Risk_Factors!$E$32:$E$33,0),MATCH($E39,Risk_Factors!$O$8:$T$8,0))) ->  | Y39: =IF(N39=0,"",INDEX(Risk_Factors!$O$35:$T$36,MATCH('1_Risk_Calc'!N39,Risk_Factors!$E$35:$E$36,0),MATCH($E39,Risk_Factors!$O$8:$T$8,0))) ->  | Z39: =IF(O39=0,"",INDEX(Risk_Factors!$O$38:$T$39,MATCH('1_Risk_Calc'!O39,Risk_Factors!$E$38:$E$39,0),MATCH($E39,Risk_Factors!$O$8:$T$8,0))) ->  | AA39: =IF(P39=0,"",INDEX(Risk_Factors!$O$41:$T$42,MATCH('1_Risk_Calc'!P39,Risk_Factors!$E$41:$E$42,0),MATCH($E39,Risk_Factors!$O$8:$T$8,0))) ->  | AB39: 0 | AC39: 0 | AG39: S_030 | AH39: 0
B40: S_031 | Q40: =IF(F40=0,"",INDEX(Risk_Factors!$O$12:$T$14,MATCH(F40,Frequency,0),MATCH($E40,Risk_Factors!$O$8:$T$8,0))) ->  | R40: =IF(G40=0,"",INDEX(Risk_Factors!$O$15:$T$17,MATCH('1_Risk_Calc'!G40,Position,0),MATCH($E40,Risk_Factors!$O$8:$T$8,0))) ->  | S40: =IF(H40=0,"",INDEX(Risk_Factors!$O$18:$T$19,MATCH('1_Risk_Calc'!H40,Yes_No,0),MATCH($E40,Risk_Factors!$O$8:$T$8,0))) ->  | T40: =IF(I40=0,"",INDEX(Risk_Factors!$O$20:$T$22,MATCH('1_Risk_Calc'!I40,Dust_amount,0),MATCH($E40,Risk_Factors!$O$8:$T$8,0))) ->  | U40: =IF(J40=0,"",INDEX(Risk_Factors!$O$23:$T$25,MATCH('1_Risk_Calc'!J40,Dust_composition,0),MATCH($E40,Risk_Factors!$O$8:$T$8,0))) ->  | V40: =IF(K40=0,"",INDEX(Risk_Factors!$O$26:$T$28,MATCH('1_Risk_Calc'!K40,Dust_size,0),MATCH($E40,Risk_Factors!$O$8:$T$8,0))) ->  | W40: =IF(L40=0,"",INDEX(Risk_Factors!$O$29:$T$30,MATCH('1_Risk_Calc'!L40,Risk_Factors!$E$29:$E$30,0),MATCH($E40,Risk_Factors!$O$8:$T$8,0))) ->  | X40: =IF(M40=0,"",INDEX(Risk_Factors!$O$32:$T$33,MATCH('1_Risk_Calc'!M40,Risk_Factors!$E$32:$E$33,0),MATCH($E40,Risk_Factors!$O$8:$T$8,0))) ->  | Y40: =IF(N40=0,"",INDEX(Risk_Factors!$O$35:$T$36,MATCH('1_Risk_Calc'!N40,Risk_Factors!$E$35:$E$36,0),MATCH($E40,Risk_Factors!$O$8:$T$8,0))) ->  | Z40: =IF(O40=0,"",INDEX(Risk_Factors!$O$38:$T$39,MATCH('1_Risk_Calc'!O40,Risk_Factors!$E$38:$E$39,0),MATCH($E40,Risk_Factors!$O$8:$T$8,0))) ->  | AA40: =IF(P40=0,"",INDEX(Risk_Factors!$O$41:$T$42,MATCH('1_Risk_Calc'!P40,Risk_Factors!$E$41:$E$42,0),MATCH($E40,Risk_Factors!$O$8:$T$8,0))) ->  | AB40: 0 | AC40: 0 | AG40: S_031 | AH40: 0
B41: S_032 | Q41: =IF(F41=0,"",INDEX(Risk_Factors!$O$12:$T$14,MATCH(F41,Frequency,0),MATCH($E41,Risk_Factors!$O$8:$T$8,0))) ->  | R41: =IF(G41=0,"",INDEX(Risk_Factors!$O$15:$T$17,MATCH('1_Risk_Calc'!G41,Position,0),MATCH($E41,Risk_Factors!$O$8:$T$8,0))) ->  | S41: =IF(H41=0,"",INDEX(Risk_Factors!$O$18:$T$19,MATCH('1_Risk_Calc'!H41,Yes_No,0),MATCH($E41,Risk_Factors!$O$8:$T$8,0))) ->  | T41: =IF(I41=0,"",INDEX(Risk_Factors!$O$20:$T$22,MATCH('1_Risk_Calc'!I41,Dust_amount,0),MATCH($E41,Risk_Factors!$O$8:$T$8,0))) ->  | U41: =IF(J41=0,"",INDEX(Risk_Factors!$O$23:$T$25,MATCH('1_Risk_Calc'!J41,Dust_composition,0),MATCH($E41,Risk_Factors!$O$8:$T$8,0))) ->  | V41: =IF(K41=0,"",INDEX(Risk_Factors!$O$26:$T$28,MATCH('1_Risk_Calc'!K41,Dust_size,0),MATCH($E41,Risk_Factors!$O$8:$T$8,0))) ->  | W41: =IF(L41=0,"",INDEX(Risk_Factors!$O$29:$T$30,MATCH('1_Risk_Calc'!L41,Risk_Factors!$E$29:$E$30,0),MATCH($E41,Risk_Factors!$O$8:$T$8,0))) ->  | X41: =IF(M41=0,"",INDEX(Risk_Factors!$O$32:$T$33,MATCH('1_Risk_Calc'!M41,Risk_Factors!$E$32:$E$33,0),MATCH($E41,Risk_Factors!$O$8:$T$8,0))) ->  | Y41: =IF(N41=0,"",INDEX(Risk_Factors!$O$35:$T$36,MATCH('1_Risk_Calc'!N41,Risk_Factors!$E$35:$E$36,0),MATCH($E41,Risk_Factors!$O$8:$T$8,0))) ->  | Z41: =IF(O41=0,"",INDEX(Risk_Factors!$O$38:$T$39,MATCH('1_Risk_Calc'!O41,Risk_Factors!$E$38:$E$39,0),MATCH($E41,Risk_Factors!$O$8:$T$8,0))) ->  | AA41: =IF(P41=0,"",INDEX(Risk_Factors!$O$41:$T$42,MATCH('1_Risk_Calc'!P41,Risk_Factors!$E$41:$E$42,0),MATCH($E41,Risk_Factors!$O$8:$T$8,0))) ->  | AB41: 0 | AC41: 0 | AG41: S_032 | AH41: 0
B42: S_033 | Q42: =IF(F42=0,"",INDEX(Risk_Factors!$O$12:$T$14,MATCH(F42,Frequency,0),MATCH($E42,Risk_Factors!$O$8:$T$8,0))) ->  | R42: =IF(G42=0,"",INDEX(Risk_Factors!$O$15:$T$17,MATCH('1_Risk_Calc'!G42,Position,0),MATCH($E42,Risk_Factors!$O$8:$T$8,0))) ->  | S42: =IF(H42=0,"",INDEX(Risk_Factors!$O$18:$T$19,MATCH('1_Risk_Calc'!H42,Yes_No,0),MATCH($E42,Risk_Factors!$O$8:$T$8,0))) ->  | T42: =IF(I42=0,"",INDEX(Risk_Factors!$O$20:$T$22,MATCH('1_Risk_Calc'!I42,Dust_amount,0),MATCH($E42,Risk_Factors!$O$8:$T$8,0))) ->  | U42: =IF(J42=0,"",INDEX(Risk_Factors!$O$23:$T$25,MATCH('1_Risk_Calc'!J42,Dust_composition,0),MATCH($E42,Risk_Factors!$O$8:$T$8,0))) ->  | V42: =IF(K42=0,"",INDEX(Risk_Factors!$O$26:$T$28,MATCH('1_Risk_Calc'!K42,Dust_size,0),MATCH($E42,Risk_Factors!$O$8:$T$8,0))) ->  | W42: =IF(L42=0,"",INDEX(Risk_Factors!$O$29:$T$30,MATCH('1_Risk_Calc'!L42,Risk_Factors!$E$29:$E$30,0),MATCH($E42,Risk_Factors!$O$8:$T$8,0))) ->  | X42: =IF(M42=0,"",INDEX(Risk_Factors!$O$32:$T$33,MATCH('1_Risk_Calc'!M42,Risk_Factors!$E$32:$E$33,0),MATCH($E42,Risk_Factors!$O$8:$T$8,0))) ->  | Y42: =IF(N42=0,"",INDEX(Risk_Factors!$O$35:$T$36,MATCH('1_Risk_Calc'!N42,Risk_Factors!$E$35:$E$36,0),MATCH($E42,Risk_Factors!$O$8:$T$8,0))) ->  | Z42: =IF(O42=0,"",INDEX(Risk_Factors!$O$38:$T$39,MATCH('1_Risk_Calc'!O42,Risk_Factors!$E$38:$E$39,0),MATCH($E42,Risk_Factors!$O$8:$T$8,0))) ->  | AA42: =IF(P42=0,"",INDEX(Risk_Factors!$O$41:$T$42,MATCH('1_Risk_Calc'!P42,Risk_Factors!$E$41:$E$42,0),MATCH($E42,Risk_Factors!$O$8:$T$8,0))) ->  | AB42: 0 | AC42: =(AB42/MAX($AB$10:$AB$109))*$AC$5 -> 0 | AG42: S_033 | AH42: 0
B43: S_034 | Q43: =IF(F43=0,"",INDEX(Risk_Factors!$O$12:$T$14,MATCH(F43,Frequency,0),MATCH($E43,Risk_Factors!$O$8:$T$8,0))) ->  | R43: =IF(G43=0,"",INDEX(Risk_Factors!$O$15:$T$17,MATCH('1_Risk_Calc'!G43,Position,0),MATCH($E43,Risk_Factors!$O$8:$T$8,0))) ->  | S43: =IF(H43=0,"",INDEX(Risk_Factors!$O$18:$T$19,MATCH('1_Risk_Calc'!H43,Yes_No,0),MATCH($E43,Risk_Factors!$O$8:$T$8,0))) ->  | T43: =IF(I43=0,"",INDEX(Risk_Factors!$O$20:$T$22,MATCH('1_Risk_Calc'!I43,Dust_amount,0),MATCH($E43,Risk_Factors!$O$8:$T$8,0))) ->  | U43: =IF(J43=0,"",INDEX(Risk_Factors!$O$23:$T$25,MATCH('1_Risk_Calc'!J43,Dust_composition,0),MATCH($E43,Risk_Factors!$O$8:$T$8,0))) ->  | V43: =IF(K43=0,"",INDEX(Risk_Factors!$O$26:$T$28,MATCH('1_Risk_Calc'!K43,Dust_size,0),MATCH($E43,Risk_Factors!$O$8:$T$8,0))) ->  | W43: =IF(L43=0,"",INDEX(Risk_Factors!$O$29:$T$30,MATCH('1_Risk_Calc'!L43,Risk_Factors!$E$29:$E$30,0),MATCH($E43,Risk_Factors!$O$8:$T$8,0))) ->  | X43: =IF(M43=0,"",INDEX(Risk_Factors!$O$32:$T$33,MATCH('1_Risk_Calc'!M43,Risk_Factors!$E$32:$E$33,0),MATCH($E43,Risk_Factors!$O$8:$T$8,0))) ->  | Y43: =IF(N43=0,"",INDEX(Risk_Factors!$O$35:$T$36,MATCH('1_Risk_Calc'!N43,Risk_Factors!$E$35:$E$36,0),MATCH($E43,Risk_Factors!$O$8:$T$8,0))) ->  | Z43: =IF(O43=0,"",INDEX(Risk_Factors!$O$38:$T$39,MATCH('1_Risk_Calc'!O43,Risk_Factors!$E$38:$E$39,0),MATCH($E43,Risk_Factors!$O$8:$T$8,0))) ->  | AA43: =IF(P43=0,"",INDEX(Risk_Factors!$O$41:$T$42,MATCH('1_Risk_Calc'!P43,Risk_Factors!$E$41:$E$42,0),MATCH($E43,Risk_Factors!$O$8:$T$8,0))) ->  | AB43: 0 | AC43: 0 | AG43: S_034 | AH43: 0
B44: S_035 | Q44: =IF(F44=0,"",INDEX(Risk_Factors!$O$12:$T$14,MATCH(F44,Frequency,0),MATCH($E44,Risk_Factors!$O$8:$T$8,0))) ->  | R44: =IF(G44=0,"",INDEX(Risk_Factors!$O$15:$T$17,MATCH('1_Risk_Calc'!G44,Position,0),MATCH($E44,Risk_Factors!$O$8:$T$8,0))) ->  | S44: =IF(H44=0,"",INDEX(Risk_Factors!$O$18:$T$19,MATCH('1_Risk_Calc'!H44,Yes_No,0),MATCH($E44,Risk_Factors!$O$8:$T$8,0))) ->  | T44: =IF(I44=0,"",INDEX(Risk_Factors!$O$20:$T$22,MATCH('1_Risk_Calc'!I44,Dust_amount,0),MATCH($E44,Risk_Factors!$O$8:$T$8,0))) ->  | U44: =IF(J44=0,"",INDEX(Risk_Factors!$O$23:$T$25,MATCH('1_Risk_Calc'!J44,Dust_composition,0),MATCH($E44,Risk_Factors!$O$8:$T$8,0))) ->  | V44: =IF(K44=0,"",INDEX(Risk_Factors!$O$26:$T$28,MATCH('1_Risk_Calc'!K44,Dust_size,0),MATCH($E44,Risk_Factors!$O$8:$T$8,0))) ->  | W44: =IF(L44=0,"",INDEX(Risk_Factors!$O$29:$T$30,MATCH('1_Risk_Calc'!L44,Risk_Factors!$E$29:$E$30,0),MATCH($E44,Risk_Factors!$O$8:$T$8,0))) ->  | X44: =IF(M44=0,"",INDEX(Risk_Factors!$O$32:$T$33,MATCH('1_Risk_Calc'!M44,Risk_Factors!$E$32:$E$33,0),MATCH($E44,Risk_Factors!$O$8:$T$8,0))) ->  | Y44: =IF(N44=0,"",INDEX(Risk_Factors!$O$35:$T$36,MATCH('1_Risk_Calc'!N44,Risk_Factors!$E$35:$E$36,0),MATCH($E44,Risk_Factors!$O$8:$T$8,0))) ->  | Z44: =IF(O44=0,"",INDEX(Risk_Factors!$O$38:$T$39,MATCH('1_Risk_Calc'!O44,Risk_Factors!$E$38:$E$39,0),MATCH($E44,Risk_Factors!$O$8:$T$8,0))) ->  | AA44: =IF(P44=0,"",INDEX(Risk_Factors!$O$41:$T$42,MATCH('1_Risk_Calc'!P44,Risk_Factors!$E$41:$E$42,0),MATCH($E44,Risk_Factors!$O$8:$T$8,0))) ->  | AB44: 0 | AC44: 0 | AG44: S_035 | AH44: 0
B45: S_036 | Q45: =IF(F45=0,"",INDEX(Risk_Factors!$O$12:$T$14,MATCH(F45,Frequency,0),MATCH($E45,Risk_Factors!$O$8:$T$8,0))) ->  | R45: =IF(G45=0,"",INDEX(Risk_Factors!$O$15:$T$17,MATCH('1_Risk_Calc'!G45,Position,0),MATCH($E45,Risk_Factors!$O$8:$T$8,0))) ->  | S45: =IF(H45=0,"",INDEX(Risk_Factors!$O$18:$T$19,MATCH('1_Risk_Calc'!H45,Yes_No,0),MATCH($E45,Risk_Factors!$O$8:$T$8,0))) ->  | T45: =IF(I45=0,"",INDEX(Risk_Factors!$O$20:$T$22,MATCH('1_Risk_Calc'!I45,Dust_amount,0),MATCH($E45,Risk_Factors!$O$8:$T$8,0))) ->  | U45: =IF(J45=0,"",INDEX(Risk_Factors!$O$23:$T$25,MATCH('1_Risk_Calc'!J45,Dust_composition,0),MATCH($E45,Risk_Factors!$O$8:$T$8,0))) ->  | V45: =IF(K45=0,"",INDEX(Risk_Factors!$O$26:$T$28,MATCH('1_Risk_Calc'!K45,Dust_size,0),MATCH($E45,Risk_Factors!$O$8:$T$8,0))) ->  | W45: =IF(L45=0,"",INDEX(Risk_Factors!$O$29:$T$30,MATCH('1_Risk_Calc'!L45,Risk_Factors!$E$29:$E$30,0),MATCH($E45,Risk_Factors!$O$8:$T$8,0))) ->  | X45: =IF(M45=0,"",INDEX(Risk_Factors!$O$32:$T$33,MATCH('1_Risk_Calc'!M45,Risk_Factors!$E$32:$E$33,0),MATCH($E45,Risk_Factors!$O$8:$T$8,0))) ->  | Y45: =IF(N45=0,"",INDEX(Risk_Factors!$O$35:$T$36,MATCH('1_Risk_Calc'!N45,Risk_Factors!$E$35:$E$36,0),MATCH($E45,Risk_Factors!$O$8:$T$8,0))) ->  | Z45: =IF(O45=0,"",INDEX(Risk_Factors!$O$38:$T$39,MATCH('1_Risk_Calc'!O45,Risk_Factors!$E$38:$E$39,0),MATCH($E45,Risk_Factors!$O$8:$T$8,0))) ->  | AA45: =IF(P45=0,"",INDEX(Risk_Factors!$O$41:$T$42,MATCH('1_Risk_Calc'!P45,Risk_Factors!$E$41:$E$42,0),MATCH($E45,Risk_Factors!$O$8:$T$8,0))) ->  | AB45: 0 | AC45: 0 | AG45: S_036 | AH45: 0
B46: S_037 | Q46: =IF(F46=0,"",INDEX(Risk_Factors!$O$12:$T$14,MATCH(F46,Frequency,0),MATCH($E46,Risk_Factors!$O$8:$T$8,0))) ->  | R46: =IF(G46=0,"",INDEX(Risk_Factors!$O$15:$T$17,MATCH('1_Risk_Calc'!G46,Position,0),MATCH($E46,Risk_Factors!$O$8:$T$8,0))) ->  | S46: =IF(H46=0,"",INDEX(Risk_Factors!$O$18:$T$19,MATCH('1_Risk_Calc'!H46,Yes_No,0),MATCH($E46,Risk_Factors!$O$8:$T$8,0))) ->  | T46: =IF(I46=0,"",INDEX(Risk_Factors!$O$20:$T$22,MATCH('1_Risk_Calc'!I46,Dust_amount,0),MATCH($E46,Risk_Factors!$O$8:$T$8,0))) ->  | U46: =IF(J46=0,"",INDEX(Risk_Factors!$O$23:$T$25,MATCH('1_Risk_Calc'!J46,Dust_composition,0),MATCH($E46,Risk_Factors!$O$8:$T$8,0))) ->  | V46: =IF(K46=0,"",INDEX(Risk_Factors!$O$26:$T$28,MATCH('1_Risk_Calc'!K46,Dust_size,0),MATCH($E46,Risk_Factors!$O$8:$T$8,0))) ->  | W46: =IF(L46=0,"",INDEX(Risk_Factors!$O$29:$T$30,MATCH('1_Risk_Calc'!L46,Risk_Factors!$E$29:$E$30,0),MATCH($E46,Risk_Factors!$O$8:$T$8,0))) ->  | X46: =IF(M46=0,"",INDEX(Risk_Factors!$O$32:$T$33,MATCH('1_Risk_Calc'!M46,Risk_Factors!$E$32:$E$33,0),MATCH($E46,Risk_Factors!$O$8:$T$8,0))) ->  | Y46: =IF(N46=0,"",INDEX(Risk_Factors!$O$35:$T$36,MATCH('1_Risk_Calc'!N46,Risk_Factors!$E$35:$E$36,0),MATCH($E46,Risk_Factors!$O$8:$T$8,0))) ->  | Z46: =IF(O46=0,"",INDEX(Risk_Factors!$O$38:$T$39,MATCH('1_Risk_Calc'!O46,Risk_Factors!$E$38:$E$39,0),MATCH($E46,Risk_Factors!$O$8:$T$8,0))) ->  | AA46: =IF(P46=0,"",INDEX(Risk_Factors!$O$41:$T$42,MATCH('1_Risk_Calc'!P46,Risk_Factors!$E$41:$E$42,0),MATCH($E46,Risk_Factors!$O$8:$T$8,0))) ->  | AB46: 0 | AC46: 0 | AG46: S_037 | AH46: 0
B47: S_038 | Q47: =IF(F47=0,"",INDEX(Risk_Factors!$O$12:$T$14,MATCH(F47,Frequency,0),MATCH($E47,Risk_Factors!$O$8:$T$8,0))) ->  | R47: =IF(G47=0,"",INDEX(Risk_Factors!$O$15:$T$17,MATCH('1_Risk_Calc'!G47,Position,0),MATCH($E47,Risk_Factors!$O$8:$T$8,0))) ->  | S47: =IF(H47=0,"",INDEX(Risk_Factors!$O$18:$T$19,MATCH('1_Risk_Calc'!H47,Yes_No,0),MATCH($E47,Risk_Factors!$O$8:$T$8,0))) ->  | T47: =IF(I47=0,"",INDEX(Risk_Factors!$O$20:$T$22,MATCH('1_Risk_Calc'!I47,Dust_amount,0),MATCH($E47,Risk_Factors!$O$8:$T$8,0))) ->  | U47: =IF(J47=0,"",INDEX(Risk_Factors!$O$23:$T$25,MATCH('1_Risk_Calc'!J47,Dust_composition,0),MATCH($E47,Risk_Factors!$O$8:$T$8,0))) ->  | V47: =IF(K47=0,"",INDEX(Risk_Factors!$O$26:$T$28,MATCH('1_Risk_Calc'!K47,Dust_size,0),MATCH($E47,Risk_Factors!$O$8:$T$8,0))) ->  | W47: =IF(L47=0,"",INDEX(Risk_Factors!$O$29:$T$30,MATCH('1_Risk_Calc'!L47,Risk_Factors!$E$29:$E$30,0),MATCH($E47,Risk_Factors!$O$8:$T$8,0))) ->  | X47: =IF(M47=0,"",INDEX(Risk_Factors!$O$32:$T$33,MATCH('1_Risk_Calc'!M47,Risk_Factors!$E$32:$E$33,0),MATCH($E47,Risk_Factors!$O$8:$T$8,0))) ->  | Y47: =IF(N47=0,"",INDEX(Risk_Factors!$O$35:$T$36,MATCH('1_Risk_Calc'!N47,Risk_Factors!$E$35:$E$36,0),MATCH($E47,Risk_Factors!$O$8:$T$8,0))) ->  | Z47: =IF(O47=0,"",INDEX(Risk_Factors!$O$38:$T$39,MATCH('1_Risk_Calc'!O47,Risk_Factors!$E$38:$E$39,0),MATCH($E47,Risk_Factors!$O$8:$T$8,0))) ->  | AA47: =IF(P47=0,"",INDEX(Risk_Factors!$O$41:$T$42,MATCH('1_Risk_Calc'!P47,Risk_Factors!$E$41:$E$42,0),MATCH($E47,Risk_Factors!$O$8:$T$8,0))) ->  | AB47: 0 | AC47: 0 | AG47: S_038 | AH47: 0
B48: S_039 | Q48: =IF(F48=0,"",INDEX(Risk_Factors!$O$12:$T$14,MATCH(F48,Frequency,0),MATCH($E48,Risk_Factors!$O$8:$T$8,0))) ->  | R48: =IF(G48=0,"",INDEX(Risk_Factors!$O$15:$T$17,MATCH('1_Risk_Calc'!G48,Position,0),MATCH($E48,Risk_Factors!$O$8:$T$8,0))) ->  | S48: =IF(H48=0,"",INDEX(Risk_Factors!$O$18:$T$19,MATCH('1_Risk_Calc'!H48,Yes_No,0),MATCH($E48,Risk_Factors!$O$8:$T$8,0))) ->  | T48: =IF(I48=0,"",INDEX(Risk_Factors!$O$20:$T$22,MATCH('1_Risk_Calc'!I48,Dust_amount,0),MATCH($E48,Risk_Factors!$O$8:$T$8,0))) ->  | U48: =IF(J48=0,"",INDEX(Risk_Factors!$O$23:$T$25,MATCH('1_Risk_Calc'!J48,Dust_composition,0),MATCH($E48,Risk_Factors!$O$8:$T$8,0))) ->  | V48: =IF(K48=0,"",INDEX(Risk_Factors!$O$26:$T$28,MATCH('1_Risk_Calc'!K48,Dust_size,0),MATCH($E48,Risk_Factors!$O$8:$T$8,0))) ->  | W48: =IF(L48=0,"",INDEX(Risk_Factors!$O$29:$T$30,MATCH('1_Risk_Calc'!L48,Risk_Factors!$E$29:$E$30,0),MATCH($E48,Risk_Factors!$O$8:$T$8,0))) ->  | X48: =IF(M48=0,"",INDEX(Risk_Factors!$O$32:$T$33,MATCH('1_Risk_Calc'!M48,Risk_Factors!$E$32:$E$33,0),MATCH($E48,Risk_Factors!$O$8:$T$8,0))) ->  | Y48: =IF(N48=0,"",INDEX(Risk_Factors!$O$35:$T$36,MATCH('1_Risk_Calc'!N48,Risk_Factors!$E$35:$E$36,0),MATCH($E48,Risk_Factors!$O$8:$T$8,0))) ->  | Z48: =IF(O48=0,"",INDEX(Risk_Factors!$O$38:$T$39,MATCH('1_Risk_Calc'!O48,Risk_Factors!$E$38:$E$39,0),MATCH($E48,Risk_Factors!$O$8:$T$8,0))) ->  | AA48: =IF(P48=0,"",INDEX(Risk_Factors!$O$41:$T$42,MATCH('1_Risk_Calc'!P48,Risk_Factors!$E$41:$E$42,0),MATCH($E48,Risk_Factors!$O$8:$T$8,0))) ->  | AB48: 0 | AC48: 0 | AG48: S_039 | AH48: 0
B49: S_040 | Q49: =IF(F49=0,"",INDEX(Risk_Factors!$O$12:$T$14,MATCH(F49,Frequency,0),MATCH($E49,Risk_Factors!$O$8:$T$8,0))) ->  | R49: =IF(G49=0,"",INDEX(Risk_Factors!$O$15:$T$17,MATCH('1_Risk_Calc'!G49,Position,0),MATCH($E49,Risk_Factors!$O$8:$T$8,0))) ->  | S49: =IF(H49=0,"",INDEX(Risk_Factors!$O$18:$T$19,MATCH('1_Risk_Calc'!H49,Yes_No,0),MATCH($E49,Risk_Factors!$O$8:$T$8,0))) ->  | T49: =IF(I49=0,"",INDEX(Risk_Factors!$O$20:$T$22,MATCH('1_Risk_Calc'!I49,Dust_amount,0),MATCH($E49,Risk_Factors!$O$8:$T$8,0))) ->  | U49: =IF(J49=0,"",INDEX(Risk_Factors!$O$23:$T$25,MATCH('1_Risk_Calc'!J49,Dust_composition,0),MATCH($E49,Risk_Factors!$O$8:$T$8,0))) ->  | V49: =IF(K49=0,"",INDEX(Risk_Factors!$O$26:$T$28,MATCH('1_Risk_Calc'!K49,Dust_size,0),MATCH($E49,Risk_Factors!$O$8:$T$8,0))) ->  | W49: =IF(L49=0,"",INDEX(Risk_Factors!$O$29:$T$30,MATCH('1_Risk_Calc'!L49,Risk_Factors!$E$29:$E$30,0),MATCH($E49,Risk_Factors!$O$8:$T$8,0))) ->  | X49: =IF(M49=0,"",INDEX(Risk_Factors!$O$32:$T$33,MATCH('1_Risk_Calc'!M49,Risk_Factors!$E$32:$E$33,0),MATCH($E49,Risk_Factors!$O$8:$T$8,0))) ->  | Y49: =IF(N49=0,"",INDEX(Risk_Factors!$O$35:$T$36,MATCH('1_Risk_Calc'!N49,Risk_Factors!$E$35:$E$36,0),MATCH($E49,Risk_Factors!$O$8:$T$8,0))) ->  | Z49: =IF(O49=0,"",INDEX(Risk_Factors!$O$38:$T$39,MATCH('1_Risk_Calc'!O49,Risk_Factors!$E$38:$E$39,0),MATCH($E49,Risk_Factors!$O$8:$T$8,0))) ->  | AA49: =IF(P49=0,"",INDEX(Risk_Factors!$O$41:$T$42,MATCH('1_Risk_Calc'!P49,Risk_Factors!$E$41:$E$42,0),MATCH($E49,Risk_Factors!$O$8:$T$8,0))) ->  | AB49: 0 | AC49: 0 | AG49: S_040 | AH49: 0
B50: S_041 | Q50: =IF(F50=0,"",INDEX(Risk_Factors!$O$12:$T$14,MATCH(F50,Frequency,0),MATCH($E50,Risk_Factors!$O$8:$T$8,0))) ->  | R50: =IF(G50=0,"",INDEX(Risk_Factors!$O$15:$T$17,MATCH('1_Risk_Calc'!G50,Position,0),MATCH($E50,Risk_Factors!$O$8:$T$8,0))) ->  | S50: =IF(H50=0,"",INDEX(Risk_Factors!$O$18:$T$19,MATCH('1_Risk_Calc'!H50,Yes_No,0),MATCH($E50,Risk_Factors!$O$8:$T$8,0))) ->  | T50: =IF(I50=0,"",INDEX(Risk_Factors!$O$20:$T$22,MATCH('1_Risk_Calc'!I50,Dust_amount,0),MATCH($E50,Risk_Factors!$O$8:$T$8,0))) ->  | U50: =IF(J50=0,"",INDEX(Risk_Factors!$O$23:$T$25,MATCH('1_Risk_Calc'!J50,Dust_composition,0),MATCH($E50,Risk_Factors!$O$8:$T$8,0))) ->  | V50: =IF(K50=0,"",INDEX(Risk_Factors!$O$26:$T$28,MATCH('1_Risk_Calc'!K50,Dust_size,0),MATCH($E50,Risk_Factors!$O$8:$T$8,0))) ->  | W50: =IF(L50=0,"",INDEX(Risk_Factors!$O$29:$T$30,MATCH('1_Risk_Calc'!L50,Risk_Factors!$E$29:$E$30,0),MATCH($E50,Risk_Factors!$O$8:$T$8,0))) ->  | X50: =IF(M50=0,"",INDEX(Risk_Factors!$O$32:$T$33,MATCH('1_Risk_Calc'!M50,Risk_Factors!$E$32:$E$33,0),MATCH($E50,Risk_Factors!$O$8:$T$8,0))) ->  | Y50: =IF(N50=0,"",INDEX(Risk_Factors!$O$35:$T$36,MATCH('1_Risk_Calc'!N50,Risk_Factors!$E$35:$E$36,0),MATCH($E50,Risk_Factors!$O$8:$T$8,0))) ->  | Z50: =IF(O50=0,"",INDEX(Risk_Factors!$O$38:$T$39,MATCH('1_Risk_Calc'!O50,Risk_Factors!$E$38:$E$39,0),MATCH($E50,Risk_Factors!$O$8:$T$8,0))) ->  | AA50: =IF(P50=0,"",INDEX(Risk_Factors!$O$41:$T$42,MATCH('1_Risk_Calc'!P50,Risk_Factors!$E$41:$E$42,0),MATCH($E50,Risk_Factors!$O$8:$T$8,0))) ->  | AB50: 0 | AC50: 0 | AG50: S_041 | AH50: 0
B51: S_042 | Q51: =IF(F51=0,"",INDEX(Risk_Factors!$O$12:$T$14,MATCH(F51,Frequency,0),MATCH($E51,Risk_Factors!$O$8:$T$8,0))) ->  | R51: =IF(G51=0,"",INDEX(Risk_Factors!$O$15:$T$17,MATCH('1_Risk_Calc'!G51,Position,0),MATCH($E51,Risk_Factors!$O$8:$T$8,0))) ->  | S51: =IF(H51=0,"",INDEX(Risk_Factors!$O$18:$T$19,MATCH('1_Risk_Calc'!H51,Yes_No,0),MATCH($E51,Risk_Factors!$O$8:$T$8,0))) ->  | T51: =IF(I51=0,"",INDEX(Risk_Factors!$O$20:$T$22,MATCH('1_Risk_Calc'!I51,Dust_amount,0),MATCH($E51,Risk_Factors!$O$8:$T$8,0))) ->  | U51: =IF(J51=0,"",INDEX(Risk_Factors!$O$23:$T$25,MATCH('1_Risk_Calc'!J51,Dust_composition,0),MATCH($E51,Risk_Factors!$O$8:$T$8,0))) ->  | V51: =IF(K51=0,"",INDEX(Risk_Factors!$O$26:$T$28,MATCH('1_Risk_Calc'!K51,Dust_size,0),MATCH($E51,Risk_Factors!$O$8:$T$8,0))) ->  | W51: =IF(L51=0,"",INDEX(Risk_Factors!$O$29:$T$30,MATCH('1_Risk_Calc'!L51,Risk_Factors!$E$29:$E$30,0),MATCH($E51,Risk_Factors!$O$8:$T$8,0))) ->  | X51: =IF(M51=0,"",INDEX(Risk_Factors!$O$32:$T$33,MATCH('1_Risk_Calc'!M51,Risk_Factors!$E$32:$E$33,0),MATCH($E51,Risk_Factors!$O$8:$T$8,0))) ->  | Y51: =IF(N51=0,"",INDEX(Risk_Factors!$O$35:$T$36,MATCH('1_Risk_Calc'!N51,Risk_Factors!$E$35:$E$36,0),MATCH($E51,Risk_Factors!$O$8:$T$8,0))) ->  | Z51: =IF(O51=0,"",INDEX(Risk_Factors!$O$38:$T$39,MATCH('1_Risk_Calc'!O51,Risk_Factors!$E$38:$E$39,0),MATCH($E51,Risk_Factors!$O$8:$T$8,0))) ->  | AA51: =IF(P51=0,"",INDEX(Risk_Factors!$O$41:$T$42,MATCH('1_Risk_Calc'!P51,Risk_Factors!$E$41:$E$42,0),MATCH($E51,Risk_Factors!$O$8:$T$8,0))) ->  | AB51: 0 | AC51: 0 | AG51: S_042 | AH51: 0
B52: S_043 | Q52: =IF(F52=0,"",INDEX(Risk_Factors!$O$12:$T$14,MATCH(F52,Frequency,0),MATCH($E52,Risk_Factors!$O$8:$T$8,0))) ->  | R52: =IF(G52=0,"",INDEX(Risk_Factors!$O$15:$T$17,MATCH('1_Risk_Calc'!G52,Position,0),MATCH($E52,Risk_Factors!$O$8:$T$8,0))) ->  | S52: =IF(H52=0,"",INDEX(Risk_Factors!$O$18:$T$19,MATCH('1_Risk_Calc'!H52,Yes_No,0),MATCH($E52,Risk_Factors!$O$8:$T$8,0))) ->  | T52: =IF(I52=0,"",INDEX(Risk_Factors!$O$20:$T$22,MATCH('1_Risk_Calc'!I52,Dust_amount,0),MATCH($E52,Risk_Factors!$O$8:$T$8,0))) ->  | U52: =IF(J52=0,"",INDEX(Risk_Factors!$O$23:$T$25,MATCH('1_Risk_Calc'!J52,Dust_composition,0),MATCH($E52,Risk_Factors!$O$8:$T$8,0))) ->  | V52: =IF(K52=0,"",INDEX(Risk_Factors!$O$26:$T$28,MATCH('1_Risk_Calc'!K52,Dust_size,0),MATCH($E52,Risk_Factors!$O$8:$T$8,0))) ->  | W52: =IF(L52=0,"",INDEX(Risk_Factors!$O$29:$T$30,MATCH('1_Risk_Calc'!L52,Risk_Factors!$E$29:$E$30,0),MATCH($E52,Risk_Factors!$O$8:$T$8,0))) ->  | X52: =IF(M52=0,"",INDEX(Risk_Factors!$O$32:$T$33,MATCH('1_Risk_Calc'!M52,Risk_Factors!$E$32:$E$33,0),MATCH($E52,Risk_Factors!$O$8:$T$8,0))) ->  | Y52: =IF(N52=0,"",INDEX(Risk_Factors!$O$35:$T$36,MATCH('1_Risk_Calc'!N52,Risk_Factors!$E$35:$E$36,0),MATCH($E52,Risk_Factors!$O$8:$T$8,0))) ->  | Z52: =IF(O52=0,"",INDEX(Risk_Factors!$O$38:$T$39,MATCH('1_Risk_Calc'!O52,Risk_Factors!$E$38:$E$39,0),MATCH($E52,Risk_Factors!$O$8:$T$8,0))) ->  | AA52: =IF(P52=0,"",INDEX(Risk_Factors!$O$41:$T$42,MATCH('1_Risk_Calc'!P52,Risk_Factors!$E$41:$E$42,0),MATCH($E52,Risk_Factors!$O$8:$T$8,0))) ->  | AB52: 0 | AC52: 0 | AG52: S_043 | AH52: 0
B53: S_044 | Q53: =IF(F53=0,"",INDEX(Risk_Factors!$O$12:$T$14,MATCH(F53,Frequency,0),MATCH($E53,Risk_Factors!$O$8:$T$8,0))) ->  | R53: =IF(G53=0,"",INDEX(Risk_Factors!$O$15:$T$17,MATCH('1_Risk_Calc'!G53,Position,0),MATCH($E53,Risk_Factors!$O$8:$T$8,0))) ->  | S53: =IF(H53=0,"",INDEX(Risk_Factors!$O$18:$T$19,MATCH('1_Risk_Calc'!H53,Yes_No,0),MATCH($E53,Risk_Factors!$O$8:$T$8,0))) ->  | T53: =IF(I53=0,"",INDEX(Risk_Factors!$O$20:$T$22,MATCH('1_Risk_Calc'!I53,Dust_amount,0),MATCH($E53,Risk_Factors!$O$8:$T$8,0))) ->  | U53: =IF(J53=0,"",INDEX(Risk_Factors!$O$23:$T$25,MATCH('1_Risk_Calc'!J53,Dust_composition,0),MATCH($E53,Risk_Factors!$O$8:$T$8,0))) ->  | V53: =IF(K53=0,"",INDEX(Risk_Factors!$O$26:$T$28,MATCH('1_Risk_Calc'!K53,Dust_size,0),MATCH($E53,Risk_Factors!$O$8:$T$8,0))) ->  | W53: =IF(L53=0,"",INDEX(Risk_Factors!$O$29:$T$30,MATCH('1_Risk_Calc'!L53,Risk_Factors!$E$29:$E$30,0),MATCH($E53,Risk_Factors!$O$8:$T$8,0))) ->  | X53: =IF(M53=0,"",INDEX(Risk_Factors!$O$32:$T$33,MATCH('1_Risk_Calc'!M53,Risk_Factors!$E$32:$E$33,0),MATCH($E53,Risk_Factors!$O$8:$T$8,0))) ->  | Y53: =IF(N53=0,"",INDEX(Risk_Factors!$O$35:$T$36,MATCH('1_Risk_Calc'!N53,Risk_Factors!$E$35:$E$36,0),MATCH($E53,Risk_Factors!$O$8:$T$8,0))) ->  | Z53: =IF(O53=0,"",INDEX(Risk_Factors!$O$38:$T$39,MATCH('1_Risk_Calc'!O53,Risk_Factors!$E$38:$E$39,0),MATCH($E53,Risk_Factors!$O$8:$T$8,0))) ->  | AA53: =IF(P53=0,"",INDEX(Risk_Factors!$O$41:$T$42,MATCH('1_Risk_Calc'!P53,Risk_Factors!$E$41:$E$42,0),MATCH($E53,Risk_Factors!$O$8:$T$8,0))) ->  | AB53: 0 | AC53: 0 | AG53: S_044 | AH53: 0
B54: S_045 | Q54: =IF(F54=0,"",INDEX(Risk_Factors!$O$12:$T$14,MATCH(F54,Frequency,0),MATCH($E54,Risk_Factors!$O$8:$T$8,0))) ->  | R54: =IF(G54=0,"",INDEX(Risk_Factors!$O$15:$T$17,MATCH('1_Risk_Calc'!G54,Position,0),MATCH($E54,Risk_Factors!$O$8:$T$8,0))) ->  | S54: =IF(H54=0,"",INDEX(Risk_Factors!$O$18:$T$19,MATCH('1_Risk_Calc'!H54,Yes_No,0),MATCH($E54,Risk_Factors!$O$8:$T$8,0))) ->  | T54: =IF(I54=0,"",INDEX(Risk_Factors!$O$20:$T$22,MATCH('1_Risk_Calc'!I54,Dust_amount,0),MATCH($E54,Risk_Factors!$O$8:$T$8,0))) ->  | U54: =IF(J54=0,"",INDEX(Risk_Factors!$O$23:$T$25,MATCH('1_Risk_Calc'!J54,Dust_composition,0),MATCH($E54,Risk_Factors!$O$8:$T$8,0))) ->  | V54: =IF(K54=0,"",INDEX(Risk_Factors!$O$26:$T$28,MATCH('1_Risk_Calc'!K54,Dust_size,0),MATCH($E54,Risk_Factors!$O$8:$T$8,0))) ->  | W54: =IF(L54=0,"",INDEX(Risk_Factors!$O$29:$T$30,MATCH('1_Risk_Calc'!L54,Risk_Factors!$E$29:$E$30,0),MATCH($E54,Risk_Factors!$O$8:$T$8,0))) ->  | X54: =IF(M54=0,"",INDEX(Risk_Factors!$O$32:$T$33,MATCH('1_Risk_Calc'!M54,Risk_Factors!$E$32:$E$33,0),MATCH($E54,Risk_Factors!$O$8:$T$8,0))) ->  | Y54: =IF(N54=0,"",INDEX(Risk_Factors!$O$35:$T$36,MATCH('1_Risk_Calc'!N54,Risk_Factors!$E$35:$E$36,0),MATCH($E54,Risk_Factors!$O$8:$T$8,0))) ->  | Z54: =IF(O54=0,"",INDEX(Risk_Factors!$O$38:$T$39,MATCH('1_Risk_Calc'!O54,Risk_Factors!$E$38:$E$39,0),MATCH($E54,Risk_Factors!$O$8:$T$8,0))) ->  | AA54: =IF(P54=0,"",INDEX(Risk_Factors!$O$41:$T$42,MATCH('1_Risk_Calc'!P54,Risk_Factors!$E$41:$E$42,0),MATCH($E54,Risk_Factors!$O$8:$T$8,0))) ->  | AB54: =SUM(Q54:AA54) -> 0 | AC54: 0 | AG54: S_045 | AH54: 0
B55: S_046 | Q55: =IF(F55=0,"",INDEX(Risk_Factors!$O$12:$T$14,MATCH(F55,Frequency,0),MATCH($E55,Risk_Factors!$O$8:$T$8,0))) ->  | R55: =IF(G55=0,"",INDEX(Risk_Factors!$O$15:$T$17,MATCH('1_Risk_Calc'!G55,Position,0),MATCH($E55,Risk_Factors!$O$8:$T$8,0))) ->  | S55: =IF(H55=0,"",INDEX(Risk_Factors!$O$18:$T$19,MATCH('1_Risk_Calc'!H55,Yes_No,0),MATCH($E55,Risk_Factors!$O$8:$T$8,0))) ->  | T55: =IF(I55=0,"",INDEX(Risk_Factors!$O$20:$T$22,MATCH('1_Risk_Calc'!I55,Dust_amount,0),MATCH($E55,Risk_Factors!$O$8:$T$8,0))) ->  | U55: =IF(J55=0,"",INDEX(Risk_Factors!$O$23:$T$25,MATCH('1_Risk_Calc'!J55,Dust_composition,0),MATCH($E55,Risk_Factors!$O$8:$T$8,0))) ->  | V55: =IF(K55=0,"",INDEX(Risk_Factors!$O$26:$T$28,MATCH('1_Risk_Calc'!K55,Dust_size,0),MATCH($E55,Risk_Factors!$O$8:$T$8,0))) ->  | W55: =IF(L55=0,"",INDEX(Risk_Factors!$O$29:$T$30,MATCH('1_Risk_Calc'!L55,Risk_Factors!$E$29:$E$30,0),MATCH($E55,Risk_Factors!$O$8:$T$8,0))) ->  | X55: =IF(M55=0,"",INDEX(Risk_Factors!$O$32:$T$33,MATCH('1_Risk_Calc'!M55,Risk_Factors!$E$32:$E$33,0),MATCH($E55,Risk_Factors!$O$8:$T$8,0))) ->  | Y55: =IF(N55=0,"",INDEX(Risk_Factors!$O$35:$T$36,MATCH('1_Risk_Calc'!N55,Risk_Factors!$E$35:$E$36,0),MATCH($E55,Risk_Factors!$O$8:$T$8,0))) ->  | Z55: =IF(O55=0,"",INDEX(Risk_Factors!$O$38:$T$39,MATCH('1_Risk_Calc'!O55,Risk_Factors!$E$38:$E$39,0),MATCH($E55,Risk_Factors!$O$8:$T$8,0))) ->  | AA55: =IF(P55=0,"",INDEX(Risk_Factors!$O$41:$T$42,MATCH('1_Risk_Calc'!P55,Risk_Factors!$E$41:$E$42,0),MATCH($E55,Risk_Factors!$O$8:$T$8,0))) ->  | AB55: 0 | AC55: 0 | AG55: S_046 | AH55: 0
B56: S_047 | Q56: =IF(F56=0,"",INDEX(Risk_Factors!$O$12:$T$14,MATCH(F56,Frequency,0),MATCH($E56,Risk_Factors!$O$8:$T$8,0))) ->  | R56: =IF(G56=0,"",INDEX(Risk_Factors!$O$15:$T$17,MATCH('1_Risk_Calc'!G56,Position,0),MATCH($E56,Risk_Factors!$O$8:$T$8,0))) ->  | S56: =IF(H56=0,"",INDEX(Risk_Factors!$O$18:$T$19,MATCH('1_Risk_Calc'!H56,Yes_No,0),MATCH($E56,Risk_Factors!$O$8:$T$8,0))) ->  | T56: =IF(I56=0,"",INDEX(Risk_Factors!$O$20:$T$22,MATCH('1_Risk_Calc'!I56,Dust_amount,0),MATCH($E56,Risk_Factors!$O$8:$T$8,0))) ->  | U56: =IF(J56=0,"",INDEX(Risk_Factors!$O$23:$T$25,MATCH('1_Risk_Calc'!J56,Dust_composition,0),MATCH($E56,Risk_Factors!$O$8:$T$8,0))) ->  | V56: =IF(K56=0,"",INDEX(Risk_Factors!$O$26:$T$28,MATCH('1_Risk_Calc'!K56,Dust_size,0),MATCH($E56,Risk_Factors!$O$8:$T$8,0))) ->  | W56: =IF(L56=0,"",INDEX(Risk_Factors!$O$29:$T$30,MATCH('1_Risk_Calc'!L56,Risk_Factors!$E$29:$E$30,0),MATCH($E56,Risk_Factors!$O$8:$T$8,0))) ->  | X56: =IF(M56=0,"",INDEX(Risk_Factors!$O$32:$T$33,MATCH('1_Risk_Calc'!M56,Risk_Factors!$E$32:$E$33,0),MATCH($E56,Risk_Factors!$O$8:$T$8,0))) ->  | Y56: =IF(N56=0,"",INDEX(Risk_Factors!$O$35:$T$36,MATCH('1_Risk_Calc'!N56,Risk_Factors!$E$35:$E$36,0),MATCH($E56,Risk_Factors!$O$8:$T$8,0))) ->  | Z56: =IF(O56=0,"",INDEX(Risk_Factors!$O$38:$T$39,MATCH('1_Risk_Calc'!O56,Risk_Factors!$E$38:$E$39,0),MATCH($E56,Risk_Factors!$O$8:$T$8,0))) ->  | AA56: =IF(P56=0,"",INDEX(Risk_Factors!$O$41:$T$42,MATCH('1_Risk_Calc'!P56,Risk_Factors!$E$41:$E$42,0),MATCH($E56,Risk_Factors!$O$8:$T$8,0))) ->  | AB56: 0 | AC56: 0 | AG56: S_047 | AH56: 0
B57: S_048 | Q57: =IF(F57=0,"",INDEX(Risk_Factors!$O$12:$T$14,MATCH(F57,Frequency,0),MATCH($E57,Risk_Factors!$O$8:$T$8,0))) ->  | R57: =IF(G57=0,"",INDEX(Risk_Factors!$O$15:$T$17,MATCH('1_Risk_Calc'!G57,Position,0),MATCH($E57,Risk_Factors!$O$8:$T$8,0))) ->  | S57: =IF(H57=0,"",INDEX(Risk_Factors!$O$18:$T$19,MATCH('1_Risk_Calc'!H57,Yes_No,0),MATCH($E57,Risk_Factors!$O$8:$T$8,0))) ->  | T57: =IF(I57=0,"",INDEX(Risk_Factors!$O$20:$T$22,MATCH('1_Risk_Calc'!I57,Dust_amount,0),MATCH($E57,Risk_Factors!$O$8:$T$8,0))) ->  | U57: =IF(J57=0,"",INDEX(Risk_Factors!$O$23:$T$25,MATCH('1_Risk_Calc'!J57,Dust_composition,0),MATCH($E57,Risk_Factors!$O$8:$T$8,0))) ->  | V57: =IF(K57=0,"",INDEX(Risk_Factors!$O$26:$T$28,MATCH('1_Risk_Calc'!K57,Dust_size,0),MATCH($E57,Risk_Factors!$O$8:$T$8,0))) ->  | W57: =IF(L57=0,"",INDEX(Risk_Factors!$O$29:$T$30,MATCH('1_Risk_Calc'!L57,Risk_Factors!$E$29:$E$30,0),MATCH($E57,Risk_Factors!$O$8:$T$8,0))) ->  | X57: =IF(M57=0,"",INDEX(Risk_Factors!$O$32:$T$33,MATCH('1_Risk_Calc'!M57,Risk_Factors!$E$32:$E$33,0),MATCH($E57,Risk_Factors!$O$8:$T$8,0))) ->  | Y57: =IF(N57=0,"",INDEX(Risk_Factors!$O$35:$T$36,MATCH('1_Risk_Calc'!N57,Risk_Factors!$E$35:$E$36,0),MATCH($E57,Risk_Factors!$O$8:$T$8,0))) ->  | Z57: =IF(O57=0,"",INDEX(Risk_Factors!$O$38:$T$39,MATCH('1_Risk_Calc'!O57,Risk_Factors!$E$38:$E$39,0),MATCH($E57,Risk_Factors!$O$8:$T$8,0))) ->  | AA57: =IF(P57=0,"",INDEX(Risk_Factors!$O$41:$T$42,MATCH('1_Risk_Calc'!P57,Risk_Factors!$E$41:$E$42,0),MATCH($E57,Risk_Factors!$O$8:$T$8,0))) ->  | AB57: 0 | AC57: 0 | AG57: S_048 | AH57: 0
B58: S_049 | Q58: =IF(F58=0,"",INDEX(Risk_Factors!$O$12:$T$14,MATCH(F58,Frequency,0),MATCH($E58,Risk_Factors!$O$8:$T$8,0))) ->  | R58: =IF(G58=0,"",INDEX(Risk_Factors!$O$15:$T$17,MATCH('1_Risk_Calc'!G58,Position,0),MATCH($E58,Risk_Factors!$O$8:$T$8,0))) ->  | S58: =IF(H58=0,"",INDEX(Risk_Factors!$O$18:$T$19,MATCH('1_Risk_Calc'!H58,Yes_No,0),MATCH($E58,Risk_Factors!$O$8:$T$8,0))) ->  | T58: =IF(I58=0,"",INDEX(Risk_Factors!$O$20:$T$22,MATCH('1_Risk_Calc'!I58,Dust_amount,0),MATCH($E58,Risk_Factors!$O$8:$T$8,0))) ->  | U58: =IF(J58=0,"",INDEX(Risk_Factors!$O$23:$T$25,MATCH('1_Risk_Calc'!J58,Dust_composition,0),MATCH($E58,Risk_Factors!$O$8:$T$8,0))) ->  | V58: =IF(K58=0,"",INDEX(Risk_Factors!$O$26:$T$28,MATCH('1_Risk_Calc'!K58,Dust_size,0),MATCH($E58,Risk_Factors!$O$8:$T$8,0))) ->  | W58: =IF(L58=0,"",INDEX(Risk_Factors!$O$29:$T$30,MATCH('1_Risk_Calc'!L58,Risk_Factors!$E$29:$E$30,0),MATCH($E58,Risk_Factors!$O$8:$T$8,0))) ->  | X58: =IF(M58=0,"",INDEX(Risk_Factors!$O$32:$T$33,MATCH('1_Risk_Calc'!M58,Risk_Factors!$E$32:$E$33,0),MATCH($E58,Risk_Factors!$O$8:$T$8,0))) ->  | Y58: =IF(N58=0,"",INDEX(Risk_Factors!$O$35:$T$36,MATCH('1_Risk_Calc'!N58,Risk_Factors!$E$35:$E$36,0),MATCH($E58,Risk_Factors!$O$8:$T$8,0))) ->  | Z58: =IF(O58=0,"",INDEX(Risk_Factors!$O$38:$T$39,MATCH('1_Risk_Calc'!O58,Risk_Factors!$E$38:$E$39,0),MATCH($E58,Risk_Factors!$O$8:$T$8,0))) ->  | AA58: =IF(P58=0,"",INDEX(Risk_Factors!$O$41:$T$42,MATCH('1_Risk_Calc'!P58,Risk_Factors!$E$41:$E$42,0),MATCH($E58,Risk_Factors!$O$8:$T$8,0))) ->  | AB58: 0 | AC58: 0 | AG58: S_049 | AH58: 0
B59: S_050 | Q59: =IF(F59=0,"",INDEX(Risk_Factors!$O$12:$T$14,MATCH(F59,Frequency,0),MATCH($E59,Risk_Factors!$O$8:$T$8,0))) ->  | R59: =IF(G59=0,"",INDEX(Risk_Factors!$O$15:$T$17,MATCH('1_Risk_Calc'!G59,Position,0),MATCH($E59,Risk_Factors!$O$8:$T$8,0))) ->  | S59: =IF(H59=0,"",INDEX(Risk_Factors!$O$18:$T$19,MATCH('1_Risk_Calc'!H59,Yes_No,0),MATCH($E59,Risk_Factors!$O$8:$T$8,0))) ->  | T59: =IF(I59=0,"",INDEX(Risk_Factors!$O$20:$T$22,MATCH('1_Risk_Calc'!I59,Dust_amount,0),MATCH($E59,Risk_Factors!$O$8:$T$8,0))) ->  | U59: =IF(J59=0,"",INDEX(Risk_Factors!$O$23:$T$25,MATCH('1_Risk_Calc'!J59,Dust_composition,0),MATCH($E59,Risk_Factors!$O$8:$T$8,0))) ->  | V59: =IF(K59=0,"",INDEX(Risk_Factors!$O$26:$T$28,MATCH('1_Risk_Calc'!K59,Dust_size,0),MATCH($E59,Risk_Factors!$O$8:$T$8,0))) ->  | W59: =IF(L59=0,"",INDEX(Risk_Factors!$O$29:$T$30,MATCH('1_Risk_Calc'!L59,Risk_Factors!$E$29:$E$30,0),MATCH($E59,Risk_Factors!$O$8:$T$8,0))) ->  | X59: =IF(M59=0,"",INDEX(Risk_Factors!$O$32:$T$33,MATCH('1_Risk_Calc'!M59,Risk_Factors!$E$32:$E$33,0),MATCH($E59,Risk_Factors!$O$8:$T$8,0))) ->  | Y59: =IF(N59=0,"",INDEX(Risk_Factors!$O$35:$T$36,MATCH('1_Risk_Calc'!N59,Risk_Factors!$E$35:$E$36,0),MATCH($E59,Risk_Factors!$O$8:$T$8,0))) ->  | Z59: =IF(O59=0,"",INDEX(Risk_Factors!$O$38:$T$39,MATCH('1_Risk_Calc'!O59,Risk_Factors!$E$38:$E$39,0),MATCH($E59,Risk_Factors!$O$8:$T$8,0))) ->  | AA59: =IF(P59=0,"",INDEX(Risk_Factors!$O$41:$T$42,MATCH('1_Risk_Calc'!P59,Risk_Factors!$E$41:$E$42,0),MATCH($E59,Risk_Factors!$O$8:$T$8,0))) ->  | AB59: 0 | AC59: 0 | AG59: S_050 | AH59: 0
B60: S_051 | Q60: =IF(F60=0,"",INDEX(Risk_Factors!$O$12:$T$14,MATCH(F60,Frequency,0),MATCH($E60,Risk_Factors!$O$8:$T$8,0))) ->  | R60: =IF(G60=0,"",INDEX(Risk_Factors!$O$15:$T$17,MATCH('1_Risk_Calc'!G60,Position,0),MATCH($E60,Risk_Factors!$O$8:$T$8,0))) ->  | S60: =IF(H60=0,"",INDEX(Risk_Factors!$O$18:$T$19,MATCH('1_Risk_Calc'!H60,Yes_No,0),MATCH($E60,Risk_Factors!$O$8:$T$8,0))) ->  | T60: =IF(I60=0,"",INDEX(Risk_Factors!$O$20:$T$22,MATCH('1_Risk_Calc'!I60,Dust_amount,0),MATCH($E60,Risk_Factors!$O$8:$T$8,0))) ->  | U60: =IF(J60=0,"",INDEX(Risk_Factors!$O$23:$T$25,MATCH('1_Risk_Calc'!J60,Dust_composition,0),MATCH($E60,Risk_Factors!$O$8:$T$8,0))) ->  | V60: =IF(K60=0,"",INDEX(Risk_Factors!$O$26:$T$28,MATCH('1_Risk_Calc'!K60,Dust_size,0),MATCH($E60,Risk_Factors!$O$8:$T$8,0))) ->  | W60: =IF(L60=0,"",INDEX(Risk_Factors!$O$29:$T$30,MATCH('1_Risk_Calc'!L60,Risk_Factors!$E$29:$E$30,0),MATCH($E60,Risk_Factors!$O$8:$T$8,0))) ->  | X60: =IF(M60=0,"",INDEX(Risk_Factors!$O$32:$T$33,MATCH('1_Risk_Calc'!M60,Risk_Factors!$E$32:$E$33,0),MATCH($E60,Risk_Factors!$O$8:$T$8,0))) ->  | Y60: =IF(N60=0,"",INDEX(Risk_Factors!$O$35:$T$36,MATCH('1_Risk_Calc'!N60,Risk_Factors!$E$35:$E$36,0),MATCH($E60,Risk_Factors!$O$8:$T$8,0))) ->  | Z60: =IF(O60=0,"",INDEX(Risk_Factors!$O$38:$T$39,MATCH('1_Risk_Calc'!O60,Risk_Factors!$E$38:$E$39,0),MATCH($E60,Risk_Factors!$O$8:$T$8,0))) ->  | AA60: =IF(P60=0,"",INDEX(Risk_Factors!$O$41:$T$42,MATCH('1_Risk_Calc'!P60,Risk_Factors!$E$41:$E$42,0),MATCH($E60,Risk_Factors!$O$8:$T$8,0))) ->  | AB60: 0 | AC60: 0 | AG60: S_051 | AH60: 0
B61: S_052 | Q61: =IF(F61=0,"",INDEX(Risk_Factors!$O$12:$T$14,MATCH(F61,Frequency,0),MATCH($E61,Risk_Factors!$O$8:$T$8,0))) ->  | R61: =IF(G61=0,"",INDEX(Risk_Factors!$O$15:$T$17,MATCH('1_Risk_Calc'!G61,Position,0),MATCH($E61,Risk_Factors!$O$8:$T$8,0))) ->  | S61: =IF(H61=0,"",INDEX(Risk_Factors!$O$18:$T$19,MATCH('1_Risk_Calc'!H61,Yes_No,0),MATCH($E61,Risk_Factors!$O$8:$T$8,0))) ->  | T61: =IF(I61=0,"",INDEX(Risk_Factors!$O$20:$T$22,MATCH('1_Risk_Calc'!I61,Dust_amount,0),MATCH($E61,Risk_Factors!$O$8:$T$8,0))) ->  | U61: =IF(J61=0,"",INDEX(Risk_Factors!$O$23:$T$25,MATCH('1_Risk_Calc'!J61,Dust_composition,0),MATCH($E61,Risk_Factors!$O$8:$T$8,0))) ->  | V61: =IF(K61=0,"",INDEX(Risk_Factors!$O$26:$T$28,MATCH('1_Risk_Calc'!K61,Dust_size,0),MATCH($E61,Risk_Factors!$O$8:$T$8,0))) ->  | W61: =IF(L61=0,"",INDEX(Risk_Factors!$O$29:$T$30,MATCH('1_Risk_Calc'!L61,Risk_Factors!$E$29:$E$30,0),MATCH($E61,Risk_Factors!$O$8:$T$8,0))) ->  | X61: =IF(M61=0,"",INDEX(Risk_Factors!$O$32:$T$33,MATCH('1_Risk_Calc'!M61,Risk_Factors!$E$32:$E$33,0),MATCH($E61,Risk_Factors!$O$8:$T$8,0))) ->  | Y61: =IF(N61=0,"",INDEX(Risk_Factors!$O$35:$T$36,MATCH('1_Risk_Calc'!N61,Risk_Factors!$E$35:$E$36,0),MATCH($E61,Risk_Factors!$O$8:$T$8,0))) ->  | Z61: =IF(O61=0,"",INDEX(Risk_Factors!$O$38:$T$39,MATCH('1_Risk_Calc'!O61,Risk_Factors!$E$38:$E$39,0),MATCH($E61,Risk_Factors!$O$8:$T$8,0))) ->  | AA61: =IF(P61=0,"",INDEX(Risk_Factors!$O$41:$T$42,MATCH('1_Risk_Calc'!P61,Risk_Factors!$E$41:$E$42,0),MATCH($E61,Risk_Factors!$O$8:$T$8,0))) ->  | AB61: 0 | AC61: 0 | AG61: S_052 | AH61: 0
B62: S_053 | Q62: =IF(F62=0,"",INDEX(Risk_Factors!$O$12:$T$14,MATCH(F62,Frequency,0),MATCH($E62,Risk_Factors!$O$8:$T$8,0))) ->  | R62: =IF(G62=0,"",INDEX(Risk_Factors!$O$15:$T$17,MATCH('1_Risk_Calc'!G62,Position,0),MATCH($E62,Risk_Factors!$O$8:$T$8,0))) ->  | S62: =IF(H62=0,"",INDEX(Risk_Factors!$O$18:$T$19,MATCH('1_Risk_Calc'!H62,Yes_No,0),MATCH($E62,Risk_Factors!$O$8:$T$8,0))) ->  | T62: =IF(I62=0,"",INDEX(Risk_Factors!$O$20:$T$22,MATCH('1_Risk_Calc'!I62,Dust_amount,0),MATCH($E62,Risk_Factors!$O$8:$T$8,0))) ->  | U62: =IF(J62=0,"",INDEX(Risk_Factors!$O$23:$T$25,MATCH('1_Risk_Calc'!J62,Dust_composition,0),MATCH($E62,Risk_Factors!$O$8:$T$8,0))) ->  | V62: =IF(K62=0,"",INDEX(Risk_Factors!$O$26:$T$28,MATCH('1_Risk_Calc'!K62,Dust_size,0),MATCH($E62,Risk_Factors!$O$8:$T$8,0))) ->  | W62: =IF(L62=0,"",INDEX(Risk_Factors!$O$29:$T$30,MATCH('1_Risk_Calc'!L62,Risk_Factors!$E$29:$E$30,0),MATCH($E62,Risk_Factors!$O$8:$T$8,0))) ->  | X62: =IF(M62=0,"",INDEX(Risk_Factors!$O$32:$T$33,MATCH('1_Risk_Calc'!M62,Risk_Factors!$E$32:$E$33,0),MATCH($E62,Risk_Factors!$O$8:$T$8,0))) ->  | Y62: =IF(N62=0,"",INDEX(Risk_Factors!$O$35:$T$36,MATCH('1_Risk_Calc'!N62,Risk_Factors!$E$35:$E$36,0),MATCH($E62,Risk_Factors!$O$8:$T$8,0))) ->  | Z62: =IF(O62=0,"",INDEX(Risk_Factors!$O$38:$T$39,MATCH('1_Risk_Calc'!O62,Risk_Factors!$E$38:$E$39,0),MATCH($E62,Risk_Factors!$O$8:$T$8,0))) ->  | AA62: =IF(P62=0,"",INDEX(Risk_Factors!$O$41:$T$42,MATCH('1_Risk_Calc'!P62,Risk_Factors!$E$41:$E$42,0),MATCH($E62,Risk_Factors!$O$8:$T$8,0))) ->  | AB62: 0 | AC62: 0 | AG62: S_053 | AH62: 0
B63: S_054 | Q63: =IF(F63=0,"",INDEX(Risk_Factors!$O$12:$T$14,MATCH(F63,Frequency,0),MATCH($E63,Risk_Factors!$O$8:$T$8,0))) ->  | R63: =IF(G63=0,"",INDEX(Risk_Factors!$O$15:$T$17,MATCH('1_Risk_Calc'!G63,Position,0),MATCH($E63,Risk_Factors!$O$8:$T$8,0))) ->  | S63: =IF(H63=0,"",INDEX(Risk_Factors!$O$18:$T$19,MATCH('1_Risk_Calc'!H63,Yes_No,0),MATCH($E63,Risk_Factors!$O$8:$T$8,0))) ->  | T63: =IF(I63=0,"",INDEX(Risk_Factors!$O$20:$T$22,MATCH('1_Risk_Calc'!I63,Dust_amount,0),MATCH($E63,Risk_Factors!$O$8:$T$8,0))) ->  | U63: =IF(J63=0,"",INDEX(Risk_Factors!$O$23:$T$25,MATCH('1_Risk_Calc'!J63,Dust_composition,0),MATCH($E63,Risk_Factors!$O$8:$T$8,0))) ->  | V63: =IF(K63=0,"",INDEX(Risk_Factors!$O$26:$T$28,MATCH('1_Risk_Calc'!K63,Dust_size,0),MATCH($E63,Risk_Factors!$O$8:$T$8,0))) ->  | W63: =IF(L63=0,"",INDEX(Risk_Factors!$O$29:$T$30,MATCH('1_Risk_Calc'!L63,Risk_Factors!$E$29:$E$30,0),MATCH($E63,Risk_Factors!$O$8:$T$8,0))) ->  | X63: =IF(M63=0,"",INDEX(Risk_Factors!$O$32:$T$33,MATCH('1_Risk_Calc'!M63,Risk_Factors!$E$32:$E$33,0),MATCH($E63,Risk_Factors!$O$8:$T$8,0))) ->  | Y63: =IF(N63=0,"",INDEX(Risk_Factors!$O$35:$T$36,MATCH('1_Risk_Calc'!N63,Risk_Factors!$E$35:$E$36,0),MATCH($E63,Risk_Factors!$O$8:$T$8,0))) ->  | Z63: =IF(O63=0,"",INDEX(Risk_Factors!$O$38:$T$39,MATCH('1_Risk_Calc'!O63,Risk_Factors!$E$38:$E$39,0),MATCH($E63,Risk_Factors!$O$8:$T$8,0))) ->  | AA63: =IF(P63=0,"",INDEX(Risk_Factors!$O$41:$T$42,MATCH('1_Risk_Calc'!P63,Risk_Factors!$E$41:$E$42,0),MATCH($E63,Risk_Factors!$O$8:$T$8,0))) ->  | AB63: 0 | AC63: 0 | AG63: S_054 | AH63: 0
B64: S_055 | Q64: =IF(F64=0,"",INDEX(Risk_Factors!$O$12:$T$14,MATCH(F64,Frequency,0),MATCH($E64,Risk_Factors!$O$8:$T$8,0))) ->  | R64: =IF(G64=0,"",INDEX(Risk_Factors!$O$15:$T$17,MATCH('1_Risk_Calc'!G64,Position,0),MATCH($E64,Risk_Factors!$O$8:$T$8,0))) ->  | S64: =IF(H64=0,"",INDEX(Risk_Factors!$O$18:$T$19,MATCH('1_Risk_Calc'!H64,Yes_No,0),MATCH($E64,Risk_Factors!$O$8:$T$8,0))) ->  | T64: =IF(I64=0,"",INDEX(Risk_Factors!$O$20:$T$22,MATCH('1_Risk_Calc'!I64,Dust_amount,0),MATCH($E64,Risk_Factors!$O$8:$T$8,0))) ->  | U64: =IF(J64=0,"",INDEX(Risk_Factors!$O$23:$T$25,MATCH('1_Risk_Calc'!J64,Dust_composition,0),MATCH($E64,Risk_Factors!$O$8:$T$8,0))) ->  | V64: =IF(K64=0,"",INDEX(Risk_Factors!$O$26:$T$28,MATCH('1_Risk_Calc'!K64,Dust_size,0),MATCH($E64,Risk_Factors!$O$8:$T$8,0))) ->  | W64: =IF(L64=0,"",INDEX(Risk_Factors!$O$29:$T$30,MATCH('1_Risk_Calc'!L64,Risk_Factors!$E$29:$E$30,0),MATCH($E64,Risk_Factors!$O$8:$T$8,0))) ->  | X64: =IF(M64=0,"",INDEX(Risk_Factors!$O$32:$T$33,MATCH('1_Risk_Calc'!M64,Risk_Factors!$E$32:$E$33,0),MATCH($E64,Risk_Factors!$O$8:$T$8,0))) ->  | Y64: =IF(N64=0,"",INDEX(Risk_Factors!$O$35:$T$36,MATCH('1_Risk_Calc'!N64,Risk_Factors!$E$35:$E$36,0),MATCH($E64,Risk_Factors!$O$8:$T$8,0))) ->  | Z64: =IF(O64=0,"",INDEX(Risk_Factors!$O$38:$T$39,MATCH('1_Risk_Calc'!O64,Risk_Factors!$E$38:$E$39,0),MATCH($E64,Risk_Factors!$O$8:$T$8,0))) ->  | AA64: =IF(P64=0,"",INDEX(Risk_Factors!$O$41:$T$42,MATCH('1_Risk_Calc'!P64,Risk_Factors!$E$41:$E$42,0),MATCH($E64,Risk_Factors!$O$8:$T$8,0))) ->  | AB64: 0 | AC64: 0 | AG64: S_055 | AH64: 0
B65: S_056 | Q65: =IF(F65=0,"",INDEX(Risk_Factors!$O$12:$T$14,MATCH(F65,Frequency,0),MATCH($E65,Risk_Factors!$O$8:$T$8,0))) ->  | R65: =IF(G65=0,"",INDEX(Risk_Factors!$O$15:$T$17,MATCH('1_Risk_Calc'!G65,Position,0),MATCH($E65,Risk_Factors!$O$8:$T$8,0))) ->  | S65: =IF(H65=0,"",INDEX(Risk_Factors!$O$18:$T$19,MATCH('1_Risk_Calc'!H65,Yes_No,0),MATCH($E65,Risk_Factors!$O$8:$T$8,0))) ->  | T65: =IF(I65=0,"",INDEX(Risk_Factors!$O$20:$T$22,MATCH('1_Risk_Calc'!I65,Dust_amount,0),MATCH($E65,Risk_Factors!$O$8:$T$8,0))) ->  | U65: =IF(J65=0,"",INDEX(Risk_Factors!$O$23:$T$25,MATCH('1_Risk_Calc'!J65,Dust_composition,0),MATCH($E65,Risk_Factors!$O$8:$T$8,0))) ->  | V65: =IF(K65=0,"",INDEX(Risk_Factors!$O$26:$T$28,MATCH('1_Risk_Calc'!K65,Dust_size,0),MATCH($E65,Risk_Factors!$O$8:$T$8,0))) ->  | W65: =IF(L65=0,"",INDEX(Risk_Factors!$O$29:$T$30,MATCH('1_Risk_Calc'!L65,Risk_Factors!$E$29:$E$30,0),MATCH($E65,Risk_Factors!$O$8:$T$8,0))) ->  | X65: =IF(M65=0,"",INDEX(Risk_Factors!$O$32:$T$33,MATCH('1_Risk_Calc'!M65,Risk_Factors!$E$32:$E$33,0),MATCH($E65,Risk_Factors!$O$8:$T$8,0))) ->  | Y65: =IF(N65=0,"",INDEX(Risk_Factors!$O$35:$T$36,MATCH('1_Risk_Calc'!N65,Risk_Factors!$E$35:$E$36,0),MATCH($E65,Risk_Factors!$O$8:$T$8,0))) ->  | Z65: =IF(O65=0,"",INDEX(Risk_Factors!$O$38:$T$39,MATCH('1_Risk_Calc'!O65,Risk_Factors!$E$38:$E$39,0),MATCH($E65,Risk_Factors!$O$8:$T$8,0))) ->  | AA65: =IF(P65=0,"",INDEX(Risk_Factors!$O$41:$T$42,MATCH('1_Risk_Calc'!P65,Risk_Factors!$E$41:$E$42,0),MATCH($E65,Risk_Factors!$O$8:$T$8,0))) ->  | AB65: 0 | AC65: 0 | AG65: S_056 | AH65: 0
B66: S_057 | Q66: =IF(F66=0,"",INDEX(Risk_Factors!$O$12:$T$14,MATCH(F66,Frequency,0),MATCH($E66,Risk_Factors!$O$8:$T$8,0))) ->  | R66: =IF(G66=0,"",INDEX(Risk_Factors!$O$15:$T$17,MATCH('1_Risk_Calc'!G66,Position,0),MATCH($E66,Risk_Factors!$O$8:$T$8,0))) ->  | S66: =IF(H66=0,"",INDEX(Risk_Factors!$O$18:$T$19,MATCH('1_Risk_Calc'!H66,Yes_No,0),MATCH($E66,Risk_Factors!$O$8:$T$8,0))) ->  | T66: =IF(I66=0,"",INDEX(Risk_Factors!$O$20:$T$22,MATCH('1_Risk_Calc'!I66,Dust_amount,0),MATCH($E66,Risk_Factors!$O$8:$T$8,0))) ->  | U66: =IF(J66=0,"",INDEX(Risk_Factors!$O$23:$T$25,MATCH('1_Risk_Calc'!J66,Dust_composition,0),MATCH($E66,Risk_Factors!$O$8:$T$8,0))) ->  | V66: =IF(K66=0,"",INDEX(Risk_Factors!$O$26:$T$28,MATCH('1_Risk_Calc'!K66,Dust_size,0),MATCH($E66,Risk_Factors!$O$8:$T$8,0))) ->  | W66: =IF(L66=0,"",INDEX(Risk_Factors!$O$29:$T$30,MATCH('1_Risk_Calc'!L66,Risk_Factors!$E$29:$E$30,0),MATCH($E66,Risk_Factors!$O$8:$T$8,0))) ->  | X66: =IF(M66=0,"",INDEX(Risk_Factors!$O$32:$T$33,MATCH('1_Risk_Calc'!M66,Risk_Factors!$E$32:$E$33,0),MATCH($E66,Risk_Factors!$O$8:$T$8,0))) ->  | Y66: =IF(N66=0,"",INDEX(Risk_Factors!$O$35:$T$36,MATCH('1_Risk_Calc'!N66,Risk_Factors!$E$35:$E$36,0),MATCH($E66,Risk_Factors!$O$8:$T$8,0))) ->  | Z66: =IF(O66=0,"",INDEX(Risk_Factors!$O$38:$T$39,MATCH('1_Risk_Calc'!O66,Risk_Factors!$E$38:$E$39,0),MATCH($E66,Risk_Factors!$O$8:$T$8,0))) ->  | AA66: =IF(P66=0,"",INDEX(Risk_Factors!$O$41:$T$42,MATCH('1_Risk_Calc'!P66,Risk_Factors!$E$41:$E$42,0),MATCH($E66,Risk_Factors!$O$8:$T$8,0))) ->  | AB66: 0 | AC66: 0 | AG66: S_057 | AH66: 0
B67: S_058 | Q67: =IF(F67=0,"",INDEX(Risk_Factors!$O$12:$T$14,MATCH(F67,Frequency,0),MATCH($E67,Risk_Factors!$O$8:$T$8,0))) ->  | R67: =IF(G67=0,"",INDEX(Risk_Factors!$O$15:$T$17,MATCH('1_Risk_Calc'!G67,Position,0),MATCH($E67,Risk_Factors!$O$8:$T$8,0))) ->  | S67: =IF(H67=0,"",INDEX(Risk_Factors!$O$18:$T$19,MATCH('1_Risk_Calc'!H67,Yes_No,0),MATCH($E67,Risk_Factors!$O$8:$T$8,0))) ->  | T67: =IF(I67=0,"",INDEX(Risk_Factors!$O$20:$T$22,MATCH('1_Risk_Calc'!I67,Dust_amount,0),MATCH($E67,Risk_Factors!$O$8:$T$8,0))) ->  | U67: =IF(J67=0,"",INDEX(Risk_Factors!$O$23:$T$25,MATCH('1_Risk_Calc'!J67,Dust_composition,0),MATCH($E67,Risk_Factors!$O$8:$T$8,0))) ->  | V67: =IF(K67=0,"",INDEX(Risk_Factors!$O$26:$T$28,MATCH('1_Risk_Calc'!K67,Dust_size,0),MATCH($E67,Risk_Factors!$O$8:$T$8,0))) ->  | W67: =IF(L67=0,"",INDEX(Risk_Factors!$O$29:$T$30,MATCH('1_Risk_Calc'!L67,Risk_Factors!$E$29:$E$30,0),MATCH($E67,Risk_Factors!$O$8:$T$8,0))) ->  | X67: =IF(M67=0,"",INDEX(Risk_Factors!$O$32:$T$33,MATCH('1_Risk_Calc'!M67,Risk_Factors!$E$32:$E$33,0),MATCH($E67,Risk_Factors!$O$8:$T$8,0))) ->  | Y67: =IF(N67=0,"",INDEX(Risk_Factors!$O$35:$T$36,MATCH('1_Risk_Calc'!N67,Risk_Factors!$E$35:$E$36,0),MATCH($E67,Risk_Factors!$O$8:$T$8,0))) ->  | Z67: =IF(O67=0,"",INDEX(Risk_Factors!$O$38:$T$39,MATCH('1_Risk_Calc'!O67,Risk_Factors!$E$38:$E$39,0),MATCH($E67,Risk_Factors!$O$8:$T$8,0))) ->  | AA67: =IF(P67=0,"",INDEX(Risk_Factors!$O$41:$T$42,MATCH('1_Risk_Calc'!P67,Risk_Factors!$E$41:$E$42,0),MATCH($E67,Risk_Factors!$O$8:$T$8,0))) ->  | AB67: 0 | AC67: 0 | AG67: S_058 | AH67: 0
B68: S_059 | Q68: =IF(F68=0,"",INDEX(Risk_Factors!$O$12:$T$14,MATCH(F68,Frequency,0),MATCH($E68,Risk_Factors!$O$8:$T$8,0))) ->  | R68: =IF(G68=0,"",INDEX(Risk_Factors!$O$15:$T$17,MATCH('1_Risk_Calc'!G68,Position,0),MATCH($E68,Risk_Factors!$O$8:$T$8,0))) ->  | S68: =IF(H68=0,"",INDEX(Risk_Factors!$O$18:$T$19,MATCH('1_Risk_Calc'!H68,Yes_No,0),MATCH($E68,Risk_Factors!$O$8:$T$8,0))) ->  | T68: =IF(I68=0,"",INDEX(Risk_Factors!$O$20:$T$22,MATCH('1_Risk_Calc'!I68,Dust_amount,0),MATCH($E68,Risk_Factors!$O$8:$T$8,0))) ->  | U68: =IF(J68=0,"",INDEX(Risk_Factors!$O$23:$T$25,MATCH('1_Risk_Calc'!J68,Dust_composition,0),MATCH($E68,Risk_Factors!$O$8:$T$8,0))) ->  | V68: =IF(K68=0,"",INDEX(Risk_Factors!$O$26:$T$28,MATCH('1_Risk_Calc'!K68,Dust_size,0),MATCH($E68,Risk_Factors!$O$8:$T$8,0))) ->  | W68: =IF(L68=0,"",INDEX(Risk_Factors!$O$29:$T$30,MATCH('1_Risk_Calc'!L68,Risk_Factors!$E$29:$E$30,0),MATCH($E68,Risk_Factors!$O$8:$T$8,0))) ->  | X68: =IF(M68=0,"",INDEX(Risk_Factors!$O$32:$T$33,MATCH('1_Risk_Calc'!M68,Risk_Factors!$E$32:$E$33,0),MATCH($E68,Risk_Factors!$O$8:$T$8,0))) ->  | Y68: =IF(N68=0,"",INDEX(Risk_Factors!$O$35:$T$36,MATCH('1_Risk_Calc'!N68,Risk_Factors!$E$35:$E$36,0),MATCH($E68,Risk_Factors!$O$8:$T$8,0))) ->  | Z68: =IF(O68=0,"",INDEX(Risk_Factors!$O$38:$T$39,MATCH('1_Risk_Calc'!O68,Risk_Factors!$E$38:$E$39,0),MATCH($E68,Risk_Factors!$O$8:$T$8,0))) ->  | AA68: =IF(P68=0,"",INDEX(Risk_Factors!$O$41:$T$42,MATCH('1_Risk_Calc'!P68,Risk_Factors!$E$41:$E$42,0),MATCH($E68,Risk_Factors!$O$8:$T$8,0))) ->  | AB68: 0 | AC68: 0 | AG68: S_059 | AH68: 0
B69: S_060 | Q69: =IF(F69=0,"",INDEX(Risk_Factors!$O$12:$T$14,MATCH(F69,Frequency,0),MATCH($E69,Risk_Factors!$O$8:$T$8,0))) ->  | R69: =IF(G69=0,"",INDEX(Risk_Factors!$O$15:$T$17,MATCH('1_Risk_Calc'!G69,Position,0),MATCH($E69,Risk_Factors!$O$8:$T$8,0))) ->  | S69: =IF(H69=0,"",INDEX(Risk_Factors!$O$18:$T$19,MATCH('1_Risk_Calc'!H69,Yes_No,0),MATCH($E69,Risk_Factors!$O$8:$T$8,0))) ->  | T69: =IF(I69=0,"",INDEX(Risk_Factors!$O$20:$T$22,MATCH('1_Risk_Calc'!I69,Dust_amount,0),MATCH($E69,Risk_Factors!$O$8:$T$8,0))) ->  | U69: =IF(J69=0,"",INDEX(Risk_Factors!$O$23:$T$25,MATCH('1_Risk_Calc'!J69,Dust_composition,0),MATCH($E69,Risk_Factors!$O$8:$T$8,0))) ->  | V69: =IF(K69=0,"",INDEX(Risk_Factors!$O$26:$T$28,MATCH('1_Risk_Calc'!K69,Dust_size,0),MATCH($E69,Risk_Factors!$O$8:$T$8,0))) ->  | W69: =IF(L69=0,"",INDEX(Risk_Factors!$O$29:$T$30,MATCH('1_Risk_Calc'!L69,Risk_Factors!$E$29:$E$30,0),MATCH($E69,Risk_Factors!$O$8:$T$8,0))) ->  | X69: =IF(M69=0,"",INDEX(Risk_Factors!$O$32:$T$33,MATCH('1_Risk_Calc'!M69,Risk_Factors!$E$32:$E$33,0),MATCH($E69,Risk_Factors!$O$8:$T$8,0))) ->  | Y69: =IF(N69=0,"",INDEX(Risk_Factors!$O$35:$T$36,MATCH('1_Risk_Calc'!N69,Risk_Factors!$E$35:$E$36,0),MATCH($E69,Risk_Factors!$O$8:$T$8,0))) ->  | Z69: =IF(O69=0,"",INDEX(Risk_Factors!$O$38:$T$39,MATCH('1_Risk_Calc'!O69,Risk_Factors!$E$38:$E$39,0),MATCH($E69,Risk_Factors!$O$8:$T$8,0))) ->  | AA69: =IF(P69=0,"",INDEX(Risk_Factors!$O$41:$T$42,MATCH('1_Risk_Calc'!P69,Risk_Factors!$E$41:$E$42,0),MATCH($E69,Risk_Factors!$O$8:$T$8,0))) ->  | AB69: 0 | AC69: 0 | AG69: S_060 | AH69: 0
B70: S_061 | Q70: =IF(F70=0,"",INDEX(Risk_Factors!$O$12:$T$14,MATCH(F70,Frequency,0),MATCH($E70,Risk_Factors!$O$8:$T$8,0))) ->  | R70: =IF(G70=0,"",INDEX(Risk_Factors!$O$15:$T$17,MATCH('1_Risk_Calc'!G70,Position,0),MATCH($E70,Risk_Factors!$O$8:$T$8,0))) ->  | S70: =IF(H70=0,"",INDEX(Risk_Factors!$O$18:$T$19,MATCH('1_Risk_Calc'!H70,Yes_No,0),MATCH($E70,Risk_Factors!$O$8:$T$8,0))) ->  | T70: =IF(I70=0,"",INDEX(Risk_Factors!$O$20:$T$22,MATCH('1_Risk_Calc'!I70,Dust_amount,0),MATCH($E70,Risk_Factors!$O$8:$T$8,0))) ->  | U70: =IF(J70=0,"",INDEX(Risk_Factors!$O$23:$T$25,MATCH('1_Risk_Calc'!J70,Dust_composition,0),MATCH($E70,Risk_Factors!$O$8:$T$8,0))) ->  | V70: =IF(K70=0,"",INDEX(Risk_Factors!$O$26:$T$28,MATCH('1_Risk_Calc'!K70,Dust_size,0),MATCH($E70,Risk_Factors!$O$8:$T$8,0))) ->  | W70: =IF(L70=0,"",INDEX(Risk_Factors!$O$29:$T$30,MATCH('1_Risk_Calc'!L70,Risk_Factors!$E$29:$E$30,0),MATCH($E70,Risk_Factors!$O$8:$T$8,0))) ->  | X70: =IF(M70=0,"",INDEX(Risk_Factors!$O$32:$T$33,MATCH('1_Risk_Calc'!M70,Risk_Factors!$E$32:$E$33,0),MATCH($E70,Risk_Factors!$O$8:$T$8,0))) ->  | Y70: =IF(N70=0,"",INDEX(Risk_Factors!$O$35:$T$36,MATCH('1_Risk_Calc'!N70,Risk_Factors!$E$35:$E$36,0),MATCH($E70,Risk_Factors!$O$8:$T$8,0))) ->  | Z70: =IF(O70=0,"",INDEX(Risk_Factors!$O$38:$T$39,MATCH('1_Risk_Calc'!O70,Risk_Factors!$E$38:$E$39,0),MATCH($E70,Risk_Factors!$O$8:$T$8,0))) ->  | AA70: =IF(P70=0,"",INDEX(Risk_Factors!$O$41:$T$42,MATCH('1_Risk_Calc'!P70,Risk_Factors!$E$41:$E$42,0),MATCH($E70,Risk_Factors!$O$8:$T$8,0))) ->  | AB70: 0 | AC70: 0 | AG70: S_061 | AH70: 0
B71: S_062 | Q71: =IF(F71=0,"",INDEX(Risk_Factors!$O$12:$T$14,MATCH(F71,Frequency,0),MATCH($E71,Risk_Factors!$O$8:$T$8,0))) ->  | R71: =IF(G71=0,"",INDEX(Risk_Factors!$O$15:$T$17,MATCH('1_Risk_Calc'!G71,Position,0),MATCH($E71,Risk_Factors!$O$8:$T$8,0))) ->  | S71: =IF(H71=0,"",INDEX(Risk_Factors!$O$18:$T$19,MATCH('1_Risk_Calc'!H71,Yes_No,0),MATCH($E71,Risk_Factors!$O$8:$T$8,0))) ->  | T71: =IF(I71=0,"",INDEX(Risk_Factors!$O$20:$T$22,MATCH('1_Risk_Calc'!I71,Dust_amount,0),MATCH($E71,Risk_Factors!$O$8:$T$8,0))) ->  | U71: =IF(J71=0,"",INDEX(Risk_Factors!$O$23:$T$25,MATCH('1_Risk_Calc'!J71,Dust_composition,0),MATCH($E71,Risk_Factors!$O$8:$T$8,0))) ->  | V71: =IF(K71=0,"",INDEX(Risk_Factors!$O$26:$T$28,MATCH('1_Risk_Calc'!K71,Dust_size,0),MATCH($E71,Risk_Factors!$O$8:$T$8,0))) ->  | W71: =IF(L71=0,"",INDEX(Risk_Factors!$O$29:$T$30,MATCH('1_Risk_Calc'!L71,Risk_Factors!$E$29:$E$30,0),MATCH($E71,Risk_Factors!$O$8:$T$8,0))) ->  | X71: =IF(M71=0,"",INDEX(Risk_Factors!$O$32:$T$33,MATCH('1_Risk_Calc'!M71,Risk_Factors!$E$32:$E$33,0),MATCH($E71,Risk_Factors!$O$8:$T$8,0))) ->  | Y71: =IF(N71=0,"",INDEX(Risk_Factors!$O$35:$T$36,MATCH('1_Risk_Calc'!N71,Risk_Factors!$E$35:$E$36,0),MATCH($E71,Risk_Factors!$O$8:$T$8,0))) ->  | Z71: =IF(O71=0,"",INDEX(Risk_Factors!$O$38:$T$39,MATCH('1_Risk_Calc'!O71,Risk_Factors!$E$38:$E$39,0),MATCH($E71,Risk_Factors!$O$8:$T$8,0))) ->  | AA71: =IF(P71=0,"",INDEX(Risk_Factors!$O$41:$T$42,MATCH('1_Risk_Calc'!P71,Risk_Factors!$E$41:$E$42,0),MATCH($E71,Risk_Factors!$O$8:$T$8,0))) ->  | AB71: 0 | AC71: 0 | AG71: S_062 | AH71: 0
B72: S_063 | Q72: =IF(F72=0,"",INDEX(Risk_Factors!$O$12:$T$14,MATCH(F72,Frequency,0),MATCH($E72,Risk_Factors!$O$8:$T$8,0))) ->  | R72: =IF(G72=0,"",INDEX(Risk_Factors!$O$15:$T$17,MATCH('1_Risk_Calc'!G72,Position,0),MATCH($E72,Risk_Factors!$O$8:$T$8,0))) ->  | S72: =IF(H72=0,"",INDEX(Risk_Factors!$O$18:$T$19,MATCH('1_Risk_Calc'!H72,Yes_No,0),MATCH($E72,Risk_Factors!$O$8:$T$8,0))) ->  | T72: =IF(I72=0,"",INDEX(Risk_Factors!$O$20:$T$22,MATCH('1_Risk_Calc'!I72,Dust_amount,0),MATCH($E72,Risk_Factors!$O$8:$T$8,0))) ->  | U72: =IF(J72=0,"",INDEX(Risk_Factors!$O$23:$T$25,MATCH('1_Risk_Calc'!J72,Dust_composition,0),MATCH($E72,Risk_Factors!$O$8:$T$8,0))) ->  | V72: =IF(K72=0,"",INDEX(Risk_Factors!$O$26:$T$28,MATCH('1_Risk_Calc'!K72,Dust_size,0),MATCH($E72,Risk_Factors!$O$8:$T$8,0))) ->  | W72: =IF(L72=0,"",INDEX(Risk_Factors!$O$29:$T$30,MATCH('1_Risk_Calc'!L72,Risk_Factors!$E$29:$E$30,0),MATCH($E72,Risk_Factors!$O$8:$T$8,0))) ->  | X72: =IF(M72=0,"",INDEX(Risk_Factors!$O$32:$T$33,MATCH('1_Risk_Calc'!M72,Risk_Factors!$E$32:$E$33,0),MATCH($E72,Risk_Factors!$O$8:$T$8,0))) ->  | Y72: =IF(N72=0,"",INDEX(Risk_Factors!$O$35:$T$36,MATCH('1_Risk_Calc'!N72,Risk_Factors!$E$35:$E$36,0),MATCH($E72,Risk_Factors!$O$8:$T$8,0))) ->  | Z72: =IF(O72=0,"",INDEX(Risk_Factors!$O$38:$T$39,MATCH('1_Risk_Calc'!O72,Risk_Factors!$E$38:$E$39,0),MATCH($E72,Risk_Factors!$O$8:$T$8,0))) ->  | AA72: =IF(P72=0,"",INDEX(Risk_Factors!$O$41:$T$42,MATCH('1_Risk_Calc'!P72,Risk_Factors!$E$41:$E$42,0),MATCH($E72,Risk_Factors!$O$8:$T$8,0))) ->  | AB72: 0 | AC72: 0 | AG72: S_063 | AH72: 0
B73: S_064 | Q73: =IF(F73=0,"",INDEX(Risk_Factors!$O$12:$T$14,MATCH(F73,Frequency,0),MATCH($E73,Risk_Factors!$O$8:$T$8,0))) ->  | R73: =IF(G73=0,"",INDEX(Risk_Factors!$O$15:$T$17,MATCH('1_Risk_Calc'!G73,Position,0),MATCH($E73,Risk_Factors!$O$8:$T$8,0))) ->  | S73: =IF(H73=0,"",INDEX(Risk_Factors!$O$18:$T$19,MATCH('1_Risk_Calc'!H73,Yes_No,0),MATCH($E73,Risk_Factors!$O$8:$T$8,0))) ->  | T73: =IF(I73=0,"",INDEX(Risk_Factors!$O$20:$T$22,MATCH('1_Risk_Calc'!I73,Dust_amount,0),MATCH($E73,Risk_Factors!$O$8:$T$8,0))) ->  | U73: =IF(J73=0,"",INDEX(Risk_Factors!$O$23:$T$25,MATCH('1_Risk_Calc'!J73,Dust_composition,0),MATCH($E73,Risk_Factors!$O$8:$T$8,0))) ->  | V73: =IF(K73=0,"",INDEX(Risk_Factors!$O$26:$T$28,MATCH('1_Risk_Calc'!K73,Dust_size,0),MATCH($E73,Risk_Factors!$O$8:$T$8,0))) ->  | W73: =IF(L73=0,"",INDEX(Risk_Factors!$O$29:$T$30,MATCH('1_Risk_Calc'!L73,Risk_Factors!$E$29:$E$30,0),MATCH($E73,Risk_Factors!$O$8:$T$8,0))) ->  | X73: =IF(M73=0,"",INDEX(Risk_Factors!$O$32:$T$33,MATCH('1_Risk_Calc'!M73,Risk_Factors!$E$32:$E$33,0),MATCH($E73,Risk_Factors!$O$8:$T$8,0))) ->  | Y73: =IF(N73=0,"",INDEX(Risk_Factors!$O$35:$T$36,MATCH('1_Risk_Calc'!N73,Risk_Factors!$E$35:$E$36,0),MATCH($E73,Risk_Factors!$O$8:$T$8,0))) ->  | Z73: =IF(O73=0,"",INDEX(Risk_Factors!$O$38:$T$39,MATCH('1_Risk_Calc'!O73,Risk_Factors!$E$38:$E$39,0),MATCH($E73,Risk_Factors!$O$8:$T$8,0))) ->  | AA73: =IF(P73=0,"",INDEX(Risk_Factors!$O$41:$T$42,MATCH('1_Risk_Calc'!P73,Risk_Factors!$E$41:$E$42,0),MATCH($E73,Risk_Factors!$O$8:$T$8,0))) ->  | AB73: 0 | AC73: 0 | AG73: S_064 | AH73: 0
B74: S_065 | Q74: =IF(F74=0,"",INDEX(Risk_Factors!$O$12:$T$14,MATCH(F74,Frequency,0),MATCH($E74,Risk_Factors!$O$8:$T$8,0))) ->  | R74: =IF(G74=0,"",INDEX(Risk_Factors!$O$15:$T$17,MATCH('1_Risk_Calc'!G74,Position,0),MATCH($E74,Risk_Factors!$O$8:$T$8,0))) ->  | S74: =IF(H74=0,"",INDEX(Risk_Factors!$O$18:$T$19,MATCH('1_Risk_Calc'!H74,Yes_No,0),MATCH($E74,Risk_Factors!$O$8:$T$8,0))) ->  | T74: =IF(I74=0,"",INDEX(Risk_Factors!$O$20:$T$22,MATCH('1_Risk_Calc'!I74,Dust_amount,0),MATCH($E74,Risk_Factors!$O$8:$T$8,0))) ->  | U74: =IF(J74=0,"",INDEX(Risk_Factors!$O$23:$T$25,MATCH('1_Risk_Calc'!J74,Dust_composition,0),MATCH($E74,Risk_Factors!$O$8:$T$8,0))) ->  | V74: =IF(K74=0,"",INDEX(Risk_Factors!$O$26:$T$28,MATCH('1_Risk_Calc'!K74,Dust_size,0),MATCH($E74,Risk_Factors!$O$8:$T$8,0))) ->  | W74: =IF(L74=0,"",INDEX(Risk_Factors!$O$29:$T$30,MATCH('1_Risk_Calc'!L74,Risk_Factors!$E$29:$E$30,0),MATCH($E74,Risk_Factors!$O$8:$T$8,0))) ->  | X74: =IF(M74=0,"",INDEX(Risk_Factors!$O$32:$T$33,MATCH('1_Risk_Calc'!M74,Risk_Factors!$E$32:$E$33,0),MATCH($E74,Risk_Factors!$O$8:$T$8,0))) ->  | Y74: =IF(N74=0,"",INDEX(Risk_Factors!$O$35:$T$36,MATCH('1_Risk_Calc'!N74,Risk_Factors!$E$35:$E$36,0),MATCH($E74,Risk_Factors!$O$8:$T$8,0))) ->  | Z74: =IF(O74=0,"",INDEX(Risk_Factors!$O$38:$T$39,MATCH('1_Risk_Calc'!O74,Risk_Factors!$E$38:$E$39,0),MATCH($E74,Risk_Factors!$O$8:$T$8,0))) ->  | AA74: =IF(P74=0,"",INDEX(Risk_Factors!$O$41:$T$42,MATCH('1_Risk_Calc'!P74,Risk_Factors!$E$41:$E$42,0),MATCH($E74,Risk_Factors!$O$8:$T$8,0))) ->  | AB74: 0 | AC74: =(AB74/MAX($AB$10:$AB$109))*$AC$5 -> 0 | AG74: S_065 | AH74: 0
B75: S_066 | Q75: =IF(F75=0,"",INDEX(Risk_Factors!$O$12:$T$14,MATCH(F75,Frequency,0),MATCH($E75,Risk_Factors!$O$8:$T$8,0))) ->  | R75: =IF(G75=0,"",INDEX(Risk_Factors!$O$15:$T$17,MATCH('1_Risk_Calc'!G75,Position,0),MATCH($E75,Risk_Factors!$O$8:$T$8,0))) ->  | S75: =IF(H75=0,"",INDEX(Risk_Factors!$O$18:$T$19,MATCH('1_Risk_Calc'!H75,Yes_No,0),MATCH($E75,Risk_Factors!$O$8:$T$8,0))) ->  | T75: =IF(I75=0,"",INDEX(Risk_Factors!$O$20:$T$22,MATCH('1_Risk_Calc'!I75,Dust_amount,0),MATCH($E75,Risk_Factors!$O$8:$T$8,0))) ->  | U75: =IF(J75=0,"",INDEX(Risk_Factors!$O$23:$T$25,MATCH('1_Risk_Calc'!J75,Dust_composition,0),MATCH($E75,Risk_Factors!$O$8:$T$8,0))) ->  | V75: =IF(K75=0,"",INDEX(Risk_Factors!$O$26:$T$28,MATCH('1_Risk_Calc'!K75,Dust_size,0),MATCH($E75,Risk_Factors!$O$8:$T$8,0))) ->  | W75: =IF(L75=0,"",INDEX(Risk_Factors!$O$29:$T$30,MATCH('1_Risk_Calc'!L75,Risk_Factors!$E$29:$E$30,0),MATCH($E75,Risk_Factors!$O$8:$T$8,0))) ->  | X75: =IF(M75=0,"",INDEX(Risk_Factors!$O$32:$T$33,MATCH('1_Risk_Calc'!M75,Risk_Factors!$E$32:$E$33,0),MATCH($E75,Risk_Factors!$O$8:$T$8,0))) ->  | Y75: =IF(N75=0,"",INDEX(Risk_Factors!$O$35:$T$36,MATCH('1_Risk_Calc'!N75,Risk_Factors!$E$35:$E$36,0),MATCH($E75,Risk_Factors!$O$8:$T$8,0))) ->  | Z75: =IF(O75=0,"",INDEX(Risk_Factors!$O$38:$T$39,MATCH('1_Risk_Calc'!O75,Risk_Factors!$E$38:$E$39,0),MATCH($E75,Risk_Factors!$O$8:$T$8,0))) ->  | AA75: =IF(P75=0,"",INDEX(Risk_Factors!$O$41:$T$42,MATCH('1_Risk_Calc'!P75,Risk_Factors!$E$41:$E$42,0),MATCH($E75,Risk_Factors!$O$8:$T$8,0))) ->  | AB75: 0 | AC75: 0 | AG75: =B75 -> S_066 | AH75: =AC75 -> 0
B76: S_067 | Q76: =IF(F76=0,"",INDEX(Risk_Factors!$O$12:$T$14,MATCH(F76,Frequency,0),MATCH($E76,Risk_Factors!$O$8:$T$8,0))) ->  | R76: =IF(G76=0,"",INDEX(Risk_Factors!$O$15:$T$17,MATCH('1_Risk_Calc'!G76,Position,0),MATCH($E76,Risk_Factors!$O$8:$T$8,0))) ->  | S76: =IF(H76=0,"",INDEX(Risk_Factors!$O$18:$T$19,MATCH('1_Risk_Calc'!H76,Yes_No,0),MATCH($E76,Risk_Factors!$O$8:$T$8,0))) ->  | T76: =IF(I76=0,"",INDEX(Risk_Factors!$O$20:$T$22,MATCH('1_Risk_Calc'!I76,Dust_amount,0),MATCH($E76,Risk_Factors!$O$8:$T$8,0))) ->  | U76: =IF(J76=0,"",INDEX(Risk_Factors!$O$23:$T$25,MATCH('1_Risk_Calc'!J76,Dust_composition,0),MATCH($E76,Risk_Factors!$O$8:$T$8,0))) ->  | V76: =IF(K76=0,"",INDEX(Risk_Factors!$O$26:$T$28,MATCH('1_Risk_Calc'!K76,Dust_size,0),MATCH($E76,Risk_Factors!$O$8:$T$8,0))) ->  | W76: =IF(L76=0,"",INDEX(Risk_Factors!$O$29:$T$30,MATCH('1_Risk_Calc'!L76,Risk_Factors!$E$29:$E$30,0),MATCH($E76,Risk_Factors!$O$8:$T$8,0))) ->  | X76: =IF(M76=0,"",INDEX(Risk_Factors!$O$32:$T$33,MATCH('1_Risk_Calc'!M76,Risk_Factors!$E$32:$E$33,0),MATCH($E76,Risk_Factors!$O$8:$T$8,0))) ->  | Y76: =IF(N76=0,"",INDEX(Risk_Factors!$O$35:$T$36,MATCH('1_Risk_Calc'!N76,Risk_Factors!$E$35:$E$36,0),MATCH($E76,Risk_Factors!$O$8:$T$8,0))) ->  | Z76: =IF(O76=0,"",INDEX(Risk_Factors!$O$38:$T$39,MATCH('1_Risk_Calc'!O76,Risk_Factors!$E$38:$E$39,0),MATCH($E76,Risk_Factors!$O$8:$T$8,0))) ->  | AA76: =IF(P76=0,"",INDEX(Risk_Factors!$O$41:$T$42,MATCH('1_Risk_Calc'!P76,Risk_Factors!$E$41:$E$42,0),MATCH($E76,Risk_Factors!$O$8:$T$8,0))) ->  | AB76: 0 | AC76: 0 | AG76: S_067 | AH76: 0
B77: S_068 | Q77: =IF(F77=0,"",INDEX(Risk_Factors!$O$12:$T$14,MATCH(F77,Frequency,0),MATCH($E77,Risk_Factors!$O$8:$T$8,0))) ->  | R77: =IF(G77=0,"",INDEX(Risk_Factors!$O$15:$T$17,MATCH('1_Risk_Calc'!G77,Position,0),MATCH($E77,Risk_Factors!$O$8:$T$8,0))) ->  | S77: =IF(H77=0,"",INDEX(Risk_Factors!$O$18:$T$19,MATCH('1_Risk_Calc'!H77,Yes_No,0),MATCH($E77,Risk_Factors!$O$8:$T$8,0))) ->  | T77: =IF(I77=0,"",INDEX(Risk_Factors!$O$20:$T$22,MATCH('1_Risk_Calc'!I77,Dust_amount,0),MATCH($E77,Risk_Factors!$O$8:$T$8,0))) ->  | U77: =IF(J77=0,"",INDEX(Risk_Factors!$O$23:$T$25,MATCH('1_Risk_Calc'!J77,Dust_composition,0),MATCH($E77,Risk_Factors!$O$8:$T$8,0))) ->  | V77: =IF(K77=0,"",INDEX(Risk_Factors!$O$26:$T$28,MATCH('1_Risk_Calc'!K77,Dust_size,0),MATCH($E77,Risk_Factors!$O$8:$T$8,0))) ->  | W77: =IF(L77=0,"",INDEX(Risk_Factors!$O$29:$T$30,MATCH('1_Risk_Calc'!L77,Risk_Factors!$E$29:$E$30,0),MATCH($E77,Risk_Factors!$O$8:$T$8,0))) ->  | X77: =IF(M77=0,"",INDEX(Risk_Factors!$O$32:$T$33,MATCH('1_Risk_Calc'!M77,Risk_Factors!$E$32:$E$33,0),MATCH($E77,Risk_Factors!$O$8:$T$8,0))) ->  | Y77: =IF(N77=0,"",INDEX(Risk_Factors!$O$35:$T$36,MATCH('1_Risk_Calc'!N77,Risk_Factors!$E$35:$E$36,0),MATCH($E77,Risk_Factors!$O$8:$T$8,0))) ->  | Z77: =IF(O77=0,"",INDEX(Risk_Factors!$O$38:$T$39,MATCH('1_Risk_Calc'!O77,Risk_Factors!$E$38:$E$39,0),MATCH($E77,Risk_Factors!$O$8:$T$8,0))) ->  | AA77: =IF(P77=0,"",INDEX(Risk_Factors!$O$41:$T$42,MATCH('1_Risk_Calc'!P77,Risk_Factors!$E$41:$E$42,0),MATCH($E77,Risk_Factors!$O$8:$T$8,0))) ->  | AB77: 0 | AC77: 0 | AG77: S_068 | AH77: 0
B78: S_069 | Q78: =IF(F78=0,"",INDEX(Risk_Factors!$O$12:$T$14,MATCH(F78,Frequency,0),MATCH($E78,Risk_Factors!$O$8:$T$8,0))) ->  | R78: =IF(G78=0,"",INDEX(Risk_Factors!$O$15:$T$17,MATCH('1_Risk_Calc'!G78,Position,0),MATCH($E78,Risk_Factors!$O$8:$T$8,0))) ->  | S78: =IF(H78=0,"",INDEX(Risk_Factors!$O$18:$T$19,MATCH('1_Risk_Calc'!H78,Yes_No,0),MATCH($E78,Risk_Factors!$O$8:$T$8,0))) ->  | T78: =IF(I78=0,"",INDEX(Risk_Factors!$O$20:$T$22,MATCH('1_Risk_Calc'!I78,Dust_amount,0),MATCH($E78,Risk_Factors!$O$8:$T$8,0))) ->  | U78: =IF(J78=0,"",INDEX(Risk_Factors!$O$23:$T$25,MATCH('1_Risk_Calc'!J78,Dust_composition,0),MATCH($E78,Risk_Factors!$O$8:$T$8,0))) ->  | V78: =IF(K78=0,"",INDEX(Risk_Factors!$O$26:$T$28,MATCH('1_Risk_Calc'!K78,Dust_size,0),MATCH($E78,Risk_Factors!$O$8:$T$8,0))) ->  | W78: =IF(L78=0,"",INDEX(Risk_Factors!$O$29:$T$30,MATCH('1_Risk_Calc'!L78,Risk_Factors!$E$29:$E$30,0),MATCH($E78,Risk_Factors!$O$8:$T$8,0))) ->  | X78: =IF(M78=0,"",INDEX(Risk_Factors!$O$32:$T$33,MATCH('1_Risk_Calc'!M78,Risk_Factors!$E$32:$E$33,0),MATCH($E78,Risk_Factors!$O$8:$T$8,0))) ->  | Y78: =IF(N78=0,"",INDEX(Risk_Factors!$O$35:$T$36,MATCH('1_Risk_Calc'!N78,Risk_Factors!$E$35:$E$36,0),MATCH($E78,Risk_Factors!$O$8:$T$8,0))) ->  | Z78: =IF(O78=0,"",INDEX(Risk_Factors!$O$38:$T$39,MATCH('1_Risk_Calc'!O78,Risk_Factors!$E$38:$E$39,0),MATCH($E78,Risk_Factors!$O$8:$T$8,0))) ->  | AA78: =IF(P78=0,"",INDEX(Risk_Factors!$O$41:$T$42,MATCH('1_Risk_Calc'!P78,Risk_Factors!$E$41:$E$42,0),MATCH($E78,Risk_Factors!$O$8:$T$8,0))) ->  | AB78: 0 | AC78: 0 | AG78: S_069 | AH78: 0
B79: S_070 | Q79: =IF(F79=0,"",INDEX(Risk_Factors!$O$12:$T$14,MATCH(F79,Frequency,0),MATCH($E79,Risk_Factors!$O$8:$T$8,0))) ->  | R79: =IF(G79=0,"",INDEX(Risk_Factors!$O$15:$T$17,MATCH('1_Risk_Calc'!G79,Position,0),MATCH($E79,Risk_Factors!$O$8:$T$8,0))) ->  | S79: =IF(H79=0,"",INDEX(Risk_Factors!$O$18:$T$19,MATCH('1_Risk_Calc'!H79,Yes_No,0),MATCH($E79,Risk_Factors!$O$8:$T$8,0))) ->  | T79: =IF(I79=0,"",INDEX(Risk_Factors!$O$20:$T$22,MATCH('1_Risk_Calc'!I79,Dust_amount,0),MATCH($E79,Risk_Factors!$O$8:$T$8,0))) ->  | U79: =IF(J79=0,"",INDEX(Risk_Factors!$O$23:$T$25,MATCH('1_Risk_Calc'!J79,Dust_composition,0),MATCH($E79,Risk_Factors!$O$8:$T$8,0))) ->  | V79: =IF(K79=0,"",INDEX(Risk_Factors!$O$26:$T$28,MATCH('1_Risk_Calc'!K79,Dust_size,0),MATCH($E79,Risk_Factors!$O$8:$T$8,0))) ->  | W79: =IF(L79=0,"",INDEX(Risk_Factors!$O$29:$T$30,MATCH('1_Risk_Calc'!L79,Risk_Factors!$E$29:$E$30,0),MATCH($E79,Risk_Factors!$O$8:$T$8,0))) ->  | X79: =IF(M79=0,"",INDEX(Risk_Factors!$O$32:$T$33,MATCH('1_Risk_Calc'!M79,Risk_Factors!$E$32:$E$33,0),MATCH($E79,Risk_Factors!$O$8:$T$8,0))) ->  | Y79: =IF(N79=0,"",INDEX(Risk_Factors!$O$35:$T$36,MATCH('1_Risk_Calc'!N79,Risk_Factors!$E$35:$E$36,0),MATCH($E79,Risk_Factors!$O$8:$T$8,0))) ->  | Z79: =IF(O79=0,"",INDEX(Risk_Factors!$O$38:$T$39,MATCH('1_Risk_Calc'!O79,Risk_Factors!$E$38:$E$39,0),MATCH($E79,Risk_Factors!$O$8:$T$8,0))) ->  | AA79: =IF(P79=0,"",INDEX(Risk_Factors!$O$41:$T$42,MATCH('1_Risk_Calc'!P79,Risk_Factors!$E$41:$E$42,0),MATCH($E79,Risk_Factors!$O$8:$T$8,0))) ->  | AB79: 0 | AC79: 0 | AG79: S_070 | AH79: 0
B80: S_071 | Q80: =IF(F80=0,"",INDEX(Risk_Factors!$O$12:$T$14,MATCH(F80,Frequency,0),MATCH($E80,Risk_Factors!$O$8:$T$8,0))) ->  | R80: =IF(G80=0,"",INDEX(Risk_Factors!$O$15:$T$17,MATCH('1_Risk_Calc'!G80,Position,0),MATCH($E80,Risk_Factors!$O$8:$T$8,0))) ->  | S80: =IF(H80=0,"",INDEX(Risk_Factors!$O$18:$T$19,MATCH('1_Risk_Calc'!H80,Yes_No,0),MATCH($E80,Risk_Factors!$O$8:$T$8,0))) ->  | T80: =IF(I80=0,"",INDEX(Risk_Factors!$O$20:$T$22,MATCH('1_Risk_Calc'!I80,Dust_amount,0),MATCH($E80,Risk_Factors!$O$8:$T$8,0))) ->  | U80: =IF(J80=0,"",INDEX(Risk_Factors!$O$23:$T$25,MATCH('1_Risk_Calc'!J80,Dust_composition,0),MATCH($E80,Risk_Factors!$O$8:$T$8,0))) ->  | V80: =IF(K80=0,"",INDEX(Risk_Factors!$O$26:$T$28,MATCH('1_Risk_Calc'!K80,Dust_size,0),MATCH($E80,Risk_Factors!$O$8:$T$8,0))) ->  | W80: =IF(L80=0,"",INDEX(Risk_Factors!$O$29:$T$30,MATCH('1_Risk_Calc'!L80,Risk_Factors!$E$29:$E$30,0),MATCH($E80,Risk_Factors!$O$8:$T$8,0))) ->  | X80: =IF(M80=0,"",INDEX(Risk_Factors!$O$32:$T$33,MATCH('1_Risk_Calc'!M80,Risk_Factors!$E$32:$E$33,0),MATCH($E80,Risk_Factors!$O$8:$T$8,0))) ->  | Y80: =IF(N80=0,"",INDEX(Risk_Factors!$O$35:$T$36,MATCH('1_Risk_Calc'!N80,Risk_Factors!$E$35:$E$36,0),MATCH($E80,Risk_Factors!$O$8:$T$8,0))) ->  | Z80: =IF(O80=0,"",INDEX(Risk_Factors!$O$38:$T$39,MATCH('1_Risk_Calc'!O80,Risk_Factors!$E$38:$E$39,0),MATCH($E80,Risk_Factors!$O$8:$T$8,0))) ->  | AA80: =IF(P80=0,"",INDEX(Risk_Factors!$O$41:$T$42,MATCH('1_Risk_Calc'!P80,Risk_Factors!$E$41:$E$42,0),MATCH($E80,Risk_Factors!$O$8:$T$8,0))) ->  | AB80: 0 | AC80: 0 | AG80: S_071 | AH80: 0
B81: S_072 | Q81: =IF(F81=0,"",INDEX(Risk_Factors!$O$12:$T$14,MATCH(F81,Frequency,0),MATCH($E81,Risk_Factors!$O$8:$T$8,0))) ->  | R81: =IF(G81=0,"",INDEX(Risk_Factors!$O$15:$T$17,MATCH('1_Risk_Calc'!G81,Position,0),MATCH($E81,Risk_Factors!$O$8:$T$8,0))) ->  | S81: =IF(H81=0,"",INDEX(Risk_Factors!$O$18:$T$19,MATCH('1_Risk_Calc'!H81,Yes_No,0),MATCH($E81,Risk_Factors!$O$8:$T$8,0))) ->  | T81: =IF(I81=0,"",INDEX(Risk_Factors!$O$20:$T$22,MATCH('1_Risk_Calc'!I81,Dust_amount,0),MATCH($E81,Risk_Factors!$O$8:$T$8,0))) ->  | U81: =IF(J81=0,"",INDEX(Risk_Factors!$O$23:$T$25,MATCH('1_Risk_Calc'!J81,Dust_composition,0),MATCH($E81,Risk_Factors!$O$8:$T$8,0))) ->  | V81: =IF(K81=0,"",INDEX(Risk_Factors!$O$26:$T$28,MATCH('1_Risk_Calc'!K81,Dust_size,0),MATCH($E81,Risk_Factors!$O$8:$T$8,0))) ->  | W81: =IF(L81=0,"",INDEX(Risk_Factors!$O$29:$T$30,MATCH('1_Risk_Calc'!L81,Risk_Factors!$E$29:$E$30,0),MATCH($E81,Risk_Factors!$O$8:$T$8,0))) ->  | X81: =IF(M81=0,"",INDEX(Risk_Factors!$O$32:$T$33,MATCH('1_Risk_Calc'!M81,Risk_Factors!$E$32:$E$33,0),MATCH($E81,Risk_Factors!$O$8:$T$8,0))) ->  | Y81: =IF(N81=0,"",INDEX(Risk_Factors!$O$35:$T$36,MATCH('1_Risk_Calc'!N81,Risk_Factors!$E$35:$E$36,0),MATCH($E81,Risk_Factors!$O$8:$T$8,0))) ->  | Z81: =IF(O81=0,"",INDEX(Risk_Factors!$O$38:$T$39,MATCH('1_Risk_Calc'!O81,Risk_Factors!$E$38:$E$39,0),MATCH($E81,Risk_Factors!$O$8:$T$8,0))) ->  | AA81: =IF(P81=0,"",INDEX(Risk_Factors!$O$41:$T$42,MATCH('1_Risk_Calc'!P81,Risk_Factors!$E$41:$E$42,0),MATCH($E81,Risk_Factors!$O$8:$T$8,0))) ->  | AB81: 0 | AC81: 0 | AG81: S_072 | AH81: 0
B82: S_073 | Q82: =IF(F82=0,"",INDEX(Risk_Factors!$O$12:$T$14,MATCH(F82,Frequency,0),MATCH($E82,Risk_Factors!$O$8:$T$8,0))) ->  | R82: =IF(G82=0,"",INDEX(Risk_Factors!$O$15:$T$17,MATCH('1_Risk_Calc'!G82,Position,0),MATCH($E82,Risk_Factors!$O$8:$T$8,0))) ->  | S82: =IF(H82=0,"",INDEX(Risk_Factors!$O$18:$T$19,MATCH('1_Risk_Calc'!H82,Yes_No,0),MATCH($E82,Risk_Factors!$O$8:$T$8,0))) ->  | T82: =IF(I82=0,"",INDEX(Risk_Factors!$O$20:$T$22,MATCH('1_Risk_Calc'!I82,Dust_amount,0),MATCH($E82,Risk_Factors!$O$8:$T$8,0))) ->  | U82: =IF(J82=0,"",INDEX(Risk_Factors!$O$23:$T$25,MATCH('1_Risk_Calc'!J82,Dust_composition,0),MATCH($E82,Risk_Factors!$O$8:$T$8,0))) ->  | V82: =IF(K82=0,"",INDEX(Risk_Factors!$O$26:$T$28,MATCH('1_Risk_Calc'!K82,Dust_size,0),MATCH($E82,Risk_Factors!$O$8:$T$8,0))) ->  | W82: =IF(L82=0,"",INDEX(Risk_Factors!$O$29:$T$30,MATCH('1_Risk_Calc'!L82,Risk_Factors!$E$29:$E$30,0),MATCH($E82,Risk_Factors!$O$8:$T$8,0))) ->  | X82: =IF(M82=0,"",INDEX(Risk_Factors!$O$32:$T$33,MATCH('1_Risk_Calc'!M82,Risk_Factors!$E$32:$E$33,0),MATCH($E82,Risk_Factors!$O$8:$T$8,0))) ->  | Y82: =IF(N82=0,"",INDEX(Risk_Factors!$O$35:$T$36,MATCH('1_Risk_Calc'!N82,Risk_Factors!$E$35:$E$36,0),MATCH($E82,Risk_Factors!$O$8:$T$8,0))) ->  | Z82: =IF(O82=0,"",INDEX(Risk_Factors!$O$38:$T$39,MATCH('1_Risk_Calc'!O82,Risk_Factors!$E$38:$E$39,0),MATCH($E82,Risk_Factors!$O$8:$T$8,0))) ->  | AA82: =IF(P82=0,"",INDEX(Risk_Factors!$O$41:$T$42,MATCH('1_Risk_Calc'!P82,Risk_Factors!$E$41:$E$42,0),MATCH($E82,Risk_Factors!$O$8:$T$8,0))) ->  | AB82: 0 | AC82: 0 | AG82: S_073 | AH82: 0
B83: S_074 | Q83: =IF(F83=0,"",INDEX(Risk_Factors!$O$12:$T$14,MATCH(F83,Frequency,0),MATCH($E83,Risk_Factors!$O$8:$T$8,0))) ->  | R83: =IF(G83=0,"",INDEX(Risk_Factors!$O$15:$T$17,MATCH('1_Risk_Calc'!G83,Position,0),MATCH($E83,Risk_Factors!$O$8:$T$8,0))) ->  | S83: =IF(H83=0,"",INDEX(Risk_Factors!$O$18:$T$19,MATCH('1_Risk_Calc'!H83,Yes_No,0),MATCH($E83,Risk_Factors!$O$8:$T$8,0))) ->  | T83: =IF(I83=0,"",INDEX(Risk_Factors!$O$20:$T$22,MATCH('1_Risk_Calc'!I83,Dust_amount,0),MATCH($E83,Risk_Factors!$O$8:$T$8,0))) ->  | U83: =IF(J83=0,"",INDEX(Risk_Factors!$O$23:$T$25,MATCH('1_Risk_Calc'!J83,Dust_composition,0),MATCH($E83,Risk_Factors!$O$8:$T$8,0))) ->  | V83: =IF(K83=0,"",INDEX(Risk_Factors!$O$26:$T$28,MATCH('1_Risk_Calc'!K83,Dust_size,0),MATCH($E83,Risk_Factors!$O$8:$T$8,0))) ->  | W83: =IF(L83=0,"",INDEX(Risk_Factors!$O$29:$T$30,MATCH('1_Risk_Calc'!L83,Risk_Factors!$E$29:$E$30,0),MATCH($E83,Risk_Factors!$O$8:$T$8,0))) ->  | X83: =IF(M83=0,"",INDEX(Risk_Factors!$O$32:$T$33,MATCH('1_Risk_Calc'!M83,Risk_Factors!$E$32:$E$33,0),MATCH($E83,Risk_Factors!$O$8:$T$8,0))) ->  | Y83: =IF(N83=0,"",INDEX(Risk_Factors!$O$35:$T$36,MATCH('1_Risk_Calc'!N83,Risk_Factors!$E$35:$E$36,0),MATCH($E83,Risk_Factors!$O$8:$T$8,0))) ->  | Z83: =IF(O83=0,"",INDEX(Risk_Factors!$O$38:$T$39,MATCH('1_Risk_Calc'!O83,Risk_Factors!$E$38:$E$39,0),MATCH($E83,Risk_Factors!$O$8:$T$8,0))) ->  | AA83: =IF(P83=0,"",INDEX(Risk_Factors!$O$41:$T$42,MATCH('1_Risk_Calc'!P83,Risk_Factors!$E$41:$E$42,0),MATCH($E83,Risk_Factors!$O$8:$T$8,0))) ->  | AB83: 0 | AC83: 0 | AG83: S_074 | AH83: 0
B84: S_075 | Q84: =IF(F84=0,"",INDEX(Risk_Factors!$O$12:$T$14,MATCH(F84,Frequency,0),MATCH($E84,Risk_Factors!$O$8:$T$8,0))) ->  | R84: =IF(G84=0,"",INDEX(Risk_Factors!$O$15:$T$17,MATCH('1_Risk_Calc'!G84,Position,0),MATCH($E84,Risk_Factors!$O$8:$T$8,0))) ->  | S84: =IF(H84=0,"",INDEX(Risk_Factors!$O$18:$T$19,MATCH('1_Risk_Calc'!H84,Yes_No,0),MATCH($E84,Risk_Factors!$O$8:$T$8,0))) ->  | T84: =IF(I84=0,"",INDEX(Risk_Factors!$O$20:$T$22,MATCH('1_Risk_Calc'!I84,Dust_amount,0),MATCH($E84,Risk_Factors!$O$8:$T$8,0))) ->  | U84: =IF(J84=0,"",INDEX(Risk_Factors!$O$23:$T$25,MATCH('1_Risk_Calc'!J84,Dust_composition,0),MATCH($E84,Risk_Factors!$O$8:$T$8,0))) ->  | V84: =IF(K84=0,"",INDEX(Risk_Factors!$O$26:$T$28,MATCH('1_Risk_Calc'!K84,Dust_size,0),MATCH($E84,Risk_Factors!$O$8:$T$8,0))) ->  | W84: =IF(L84=0,"",INDEX(Risk_Factors!$O$29:$T$30,MATCH('1_Risk_Calc'!L84,Risk_Factors!$E$29:$E$30,0),MATCH($E84,Risk_Factors!$O$8:$T$8,0))) ->  | X84: =IF(M84=0,"",INDEX(Risk_Factors!$O$32:$T$33,MATCH('1_Risk_Calc'!M84,Risk_Factors!$E$32:$E$33,0),MATCH($E84,Risk_Factors!$O$8:$T$8,0))) ->  | Y84: =IF(N84=0,"",INDEX(Risk_Factors!$O$35:$T$36,MATCH('1_Risk_Calc'!N84,Risk_Factors!$E$35:$E$36,0),MATCH($E84,Risk_Factors!$O$8:$T$8,0))) ->  | Z84: =IF(O84=0,"",INDEX(Risk_Factors!$O$38:$T$39,MATCH('1_Risk_Calc'!O84,Risk_Factors!$E$38:$E$39,0),MATCH($E84,Risk_Factors!$O$8:$T$8,0))) ->  | AA84: =IF(P84=0,"",INDEX(Risk_Factors!$O$41:$T$42,MATCH('1_Risk_Calc'!P84,Risk_Factors!$E$41:$E$42,0),MATCH($E84,Risk_Factors!$O$8:$T$8,0))) ->  | AB84: 0 | AC84: 0 | AG84: S_075 | AH84: 0
B85: S_076 | Q85: =IF(F85=0,"",INDEX(Risk_Factors!$O$12:$T$14,MATCH(F85,Frequency,0),MATCH($E85,Risk_Factors!$O$8:$T$8,0))) ->  | R85: =IF(G85=0,"",INDEX(Risk_Factors!$O$15:$T$17,MATCH('1_Risk_Calc'!G85,Position,0),MATCH($E85,Risk_Factors!$O$8:$T$8,0))) ->  | S85: =IF(H85=0,"",INDEX(Risk_Factors!$O$18:$T$19,MATCH('1_Risk_Calc'!H85,Yes_No,0),MATCH($E85,Risk_Factors!$O$8:$T$8,0))) ->  | T85: =IF(I85=0,"",INDEX(Risk_Factors!$O$20:$T$22,MATCH('1_Risk_Calc'!I85,Dust_amount,0),MATCH($E85,Risk_Factors!$O$8:$T$8,0))) ->  | U85: =IF(J85=0,"",INDEX(Risk_Factors!$O$23:$T$25,MATCH('1_Risk_Calc'!J85,Dust_composition,0),MATCH($E85,Risk_Factors!$O$8:$T$8,0))) ->  | V85: =IF(K85=0,"",INDEX(Risk_Factors!$O$26:$T$28,MATCH('1_Risk_Calc'!K85,Dust_size,0),MATCH($E85,Risk_Factors!$O$8:$T$8,0))) ->  | W85: =IF(L85=0,"",INDEX(Risk_Factors!$O$29:$T$30,MATCH('1_Risk_Calc'!L85,Risk_Factors!$E$29:$E$30,0),MATCH($E85,Risk_Factors!$O$8:$T$8,0))) ->  | X85: =IF(M85=0,"",INDEX(Risk_Factors!$O$32:$T$33,MATCH('1_Risk_Calc'!M85,Risk_Factors!$E$32:$E$33,0),MATCH($E85,Risk_Factors!$O$8:$T$8,0))) ->  | Y85: =IF(N85=0,"",INDEX(Risk_Factors!$O$35:$T$36,MATCH('1_Risk_Calc'!N85,Risk_Factors!$E$35:$E$36,0),MATCH($E85,Risk_Factors!$O$8:$T$8,0))) ->  | Z85: =IF(O85=0,"",INDEX(Risk_Factors!$O$38:$T$39,MATCH('1_Risk_Calc'!O85,Risk_Factors!$E$38:$E$39,0),MATCH($E85,Risk_Factors!$O$8:$T$8,0))) ->  | AA85: =IF(P85=0,"",INDEX(Risk_Factors!$O$41:$T$42,MATCH('1_Risk_Calc'!P85,Risk_Factors!$E$41:$E$42,0),MATCH($E85,Risk_Factors!$O$8:$T$8,0))) ->  | AB85: 0 | AC85: 0 | AG85: S_076 | AH85: 0
B86: S_077 | Q86: =IF(F86=0,"",INDEX(Risk_Factors!$O$12:$T$14,MATCH(F86,Frequency,0),MATCH($E86,Risk_Factors!$O$8:$T$8,0))) ->  | R86: =IF(G86=0,"",INDEX(Risk_Factors!$O$15:$T$17,MATCH('1_Risk_Calc'!G86,Position,0),MATCH($E86,Risk_Factors!$O$8:$T$8,0))) ->  | S86: =IF(H86=0,"",INDEX(Risk_Factors!$O$18:$T$19,MATCH('1_Risk_Calc'!H86,Yes_No,0),MATCH($E86,Risk_Factors!$O$8:$T$8,0))) ->  | T86: =IF(I86=0,"",INDEX(Risk_Factors!$O$20:$T$22,MATCH('1_Risk_Calc'!I86,Dust_amount,0),MATCH($E86,Risk_Factors!$O$8:$T$8,0))) ->  | U86: =IF(J86=0,"",INDEX(Risk_Factors!$O$23:$T$25,MATCH('1_Risk_Calc'!J86,Dust_composition,0),MATCH($E86,Risk_Factors!$O$8:$T$8,0))) ->  | V86: =IF(K86=0,"",INDEX(Risk_Factors!$O$26:$T$28,MATCH('1_Risk_Calc'!K86,Dust_size,0),MATCH($E86,Risk_Factors!$O$8:$T$8,0))) ->  | W86: =IF(L86=0,"",INDEX(Risk_Factors!$O$29:$T$30,MATCH('1_Risk_Calc'!L86,Risk_Factors!$E$29:$E$30,0),MATCH($E86,Risk_Factors!$O$8:$T$8,0))) ->  | X86: =IF(M86=0,"",INDEX(Risk_Factors!$O$32:$T$33,MATCH('1_Risk_Calc'!M86,Risk_Factors!$E$32:$E$33,0),MATCH($E86,Risk_Factors!$O$8:$T$8,0))) ->  | Y86: =IF(N86=0,"",INDEX(Risk_Factors!$O$35:$T$36,MATCH('1_Risk_Calc'!N86,Risk_Factors!$E$35:$E$36,0),MATCH($E86,Risk_Factors!$O$8:$T$8,0))) ->  | Z86: =IF(O86=0,"",INDEX(Risk_Factors!$O$38:$T$39,MATCH('1_Risk_Calc'!O86,Risk_Factors!$E$38:$E$39,0),MATCH($E86,Risk_Factors!$O$8:$T$8,0))) ->  | AA86: =IF(P86=0,"",INDEX(Risk_Factors!$O$41:$T$42,MATCH('1_Risk_Calc'!P86,Risk_Factors!$E$41:$E$42,0),MATCH($E86,Risk_Factors!$O$8:$T$8,0))) ->  | AB86: 0 | AC86: 0 | AG86: S_077 | AH86: 0
B87: S_078 | Q87: =IF(F87=0,"",INDEX(Risk_Factors!$O$12:$T$14,MATCH(F87,Frequency,0),MATCH($E87,Risk_Factors!$O$8:$T$8,0))) ->  | R87: =IF(G87=0,"",INDEX(Risk_Factors!$O$15:$T$17,MATCH('1_Risk_Calc'!G87,Position,0),MATCH($E87,Risk_Factors!$O$8:$T$8,0))) ->  | S87: =IF(H87=0,"",INDEX(Risk_Factors!$O$18:$T$19,MATCH('1_Risk_Calc'!H87,Yes_No,0),MATCH($E87,Risk_Factors!$O$8:$T$8,0))) ->  | T87: =IF(I87=0,"",INDEX(Risk_Factors!$O$20:$T$22,MATCH('1_Risk_Calc'!I87,Dust_amount,0),MATCH($E87,Risk_Factors!$O$8:$T$8,0))) ->  | U87: =IF(J87=0,"",INDEX(Risk_Factors!$O$23:$T$25,MATCH('1_Risk_Calc'!J87,Dust_composition,0),MATCH($E87,Risk_Factors!$O$8:$T$8,0))) ->  | V87: =IF(K87=0,"",INDEX(Risk_Factors!$O$26:$T$28,MATCH('1_Risk_Calc'!K87,Dust_size,0),MATCH($E87,Risk_Factors!$O$8:$T$8,0))) ->  | W87: =IF(L87=0,"",INDEX(Risk_Factors!$O$29:$T$30,MATCH('1_Risk_Calc'!L87,Risk_Factors!$E$29:$E$30,0),MATCH($E87,Risk_Factors!$O$8:$T$8,0))) ->  | X87: =IF(M87=0,"",INDEX(Risk_Factors!$O$32:$T$33,MATCH('1_Risk_Calc'!M87,Risk_Factors!$E$32:$E$33,0),MATCH($E87,Risk_Factors!$O$8:$T$8,0))) ->  | Y87: =IF(N87=0,"",INDEX(Risk_Factors!$O$35:$T$36,MATCH('1_Risk_Calc'!N87,Risk_Factors!$E$35:$E$36,0),MATCH($E87,Risk_Factors!$O$8:$T$8,0))) ->  | Z87: =IF(O87=0,"",INDEX(Risk_Factors!$O$38:$T$39,MATCH('1_Risk_Calc'!O87,Risk_Factors!$E$38:$E$39,0),MATCH($E87,Risk_Factors!$O$8:$T$8,0))) ->  | AA87: =IF(P87=0,"",INDEX(Risk_Factors!$O$41:$T$42,MATCH('1_Risk_Calc'!P87,Risk_Factors!$E$41:$E$42,0),MATCH($E87,Risk_Factors!$O$8:$T$8,0))) ->  | AB87: 0 | AC87: 0 | AG87: S_078 | AH87: 0
B88: S_079 | Q88: =IF(F88=0,"",INDEX(Risk_Factors!$O$12:$T$14,MATCH(F88,Frequency,0),MATCH($E88,Risk_Factors!$O$8:$T$8,0))) ->  | R88: =IF(G88=0,"",INDEX(Risk_Factors!$O$15:$T$17,MATCH('1_Risk_Calc'!G88,Position,0),MATCH($E88,Risk_Factors!$O$8:$T$8,0))) ->  | S88: =IF(H88=0,"",INDEX(Risk_Factors!$O$18:$T$19,MATCH('1_Risk_Calc'!H88,Yes_No,0),MATCH($E88,Risk_Factors!$O$8:$T$8,0))) ->  | T88: =IF(I88=0,"",INDEX(Risk_Factors!$O$20:$T$22,MATCH('1_Risk_Calc'!I88,Dust_amount,0),MATCH($E88,Risk_Factors!$O$8:$T$8,0))) ->  | U88: =IF(J88=0,"",INDEX(Risk_Factors!$O$23:$T$25,MATCH('1_Risk_Calc'!J88,Dust_composition,0),MATCH($E88,Risk_Factors!$O$8:$T$8,0))) ->  | V88: =IF(K88=0,"",INDEX(Risk_Factors!$O$26:$T$28,MATCH('1_Risk_Calc'!K88,Dust_size,0),MATCH($E88,Risk_Factors!$O$8:$T$8,0))) ->  | W88: =IF(L88=0,"",INDEX(Risk_Factors!$O$29:$T$30,MATCH('1_Risk_Calc'!L88,Risk_Factors!$E$29:$E$30,0),MATCH($E88,Risk_Factors!$O$8:$T$8,0))) ->  | X88: =IF(M88=0,"",INDEX(Risk_Factors!$O$32:$T$33,MATCH('1_Risk_Calc'!M88,Risk_Factors!$E$32:$E$33,0),MATCH($E88,Risk_Factors!$O$8:$T$8,0))) ->  | Y88: =IF(N88=0,"",INDEX(Risk_Factors!$O$35:$T$36,MATCH('1_Risk_Calc'!N88,Risk_Factors!$E$35:$E$36,0),MATCH($E88,Risk_Factors!$O$8:$T$8,0))) ->  | Z88: =IF(O88=0,"",INDEX(Risk_Factors!$O$38:$T$39,MATCH('1_Risk_Calc'!O88,Risk_Factors!$E$38:$E$39,0),MATCH($E88,Risk_Factors!$O$8:$T$8,0))) ->  | AA88: =IF(P88=0,"",INDEX(Risk_Factors!$O$41:$T$42,MATCH('1_Risk_Calc'!P88,Risk_Factors!$E$41:$E$42,0),MATCH($E88,Risk_Factors!$O$8:$T$8,0))) ->  | AB88: 0 | AC88: 0 | AG88: S_079 | AH88: 0
B89: S_080 | Q89: =IF(F89=0,"",INDEX(Risk_Factors!$O$12:$T$14,MATCH(F89,Frequency,0),MATCH($E89,Risk_Factors!$O$8:$T$8,0))) ->  | R89: =IF(G89=0,"",INDEX(Risk_Factors!$O$15:$T$17,MATCH('1_Risk_Calc'!G89,Position,0),MATCH($E89,Risk_Factors!$O$8:$T$8,0))) ->  | S89: =IF(H89=0,"",INDEX(Risk_Factors!$O$18:$T$19,MATCH('1_Risk_Calc'!H89,Yes_No,0),MATCH($E89,Risk_Factors!$O$8:$T$8,0))) ->  | T89: =IF(I89=0,"",INDEX(Risk_Factors!$O$20:$T$22,MATCH('1_Risk_Calc'!I89,Dust_amount,0),MATCH($E89,Risk_Factors!$O$8:$T$8,0))) ->  | U89: =IF(J89=0,"",INDEX(Risk_Factors!$O$23:$T$25,MATCH('1_Risk_Calc'!J89,Dust_composition,0),MATCH($E89,Risk_Factors!$O$8:$T$8,0))) ->  | V89: =IF(K89=0,"",INDEX(Risk_Factors!$O$26:$T$28,MATCH('1_Risk_Calc'!K89,Dust_size,0),MATCH($E89,Risk_Factors!$O$8:$T$8,0))) ->  | W89: =IF(L89=0,"",INDEX(Risk_Factors!$O$29:$T$30,MATCH('1_Risk_Calc'!L89,Risk_Factors!$E$29:$E$30,0),MATCH($E89,Risk_Factors!$O$8:$T$8,0))) ->  | X89: =IF(M89=0,"",INDEX(Risk_Factors!$O$32:$T$33,MATCH('1_Risk_Calc'!M89,Risk_Factors!$E$32:$E$33,0),MATCH($E89,Risk_Factors!$O$8:$T$8,0))) ->  | Y89: =IF(N89=0,"",INDEX(Risk_Factors!$O$35:$T$36,MATCH('1_Risk_Calc'!N89,Risk_Factors!$E$35:$E$36,0),MATCH($E89,Risk_Factors!$O$8:$T$8,0))) ->  | Z89: =IF(O89=0,"",INDEX(Risk_Factors!$O$38:$T$39,MATCH('1_Risk_Calc'!O89,Risk_Factors!$E$38:$E$39,0),MATCH($E89,Risk_Factors!$O$8:$T$8,0))) ->  | AA89: =IF(P89=0,"",INDEX(Risk_Factors!$O$41:$T$42,MATCH('1_Risk_Calc'!P89,Risk_Factors!$E$41:$E$42,0),MATCH($E89,Risk_Factors!$O$8:$T$8,0))) ->  | AB89: 0 | AC89: 0 | AG89: S_080 | AH89: 0
B90: S_081 | Q90: =IF(F90=0,"",INDEX(Risk_Factors!$O$12:$T$14,MATCH(F90,Frequency,0),MATCH($E90,Risk_Factors!$O$8:$T$8,0))) ->  | R90: =IF(G90=0,"",INDEX(Risk_Factors!$O$15:$T$17,MATCH('1_Risk_Calc'!G90,Position,0),MATCH($E90,Risk_Factors!$O$8:$T$8,0))) ->  | S90: =IF(H90=0,"",INDEX(Risk_Factors!$O$18:$T$19,MATCH('1_Risk_Calc'!H90,Yes_No,0),MATCH($E90,Risk_Factors!$O$8:$T$8,0))) ->  | T90: =IF(I90=0,"",INDEX(Risk_Factors!$O$20:$T$22,MATCH('1_Risk_Calc'!I90,Dust_amount,0),MATCH($E90,Risk_Factors!$O$8:$T$8,0))) ->  | U90: =IF(J90=0,"",INDEX(Risk_Factors!$O$23:$T$25,MATCH('1_Risk_Calc'!J90,Dust_composition,0),MATCH($E90,Risk_Factors!$O$8:$T$8,0))) ->  | V90: =IF(K90=0,"",INDEX(Risk_Factors!$O$26:$T$28,MATCH('1_Risk_Calc'!K90,Dust_size,0),MATCH($E90,Risk_Factors!$O$8:$T$8,0))) ->  | W90: =IF(L90=0,"",INDEX(Risk_Factors!$O$29:$T$30,MATCH('1_Risk_Calc'!L90,Risk_Factors!$E$29:$E$30,0),MATCH($E90,Risk_Factors!$O$8:$T$8,0))) ->  | X90: =IF(M90=0,"",INDEX(Risk_Factors!$O$32:$T$33,MATCH('1_Risk_Calc'!M90,Risk_Factors!$E$32:$E$33,0),MATCH($E90,Risk_Factors!$O$8:$T$8,0))) ->  | Y90: =IF(N90=0,"",INDEX(Risk_Factors!$O$35:$T$36,MATCH('1_Risk_Calc'!N90,Risk_Factors!$E$35:$E$36,0),MATCH($E90,Risk_Factors!$O$8:$T$8,0))) ->  | Z90: =IF(O90=0,"",INDEX(Risk_Factors!$O$38:$T$39,MATCH('1_Risk_Calc'!O90,Risk_Factors!$E$38:$E$39,0),MATCH($E90,Risk_Factors!$O$8:$T$8,0))) ->  | AA90: =IF(P90=0,"",INDEX(Risk_Factors!$O$41:$T$42,MATCH('1_Risk_Calc'!P90,Risk_Factors!$E$41:$E$42,0),MATCH($E90,Risk_Factors!$O$8:$T$8,0))) ->  | AB90: 0 | AC90: 0 | AG90: S_081 | AH90: 0
B91: S_082 | Q91: =IF(F91=0,"",INDEX(Risk_Factors!$O$12:$T$14,MATCH(F91,Frequency,0),MATCH($E91,Risk_Factors!$O$8:$T$8,0))) ->  | R91: =IF(G91=0,"",INDEX(Risk_Factors!$O$15:$T$17,MATCH('1_Risk_Calc'!G91,Position,0),MATCH($E91,Risk_Factors!$O$8:$T$8,0))) ->  | S91: =IF(H91=0,"",INDEX(Risk_Factors!$O$18:$T$19,MATCH('1_Risk_Calc'!H91,Yes_No,0),MATCH($E91,Risk_Factors!$O$8:$T$8,0))) ->  | T91: =IF(I91=0,"",INDEX(Risk_Factors!$O$20:$T$22,MATCH('1_Risk_Calc'!I91,Dust_amount,0),MATCH($E91,Risk_Factors!$O$8:$T$8,0))) ->  | U91: =IF(J91=0,"",INDEX(Risk_Factors!$O$23:$T$25,MATCH('1_Risk_Calc'!J91,Dust_composition,0),MATCH($E91,Risk_Factors!$O$8:$T$8,0))) ->  | V91: =IF(K91=0,"",INDEX(Risk_Factors!$O$26:$T$28,MATCH('1_Risk_Calc'!K91,Dust_size,0),MATCH($E91,Risk_Factors!$O$8:$T$8,0))) ->  | W91: =IF(L91=0,"",INDEX(Risk_Factors!$O$29:$T$30,MATCH('1_Risk_Calc'!L91,Risk_Factors!$E$29:$E$30,0),MATCH($E91,Risk_Factors!$O$8:$T$8,0))) ->  | X91: =IF(M91=0,"",INDEX(Risk_Factors!$O$32:$T$33,MATCH('1_Risk_Calc'!M91,Risk_Factors!$E$32:$E$33,0),MATCH($E91,Risk_Factors!$O$8:$T$8,0))) ->  | Y91: =IF(N91=0,"",INDEX(Risk_Factors!$O$35:$T$36,MATCH('1_Risk_Calc'!N91,Risk_Factors!$E$35:$E$36,0),MATCH($E91,Risk_Factors!$O$8:$T$8,0))) ->  | Z91: =IF(O91=0,"",INDEX(Risk_Factors!$O$38:$T$39,MATCH('1_Risk_Calc'!O91,Risk_Factors!$E$38:$E$39,0),MATCH($E91,Risk_Factors!$O$8:$T$8,0))) ->  | AA91: =IF(P91=0,"",INDEX(Risk_Factors!$O$41:$T$42,MATCH('1_Risk_Calc'!P91,Risk_Factors!$E$41:$E$42,0),MATCH($E91,Risk_Factors!$O$8:$T$8,0))) ->  | AB91: 0 | AC91: 0 | AG91: S_082 | AH91: 0
B92: S_083 | Q92: =IF(F92=0,"",INDEX(Risk_Factors!$O$12:$T$14,MATCH(F92,Frequency,0),MATCH($E92,Risk_Factors!$O$8:$T$8,0))) ->  | R92: =IF(G92=0,"",INDEX(Risk_Factors!$O$15:$T$17,MATCH('1_Risk_Calc'!G92,Position,0),MATCH($E92,Risk_Factors!$O$8:$T$8,0))) ->  | S92: =IF(H92=0,"",INDEX(Risk_Factors!$O$18:$T$19,MATCH('1_Risk_Calc'!H92,Yes_No,0),MATCH($E92,Risk_Factors!$O$8:$T$8,0))) ->  | T92: =IF(I92=0,"",INDEX(Risk_Factors!$O$20:$T$22,MATCH('1_Risk_Calc'!I92,Dust_amount,0),MATCH($E92,Risk_Factors!$O$8:$T$8,0))) ->  | U92: =IF(J92=0,"",INDEX(Risk_Factors!$O$23:$T$25,MATCH('1_Risk_Calc'!J92,Dust_composition,0),MATCH($E92,Risk_Factors!$O$8:$T$8,0))) ->  | V92: =IF(K92=0,"",INDEX(Risk_Factors!$O$26:$T$28,MATCH('1_Risk_Calc'!K92,Dust_size,0),MATCH($E92,Risk_Factors!$O$8:$T$8,0))) ->  | W92: =IF(L92=0,"",INDEX(Risk_Factors!$O$29:$T$30,MATCH('1_Risk_Calc'!L92,Risk_Factors!$E$29:$E$30,0),MATCH($E92,Risk_Factors!$O$8:$T$8,0))) ->  | X92: =IF(M92=0,"",INDEX(Risk_Factors!$O$32:$T$33,MATCH('1_Risk_Calc'!M92,Risk_Factors!$E$32:$E$33,0),MATCH($E92,Risk_Factors!$O$8:$T$8,0))) ->  | Y92: =IF(N92=0,"",INDEX(Risk_Factors!$O$35:$T$36,MATCH('1_Risk_Calc'!N92,Risk_Factors!$E$35:$E$36,0),MATCH($E92,Risk_Factors!$O$8:$T$8,0))) ->  | Z92: =IF(O92=0,"",INDEX(Risk_Factors!$O$38:$T$39,MATCH('1_Risk_Calc'!O92,Risk_Factors!$E$38:$E$39,0),MATCH($E92,Risk_Factors!$O$8:$T$8,0))) ->  | AA92: =IF(P92=0,"",INDEX(Risk_Factors!$O$41:$T$42,MATCH('1_Risk_Calc'!P92,Risk_Factors!$E$41:$E$42,0),MATCH($E92,Risk_Factors!$O$8:$T$8,0))) ->  | AB92: 0 | AC92: 0 | AG92: S_083 | AH92: 0
B93: S_084 | Q93: =IF(F93=0,"",INDEX(Risk_Factors!$O$12:$T$14,MATCH(F93,Frequency,0),MATCH($E93,Risk_Factors!$O$8:$T$8,0))) ->  | R93: =IF(G93=0,"",INDEX(Risk_Factors!$O$15:$T$17,MATCH('1_Risk_Calc'!G93,Position,0),MATCH($E93,Risk_Factors!$O$8:$T$8,0))) ->  | S93: =IF(H93=0,"",INDEX(Risk_Factors!$O$18:$T$19,MATCH('1_Risk_Calc'!H93,Yes_No,0),MATCH($E93,Risk_Factors!$O$8:$T$8,0))) ->  | T93: =IF(I93=0,"",INDEX(Risk_Factors!$O$20:$T$22,MATCH('1_Risk_Calc'!I93,Dust_amount,0),MATCH($E93,Risk_Factors!$O$8:$T$8,0))) ->  | U93: =IF(J93=0,"",INDEX(Risk_Factors!$O$23:$T$25,MATCH('1_Risk_Calc'!J93,Dust_composition,0),MATCH($E93,Risk_Factors!$O$8:$T$8,0))) ->  | V93: =IF(K93=0,"",INDEX(Risk_Factors!$O$26:$T$28,MATCH('1_Risk_Calc'!K93,Dust_size,0),MATCH($E93,Risk_Factors!$O$8:$T$8,0))) ->  | W93: =IF(L93=0,"",INDEX(Risk_Factors!$O$29:$T$30,MATCH('1_Risk_Calc'!L93,Risk_Factors!$E$29:$E$30,0),MATCH($E93,Risk_Factors!$O$8:$T$8,0))) ->  | X93: =IF(M93=0,"",INDEX(Risk_Factors!$O$32:$T$33,MATCH('1_Risk_Calc'!M93,Risk_Factors!$E$32:$E$33,0),MATCH($E93,Risk_Factors!$O$8:$T$8,0))) ->  | Y93: =IF(N93=0,"",INDEX(Risk_Factors!$O$35:$T$36,MATCH('1_Risk_Calc'!N93,Risk_Factors!$E$35:$E$36,0),MATCH($E93,Risk_Factors!$O$8:$T$8,0))) ->  | Z93: =IF(O93=0,"",INDEX(Risk_Factors!$O$38:$T$39,MATCH('1_Risk_Calc'!O93,Risk_Factors!$E$38:$E$39,0),MATCH($E93,Risk_Factors!$O$8:$T$8,0))) ->  | AA93: =IF(P93=0,"",INDEX(Risk_Factors!$O$41:$T$42,MATCH('1_Risk_Calc'!P93,Risk_Factors!$E$41:$E$42,0),MATCH($E93,Risk_Factors!$O$8:$T$8,0))) ->  | AB93: 0 | AC93: 0 | AG93: S_084 | AH93: 0
B94: S_085 | Q94: =IF(F94=0,"",INDEX(Risk_Factors!$O$12:$T$14,MATCH(F94,Frequency,0),MATCH($E94,Risk_Factors!$O$8:$T$8,0))) ->  | R94: =IF(G94=0,"",INDEX(Risk_Factors!$O$15:$T$17,MATCH('1_Risk_Calc'!G94,Position,0),MATCH($E94,Risk_Factors!$O$8:$T$8,0))) ->  | S94: =IF(H94=0,"",INDEX(Risk_Factors!$O$18:$T$19,MATCH('1_Risk_Calc'!H94,Yes_No,0),MATCH($E94,Risk_Factors!$O$8:$T$8,0))) ->  | T94: =IF(I94=0,"",INDEX(Risk_Factors!$O$20:$T$22,MATCH('1_Risk_Calc'!I94,Dust_amount,0),MATCH($E94,Risk_Factors!$O$8:$T$8,0))) ->  | U94: =IF(J94=0,"",INDEX(Risk_Factors!$O$23:$T$25,MATCH('1_Risk_Calc'!J94,Dust_composition,0),MATCH($E94,Risk_Factors!$O$8:$T$8,0))) ->  | V94: =IF(K94=0,"",INDEX(Risk_Factors!$O$26:$T$28,MATCH('1_Risk_Calc'!K94,Dust_size,0),MATCH($E94,Risk_Factors!$O$8:$T$8,0))) ->  | W94: =IF(L94=0,"",INDEX(Risk_Factors!$O$29:$T$30,MATCH('1_Risk_Calc'!L94,Risk_Factors!$E$29:$E$30,0),MATCH($E94,Risk_Factors!$O$8:$T$8,0))) ->  | X94: =IF(M94=0,"",INDEX(Risk_Factors!$O$32:$T$33,MATCH('1_Risk_Calc'!M94,Risk_Factors!$E$32:$E$33,0),MATCH($E94,Risk_Factors!$O$8:$T$8,0))) ->  | Y94: =IF(N94=0,"",INDEX(Risk_Factors!$O$35:$T$36,MATCH('1_Risk_Calc'!N94,Risk_Factors!$E$35:$E$36,0),MATCH($E94,Risk_Factors!$O$8:$T$8,0))) ->  | Z94: =IF(O94=0,"",INDEX(Risk_Factors!$O$38:$T$39,MATCH('1_Risk_Calc'!O94,Risk_Factors!$E$38:$E$39,0),MATCH($E94,Risk_Factors!$O$8:$T$8,0))) ->  | AA94: =IF(P94=0,"",INDEX(Risk_Factors!$O$41:$T$42,MATCH('1_Risk_Calc'!P94,Risk_Factors!$E$41:$E$42,0),MATCH($E94,Risk_Factors!$O$8:$T$8,0))) ->  | AB94: 0 | AC94: 0 | AG94: S_085 | AH94: 0
B95: S_086 | Q95: =IF(F95=0,"",INDEX(Risk_Factors!$O$12:$T$14,MATCH(F95,Frequency,0),MATCH($E95,Risk_Factors!$O$8:$T$8,0))) ->  | R95: =IF(G95=0,"",INDEX(Risk_Factors!$O$15:$T$17,MATCH('1_Risk_Calc'!G95,Position,0),MATCH($E95,Risk_Factors!$O$8:$T$8,0))) ->  | S95: =IF(H95=0,"",INDEX(Risk_Factors!$O$18:$T$19,MATCH('1_Risk_Calc'!H95,Yes_No,0),MATCH($E95,Risk_Factors!$O$8:$T$8,0))) ->  | T95: =IF(I95=0,"",INDEX(Risk_Factors!$O$20:$T$22,MATCH('1_Risk_Calc'!I95,Dust_amount,0),MATCH($E95,Risk_Factors!$O$8:$T$8,0))) ->  | U95: =IF(J95=0,"",INDEX(Risk_Factors!$O$23:$T$25,MATCH('1_Risk_Calc'!J95,Dust_composition,0),MATCH($E95,Risk_Factors!$O$8:$T$8,0))) ->  | V95: =IF(K95=0,"",INDEX(Risk_Factors!$O$26:$T$28,MATCH('1_Risk_Calc'!K95,Dust_size,0),MATCH($E95,Risk_Factors!$O$8:$T$8,0))) ->  | W95: =IF(L95=0,"",INDEX(Risk_Factors!$O$29:$T$30,MATCH('1_Risk_Calc'!L95,Risk_Factors!$E$29:$E$30,0),MATCH($E95,Risk_Factors!$O$8:$T$8,0))) ->  | X95: =IF(M95=0,"",INDEX(Risk_Factors!$O$32:$T$33,MATCH('1_Risk_Calc'!M95,Risk_Factors!$E$32:$E$33,0),MATCH($E95,Risk_Factors!$O$8:$T$8,0))) ->  | Y95: =IF(N95=0,"",INDEX(Risk_Factors!$O$35:$T$36,MATCH('1_Risk_Calc'!N95,Risk_Factors!$E$35:$E$36,0),MATCH($E95,Risk_Factors!$O$8:$T$8,0))) ->  | Z95: =IF(O95=0,"",INDEX(Risk_Factors!$O$38:$T$39,MATCH('1_Risk_Calc'!O95,Risk_Factors!$E$38:$E$39,0),MATCH($E95,Risk_Factors!$O$8:$T$8,0))) ->  | AA95: =IF(P95=0,"",INDEX(Risk_Factors!$O$41:$T$42,MATCH('1_Risk_Calc'!P95,Risk_Factors!$E$41:$E$42,0),MATCH($E95,Risk_Factors!$O$8:$T$8,0))) ->  | AB95: 0 | AC95: 0 | AG95: S_086 | AH95: 0
B96: S_087 | Q96: =IF(F96=0,"",INDEX(Risk_Factors!$O$12:$T$14,MATCH(F96,Frequency,0),MATCH($E96,Risk_Factors!$O$8:$T$8,0))) ->  | R96: =IF(G96=0,"",INDEX(Risk_Factors!$O$15:$T$17,MATCH('1_Risk_Calc'!G96,Position,0),MATCH($E96,Risk_Factors!$O$8:$T$8,0))) ->  | S96: =IF(H96=0,"",INDEX(Risk_Factors!$O$18:$T$19,MATCH('1_Risk_Calc'!H96,Yes_No,0),MATCH($E96,Risk_Factors!$O$8:$T$8,0))) ->  | T96: =IF(I96=0,"",INDEX(Risk_Factors!$O$20:$T$22,MATCH('1_Risk_Calc'!I96,Dust_amount,0),MATCH($E96,Risk_Factors!$O$8:$T$8,0))) ->  | U96: =IF(J96=0,"",INDEX(Risk_Factors!$O$23:$T$25,MATCH('1_Risk_Calc'!J96,Dust_composition,0),MATCH($E96,Risk_Factors!$O$8:$T$8,0))) ->  | V96: =IF(K96=0,"",INDEX(Risk_Factors!$O$26:$T$28,MATCH('1_Risk_Calc'!K96,Dust_size,0),MATCH($E96,Risk_Factors!$O$8:$T$8,0))) ->  | W96: =IF(L96=0,"",INDEX(Risk_Factors!$O$29:$T$30,MATCH('1_Risk_Calc'!L96,Risk_Factors!$E$29:$E$30,0),MATCH($E96,Risk_Factors!$O$8:$T$8,0))) ->  | X96: =IF(M96=0,"",INDEX(Risk_Factors!$O$32:$T$33,MATCH('1_Risk_Calc'!M96,Risk_Factors!$E$32:$E$33,0),MATCH($E96,Risk_Factors!$O$8:$T$8,0))) ->  | Y96: =IF(N96=0,"",INDEX(Risk_Factors!$O$35:$T$36,MATCH('1_Risk_Calc'!N96,Risk_Factors!$E$35:$E$36,0),MATCH($E96,Risk_Factors!$O$8:$T$8,0))) ->  | Z96: =IF(O96=0,"",INDEX(Risk_Factors!$O$38:$T$39,MATCH('1_Risk_Calc'!O96,Risk_Factors!$E$38:$E$39,0),MATCH($E96,Risk_Factors!$O$8:$T$8,0))) ->  | AA96: =IF(P96=0,"",INDEX(Risk_Factors!$O$41:$T$42,MATCH('1_Risk_Calc'!P96,Risk_Factors!$E$41:$E$42,0),MATCH($E96,Risk_Factors!$O$8:$T$8,0))) ->  | AB96: 0 | AC96: 0 | AG96: S_087 | AH96: 0
B97: S_088 | Q97: =IF(F97=0,"",INDEX(Risk_Factors!$O$12:$T$14,MATCH(F97,Frequency,0),MATCH($E97,Risk_Factors!$O$8:$T$8,0))) ->  | R97: =IF(G97=0,"",INDEX(Risk_Factors!$O$15:$T$17,MATCH('1_Risk_Calc'!G97,Position,0),MATCH($E97,Risk_Factors!$O$8:$T$8,0))) ->  | S97: =IF(H97=0,"",INDEX(Risk_Factors!$O$18:$T$19,MATCH('1_Risk_Calc'!H97,Yes_No,0),MATCH($E97,Risk_Factors!$O$8:$T$8,0))) ->  | T97: =IF(I97=0,"",INDEX(Risk_Factors!$O$20:$T$22,MATCH('1_Risk_Calc'!I97,Dust_amount,0),MATCH($E97,Risk_Factors!$O$8:$T$8,0))) ->  | U97: =IF(J97=0,"",INDEX(Risk_Factors!$O$23:$T$25,MATCH('1_Risk_Calc'!J97,Dust_composition,0),MATCH($E97,Risk_Factors!$O$8:$T$8,0))) ->  | V97: =IF(K97=0,"",INDEX(Risk_Factors!$O$26:$T$28,MATCH('1_Risk_Calc'!K97,Dust_size,0),MATCH($E97,Risk_Factors!$O$8:$T$8,0))) ->  | W97: =IF(L97=0,"",INDEX(Risk_Factors!$O$29:$T$30,MATCH('1_Risk_Calc'!L97,Risk_Factors!$E$29:$E$30,0),MATCH($E97,Risk_Factors!$O$8:$T$8,0))) ->  | X97: =IF(M97=0,"",INDEX(Risk_Factors!$O$32:$T$33,MATCH('1_Risk_Calc'!M97,Risk_Factors!$E$32:$E$33,0),MATCH($E97,Risk_Factors!$O$8:$T$8,0))) ->  | Y97: =IF(N97=0,"",INDEX(Risk_Factors!$O$35:$T$36,MATCH('1_Risk_Calc'!N97,Risk_Factors!$E$35:$E$36,0),MATCH($E97,Risk_Factors!$O$8:$T$8,0))) ->  | Z97: =IF(O97=0,"",INDEX(Risk_Factors!$O$38:$T$39,MATCH('1_Risk_Calc'!O97,Risk_Factors!$E$38:$E$39,0),MATCH($E97,Risk_Factors!$O$8:$T$8,0))) ->  | AA97: =IF(P97=0,"",INDEX(Risk_Factors!$O$41:$T$42,MATCH('1_Risk_Calc'!P97,Risk_Factors!$E$41:$E$42,0),MATCH($E97,Risk_Factors!$O$8:$T$8,0))) ->  | AB97: 0 | AC97: 0 | AG97: S_088 | AH97: 0
B98: S_089 | Q98: =IF(F98=0,"",INDEX(Risk_Factors!$O$12:$T$14,MATCH(F98,Frequency,0),MATCH($E98,Risk_Factors!$O$8:$T$8,0))) ->  | R98: =IF(G98=0,"",INDEX(Risk_Factors!$O$15:$T$17,MATCH('1_Risk_Calc'!G98,Position,0),MATCH($E98,Risk_Factors!$O$8:$T$8,0))) ->  | S98: =IF(H98=0,"",INDEX(Risk_Factors!$O$18:$T$19,MATCH('1_Risk_Calc'!H98,Yes_No,0),MATCH($E98,Risk_Factors!$O$8:$T$8,0))) ->  | T98: =IF(I98=0,"",INDEX(Risk_Factors!$O$20:$T$22,MATCH('1_Risk_Calc'!I98,Dust_amount,0),MATCH($E98,Risk_Factors!$O$8:$T$8,0))) ->  | U98: =IF(J98=0,"",INDEX(Risk_Factors!$O$23:$T$25,MATCH('1_Risk_Calc'!J98,Dust_composition,0),MATCH($E98,Risk_Factors!$O$8:$T$8,0))) ->  | V98: =IF(K98=0,"",INDEX(Risk_Factors!$O$26:$T$28,MATCH('1_Risk_Calc'!K98,Dust_size,0),MATCH($E98,Risk_Factors!$O$8:$T$8,0))) ->  | W98: =IF(L98=0,"",INDEX(Risk_Factors!$O$29:$T$30,MATCH('1_Risk_Calc'!L98,Risk_Factors!$E$29:$E$30,0),MATCH($E98,Risk_Factors!$O$8:$T$8,0))) ->  | X98: =IF(M98=0,"",INDEX(Risk_Factors!$O$32:$T$33,MATCH('1_Risk_Calc'!M98,Risk_Factors!$E$32:$E$33,0),MATCH($E98,Risk_Factors!$O$8:$T$8,0))) ->  | Y98: =IF(N98=0,"",INDEX(Risk_Factors!$O$35:$T$36,MATCH('1_Risk_Calc'!N98,Risk_Factors!$E$35:$E$36,0),MATCH($E98,Risk_Factors!$O$8:$T$8,0))) ->  | Z98: =IF(O98=0,"",INDEX(Risk_Factors!$O$38:$T$39,MATCH('1_Risk_Calc'!O98,Risk_Factors!$E$38:$E$39,0),MATCH($E98,Risk_Factors!$O$8:$T$8,0))) ->  | AA98: =IF(P98=0,"",INDEX(Risk_Factors!$O$41:$T$42,MATCH('1_Risk_Calc'!P98,Risk_Factors!$E$41:$E$42,0),MATCH($E98,Risk_Factors!$O$8:$T$8,0))) ->  | AB98: 0 | AC98: 0 | AG98: S_089 | AH98: 0
B99: S_090 | Q99: =IF(F99=0,"",INDEX(Risk_Factors!$O$12:$T$14,MATCH(F99,Frequency,0),MATCH($E99,Risk_Factors!$O$8:$T$8,0))) ->  | R99: =IF(G99=0,"",INDEX(Risk_Factors!$O$15:$T$17,MATCH('1_Risk_Calc'!G99,Position,0),MATCH($E99,Risk_Factors!$O$8:$T$8,0))) ->  | S99: =IF(H99=0,"",INDEX(Risk_Factors!$O$18:$T$19,MATCH('1_Risk_Calc'!H99,Yes_No,0),MATCH($E99,Risk_Factors!$O$8:$T$8,0))) ->  | T99: =IF(I99=0,"",INDEX(Risk_Factors!$O$20:$T$22,MATCH('1_Risk_Calc'!I99,Dust_amount,0),MATCH($E99,Risk_Factors!$O$8:$T$8,0))) ->  | U99: =IF(J99=0,"",INDEX(Risk_Factors!$O$23:$T$25,MATCH('1_Risk_Calc'!J99,Dust_composition,0),MATCH($E99,Risk_Factors!$O$8:$T$8,0))) ->  | V99: =IF(K99=0,"",INDEX(Risk_Factors!$O$26:$T$28,MATCH('1_Risk_Calc'!K99,Dust_size,0),MATCH($E99,Risk_Factors!$O$8:$T$8,0))) ->  | W99: =IF(L99=0,"",INDEX(Risk_Factors!$O$29:$T$30,MATCH('1_Risk_Calc'!L99,Risk_Factors!$E$29:$E$30,0),MATCH($E99,Risk_Factors!$O$8:$T$8,0))) ->  | X99: =IF(M99=0,"",INDEX(Risk_Factors!$O$32:$T$33,MATCH('1_Risk_Calc'!M99,Risk_Factors!$E$32:$E$33,0),MATCH($E99,Risk_Factors!$O$8:$T$8,0))) ->  | Y99: =IF(N99=0,"",INDEX(Risk_Factors!$O$35:$T$36,MATCH('1_Risk_Calc'!N99,Risk_Factors!$E$35:$E$36,0),MATCH($E99,Risk_Factors!$O$8:$T$8,0))) ->  | Z99: =IF(O99=0,"",INDEX(Risk_Factors!$O$38:$T$39,MATCH('1_Risk_Calc'!O99,Risk_Factors!$E$38:$E$39,0),MATCH($E99,Risk_Factors!$O$8:$T$8,0))) ->  | AA99: =IF(P99=0,"",INDEX(Risk_Factors!$O$41:$T$42,MATCH('1_Risk_Calc'!P99,Risk_Factors!$E$41:$E$42,0),MATCH($E99,Risk_Factors!$O$8:$T$8,0))) ->  | AB99: 0 | AC99: 0 | AG99: S_090 | AH99: 0
B100: S_091 | Q100: =IF(F100=0,"",INDEX(Risk_Factors!$O$12:$T$14,MATCH(F100,Frequency,0),MATCH($E100,Risk_Factors!$O$8:$T$8,0))) ->  | R100: =IF(G100=0,"",INDEX(Risk_Factors!$O$15:$T$17,MATCH('1_Risk_Calc'!G100,Position,0),MATCH($E100,Risk_Factors!$O$8:$T$8,0))) ->  | S100: =IF(H100=0,"",INDEX(Risk_Factors!$O$18:$T$19,MATCH('1_Risk_Calc'!H100,Yes_No,0),MATCH($E100,Risk_Factors!$O$8:$T$8,0))) ->  | T100: =IF(I100=0,"",INDEX(Risk_Factors!$O$20:$T$22,MATCH('1_Risk_Calc'!I100,Dust_amount,0),MATCH($E100,Risk_Factors!$O$8:$T$8,0))) ->  | U100: =IF(J100=0,"",INDEX(Risk_Factors!$O$23:$T$25,MATCH('1_Risk_Calc'!J100,Dust_composition,0),MATCH($E100,Risk_Factors!$O$8:$T$8,0))) ->  | V100: =IF(K100=0,"",INDEX(Risk_Factors!$O$26:$T$28,MATCH('1_Risk_Calc'!K100,Dust_size,0),MATCH($E100,Risk_Factors!$O$8:$T$8,0))) ->  | W100: =IF(L100=0,"",INDEX(Risk_Factors!$O$29:$T$30,MATCH('1_Risk_Calc'!L100,Risk_Factors!$E$29:$E$30,0),MATCH($E100,Risk_Factors!$O$8:$T$8,0))) ->  | X100: =IF(M100=0,"",INDEX(Risk_Factors!$O$32:$T$33,MATCH('1_Risk_Calc'!M100,Risk_Factors!$E$32:$E$33,0),MATCH($E100,Risk_Factors!$O$8:$T$8,0))) ->  | Y100: =IF(N100=0,"",INDEX(Risk_Factors!$O$35:$T$36,MATCH('1_Risk_Calc'!N100,Risk_Factors!$E$35:$E$36,0),MATCH($E100,Risk_Factors!$O$8:$T$8,0))) ->  | Z100: =IF(O100=0,"",INDEX(Risk_Factors!$O$38:$T$39,MATCH('1_Risk_Calc'!O100,Risk_Factors!$E$38:$E$39,0),MATCH($E100,Risk_Factors!$O$8:$T$8,0))) ->  | AA100: =IF(P100=0,"",INDEX(Risk_Factors!$O$41:$T$42,MATCH('1_Risk_Calc'!P100,Risk_Factors!$E$41:$E$42,0),MATCH($E100,Risk_Factors!$O$8:$T$8,0))) ->  | AB100: 0 | AC100: 0 | AG100: S_091 | AH100: 0
B101: S_092 | Q101: =IF(F101=0,"",INDEX(Risk_Factors!$O$12:$T$14,MATCH(F101,Frequency,0),MATCH($E101,Risk_Factors!$O$8:$T$8,0))) ->  | R101: =IF(G101=0,"",INDEX(Risk_Factors!$O$15:$T$17,MATCH('1_Risk_Calc'!G101,Position,0),MATCH($E101,Risk_Factors!$O$8:$T$8,0))) ->  | S101: =IF(H101=0,"",INDEX(Risk_Factors!$O$18:$T$19,MATCH('1_Risk_Calc'!H101,Yes_No,0),MATCH($E101,Risk_Factors!$O$8:$T$8,0))) ->  | T101: =IF(I101=0,"",INDEX(Risk_Factors!$O$20:$T$22,MATCH('1_Risk_Calc'!I101,Dust_amount,0),MATCH($E101,Risk_Factors!$O$8:$T$8,0))) ->  | U101: =IF(J101=0,"",INDEX(Risk_Factors!$O$23:$T$25,MATCH('1_Risk_Calc'!J101,Dust_composition,0),MATCH($E101,Risk_Factors!$O$8:$T$8,0))) ->  | V101: =IF(K101=0,"",INDEX(Risk_Factors!$O$26:$T$28,MATCH('1_Risk_Calc'!K101,Dust_size,0),MATCH($E101,Risk_Factors!$O$8:$T$8,0))) ->  | W101: =IF(L101=0,"",INDEX(Risk_Factors!$O$29:$T$30,MATCH('1_Risk_Calc'!L101,Risk_Factors!$E$29:$E$30,0),MATCH($E101,Risk_Factors!$O$8:$T$8,0))) ->  | X101: =IF(M101=0,"",INDEX(Risk_Factors!$O$32:$T$33,MATCH('1_Risk_Calc'!M101,Risk_Factors!$E$32:$E$33,0),MATCH($E101,Risk_Factors!$O$8:$T$8,0))) ->  | Y101: =IF(N101=0,"",INDEX(Risk_Factors!$O$35:$T$36,MATCH('1_Risk_Calc'!N101,Risk_Factors!$E$35:$E$36,0),MATCH($E101,Risk_Factors!$O$8:$T$8,0))) ->  | Z101: =IF(O101=0,"",INDEX(Risk_Factors!$O$38:$T$39,MATCH('1_Risk_Calc'!O101,Risk_Factors!$E$38:$E$39,0),MATCH($E101,Risk_Factors!$O$8:$T$8,0))) ->  | AA101: =IF(P101=0,"",INDEX(Risk_Factors!$O$41:$T$42,MATCH('1_Risk_Calc'!P101,Risk_Factors!$E$41:$E$42,0),MATCH($E101,Risk_Factors!$O$8:$T$8,0))) ->  | AB101: 0 | AC101: 0 | AG101: S_092 | AH101: 0
B102: S_093 | Q102: =IF(F102=0,"",INDEX(Risk_Factors!$O$12:$T$14,MATCH(F102,Frequency,0),MATCH($E102,Risk_Factors!$O$8:$T$8,0))) ->  | R102: =IF(G102=0,"",INDEX(Risk_Factors!$O$15:$T$17,MATCH('1_Risk_Calc'!G102,Position,0),MATCH($E102,Risk_Factors!$O$8:$T$8,0))) ->  | S102: =IF(H102=0,"",INDEX(Risk_Factors!$O$18:$T$19,MATCH('1_Risk_Calc'!H102,Yes_No,0),MATCH($E102,Risk_Factors!$O$8:$T$8,0))) ->  | T102: =IF(I102=0,"",INDEX(Risk_Factors!$O$20:$T$22,MATCH('1_Risk_Calc'!I102,Dust_amount,0),MATCH($E102,Risk_Factors!$O$8:$T$8,0))) ->  | U102: =IF(J102=0,"",INDEX(Risk_Factors!$O$23:$T$25,MATCH('1_Risk_Calc'!J102,Dust_composition,0),MATCH($E102,Risk_Factors!$O$8:$T$8,0))) ->  | V102: =IF(K102=0,"",INDEX(Risk_Factors!$O$26:$T$28,MATCH('1_Risk_Calc'!K102,Dust_size,0),MATCH($E102,Risk_Factors!$O$8:$T$8,0))) ->  | W102: =IF(L102=0,"",INDEX(Risk_Factors!$O$29:$T$30,MATCH('1_Risk_Calc'!L102,Risk_Factors!$E$29:$E$30,0),MATCH($E102,Risk_Factors!$O$8:$T$8,0))) ->  | X102: =IF(M102=0,"",INDEX(Risk_Factors!$O$32:$T$33,MATCH('1_Risk_Calc'!M102,Risk_Factors!$E$32:$E$33,0),MATCH($E102,Risk_Factors!$O$8:$T$8,0))) ->  | Y102: =IF(N102=0,"",INDEX(Risk_Factors!$O$35:$T$36,MATCH('1_Risk_Calc'!N102,Risk_Factors!$E$35:$E$36,0),MATCH($E102,Risk_Factors!$O$8:$T$8,0))) ->  | Z102: =IF(O102=0,"",INDEX(Risk_Factors!$O$38:$T$39,MATCH('1_Risk_Calc'!O102,Risk_Factors!$E$38:$E$39,0),MATCH($E102,Risk_Factors!$O$8:$T$8,0))) ->  | AA102: =IF(P102=0,"",INDEX(Risk_Factors!$O$41:$T$42,MATCH('1_Risk_Calc'!P102,Risk_Factors!$E$41:$E$42,0),MATCH($E102,Risk_Factors!$O$8:$T$8,0))) ->  | AB102: 0 | AC102: 0 | AG102: S_093 | AH102: 0
B103: S_094 | Q103: =IF(F103=0,"",INDEX(Risk_Factors!$O$12:$T$14,MATCH(F103,Frequency,0),MATCH($E103,Risk_Factors!$O$8:$T$8,0))) ->  | R103: =IF(G103=0,"",INDEX(Risk_Factors!$O$15:$T$17,MATCH('1_Risk_Calc'!G103,Position,0),MATCH($E103,Risk_Factors!$O$8:$T$8,0))) ->  | S103: =IF(H103=0,"",INDEX(Risk_Factors!$O$18:$T$19,MATCH('1_Risk_Calc'!H103,Yes_No,0),MATCH($E103,Risk_Factors!$O$8:$T$8,0))) ->  | T103: =IF(I103=0,"",INDEX(Risk_Factors!$O$20:$T$22,MATCH('1_Risk_Calc'!I103,Dust_amount,0),MATCH($E103,Risk_Factors!$O$8:$T$8,0))) ->  | U103: =IF(J103=0,"",INDEX(Risk_Factors!$O$23:$T$25,MATCH('1_Risk_Calc'!J103,Dust_composition,0),MATCH($E103,Risk_Factors!$O$8:$T$8,0))) ->  | V103: =IF(K103=0,"",INDEX(Risk_Factors!$O$26:$T$28,MATCH('1_Risk_Calc'!K103,Dust_size,0),MATCH($E103,Risk_Factors!$O$8:$T$8,0))) ->  | W103: =IF(L103=0,"",INDEX(Risk_Factors!$O$29:$T$30,MATCH('1_Risk_Calc'!L103,Risk_Factors!$E$29:$E$30,0),MATCH($E103,Risk_Factors!$O$8:$T$8,0))) ->  | X103: =IF(M103=0,"",INDEX(Risk_Factors!$O$32:$T$33,MATCH('1_Risk_Calc'!M103,Risk_Factors!$E$32:$E$33,0),MATCH($E103,Risk_Factors!$O$8:$T$8,0))) ->  | Y103: =IF(N103=0,"",INDEX(Risk_Factors!$O$35:$T$36,MATCH('1_Risk_Calc'!N103,Risk_Factors!$E$35:$E$36,0),MATCH($E103,Risk_Factors!$O$8:$T$8,0))) ->  | Z103: =IF(O103=0,"",INDEX(Risk_Factors!$O$38:$T$39,MATCH('1_Risk_Calc'!O103,Risk_Factors!$E$38:$E$39,0),MATCH($E103,Risk_Factors!$O$8:$T$8,0))) ->  | AA103: =IF(P103=0,"",INDEX(Risk_Factors!$O$41:$T$42,MATCH('1_Risk_Calc'!P103,Risk_Factors!$E$41:$E$42,0),MATCH($E103,Risk_Factors!$O$8:$T$8,0))) ->  | AB103: 0 | AC103: 0 | AG103: S_094 | AH103: 0
B104: S_095 | Q104: =IF(F104=0,"",INDEX(Risk_Factors!$O$12:$T$14,MATCH(F104,Frequency,0),MATCH($E104,Risk_Factors!$O$8:$T$8,0))) ->  | R104: =IF(G104=0,"",INDEX(Risk_Factors!$O$15:$T$17,MATCH('1_Risk_Calc'!G104,Position,0),MATCH($E104,Risk_Factors!$O$8:$T$8,0))) ->  | S104: =IF(H104=0,"",INDEX(Risk_Factors!$O$18:$T$19,MATCH('1_Risk_Calc'!H104,Yes_No,0),MATCH($E104,Risk_Factors!$O$8:$T$8,0))) ->  | T104: =IF(I104=0,"",INDEX(Risk_Factors!$O$20:$T$22,MATCH('1_Risk_Calc'!I104,Dust_amount,0),MATCH($E104,Risk_Factors!$O$8:$T$8,0))) ->  | U104: =IF(J104=0,"",INDEX(Risk_Factors!$O$23:$T$25,MATCH('1_Risk_Calc'!J104,Dust_composition,0),MATCH($E104,Risk_Factors!$O$8:$T$8,0))) ->  | V104: =IF(K104=0,"",INDEX(Risk_Factors!$O$26:$T$28,MATCH('1_Risk_Calc'!K104,Dust_size,0),MATCH($E104,Risk_Factors!$O$8:$T$8,0))) ->  | W104: =IF(L104=0,"",INDEX(Risk_Factors!$O$29:$T$30,MATCH('1_Risk_Calc'!L104,Risk_Factors!$E$29:$E$30,0),MATCH($E104,Risk_Factors!$O$8:$T$8,0))) ->  | X104: =IF(M104=0,"",INDEX(Risk_Factors!$O$32:$T$33,MATCH('1_Risk_Calc'!M104,Risk_Factors!$E$32:$E$33,0),MATCH($E104,Risk_Factors!$O$8:$T$8,0))) ->  | Y104: =IF(N104=0,"",INDEX(Risk_Factors!$O$35:$T$36,MATCH('1_Risk_Calc'!N104,Risk_Factors!$E$35:$E$36,0),MATCH($E104,Risk_Factors!$O$8:$T$8,0))) ->  | Z104: =IF(O104=0,"",INDEX(Risk_Factors!$O$38:$T$39,MATCH('1_Risk_Calc'!O104,Risk_Factors!$E$38:$E$39,0),MATCH($E104,Risk_Factors!$O$8:$T$8,0))) ->  | AA104: =IF(P104=0,"",INDEX(Risk_Factors!$O$41:$T$42,MATCH('1_Risk_Calc'!P104,Risk_Factors!$E$41:$E$42,0),MATCH($E104,Risk_Factors!$O$8:$T$8,0))) ->  | AB104: 0 | AC104: 0 | AG104: S_095 | AH104: 0
B105: S_096 | Q105: =IF(F105=0,"",INDEX(Risk_Factors!$O$12:$T$14,MATCH(F105,Frequency,0),MATCH($E105,Risk_Factors!$O$8:$T$8,0))) ->  | R105: =IF(G105=0,"",INDEX(Risk_Factors!$O$15:$T$17,MATCH('1_Risk_Calc'!G105,Position,0),MATCH($E105,Risk_Factors!$O$8:$T$8,0))) ->  | S105: =IF(H105=0,"",INDEX(Risk_Factors!$O$18:$T$19,MATCH('1_Risk_Calc'!H105,Yes_No,0),MATCH($E105,Risk_Factors!$O$8:$T$8,0))) ->  | T105: =IF(I105=0,"",INDEX(Risk_Factors!$O$20:$T$22,MATCH('1_Risk_Calc'!I105,Dust_amount,0),MATCH($E105,Risk_Factors!$O$8:$T$8,0))) ->  | U105: =IF(J105=0,"",INDEX(Risk_Factors!$O$23:$T$25,MATCH('1_Risk_Calc'!J105,Dust_composition,0),MATCH($E105,Risk_Factors!$O$8:$T$8,0))) ->  | V105: =IF(K105=0,"",INDEX(Risk_Factors!$O$26:$T$28,MATCH('1_Risk_Calc'!K105,Dust_size,0),MATCH($E105,Risk_Factors!$O$8:$T$8,0))) ->  | W105: =IF(L105=0,"",INDEX(Risk_Factors!$O$29:$T$30,MATCH('1_Risk_Calc'!L105,Risk_Factors!$E$29:$E$30,0),MATCH($E105,Risk_Factors!$O$8:$T$8,0))) ->  | X105: =IF(M105=0,"",INDEX(Risk_Factors!$O$32:$T$33,MATCH('1_Risk_Calc'!M105,Risk_Factors!$E$32:$E$33,0),MATCH($E105,Risk_Factors!$O$8:$T$8,0))) ->  | Y105: =IF(N105=0,"",INDEX(Risk_Factors!$O$35:$T$36,MATCH('1_Risk_Calc'!N105,Risk_Factors!$E$35:$E$36,0),MATCH($E105,Risk_Factors!$O$8:$T$8,0))) ->  | Z105: =IF(O105=0,"",INDEX(Risk_Factors!$O$38:$T$39,MATCH('1_Risk_Calc'!O105,Risk_Factors!$E$38:$E$39,0),MATCH($E105,Risk_Factors!$O$8:$T$8,0))) ->  | AA105: =IF(P105=0,"",INDEX(Risk_Factors!$O$41:$T$42,MATCH('1_Risk_Calc'!P105,Risk_Factors!$E$41:$E$42,0),MATCH($E105,Risk_Factors!$O$8:$T$8,0))) ->  | AB105: 0 | AC105: 0 | AG105: S_096 | AH105: 0
B106: S_097 | Q106: =IF(F106=0,"",INDEX(Risk_Factors!$O$12:$T$14,MATCH(F106,Frequency,0),MATCH($E106,Risk_Factors!$O$8:$T$8,0))) ->  | R106: =IF(G106=0,"",INDEX(Risk_Factors!$O$15:$T$17,MATCH('1_Risk_Calc'!G106,Position,0),MATCH($E106,Risk_Factors!$O$8:$T$8,0))) ->  | S106: =IF(H106=0,"",INDEX(Risk_Factors!$O$18:$T$19,MATCH('1_Risk_Calc'!H106,Yes_No,0),MATCH($E106,Risk_Factors!$O$8:$T$8,0))) ->  | T106: =IF(I106=0,"",INDEX(Risk_Factors!$O$20:$T$22,MATCH('1_Risk_Calc'!I106,Dust_amount,0),MATCH($E106,Risk_Factors!$O$8:$T$8,0))) ->  | U106: =IF(J106=0,"",INDEX(Risk_Factors!$O$23:$T$25,MATCH('1_Risk_Calc'!J106,Dust_composition,0),MATCH($E106,Risk_Factors!$O$8:$T$8,0))) ->  | V106: =IF(K106=0,"",INDEX(Risk_Factors!$O$26:$T$28,MATCH('1_Risk_Calc'!K106,Dust_size,0),MATCH($E106,Risk_Factors!$O$8:$T$8,0))) ->  | W106: =IF(L106=0,"",INDEX(Risk_Factors!$O$29:$T$30,MATCH('1_Risk_Calc'!L106,Risk_Factors!$E$29:$E$30,0),MATCH($E106,Risk_Factors!$O$8:$T$8,0))) ->  | X106: =IF(M106=0,"",INDEX(Risk_Factors!$O$32:$T$33,MATCH('1_Risk_Calc'!M106,Risk_Factors!$E$32:$E$33,0),MATCH($E106,Risk_Factors!$O$8:$T$8,0))) ->  | Y106: =IF(N106=0,"",INDEX(Risk_Factors!$O$35:$T$36,MATCH('1_Risk_Calc'!N106,Risk_Factors!$E$35:$E$36,0),MATCH($E106,Risk_Factors!$O$8:$T$8,0))) ->  | Z106: =IF(O106=0,"",INDEX(Risk_Factors!$O$38:$T$39,MATCH('1_Risk_Calc'!O106,Risk_Factors!$E$38:$E$39,0),MATCH($E106,Risk_Factors!$O$8:$T$8,0))) ->  | AA106: =IF(P106=0,"",INDEX(Risk_Factors!$O$41:$T$42,MATCH('1_Risk_Calc'!P106,Risk_Factors!$E$41:$E$42,0),MATCH($E106,Risk_Factors!$O$8:$T$8,0))) ->  | AB106: 0 | AC106: =(AB106/MAX($AB$10:$AB$109))*$AC$5 -> 0 | AG106: S_097 | AH106: 0
B107: S_098 | Q107: =IF(F107=0,"",INDEX(Risk_Factors!$O$12:$T$14,MATCH(F107,Frequency,0),MATCH($E107,Risk_Factors!$O$8:$T$8,0))) ->  | R107: =IF(G107=0,"",INDEX(Risk_Factors!$O$15:$T$17,MATCH('1_Risk_Calc'!G107,Position,0),MATCH($E107,Risk_Factors!$O$8:$T$8,0))) ->  | S107: =IF(H107=0,"",INDEX(Risk_Factors!$O$18:$T$19,MATCH('1_Risk_Calc'!H107,Yes_No,0),MATCH($E107,Risk_Factors!$O$8:$T$8,0))) ->  | T107: =IF(I107=0,"",INDEX(Risk_Factors!$O$20:$T$22,MATCH('1_Risk_Calc'!I107,Dust_amount,0),MATCH($E107,Risk_Factors!$O$8:$T$8,0))) ->  | U107: =IF(J107=0,"",INDEX(Risk_Factors!$O$23:$T$25,MATCH('1_Risk_Calc'!J107,Dust_composition,0),MATCH($E107,Risk_Factors!$O$8:$T$8,0))) ->  | V107: =IF(K107=0,"",INDEX(Risk_Factors!$O$26:$T$28,MATCH('1_Risk_Calc'!K107,Dust_size,0),MATCH($E107,Risk_Factors!$O$8:$T$8,0))) ->  | W107: =IF(L107=0,"",INDEX(Risk_Factors!$O$29:$T$30,MATCH('1_Risk_Calc'!L107,Risk_Factors!$E$29:$E$30,0),MATCH($E107,Risk_Factors!$O$8:$T$8,0))) ->  | X107: =IF(M107=0,"",INDEX(Risk_Factors!$O$32:$T$33,MATCH('1_Risk_Calc'!M107,Risk_Factors!$E$32:$E$33,0),MATCH($E107,Risk_Factors!$O$8:$T$8,0))) ->  | Y107: =IF(N107=0,"",INDEX(Risk_Factors!$O$35:$T$36,MATCH('1_Risk_Calc'!N107,Risk_Factors!$E$35:$E$36,0),MATCH($E107,Risk_Factors!$O$8:$T$8,0))) ->  | Z107: =IF(O107=0,"",INDEX(Risk_Factors!$O$38:$T$39,MATCH('1_Risk_Calc'!O107,Risk_Factors!$E$38:$E$39,0),MATCH($E107,Risk_Factors!$O$8:$T$8,0))) ->  | AA107: =IF(P107=0,"",INDEX(Risk_Factors!$O$41:$T$42,MATCH('1_Risk_Calc'!P107,Risk_Factors!$E$41:$E$42,0),MATCH($E107,Risk_Factors!$O$8:$T$8,0))) ->  | AB107: 0 | AC107: 0 | AG107: S_098 | AH107: 0
B108: S_099 | Q108: =IF(F108=0,"",INDEX(Risk_Factors!$O$12:$T$14,MATCH(F108,Frequency,0),MATCH($E108,Risk_Factors!$O$8:$T$8,0))) ->  | R108: =IF(G108=0,"",INDEX(Risk_Factors!$O$15:$T$17,MATCH('1_Risk_Calc'!G108,Position,0),MATCH($E108,Risk_Factors!$O$8:$T$8,0))) ->  | S108: =IF(H108=0,"",INDEX(Risk_Factors!$O$18:$T$19,MATCH('1_Risk_Calc'!H108,Yes_No,0),MATCH($E108,Risk_Factors!$O$8:$T$8,0))) ->  | T108: =IF(I108=0,"",INDEX(Risk_Factors!$O$20:$T$22,MATCH('1_Risk_Calc'!I108,Dust_amount,0),MATCH($E108,Risk_Factors!$O$8:$T$8,0))) ->  | U108: =IF(J108=0,"",INDEX(Risk_Factors!$O$23:$T$25,MATCH('1_Risk_Calc'!J108,Dust_composition,0),MATCH($E108,Risk_Factors!$O$8:$T$8,0))) ->  | V108: =IF(K108=0,"",INDEX(Risk_Factors!$O$26:$T$28,MATCH('1_Risk_Calc'!K108,Dust_size,0),MATCH($E108,Risk_Factors!$O$8:$T$8,0))) ->  | W108: =IF(L108=0,"",INDEX(Risk_Factors!$O$29:$T$30,MATCH('1_Risk_Calc'!L108,Risk_Factors!$E$29:$E$30,0),MATCH($E108,Risk_Factors!$O$8:$T$8,0))) ->  | X108: =IF(M108=0,"",INDEX(Risk_Factors!$O$32:$T$33,MATCH('1_Risk_Calc'!M108,Risk_Factors!$E$32:$E$33,0),MATCH($E108,Risk_Factors!$O$8:$T$8,0))) ->  | Y108: =IF(N108=0,"",INDEX(Risk_Factors!$O$35:$T$36,MATCH('1_Risk_Calc'!N108,Risk_Factors!$E$35:$E$36,0),MATCH($E108,Risk_Factors!$O$8:$T$8,0))) ->  | Z108: =IF(O108=0,"",INDEX(Risk_Factors!$O$38:$T$39,MATCH('1_Risk_Calc'!O108,Risk_Factors!$E$38:$E$39,0),MATCH($E108,Risk_Factors!$O$8:$T$8,0))) ->  | AA108: =IF(P108=0,"",INDEX(Risk_Factors!$O$41:$T$42,MATCH('1_Risk_Calc'!P108,Risk_Factors!$E$41:$E$42,0),MATCH($E108,Risk_Factors!$O$8:$T$8,0))) ->  | AB108: 0 | AC108: 0 | AG108: S_099 | AH108: 0
B109: S_100 | Q109: =IF(F109=0,"",INDEX(Risk_Factors!$O$12:$T$14,MATCH(F109,Frequency,0),MATCH($E109,Risk_Factors!$O$8:$T$8,0))) ->  | R109: =IF(G109=0,"",INDEX(Risk_Factors!$O$15:$T$17,MATCH('1_Risk_Calc'!G109,Position,0),MATCH($E109,Risk_Factors!$O$8:$T$8,0))) ->  | S109: =IF(H109=0,"",INDEX(Risk_Factors!$O$18:$T$19,MATCH('1_Risk_Calc'!H109,Yes_No,0),MATCH($E109,Risk_Factors!$O$8:$T$8,0))) ->  | T109: =IF(I109=0,"",INDEX(Risk_Factors!$O$20:$T$22,MATCH('1_Risk_Calc'!I109,Dust_amount,0),MATCH($E109,Risk_Factors!$O$8:$T$8,0))) ->  | U109: =IF(J109=0,"",INDEX(Risk_Factors!$O$23:$T$25,MATCH('1_Risk_Calc'!J109,Dust_composition,0),MATCH($E109,Risk_Factors!$O$8:$T$8,0))) ->  | V109: =IF(K109=0,"",INDEX(Risk_Factors!$O$26:$T$28,MATCH('1_Risk_Calc'!K109,Dust_size,0),MATCH($E109,Risk_Factors!$O$8:$T$8,0))) ->  | W109: =IF(L109=0,"",INDEX(Risk_Factors!$O$29:$T$30,MATCH('1_Risk_Calc'!L109,Risk_Factors!$E$29:$E$30,0),MATCH($E109,Risk_Factors!$O$8:$T$8,0))) ->  | X109: =IF(M109=0,"",INDEX(Risk_Factors!$O$32:$T$33,MATCH('1_Risk_Calc'!M109,Risk_Factors!$E$32:$E$33,0),MATCH($E109,Risk_Factors!$O$8:$T$8,0))) ->  | Y109: =IF(N109=0,"",INDEX(Risk_Factors!$O$35:$T$36,MATCH('1_Risk_Calc'!N109,Risk_Factors!$E$35:$E$36,0),MATCH($E109,Risk_Factors!$O$8:$T$8,0))) ->  | Z109: =IF(O109=0,"",INDEX(Risk_Factors!$O$38:$T$39,MATCH('1_Risk_Calc'!O109,Risk_Factors!$E$38:$E$39,0),MATCH($E109,Risk_Factors!$O$8:$T$8,0))) ->  | AA109: =IF(P109=0,"",INDEX(Risk_Factors!$O$41:$T$42,MATCH('1_Risk_Calc'!P109,Risk_Factors!$E$41:$E$42,0),MATCH($E109,Risk_Factors!$O$8:$T$8,0))) ->  | AB109: 0 | AC109: 0 | AG109: S_100 | AH109: 0
A112: 2 - Sources Ranked According to Risk Score
Q113: Risk Score
B114: Source ID Number | C114: Description of the structure / equipment | D114: Location | E114: Category | F114: Total Normal. | Q114: A | R114: B | S114: C | T114: D | U114: E | V114: F | W114: G | X114: H | Y114: I | Z114: J | AA114: K | AB114: Total
A115: 1 | B115: =IF(AB115=0,"",INDEX(B$1:B$109,$I115)) -> S_001 | C115: =IF(AB115=0,"",INDEX(C$1:C$109,$I115)) -> WCS - Worst Case Scenario | D115: =IF(AB115=0,"",INDEX(D$1:D$109,$I115)) -> — | E115: =IF(AB115=0,"",INDEX(E$1:E$109,$I115)) -> Process | F115: =(AB115/MAX($AB$115:$AB$214))*$AC$5 -> 100 | G115: =IF(SUM(Q115:AA115)=AB115,"ok","check") -> ok | H115: =MATCH(AB115,$AB$1:$AB$109,0) -> 10 | I115: =IF(H115=G114,MATCH(AB115,INDIRECT("AB"&(AE114+1)&":AB105"),0)+AE114,H115) -> 10 | Q115: =INDEX(Q$1:Q$109,$I115) -> 0.1317536034 | R115: 0.05606808025 | S115: 0.07220694375 | T115: 0.03827042651 | U115: 0.027475 | V115: 0.04702152483 | W115: 0.03 | X115: 0.03003958125 | Y115: 0.03003958125 | Z115: 0.03003958125 | AA115: 0.03003958125 | AB115: =LARGE($AB$10:$AB$109,A115) -> 0.5229539037
A116: =A115+1 -> 2 | F116: 0 | G116: ok | H116: 11 | I116: =IF(H116=G115,MATCH(AB116,INDIRECT("AB"&(H115+1)&":AB105"),0)+H115,H116) -> 11 | AB116: 0
A117: =A116+1 -> 3 | F117: 0 | G117: ok | H117: 11 | I117: 11 | AB117: 0
A118: 4 | F118: 0 | G118: ok | H118: 11 | I118: 11 | AB118: 0
A119: 5 | F119: 0 | G119: ok | H119: 11 | I119: 11 | AB119: 0
A120: 6 | F120: 0 | G120: ok | H120: 11 | I120: 11 | AB120: 0
A121: 7 | F121: 0 | G121: ok | H121: 11 | I121: 11 | AB121: 0
A122: 8 | F122: 0 | G122: ok | H122: 11 | I122: 11 | AB122: 0
A123: 9 | F123: 0 | G123: ok | H123: 11 | I123: 11 | AB123: 0
A124: 10 | F124: 0 | G124: ok | H124: 11 | I124: 11 | AB124: 0
A125: 11 | F125: 0 | G125: ok | H125: 11 | I125: 11 | Q125: =INDEX(Q$1:Q$109,$I125) ->  | AB125: 0
A126: 12 | F126: 0 | G126: ok | H126: 11 | I126: 11 | AB126: 0
A127: 13 | F127: 0 | G127: ok | H127: 11 | I127: 11 | AB127: 0
A128: 14 | F128: 0 | G128: ok | H128: 11 | I128: 11 | AB128: 0
A129: 15 | F129: 0 | G129: ok | H129: 11 | I129: 11 | AB129: 0
A130: 16 | F130: 0 | G130: ok | H130: 11 | I130: 11 | AB130: 0
A131: 17 | F131: 0 | G131: ok | H131: 11 | I131: 11 | AB131: 0
A132: 18 | F132: 0 | G132: ok | H132: 11 | I132: 11 | AB132: 0
A133: 19 | F133: 0 | G133: ok | H133: 11 | I133: 11 | AB133: 0
A134: 20 | F134: 0 | G134: ok | H134: 11 | I134: 11 | AB134: 0
A135: 21 | F135: 0 | G135: ok | H135: 11 | I135: 11 | Q135: =INDEX(Q$1:Q$109,$I135) ->  | AB135: 0
A136: 22 | F136: 0 | G136: ok | H136: 11 | I136: 11 | AB136: 0
A137: 23 | F137: 0 | G137: ok | H137: 11 | I137: 11 | AB137: 0
A138: 24 | F138: 0 | G138: ok | H138: 11 | I138: 11 | AB138: 0
A139: 25 | F139: 0 | G139: ok | H139: 11 | I139: 11 | AB139: 0
A140: 26 | F140: 0 | G140: ok | H140: 11 | I140: 11 | AB140: 0
A141: 27 | F141: 0 | G141: ok | H141: 11 | I141: 11 | AB141: 0
A142: 28 | F142: 0 | G142: ok | H142: 11 | I142: 11 | AB142: 0
A143: 29 | F143: 0 | G143: ok | H143: 11 | I143: 11 | AB143: 0
A144: 30 | F144: 0 | G144: ok | H144: 11 | I144: 11 | AB144: 0
A145: 31 | F145: 0 | G145: ok | H145: 11 | I145: 11 | Q145: =INDEX(Q$1:Q$109,$I145) ->  | AB145: 0
A146: 32 | F146: 0 | G146: ok | H146: 11 | I146: 11 | AB146: 0
A147: 33 | B147: =IF(AB147=0,"",INDEX(B$1:B$109,$I147)) ->  | C147: =IF(AB147=0,"",INDEX(C$1:C$109,$I147)) ->  | D147: =IF(AB147=0,"",INDEX(D$1:D$109,$I147)) ->  | E147: =IF(AB147=0,"",INDEX(E$1:E$109,$I147)) ->  | F147: =(AB147/MAX($AB$115:$AB$214))*$AC$5 -> 0 | G147: =IF(SUM(Q147:AA147)=AB147,"ok","check") -> ok | H147: =MATCH(AB147,$AB$1:$AB$109,0) -> 11 | I147: 11 | AB147: =LARGE($AB$10:$AB$109,A147) -> 0
A148: 34 | F148: 0 | G148: ok | H148: 11 | I148: =IF(H148=G147,MATCH(AB148,INDIRECT("AB"&(H147+1)&":AB105"),0)+H147,H148) -> 11 | AB148: 0
A149: 35 | F149: 0 | G149: ok | H149: 11 | I149: 11 | AB149: 0
A150: 36 | F150: 0 | G150: ok | H150: 11 | I150: 11 | AB150: 0
A151: 37 | F151: 0 | G151: ok | H151: 11 | I151: 11 | AB151: 0
A152: 38 | F152: 0 | G152: ok | H152: 11 | I152: 11 | AB152: 0
A153: 39 | F153: 0 | G153: ok | H153: 11 | I153: 11 | AB153: 0
A154: 40 | F154: 0 | G154: ok | H154: 11 | I154: 11 | AB154: 0
A155: 41 | F155: 0 | G155: ok | H155: 11 | I155: 11 | Q155: =INDEX(Q$1:Q$109,$I155) ->  | AB155: 0
A156: 42 | F156: 0 | G156: ok | H156: 11 | I156: 11 | AB156: 0
A157: 43 | F157: 0 | G157: ok | H157: 11 | I157: 11 | AB157: 0
A158: 44 | F158: 0 | G158: ok | H158: 11 | I158: 11 | AB158: 0
A159: 45 | F159: 0 | G159: ok | H159: 11 | I159: 11 | AB159: 0
A160: 46 | F160: 0 | G160: ok | H160: 11 | I160: 11 | AB160: 0
A161: 47 | F161: 0 | G161: ok | H161: 11 | I161: 11 | AB161: 0
A162: 48 | F162: 0 | G162: ok | H162: 11 | I162: 11 | AB162: 0
A163: 49 | F163: 0 | G163: ok | H163: 11 | I163: 11 | AB163: 0
A164: 50 | F164: 0 | G164: ok | H164: 11 | I164: 11 | AB164: =LARGE($AB$10:$AB$109,A164) -> 0
A165: 51 | F165: 0 | G165: ok | H165: 11 | I165: 11 | Q165: =INDEX(Q$1:Q$109,$I165) ->  | AB165: 0
A166: 52 | F166: 0 | G166: ok | H166: 11 | I166: 11 | AB166: 0
A167: 53 | F167: 0 | G167: ok | H167: 11 | I167: 11 | AB167: 0
A168: 54 | F168: 0 | G168: ok | H168: 11 | I168: 11 | AB168: 0
A169: 55 | F169: 0 | G169: ok | H169: 11 | I169: 11 | AB169: 0
A170: 56 | F170: 0 | G170: ok | H170: 11 | I170: 11 | AB170: 0
A171: 57 | F171: 0 | G171: ok | H171: 11 | I171: 11 | AB171: 0
A172: 58 | F172: 0 | G172: ok | H172: 11 | I172: 11 | AB172: 0
A173: 59 | F173: 0 | G173: ok | H173: 11 | I173: 11 | AB173: 0
A174: 60 | F174: 0 | G174: ok | H174: 11 | I174: 11 | AB174: 0
A175: 61 | F175: 0 | G175: ok | H175: 11 | I175: 11 | Q175: =INDEX(Q$1:Q$109,$I175) ->  | AB175: 0
A176: 62 | F176: 0 | G176: ok | H176: 11 | I176: 11 | AB176: 0
A177: 63 | F177: 0 | G177: ok | H177: 11 | I177: 11 | AB177: 0
A178: 64 | F178: 0 | G178: ok | H178: 11 | I178: 11 | AB178: 0
A179: 65 | B179: =IF(AB179=0,"",INDEX(B$1:B$109,$I179)) ->  | C179: =IF(AB179=0,"",INDEX(C$1:C$109,$I179)) ->  | D179: =IF(AB179=0,"",INDEX(D$1:D$109,$I179)) ->  | E179: =IF(AB179=0,"",INDEX(E$1:E$109,$I179)) ->  | F179: =(AB179/MAX($AB$115:$AB$214))*$AC$5 -> 0 | G179: =IF(SUM(Q179:AA179)=AB179,"ok","check") -> ok | H179: =MATCH(AB179,$AB$1:$AB$109,0) -> 11 | I179: 11 | AB179: 0
A180: 66 | F180: 0 | G180: ok | H180: 11 | I180: =IF(H180=G179,MATCH(AB180,INDIRECT("AB"&(H179+1)&":AB105"),0)+H179,H180) -> 11 | AB180: 0
A181: =A180+1 -> 67 | F181: 0 | G181: ok | H181: 11 | I181: 11 | AB181: 0
A182: 68 | F182: 0 | G182: ok | H182: 11 | I182: 11 | AB182: 0
A183: 69 | F183: 0 | G183: ok | H183: 11 | I183: 11 | AB183: 0
A184: 70 | F184: 0 | G184: ok | H184: 11 | I184: 11 | AB184: 0
A185: 71 | F185: 0 | G185: ok | H185: 11 | I185: 11 | Q185: =INDEX(Q$1:Q$109,$I185) ->  | AB185: 0
A186: 72 | F186: 0 | G186: ok | H186: 11 | I186: 11 | AB186: 0
A187: 73 | F187: 0 | G187: ok | H187: 11 | I187: 11 | AB187: 0
A188: 74 | F188: 0 | G188: ok | H188: 11 | I188: 11 | AB188: 0
A189: 75 | F189: 0 | G189: ok | H189: 11 | I189: 11 | AB189: 0
A190: 76 | F190: 0 | G190: ok | H190: 11 | I190: 11 | AB190: 0
A191: 77 | F191: 0 | G191: ok | H191: 11 | I191: 11 | AB191: 0
A192: 78 | F192: 0 | G192: ok | H192: 11 | I192: 11 | AB192: 0
A193: 79 | F193: 0 | G193: ok | H193: 11 | I193: 11 | AB193: 0
A194: 80 | F194: 0 | G194: ok | H194: 11 | I194: 11 | AB194: 0
A195: 81 | F195: 0 | G195: ok | H195: 11 | I195: 11 | Q195: =INDEX(Q$1:Q$109,$I195) ->  | AB195: 0
A196: 82 | F196: 0 | G196: ok | H196: 11 | I196: 11 | AB196: 0
A197: 83 | F197: 0 | G197: ok | H197: 11 | I197: 11 | AB197: 0
A198: 84 | F198: 0 | G198: ok | H198: 11 | I198: 11 | AB198: 0
A199: 85 | F199: 0 | G199: ok | H199: 11 | I199: 11 | AB199: 0
A200: 86 | F200: 0 | G200: ok | H200: 11 | I200: 11 | AB200: 0
A201: 87 | F201: 0 | G201: ok | H201: 11 | I201: 11 | AB201: 0
A202: 88 | F202: 0 | G202: ok | H202: 11 | I202: 11 | AB202: 0
A203: 89 | F203: 0 | G203: ok | H203: 11 | I203: 11 | AB203: 0
... 11 more rows

Sheet 2_Alternatives
B1: Fugitive Dust Risk Management Tool | F1: Source | G1: Path | H1: Path | I1: Source | J1: Receptor | K1: Path / Receptor | L1: Path | M1: Source | N1: Source | O1: Source | P1: Source | AK1: 0 | AL1: =AC9 -> 50 | AM1: =AC8 -> 75
AK2: 100 | AL2: =AC9 -> 50 | AM2: =AC8 -> 75
A3: ="Step 2 - "&DashBoard!E9 -> Step 2 - Assessment of alternatives for fugitive dust control
C5: Cells to be populated
C6: Drop-down menu
C7: Automatically | AC7: ='1_Risk_Calc'!AC5 -> 100 | AD7: Max:
AC8: ='1_Risk_Calc'!AC6 -> 75 | AD8: Red: >
B9: Source ID Number | C9: Description of the structure / equipment | D9: Location | E9: Category | F9: Risk Factors | AC9: ='1_Risk_Calc'!AC7 -> 50 | AD9: Yellow: > | BC9: Risk Reduction Target | BD9: 200 | BE9: =IF(MIN($AA$5:$AA$18)<0,ROUNDUP(MIN($AA$5:$AA$18),1)*1.1,0) -> 0
F10: A | G10: B | H10: C | I10: D | J10: E | K10: F | L10: G | M10: H | N10: I | O10: J | P10: K | Q10: Risk Score | AD10: Reduction | AF10: Cost Benefit ($/ risk reduction) | BD10: 200 | BE10: =SUM(AZ12)*2 -> 0
B11: Alternatives | C11: Description of the Alternatives | E11: Costs | F11: Frequency of process / activity that generates fugitive dust: | G11: Position of the source related to sensitive areas (e.g.: communities, working areas): | H11: Predominant wind direction is from the source to the closest sensitive area? | I11: Relative amount of visible dust generated in the process / activity: | J11: Dust composition | K11: Dust size range (higher mass percentage) | L11: Is there some wind barrier (e.g.: trees, buldings, landscape) which can prevent the emissions from this source to reach the closest sensitive area? | M11: Is there some measure applied on regular basis to prevent dust emission from this source? | N11: Is there some measure applied to this source to reduce dust emission once it occur (reactive)? | O11: Is there some monitoring procedure applied to this source related to fugitive dust control? | P11: Monitoring data / information trigger some control measure? | Q11: A | R11: B | S11: C | T11: D | U11: E | V11: F | W11: G | X11: H | Y11: I | Z11: J | AA11: K | AB11: Total | AC11: Total Normal. | AD11: Absolute | AE11: Total | AP11: Alternatives | AQ11: Risk Reduction | AR11: Average Annual GHG Reductions | AS11: Cost per ton reduced | AT11: Cost Ranking | AV11: Alternatives | AX11: =AQ11 -> Risk Reduction | AY11: =AR11 -> Average Annual GHG Reductions | AZ11: =AS11 -> Cost per ton reduced | BA11: Cumulative Reduction - Annual | BC11: Alternatives | BD11: =BA11 -> Cumulative Reduction - Annual | BE11: Limit Cost | BF11: =IFERROR(OFFSET($AV$12,COLUMN(BF11)-COLUMN($BF11),0),"") ->  | BG11: =IFERROR(OFFSET($AV$12,COLUMN(BG11)-COLUMN($BF11),0),"") -> 
C12: =IF($B12=0,"",INDEX('1_Risk_Calc'!C$10:C$109,MATCH('2_Alternatives'!$B12,'1_Risk_Calc'!$B$10:$B$109,0))) ->  | D12: =IF($B12=0,"",INDEX('1_Risk_Calc'!D$10:D$109,MATCH('2_Alternatives'!$B12,'1_Risk_Calc'!$B$10:$B$109,0))) ->  | E12: =IF($B12=0,"",INDEX('1_Risk_Calc'!E$10:E$109,MATCH('2_Alternatives'!$B12,'1_Risk_Calc'!$B$10:$B$109,0))) ->  | F12: =IF($B12=0,"",INDEX('1_Risk_Calc'!F$10:F$109,MATCH('2_Alternatives'!$B12,'1_Risk_Calc'!$B$10:$B$109,0))) ->  | G12: =IF($B12=0,"",INDEX('1_Risk_Calc'!G$10:G$109,MATCH('2_Alternatives'!$B12,'1_Risk_Calc'!$B$10:$B$109,0))) ->  | H12: =IF($B12=0,"",INDEX('1_Risk_Calc'!H$10:H$109,MATCH('2_Alternatives'!$B12,'1_Risk_Calc'!$B$10:$B$109,0))) ->  | I12: =IF($B12=0,"",INDEX('1_Risk_Calc'!I$10:I$109,MATCH('2_Alternatives'!$B12,'1_Risk_Calc'!$B$10:$B$109,0))) ->  | J12: =IF($B12=0,"",INDEX('1_Risk_Calc'!J$10:J$109,MATCH('2_Alternatives'!$B12,'1_Risk_Calc'!$B$10:$B$109,0))) ->  | K12: =IF($B12=0,"",INDEX('1_Risk_Calc'!K$10:K$109,MATCH('2_Alternatives'!$B12,'1_Risk_Calc'!$B$10:$B$109,0))) ->  | L12: =IF($B12=0,"",INDEX('1_Risk_Calc'!L$10:L$109,MATCH('2_Alternatives'!$B12,'1_Risk_Calc'!$B$10:$B$109,0))) ->  | M12: =IF($B12=0,"",INDEX('1_Risk_Calc'!M$10:M$109,MATCH('2_Alternatives'!$B12,'1_Risk_Calc'!$B$10:$B$109,0))) ->  | N12: =IF($B12=0,"",INDEX('1_Risk_Calc'!N$10:N$109,MATCH('2_Alternatives'!$B12,'1_Risk_Calc'!$B$10:$B$109,0))) ->  | O12: =IF($B12=0,"",INDEX('1_Risk_Calc'!O$10:O$109,MATCH('2_Alternatives'!$B12,'1_Risk_Calc'!$B$10:$B$109,0))) ->  | P12: =IF($B12=0,"",INDEX('1_Risk_Calc'!P$10:P$109,MATCH('2_Alternatives'!$B12,'1_Risk_Calc'!$B$10:$B$109,0))) ->  | Q12: =IF($B12=0,"",INDEX('1_Risk_Calc'!Q$10:Q$109,MATCH('2_Alternatives'!$B12,'1_Risk_Calc'!$B$10:$B$109,0))) ->  | R12: =IF($B12=0,"",INDEX('1_Risk_Calc'!R$10:R$109,MATCH('2_Alternatives'!$B12,'1_Risk_Calc'!$B$10:$B$109,0))) ->  | S12: =IF($B12=0,"",INDEX('1_Risk_Calc'!S$10:S$109,MATCH('2_Alternatives'!$B12,'1_Risk_Calc'!$B$10:$B$109,0))) ->  | T12: =IF($B12=0,"",INDEX('1_Risk_Calc'!T$10:T$109,MATCH('2_Alternatives'!$B12,'1_Risk_Calc'!$B$10:$B$109,0))) ->  | U12: =IF($B12=0,"",INDEX('1_Risk_Calc'!U$10:U$109,MATCH('2_Alternatives'!$B12,'1_Risk_Calc'!$B$10:$B$109,0))) ->  | V12: =IF($B12=0,"",INDEX('1_Risk_Calc'!V$10:V$109,MATCH('2_Alternatives'!$B12,'1_Risk_Calc'!$B$10:$B$109,0))) ->  | W12: =IF($B12=0,"",INDEX('1_Risk_Calc'!W$10:W$109,MATCH('2_Alternatives'!$B12,'1_Risk_Calc'!$B$10:$B$109,0))) ->  | X12: =IF($B12=0,"",INDEX('1_Risk_Calc'!X$10:X$109,MATCH('2_Alternatives'!$B12,'1_Risk_Calc'!$B$10:$B$109,0))) ->  | Y12: =IF($B12=0,"",INDEX('1_Risk_Calc'!Y$10:Y$109,MATCH('2_Alternatives'!$B12,'1_Risk_Calc'!$B$10:$B$109,0))) ->  | Z12: =IF($B12=0,"",INDEX('1_Risk_Calc'!Z$10:Z$109,MATCH('2_Alternatives'!$B12,'1_Risk_Calc'!$B$10:$B$109,0))) ->  | AA12: =IF($B12=0,"",INDEX('1_Risk_Calc'!AA$10:AA$109,MATCH('2_Alternatives'!$B12,'1_Risk_Calc'!$B$10:$B$109,0))) ->  | AB12: =IF($B12=0,"",INDEX('1_Risk_Calc'!AB$10:AB$109,MATCH('2_Alternatives'!$B12,'1_Risk_Calc'!$B$10:$B$109,0))) ->  | AC12: =IF($B12=0,"",INDEX('1_Risk_Calc'!AC$10:AC$109,MATCH('2_Alternatives'!$B12,'1_Risk_Calc'!$B$10:$B$109,0))) ->  | AD12: — | AE12: — | AF12: — | AK12: =B12 -> 0 | AL12: =AC12 ->  | AO12: 1 | AP12: =B13 ->  | AQ12: =AD13 ->  | AR12: =AQ12 ->  | AS12: =IF(AND(ISTEXT(C13)=TRUE,ISNUMBER(E13)=FALSE),0,AF13) ->  | AT12: =IF(SUM($AC$13:$AC$20)=0,AO12,IF(COUNTIF(AS$11:AS11,AS12)>=1,RANK(AS12,AS$12:AS$25,1)+COUNTIF(AS$11:AS11,AS12),RANK(AS12,AS$12:AS$25,1))) -> 1 | AU12: 1 | AV12: =INDEX(AP$12:AP$25,MATCH(AU12,AT$12:AT$25,0)) ->  | AX12: =INDEX(AQ$12:AQ$25,MATCH(AU12,AT$12:AT$25,0)) ->  | AY12: =INDEX(AR$12:AR$25,MATCH(AU12,AT$12:AT$25,0)) ->  | AZ12: =IF(INDEX(AS$12:AS$25,MATCH(AU12,AT$12:AT$25,0))="",0,INDEX(AS$12:AS$25,MATCH(AU12,AT$12:AT$25,0))) -> 0 | BA12: =SUM(AY$12:AY12) -> 0 | BC12: =AV12 ->  | BD12: 0 | BE12: =SUM(AZ12)*2 -> 0 | BF12: =IF(COUNTIF($BC$12:$BC12,$BC12)=3,0,IF($BC12=BF$11,INDEX($AZ$12:$AZ$25,MATCH(BF$11,$AV$12:$AV$25,0)),0)) -> 0 | BG12: =IF(COUNTIF($BC$12:$BC12,$BC12)=3,0,IF($BC12=BG$11,INDEX($AZ$12:$AZ$25,MATCH(BG$11,$AV$12:$AV$25,0)),0)) -> 0 | BH12: =IF(COUNTIF($BC$12:$BC12,$BC12)=3,0,IF($BC12=BH$11,INDEX($AZ$12:$AZ$25,MATCH(BH$11,$AV$12:$AV$25,0)),0)) -> 0 | BI12: =IF(COUNTIF($BC$12:$BC12,$BC12)=3,0,IF($BC12=BI$11,INDEX($AZ$12:$AZ$25,MATCH(BI$11,$AV$12:$AV$25,0)),0)) -> 0 | BJ12: =IFERROR(IF(COUNTIF($BC$12:$BC12,$BC12)=3,0,IF($BC12=BJ$11,INDEX($AZ$12:$AZ$25,MATCH(BJ$11,$AV$12:$AV$25,0)),0)),0) -> 0 | BK12: =IFERROR(IF(COUNTIF($BC$12:$BC12,$BC12)=3,0,IF($BC12=BK$11,INDEX($AZ$12:$AZ$25,MATCH(BK$11,$AV$12:$AV$25,0)),0)),0) -> 0 | BL12: =IFERROR(IF(COUNTIF($BC$12:$BC12,$BC12)=3,0,IF($BC12=BL$11,INDEX($AZ$12:$AZ$25,MATCH(BL$11,$AV$12:$AV$25,0)),0)),0) -> 0 | BM12: =IFERROR(IF(COUNTIF($BC$12:$BC12,$BC12)=3,0,IF($BC12=BM$11,INDEX($AZ$12:$AZ$25,MATCH(BM$11,$AV$12:$AV$25,0)),0)),0) -> 0
B13: =IF(B12=0,"",B12&" - Alt. 1") ->  | Q13: =IF(OR(F13=0,$E12=""),"",INDEX(Risk_Factors!$O$12:$T$14,MATCH(F13,Frequency,0),MATCH($E12,Risk_Factors!$O$8:$T$8,0))) ->  | R13: =IF(OR(G13=0,$E12=""),"",INDEX(Risk_Factors!$O$15:$T$17,MATCH('2_Alternatives'!G13,Position,0),MATCH($E12,Risk_Factors!$O$8:$T$8,0))) ->  | S13: =IF(OR(H13=0,$E12=""),"",INDEX(Risk_Factors!$O$18:$T$19,MATCH('2_Alternatives'!H13,Yes_No,0),MATCH($E12,Risk_Factors!$O$8:$T$8,0))) ->  | T13: =IF(OR(I13=0,$E12=""),"",INDEX(Risk_Factors!$O$20:$T$22,MATCH('2_Alternatives'!I13,Dust_amount,0),MATCH($E12,Risk_Factors!$O$8:$T$8,0))) ->  | U13: =IF(OR(J13=0,$E12=""),"",INDEX(Risk_Factors!$O$23:$T$25,MATCH('2_Alternatives'!J13,Dust_composition,0),MATCH($E12,Risk_Factors!$O$8:$T$8,0))) ->  | V13: =IF(OR(K13=0,$E12=""),"",INDEX(Risk_Factors!$O$26:$T$28,MATCH('2_Alternatives'!K13,Dust_size,0),MATCH($E12,Risk_Factors!$O$8:$T$8,0))) ->  | W13: =IF(OR(L13=0,$E12=""),"",INDEX(Risk_Factors!$O$29:$T$30,MATCH('2_Alternatives'!L13,Risk_Factors!$E$29:$E$30,0),MATCH($E12,Risk_Factors!$O$8:$T$8,0))) ->  | X13: =IF(OR(M13=0,$E12=""),"",INDEX(Risk_Factors!$O$32:$T$33,MATCH('2_Alternatives'!M13,Risk_Factors!$E$32:$E$33,0),MATCH($E12,Risk_Factors!$O$8:$T$8,0))) ->  | Y13: =IF(OR(N13=0,$E12=""),"",INDEX(Risk_Factors!$O$35:$T$36,MATCH('2_Alternatives'!N13,Risk_Factors!$E$35:$E$36,0),MATCH($E12,Risk_Factors!$O$8:$T$8,0))) ->  | Z13: =IF(OR(O13=0,$E12=""),"",INDEX(Risk_Factors!$O$38:$T$39,MATCH('2_Alternatives'!O13,Risk_Factors!$E$38:$E$39,0),MATCH($E12,Risk_Factors!$O$8:$T$8,0))) ->  | AA13: =IF(OR(P13=0,$E12=""),"",INDEX(Risk_Factors!$O$41:$T$42,MATCH('2_Alternatives'!P13,Risk_Factors!$E$41:$E$42,0),MATCH($E12,Risk_Factors!$O$8:$T$8,0))) ->  | AB13: =IFERROR(IF(SUM(Q13:AA13)=0,"",SUM(Q13:AA13)),"") ->  | AC13: =IF(OR(AB13="",AC12=0),"",AC12*AB13/AB12) ->  | AD13: =IF(OR(AC12="",AC12=0,AC13=""),"",AC12-AC13) ->  | AE13: =IF(OR(AC12="",AC12=0,AC13=""),"",1-AC13/AC12) ->  | AF13: =IF(AND(ISTEXT(C13)=TRUE,ISNUMBER(E13)=FALSE),"Insert Cost",IF(OR(E13=0,AD13=0,AD13=""),"",E13/AD13)) ->  | AK13: =B13 ->  | AL13: =AC13 ->  | AO13: 2 | AS13: =IF(AND(ISTEXT(C14)=TRUE,ISNUMBER(E14)=FALSE),0,AF14) ->  | AT13: =IF(SUM($AC$13:$AC$20)=0,AO13,IF(AS13="",MAX(AT$12:AT12)+1,IF(COUNTIF(AS$11:AS12,AS13)>=1,RANK(AS13,AS$12:AS$25,1)+COUNTIF(AS$11:AS12,AS13),RANK(AS13,AS$12:AS$25,1)))) -> 2 | AU13: =AU12+1 -> 2 | AZ13: =IF(INDEX(AS$12:AS$25,MATCH(AU13,AT$12:AT$25,0))="",0,INDEX(AS$12:AS$25,MATCH(AU13,AT$12:AT$25,0))) -> 0 | BA13: =SUM(AY$12:AY13) -> 0 | BC13: =IF(COUNTIF(BC$11:BC12,BC12)=3,OFFSET($AV$12,(ROW(BC13)-ROW(BC$12))/3,0),BC12) ->  | BD13: =INDEX($BA$12:$BA$25,MATCH(BC12,$AV$12:$AV$25,0)) -> 0 | BE13: =BE12 -> 0 | BF13: =IF(COUNTIF($BC$12:$BC13,$BC13)=3,0,IF($BC13=BF$11,INDEX($AZ$12:$AZ$25,MATCH(BF$11,$AV$12:$AV$25,0)),0)) -> 0 | BG13: =IF(COUNTIF($BC$12:$BC13,$BC13)=3,0,IF($BC13=BG$11,INDEX($AZ$12:$AZ$25,MATCH(BG$11,$AV$12:$AV$25,0)),0)) -> 0 | BH13: =IF(COUNTIF($BC$12:$BC13,$BC13)=3,0,IF($BC13=BH$11,INDEX($AZ$12:$AZ$25,MATCH(BH$11,$AV$12:$AV$25,0)),0)) -> 0 | BI13: =IF(COUNTIF($BC$12:$BC13,$BC13)=3,0,IF($BC13=BI$11,INDEX($AZ$12:$AZ$25,MATCH(BI$11,$AV$12:$AV$25,0)),0)) -> 0 | BJ13: =IFERROR(IF(COUNTIF($BC$12:$BC13,$BC13)=3,0,IF($BC13=BJ$11,INDEX($AZ$12:$AZ$25,MATCH(BJ$11,$AV$12:$AV$25,0)),0)),BJ12) -> 0 | BK13: =IFERROR(IF(COUNTIF($BC$12:$BC13,$BC13)=3,0,IF($BC13=BK$11,INDEX($AZ$12:$AZ$25,MATCH(BK$11,$AV$12:$AV$25,0)),0)),BK12) -> 0 | BL13: =IFERROR(IF(COUNTIF($BC$12:$BC13,$BC13)=3,0,IF($BC13=BL$11,INDEX($AZ$12:$AZ$25,MATCH(BL$11,$AV$12:$AV$25,0)),0)),BL12) -> 0 | BM13: =IFERROR(IF(COUNTIF($BC$12:$BC13,$BC13)=3,0,IF($BC13=BM$11,INDEX($AZ$12:$AZ$25,MATCH(BM$11,$AV$12:$AV$25,0)),0)),BM12) -> 0
B14: =IF(B12=0,"",B12&" - Alt. 2") ->  | Q14: =IF(OR(F14=0,$E12=""),"",INDEX(Risk_Factors!$O$12:$T$14,MATCH(F14,Frequency,0),MATCH($E12,Risk_Factors!$O$8:$T$8,0))) ->  | R14: =IF(OR(G14=0,$E12=""),"",INDEX(Risk_Factors!$O$15:$T$17,MATCH('2_Alternatives'!G14,Position,0),MATCH($E12,Risk_Factors!$O$8:$T$8,0))) ->  | S14: =IF(OR(H14=0,$E12=""),"",INDEX(Risk_Factors!$O$18:$T$19,MATCH('2_Alternatives'!H14,Yes_No,0),MATCH($E12,Risk_Factors!$O$8:$T$8,0))) ->  | T14: =IF(OR(I14=0,$E12=""),"",INDEX(Risk_Factors!$O$20:$T$22,MATCH('2_Alternatives'!I14,Dust_amount,0),MATCH($E12,Risk_Factors!$O$8:$T$8,0))) ->  | U14: =IF(OR(J14=0,$E12=""),"",INDEX(Risk_Factors!$O$23:$T$25,MATCH('2_Alternatives'!J14,Dust_composition,0),MATCH($E12,Risk_Factors!$O$8:$T$8,0))) ->  | V14: =IF(OR(K14=0,$E12=""),"",INDEX(Risk_Factors!$O$26:$T$28,MATCH('2_Alternatives'!K14,Dust_size,0),MATCH($E12,Risk_Factors!$O$8:$T$8,0))) ->  | W14: =IF(OR(L14=0,$E12=""),"",INDEX(Risk_Factors!$O$29:$T$30,MATCH('2_Alternatives'!L14,Risk_Factors!$E$29:$E$30,0),MATCH($E12,Risk_Factors!$O$8:$T$8,0))) ->  | X14: =IF(OR(M14=0,$E12=""),"",INDEX(Risk_Factors!$O$32:$T$33,MATCH('2_Alternatives'!M14,Risk_Factors!$E$32:$E$33,0),MATCH($E12,Risk_Factors!$O$8:$T$8,0))) ->  | Y14: =IF(OR(N14=0,$E12=""),"",INDEX(Risk_Factors!$O$35:$T$36,MATCH('2_Alternatives'!N14,Risk_Factors!$E$35:$E$36,0),MATCH($E12,Risk_Factors!$O$8:$T$8,0))) ->  | Z14: =IF(OR(O14=0,$E12=""),"",INDEX(Risk_Factors!$O$38:$T$39,MATCH('2_Alternatives'!O14,Risk_Factors!$E$38:$E$39,0),MATCH($E12,Risk_Factors!$O$8:$T$8,0))) ->  | AA14: =IF(OR(P14=0,$E12=""),"",INDEX(Risk_Factors!$O$41:$T$42,MATCH('2_Alternatives'!P14,Risk_Factors!$E$41:$E$42,0),MATCH($E12,Risk_Factors!$O$8:$T$8,0))) ->  | AB14: =IFERROR(IF(SUM(Q14:AA14)=0,"",SUM(Q14:AA14)),"") ->  | AC14: =IF(OR(AB14="",AC12=0),"",AC12*AB14/AB12) ->  | AD14: =IF(OR(AC12="",AC12=0,AC14=""),"",AC12-AC14) ->  | AE14: =IF(OR(AC12="",AC12=0,AC14=""),"",1-AC14/AC12) ->  | AF14: =IF(AND(ISTEXT(C14)=TRUE,ISNUMBER(E14)=FALSE),"Insert Cost",IF(OR(E14=0,AD14=0,AD14=""),"",E14/AD14)) ->  | AO14: 3 | AT14: =IF(SUM($AC$13:$AC$20)=0,AO14,IF(AS14="",MAX(AT$12:AT13)+1,IF(COUNTIF(AS$11:AS13,AS14)>=1,RANK(AS14,AS$12:AS$25,1)+COUNTIF(AS$11:AS13,AS14),RANK(AS14,AS$12:AS$25,1)))) -> 3 | AU14: 3 | AZ14: 0 | BA14: =SUM(AY$12:AY14) -> 0 | BC14: =IF(COUNTIF(BC$11:BC13,BC13)=3,OFFSET($AV$12,(ROW(BC14)-ROW(BC$12))/3,0),BC13) ->  | BD14: 0 | BE14: =BE13 -> 0 | BF14: =IF(COUNTIF($BC$12:$BC14,$BC14)=3,0,IF($BC14=BF$11,INDEX($AZ$12:$AZ$25,MATCH(BF$11,$AV$12:$AV$25,0)),0)) -> 0 | BG14: =IF(COUNTIF($BC$12:$BC14,$BC14)=3,0,IF($BC14=BG$11,INDEX($AZ$12:$AZ$25,MATCH(BG$11,$AV$12:$AV$25,0)),0)) -> 0 | BH14: =IF(COUNTIF($BC$12:$BC14,$BC14)=3,0,IF($BC14=BH$11,INDEX($AZ$12:$AZ$25,MATCH(BH$11,$AV$12:$AV$25,0)),0)) -> 0 | BI14: =IF(COUNTIF($BC$12:$BC14,$BC14)=3,0,IF($BC14=BI$11,INDEX($AZ$12:$AZ$25,MATCH(BI$11,$AV$12:$AV$25,0)),0)) -> 0 | BJ14: =IFERROR(IF(COUNTIF($BC$12:$BC14,$BC14)=3,0,IF($BC14=BJ$11,INDEX($AZ$12:$AZ$25,MATCH(BJ$11,$AV$12:$AV$25,0)),0)),BJ13) -> 0 | BK14: =IFERROR(IF(COUNTIF($BC$12:$BC14,$BC14)=3,0,IF($BC14=BK$11,INDEX($AZ$12:$AZ$25,MATCH(BK$11,$AV$12:$AV$25,0)),0)),BK13) -> 0 | BL14: =IFERROR(IF(COUNTIF($BC$12:$BC14,$BC14)=3,0,IF($BC14=BL$11,INDEX($AZ$12:$AZ$25,MATCH(BL$11,$AV$12:$AV$25,0)),0)),BL13) -> 0 | BM14: =IFERROR(IF(COUNTIF($BC$12:$BC14,$BC14)=3,0,IF($BC14=BM$11,INDEX($AZ$12:$AZ$25,MATCH(BM$11,$AV$12:$AV$25,0)),0)),BM13) -> 0
B15: =IF(B12=0,"",B12&" - Alt. 3") ->  | Q15: =IF(OR(F15=0,$E12=""),"",INDEX(Risk_Factors!$O$12:$T$14,MATCH(F15,Frequency,0),MATCH($E12,Risk_Factors!$O$8:$T$8,0))) ->  | R15: =IF(OR(G15=0,$E12=""),"",INDEX(Risk_Factors!$O$15:$T$17,MATCH('2_Alternatives'!G15,Position,0),MATCH($E12,Risk_Factors!$O$8:$T$8,0))) ->  | S15: =IF(OR(H15=0,$E12=""),"",INDEX(Risk_Factors!$O$18:$T$19,MATCH('2_Alternatives'!H15,Yes_No,0),MATCH($E12,Risk_Factors!$O$8:$T$8,0))) ->  | T15: =IF(OR(I15=0,$E12=""),"",INDEX(Risk_Factors!$O$20:$T$22,MATCH('2_Alternatives'!I15,Dust_amount,0),MATCH($E12,Risk_Factors!$O$8:$T$8,0))) ->  | U15: =IF(OR(J15=0,$E12=""),"",INDEX(Risk_Factors!$O$23:$T$25,MATCH('2_Alternatives'!J15,Dust_composition,0),MATCH($E12,Risk_Factors!$O$8:$T$8,0))) ->  | V15: =IF(OR(K15=0,$E12=""),"",INDEX(Risk_Factors!$O$26:$T$28,MATCH('2_Alternatives'!K15,Dust_size,0),MATCH($E12,Risk_Factors!$O$8:$T$8,0))) ->  | W15: =IF(OR(L15=0,$E12=""),"",INDEX(Risk_Factors!$O$29:$T$30,MATCH('2_Alternatives'!L15,Risk_Factors!$E$29:$E$30,0),MATCH($E12,Risk_Factors!$O$8:$T$8,0))) ->  | X15: =IF(OR(M15=0,$E12=""),"",INDEX(Risk_Factors!$O$32:$T$33,MATCH('2_Alternatives'!M15,Risk_Factors!$E$32:$E$33,0),MATCH($E12,Risk_Factors!$O$8:$T$8,0))) ->  | Y15: =IF(OR(N15=0,$E12=""),"",INDEX(Risk_Factors!$O$35:$T$36,MATCH('2_Alternatives'!N15,Risk_Factors!$E$35:$E$36,0),MATCH($E12,Risk_Factors!$O$8:$T$8,0))) ->  | Z15: =IF(OR(O15=0,$E12=""),"",INDEX(Risk_Factors!$O$38:$T$39,MATCH('2_Alternatives'!O15,Risk_Factors!$E$38:$E$39,0),MATCH($E12,Risk_Factors!$O$8:$T$8,0))) ->  | AA15: =IF(OR(P15=0,$E12=""),"",INDEX(Risk_Factors!$O$41:$T$42,MATCH('2_Alternatives'!P15,Risk_Factors!$E$41:$E$42,0),MATCH($E12,Risk_Factors!$O$8:$T$8,0))) ->  | AC15: =IF(OR(AB15="",AC12=0),"",AC12*AB15/AB12) ->  | AD15: =IF(OR(AC12="",AC12=0,AC15=""),"",AC12-AC15) ->  | AE15: =IF(OR(AC12="",AC12=0,AC15=""),"",1-AC15/AC12) ->  | AO15: 4 | AT15: =IF(SUM($AC$13:$AC$20)=0,AO15,IF(AS15="",MAX(AT$12:AT14)+1,IF(COUNTIF(AS$11:AS14,AS15)>=1,RANK(AS15,AS$12:AS$25,1)+COUNTIF(AS$11:AS14,AS15),RANK(AS15,AS$12:AS$25,1)))) -> 4 | AU15: 4 | AZ15: 0 | BA15: =SUM(AY$12:AY15) -> 0 | BC15: =IF(COUNTIF(BC$11:BC14,BC14)=3,OFFSET($AV$12,(ROW(BC15)-ROW(BC$12))/3,0),BC14) ->  | BD15: 0 | BE15: 0 | BF15: =IF(COUNTIF($BC$12:$BC15,$BC15)=3,0,IF($BC15=BF$11,INDEX($AZ$12:$AZ$25,MATCH(BF$11,$AV$12:$AV$25,0)),0)) -> 0 | BG15: =IF(COUNTIF($BC$12:$BC15,$BC15)=3,0,IF($BC15=BG$11,INDEX($AZ$12:$AZ$25,MATCH(BG$11,$AV$12:$AV$25,0)),0)) -> 0 | BH15: =IF(COUNTIF($BC$12:$BC15,$BC15)=3,0,IF($BC15=BH$11,INDEX($AZ$12:$AZ$25,MATCH(BH$11,$AV$12:$AV$25,0)),0)) -> 0 | BI15: =IF(COUNTIF($BC$12:$BC15,$BC15)=3,0,IF($BC15=BI$11,INDEX($AZ$12:$AZ$25,MATCH(BI$11,$AV$12:$AV$25,0)),0)) -> 0 | BJ15: =IFERROR(IF(COUNTIF($BC$12:$BC15,$BC15)=3,0,IF($BC15=BJ$11,INDEX($AZ$12:$AZ$25,MATCH(BJ$11,$AV$12:$AV$25,0)),0)),BJ14) -> 0 | BK15: =IFERROR(IF(COUNTIF($BC$12:$BC15,$BC15)=3,0,IF($BC15=BK$11,INDEX($AZ$12:$AZ$25,MATCH(BK$11,$AV$12:$AV$25,0)),0)),BK14) -> 0 | BL15: =IFERROR(IF(COUNTIF($BC$12:$BC15,$BC15)=3,0,IF($BC15=BL$11,INDEX($AZ$12:$AZ$25,MATCH(BL$11,$AV$12:$AV$25,0)),0)),BL14) -> 0 | BM15: =IFERROR(IF(COUNTIF($BC$12:$BC15,$BC15)=3,0,IF($BC15=BM$11,INDEX($AZ$12:$AZ$25,MATCH(BM$11,$AV$12:$AV$25,0)),0)),BM14) -> 0
B16: =IF(B12=0,"",B12&" - Alt. 4") ->  | Q16: =IF(OR(F16=0,$E12=""),"",INDEX(Risk_Factors!$O$12:$T$14,MATCH(F16,Frequency,0),MATCH($E12,Risk_Factors!$O$8:$T$8,0))) ->  | R16: =IF(OR(G16=0,$E12=""),"",INDEX(Risk_Factors!$O$15:$T$17,MATCH('2_Alternatives'!G16,Position,0),MATCH($E12,Risk_Factors!$O$8:$T$8,0))) ->  | S16: =IF(OR(H16=0,$E12=""),"",INDEX(Risk_Factors!$O$18:$T$19,MATCH('2_Alternatives'!H16,Yes_No,0),MATCH($E12,Risk_Factors!$O$8:$T$8,0))) ->  | T16: =IF(OR(I16=0,$E12=""),"",INDEX(Risk_Factors!$O$20:$T$22,MATCH('2_Alternatives'!I16,Dust_amount,0),MATCH($E12,Risk_Factors!$O$8:$T$8,0))) ->  | U16: =IF(OR(J16=0,$E12=""),"",INDEX(Risk_Factors!$O$23:$T$25,MATCH('2_Alternatives'!J16,Dust_composition,0),MATCH($E12,Risk_Factors!$O$8:$T$8,0))) ->  | V16: =IF(OR(K16=0,$E12=""),"",INDEX(Risk_Factors!$O$26:$T$28,MATCH('2_Alternatives'!K16,Dust_size,0),MATCH($E12,Risk_Factors!$O$8:$T$8,0))) ->  | W16: =IF(OR(L16=0,$E12=""),"",INDEX(Risk_Factors!$O$29:$T$30,MATCH('2_Alternatives'!L16,Risk_Factors!$E$29:$E$30,0),MATCH($E12,Risk_Factors!$O$8:$T$8,0))) ->  | X16: =IF(OR(M16=0,$E12=""),"",INDEX(Risk_Factors!$O$32:$T$33,MATCH('2_Alternatives'!M16,Risk_Factors!$E$32:$E$33,0),MATCH($E12,Risk_Factors!$O$8:$T$8,0))) ->  | Y16: =IF(OR(N16=0,$E12=""),"",INDEX(Risk_Factors!$O$35:$T$36,MATCH('2_Alternatives'!N16,Risk_Factors!$E$35:$E$36,0),MATCH($E12,Risk_Factors!$O$8:$T$8,0))) ->  | Z16: =IF(OR(O16=0,$E12=""),"",INDEX(Risk_Factors!$O$38:$T$39,MATCH('2_Alternatives'!O16,Risk_Factors!$E$38:$E$39,0),MATCH($E12,Risk_Factors!$O$8:$T$8,0))) ->  | AA16: =IF(OR(P16=0,$E12=""),"",INDEX(Risk_Factors!$O$41:$T$42,MATCH('2_Alternatives'!P16,Risk_Factors!$E$41:$E$42,0),MATCH($E12,Risk_Factors!$O$8:$T$8,0))) ->  | AC16: =IF(OR(AB16="",AC12=0),"",AC12*AB16/AB12) ->  | AD16: =IF(OR(AC12="",AC12=0,AC16=""),"",AC12-AC16) ->  | AE16: =IF(OR(AC12="",AC12=0,AC16=""),"",1-AC16/AC12) ->  | AO16: 5 | AT16: =IF(SUM($AC$13:$AC$20)=0,AO16,IF(AS16="",MAX(AT$12:AT15)+1,IF(COUNTIF(AS$11:AS15,AS16)>=1,RANK(AS16,AS$12:AS$25,1)+COUNTIF(AS$11:AS15,AS16),RANK(AS16,AS$12:AS$25,1)))) -> 5 | AU16: 5 | AZ16: 0 | BA16: =SUM(AY$12:AY16) -> 0 | BC16: =IF(COUNTIF(BC$11:BC15,BC15)=3,OFFSET($AV$12,(ROW(BC16)-ROW(BC$12))/3,0),BC15) ->  | BD16: 0 | BE16: 0 | BF16: =IF(COUNTIF($BC$12:$BC16,$BC16)=3,0,IF($BC16=BF$11,INDEX($AZ$12:$AZ$25,MATCH(BF$11,$AV$12:$AV$25,0)),0)) -> 0 | BG16: =IF(COUNTIF($BC$12:$BC16,$BC16)=3,0,IF($BC16=BG$11,INDEX($AZ$12:$AZ$25,MATCH(BG$11,$AV$12:$AV$25,0)),0)) -> 0 | BH16: =IF(COUNTIF($BC$12:$BC16,$BC16)=3,0,IF($BC16=BH$11,INDEX($AZ$12:$AZ$25,MATCH(BH$11,$AV$12:$AV$25,0)),0)) -> 0 | BI16: =IF(COUNTIF($BC$12:$BC16,$BC16)=3,0,IF($BC16=BI$11,INDEX($AZ$12:$AZ$25,MATCH(BI$11,$AV$12:$AV$25,0)),0)) -> 0 | BJ16: =IFERROR(IF(COUNTIF($BC$12:$BC16,$BC16)=3,0,IF($BC16=BJ$11,INDEX($AZ$12:$AZ$25,MATCH(BJ$11,$AV$12:$AV$25,0)),0)),BJ15) -> 0 | BK16: =IFERROR(IF(COUNTIF($BC$12:$BC16,$BC16)=3,0,IF($BC16=BK$11,INDEX($AZ$12:$AZ$25,MATCH(BK$11,$AV$12:$AV$25,0)),0)),BK15) -> 0 | BL16: =IFERROR(IF(COUNTIF($BC$12:$BC16,$BC16)=3,0,IF($BC16=BL$11,INDEX($AZ$12:$AZ$25,MATCH(BL$11,$AV$12:$AV$25,0)),0)),BL15) -> 0 | BM16: =IFERROR(IF(COUNTIF($BC$12:$BC16,$BC16)=3,0,IF($BC16=BM$11,INDEX($AZ$12:$AZ$25,MATCH(BM$11,$AV$12:$AV$25,0)),0)),BM15) -> 0
B17: =IF(B12=0,"",B12&" - Alt. 5") ->  | Q17: =IF(OR(F17=0,$E12=""),"",INDEX(Risk_Factors!$O$12:$T$14,MATCH(F17,Frequency,0),MATCH($E12,Risk_Factors!$O$8:$T$8,0))) ->  | R17: =IF(OR(G17=0,$E12=""),"",INDEX(Risk_Factors!$O$15:$T$17,MATCH('2_Alternatives'!G17,Position,0),MATCH($E12,Risk_Factors!$O$8:$T$8,0))) ->  | S17: =IF(OR(H17=0,$E12=""),"",INDEX(Risk_Factors!$O$18:$T$19,MATCH('2_Alternatives'!H17,Yes_No,0),MATCH($E12,Risk_Factors!$O$8:$T$8,0))) ->  | T17: =IF(OR(I17=0,$E12=""),"",INDEX(Risk_Factors!$O$20:$T$22,MATCH('2_Alternatives'!I17,Dust_amount,0),MATCH($E12,Risk_Factors!$O$8:$T$8,0))) ->  | U17: =IF(OR(J17=0,$E12=""),"",INDEX(Risk_Factors!$O$23:$T$25,MATCH('2_Alternatives'!J17,Dust_composition,0),MATCH($E12,Risk_Factors!$O$8:$T$8,0))) ->  | V17: =IF(OR(K17=0,$E12=""),"",INDEX(Risk_Factors!$O$26:$T$28,MATCH('2_Alternatives'!K17,Dust_size,0),MATCH($E12,Risk_Factors!$O$8:$T$8,0))) ->  | W17: =IF(OR(L17=0,$E12=""),"",INDEX(Risk_Factors!$O$29:$T$30,MATCH('2_Alternatives'!L17,Risk_Factors!$E$29:$E$30,0),MATCH($E12,Risk_Factors!$O$8:$T$8,0))) ->  | X17: =IF(OR(M17=0,$E12=""),"",INDEX(Risk_Factors!$O$32:$T$33,MATCH('2_Alternatives'!M17,Risk_Factors!$E$32:$E$33,0),MATCH($E12,Risk_Factors!$O$8:$T$8,0))) ->  | Y17: =IF(OR(N17=0,$E12=""),"",INDEX(Risk_Factors!$O$35:$T$36,MATCH('2_Alternatives'!N17,Risk_Factors!$E$35:$E$36,0),MATCH($E12,Risk_Factors!$O$8:$T$8,0))) ->  | Z17: =IF(OR(O17=0,$E12=""),"",INDEX(Risk_Factors!$O$38:$T$39,MATCH('2_Alternatives'!O17,Risk_Factors!$E$38:$E$39,0),MATCH($E12,Risk_Factors!$O$8:$T$8,0))) ->  | AA17: =IF(OR(P17=0,$E12=""),"",INDEX(Risk_Factors!$O$41:$T$42,MATCH('2_Alternatives'!P17,Risk_Factors!$E$41:$E$42,0),MATCH($E12,Risk_Factors!$O$8:$T$8,0))) ->  | AC17: =IF(OR(AB17="",AC12=0),"",AC12*AB17/AB12) ->  | AD17: =IF(OR(AC12="",AC12=0,AC17=""),"",AC12-AC17) ->  | AE17: =IF(OR(AC12="",AC12=0,AC17=""),"",1-AC17/AC12) ->  | AO17: 6 | AT17: =IF(SUM($AC$13:$AC$20)=0,AO17,IF(AS17="",MAX(AT$12:AT16)+1,IF(COUNTIF(AS$11:AS16,AS17)>=1,RANK(AS17,AS$12:AS$25,1)+COUNTIF(AS$11:AS16,AS17),RANK(AS17,AS$12:AS$25,1)))) -> 6 | AU17: 6 | AZ17: 0 | BA17: =SUM(AY$12:AY17) -> 0 | BC17: =IF(COUNTIF(BC$11:BC16,BC16)=3,OFFSET($AV$12,(ROW(BC17)-ROW(BC$12))/3,0),BC16) ->  | BD17: 0 | BE17: 0 | BF17: =IF(COUNTIF($BC$12:$BC17,$BC17)=3,0,IF($BC17=BF$11,INDEX($AZ$12:$AZ$25,MATCH(BF$11,$AV$12:$AV$25,0)),0)) -> 0 | BG17: =IF(COUNTIF($BC$12:$BC17,$BC17)=3,0,IF($BC17=BG$11,INDEX($AZ$12:$AZ$25,MATCH(BG$11,$AV$12:$AV$25,0)),0)) -> 0 | BH17: =IF(COUNTIF($BC$12:$BC17,$BC17)=3,0,IF($BC17=BH$11,INDEX($AZ$12:$AZ$25,MATCH(BH$11,$AV$12:$AV$25,0)),0)) -> 0 | BI17: =IF(COUNTIF($BC$12:$BC17,$BC17)=3,0,IF($BC17=BI$11,INDEX($AZ$12:$AZ$25,MATCH(BI$11,$AV$12:$AV$25,0)),0)) -> 0 | BJ17: =IFERROR(IF(COUNTIF($BC$12:$BC17,$BC17)=3,0,IF($BC17=BJ$11,INDEX($AZ$12:$AZ$25,MATCH(BJ$11,$AV$12:$AV$25,0)),0)),BJ16) -> 0 | BK17: =IFERROR(IF(COUNTIF($BC$12:$BC17,$BC17)=3,0,IF($BC17=BK$11,INDEX($AZ$12:$AZ$25,MATCH(BK$11,$AV$12:$AV$25,0)),0)),BK16) -> 0 | BL17: =IFERROR(IF(COUNTIF($BC$12:$BC17,$BC17)=3,0,IF($BC17=BL$11,INDEX($AZ$12:$AZ$25,MATCH(BL$11,$AV$12:$AV$25,0)),0)),BL16) -> 0 | BM17: =IFERROR(IF(COUNTIF($BC$12:$BC17,$BC17)=3,0,IF($BC17=BM$11,INDEX($AZ$12:$AZ$25,MATCH(BM$11,$AV$12:$AV$25,0)),0)),BM16) -> 0
B18: =IF(B12=0,"",B12&" - Alt. 6") ->  | Q18: =IF(OR(F18=0,$E12=""),"",INDEX(Risk_Factors!$O$12:$T$14,MATCH(F18,Frequency,0),MATCH($E12,Risk_Factors!$O$8:$T$8,0))) ->  | R18: =IF(OR(G18=0,$E12=""),"",INDEX(Risk_Factors!$O$15:$T$17,MATCH('2_Alternatives'!G18,Position,0),MATCH($E12,Risk_Factors!$O$8:$T$8,0))) ->  | S18: =IF(OR(H18=0,$E12=""),"",INDEX(Risk_Factors!$O$18:$T$19,MATCH('2_Alternatives'!H18,Yes_No,0),MATCH($E12,Risk_Factors!$O$8:$T$8,0))) ->  | T18: =IF(OR(I18=0,$E12=""),"",INDEX(Risk_Factors!$O$20:$T$22,MATCH('2_Alternatives'!I18,Dust_amount,0),MATCH($E12,Risk_Factors!$O$8:$T$8,0))) ->  | U18: =IF(OR(J18=0,$E12=""),"",INDEX(Risk_Factors!$O$23:$T$25,MATCH('2_Alternatives'!J18,Dust_composition,0),MATCH($E12,Risk_Factors!$O$8:$T$8,0))) ->  | V18: =IF(OR(K18=0,$E12=""),"",INDEX(Risk_Factors!$O$26:$T$28,MATCH('2_Alternatives'!K18,Dust_size,0),MATCH($E12,Risk_Factors!$O$8:$T$8,0))) ->  | W18: =IF(OR(L18=0,$E12=""),"",INDEX(Risk_Factors!$O$29:$T$30,MATCH('2_Alternatives'!L18,Risk_Factors!$E$29:$E$30,0),MATCH($E12,Risk_Factors!$O$8:$T$8,0))) ->  | X18: =IF(OR(M18=0,$E12=""),"",INDEX(Risk_Factors!$O$32:$T$33,MATCH('2_Alternatives'!M18,Risk_Factors!$E$32:$E$33,0),MATCH($E12,Risk_Factors!$O$8:$T$8,0))) ->  | Y18: =IF(OR(N18=0,$E12=""),"",INDEX(Risk_Factors!$O$35:$T$36,MATCH('2_Alternatives'!N18,Risk_Factors!$E$35:$E$36,0),MATCH($E12,Risk_Factors!$O$8:$T$8,0))) ->  | Z18: =IF(OR(O18=0,$E12=""),"",INDEX(Risk_Factors!$O$38:$T$39,MATCH('2_Alternatives'!O18,Risk_Factors!$E$38:$E$39,0),MATCH($E12,Risk_Factors!$O$8:$T$8,0))) ->  | AA18: =IF(OR(P18=0,$E12=""),"",INDEX(Risk_Factors!$O$41:$T$42,MATCH('2_Alternatives'!P18,Risk_Factors!$E$41:$E$42,0),MATCH($E12,Risk_Factors!$O$8:$T$8,0))) ->  | AC18: =IF(OR(AB18="",AC12=0),"",AC12*AB18/AB12) ->  | AD18: =IF(OR(AC12="",AC12=0,AC18=""),"",AC12-AC18) ->  | AE18: =IF(OR(AC12="",AC12=0,AC18=""),"",1-AC18/AC12) ->  | AO18: 7 | AT18: =IF(SUM($AC$13:$AC$20)=0,AO18,IF(AS18="",MAX(AT$12:AT17)+1,IF(COUNTIF(AS$11:AS17,AS18)>=1,RANK(AS18,AS$12:AS$25,1)+COUNTIF(AS$11:AS17,AS18),RANK(AS18,AS$12:AS$25,1)))) -> 7 | AU18: 7 | AZ18: 0 | BA18: =SUM(AY$12:AY18) -> 0 | BC18: =IF(COUNTIF(BC$11:BC17,BC17)=3,OFFSET($AV$12,(ROW(BC18)-ROW(BC$12))/3,0),BC17) ->  | BD18: 0 | BE18: 0 | BF18: =IF(COUNTIF($BC$12:$BC18,$BC18)=3,0,IF($BC18=BF$11,INDEX($AZ$12:$AZ$25,MATCH(BF$11,$AV$12:$AV$25,0)),0)) -> 0 | BG18: =IF(COUNTIF($BC$12:$BC18,$BC18)=3,0,IF($BC18=BG$11,INDEX($AZ$12:$AZ$25,MATCH(BG$11,$AV$12:$AV$25,0)),0)) -> 0 | BH18: =IF(COUNTIF($BC$12:$BC18,$BC18)=3,0,IF($BC18=BH$11,INDEX($AZ$12:$AZ$25,MATCH(BH$11,$AV$12:$AV$25,0)),0)) -> 0 | BI18: =IF(COUNTIF($BC$12:$BC18,$BC18)=3,0,IF($BC18=BI$11,INDEX($AZ$12:$AZ$25,MATCH(BI$11,$AV$12:$AV$25,0)),0)) -> 0 | BJ18: =IFERROR(IF(COUNTIF($BC$12:$BC18,$BC18)=3,0,IF($BC18=BJ$11,INDEX($AZ$12:$AZ$25,MATCH(BJ$11,$AV$12:$AV$25,0)),0)),BJ17) -> 0 | BK18: =IFERROR(IF(COUNTIF($BC$12:$BC18,$BC18)=3,0,IF($BC18=BK$11,INDEX($AZ$12:$AZ$25,MATCH(BK$11,$AV$12:$AV$25,0)),0)),BK17) -> 0 | BL18: =IFERROR(IF(COUNTIF($BC$12:$BC18,$BC18)=3,0,IF($BC18=BL$11,INDEX($AZ$12:$AZ$25,MATCH(BL$11,$AV$12:$AV$25,0)),0)),BL17) -> 0 | BM18: =IFERROR(IF(COUNTIF($BC$12:$BC18,$BC18)=3,0,IF($BC18=BM$11,INDEX($AZ$12:$AZ$25,MATCH(BM$11,$AV$12:$AV$25,0)),0)),BM17) -> 0
B19: =IF(B12=0,"",B12&" - Alt. 7") ->  | Q19: =IF(OR(F19=0,$E12=""),"",INDEX(Risk_Factors!$O$12:$T$14,MATCH(F19,Frequency,0),MATCH($E12,Risk_Factors!$O$8:$T$8,0))) ->  | R19: =IF(OR(G19=0,$E12=""),"",INDEX(Risk_Factors!$O$15:$T$17,MATCH('2_Alternatives'!G19,Position,0),MATCH($E12,Risk_Factors!$O$8:$T$8,0))) ->  | S19: =IF(OR(H19=0,$E12=""),"",INDEX(Risk_Factors!$O$18:$T$19,MATCH('2_Alternatives'!H19,Yes_No,0),MATCH($E12,Risk_Factors!$O$8:$T$8,0))) ->  | T19: =IF(OR(I19=0,$E12=""),"",INDEX(Risk_Factors!$O$20:$T$22,MATCH('2_Alternatives'!I19,Dust_amount,0),MATCH($E12,Risk_Factors!$O$8:$T$8,0))) ->  | U19: =IF(OR(J19=0,$E12=""),"",INDEX(Risk_Factors!$O$23:$T$25,MATCH('2_Alternatives'!J19,Dust_composition,0),MATCH($E12,Risk_Factors!$O$8:$T$8,0))) ->  | V19: =IF(OR(K19=0,$E12=""),"",INDEX(Risk_Factors!$O$26:$T$28,MATCH('2_Alternatives'!K19,Dust_size,0),MATCH($E12,Risk_Factors!$O$8:$T$8,0))) ->  | W19: =IF(OR(L19=0,$E12=""),"",INDEX(Risk_Factors!$O$29:$T$30,MATCH('2_Alternatives'!L19,Risk_Factors!$E$29:$E$30,0),MATCH($E12,Risk_Factors!$O$8:$T$8,0))) ->  | X19: =IF(OR(M19=0,$E12=""),"",INDEX(Risk_Factors!$O$32:$T$33,MATCH('2_Alternatives'!M19,Risk_Factors!$E$32:$E$33,0),MATCH($E12,Risk_Factors!$O$8:$T$8,0))) ->  | Y19: =IF(OR(N19=0,$E12=""),"",INDEX(Risk_Factors!$O$35:$T$36,MATCH('2_Alternatives'!N19,Risk_Factors!$E$35:$E$36,0),MATCH($E12,Risk_Factors!$O$8:$T$8,0))) ->  | Z19: =IF(OR(O19=0,$E12=""),"",INDEX(Risk_Factors!$O$38:$T$39,MATCH('2_Alternatives'!O19,Risk_Factors!$E$38:$E$39,0),MATCH($E12,Risk_Factors!$O$8:$T$8,0))) ->  | AA19: =IF(OR(P19=0,$E12=""),"",INDEX(Risk_Factors!$O$41:$T$42,MATCH('2_Alternatives'!P19,Risk_Factors!$E$41:$E$42,0),MATCH($E12,Risk_Factors!$O$8:$T$8,0))) ->  | AC19: =IF(OR(AB19="",AC12=0),"",AC12*AB19/AB12) ->  | AD19: =IF(OR(AC12="",AC12=0,AC19=""),"",AC12-AC19) ->  | AE19: =IF(OR(AC12="",AC12=0,AC19=""),"",1-AC19/AC12) ->  | AO19: 8 | AT19: =IF(SUM($AC$13:$AC$20)=0,AO19,IF(AS19="",MAX(AT$12:AT18)+1,IF(COUNTIF(AS$11:AS18,AS19)>=1,RANK(AS19,AS$12:AS$25,1)+COUNTIF(AS$11:AS18,AS19),RANK(AS19,AS$12:AS$25,1)))) -> 8 | AU19: 8 | AZ19: 0 | BA19: =SUM(AY$12:AY19) -> 0 | BC19: =IF(COUNTIF(BC$11:BC18,BC18)=3,OFFSET($AV$12,(ROW(BC19)-ROW(BC$12))/3,0),BC18) ->  | BD19: 0 | BE19: 0 | BF19: =IF(COUNTIF($BC$12:$BC19,$BC19)=3,0,IF($BC19=BF$11,INDEX($AZ$12:$AZ$25,MATCH(BF$11,$AV$12:$AV$25,0)),0)) -> 0 | BG19: =IF(COUNTIF($BC$12:$BC19,$BC19)=3,0,IF($BC19=BG$11,INDEX($AZ$12:$AZ$25,MATCH(BG$11,$AV$12:$AV$25,0)),0)) -> 0 | BH19: =IF(COUNTIF($BC$12:$BC19,$BC19)=3,0,IF($BC19=BH$11,INDEX($AZ$12:$AZ$25,MATCH(BH$11,$AV$12:$AV$25,0)),0)) -> 0 | BI19: =IF(COUNTIF($BC$12:$BC19,$BC19)=3,0,IF($BC19=BI$11,INDEX($AZ$12:$AZ$25,MATCH(BI$11,$AV$12:$AV$25,0)),0)) -> 0 | BJ19: =IFERROR(IF(COUNTIF($BC$12:$BC19,$BC19)=3,0,IF($BC19=BJ$11,INDEX($AZ$12:$AZ$25,MATCH(BJ$11,$AV$12:$AV$25,0)),0)),BJ18) -> 0 | BK19: =IFERROR(IF(COUNTIF($BC$12:$BC19,$BC19)=3,0,IF($BC19=BK$11,INDEX($AZ$12:$AZ$25,MATCH(BK$11,$AV$12:$AV$25,0)),0)),BK18) -> 0 | BL19: =IFERROR(IF(COUNTIF($BC$12:$BC19,$BC19)=3,0,IF($BC19=BL$11,INDEX($AZ$12:$AZ$25,MATCH(BL$11,$AV$12:$AV$25,0)),0)),BL18) -> 0 | BM19: =IFERROR(IF(COUNTIF($BC$12:$BC19,$BC19)=3,0,IF($BC19=BM$11,INDEX($AZ$12:$AZ$25,MATCH(BM$11,$AV$12:$AV$25,0)),0)),BM18) -> 0
B20: =IF(B12=0,"",B12&" - Alt. 8") ->  | Q20: =IF(OR(F20=0,$E12=""),"",INDEX(Risk_Factors!$O$12:$T$14,MATCH(F20,Frequency,0),MATCH($E12,Risk_Factors!$O$8:$T$8,0))) ->  | R20: =IF(OR(G20=0,$E12=""),"",INDEX(Risk_Factors!$O$15:$T$17,MATCH('2_Alternatives'!G20,Position,0),MATCH($E12,Risk_Factors!$O$8:$T$8,0))) ->  | S20: =IF(OR(H20=0,$E12=""),"",INDEX(Risk_Factors!$O$18:$T$19,MATCH('2_Alternatives'!H20,Yes_No,0),MATCH($E12,Risk_Factors!$O$8:$T$8,0))) ->  | T20: =IF(OR(I20=0,$E12=""),"",INDEX(Risk_Factors!$O$20:$T$22,MATCH('2_Alternatives'!I20,Dust_amount,0),MATCH($E12,Risk_Factors!$O$8:$T$8,0))) ->  | U20: =IF(OR(J20=0,$E12=""),"",INDEX(Risk_Factors!$O$23:$T$25,MATCH('2_Alternatives'!J20,Dust_composition,0),MATCH($E12,Risk_Factors!$O$8:$T$8,0))) ->  | V20: =IF(OR(K20=0,$E12=""),"",INDEX(Risk_Factors!$O$26:$T$28,MATCH('2_Alternatives'!K20,Dust_size,0),MATCH($E12,Risk_Factors!$O$8:$T$8,0))) ->  | W20: =IF(OR(L20=0,$E12=""),"",INDEX(Risk_Factors!$O$29:$T$30,MATCH('2_Alternatives'!L20,Risk_Factors!$E$29:$E$30,0),MATCH($E12,Risk_Factors!$O$8:$T$8,0))) ->  | X20: =IF(OR(M20=0,$E12=""),"",INDEX(Risk_Factors!$O$32:$T$33,MATCH('2_Alternatives'!M20,Risk_Factors!$E$32:$E$33,0),MATCH($E12,Risk_Factors!$O$8:$T$8,0))) ->  | Y20: =IF(OR(N20=0,$E12=""),"",INDEX(Risk_Factors!$O$35:$T$36,MATCH('2_Alternatives'!N20,Risk_Factors!$E$35:$E$36,0),MATCH($E12,Risk_Factors!$O$8:$T$8,0))) ->  | Z20: =IF(OR(O20=0,$E12=""),"",INDEX(Risk_Factors!$O$38:$T$39,MATCH('2_Alternatives'!O20,Risk_Factors!$E$38:$E$39,0),MATCH($E12,Risk_Factors!$O$8:$T$8,0))) ->  | AA20: =IF(OR(P20=0,$E12=""),"",INDEX(Risk_Factors!$O$41:$T$42,MATCH('2_Alternatives'!P20,Risk_Factors!$E$41:$E$42,0),MATCH($E12,Risk_Factors!$O$8:$T$8,0))) ->  | AC20: =IF(OR(AB20="",AC12=0),"",AC12*AB20/AB12) ->  | AD20: =IF(OR(AC12="",AC12=0,AC20=""),"",AC12-AC20) ->  | AE20: =IF(OR(AC12="",AC12=0,AC20=""),"",1-AC20/AC12) ->  | BC20: =IF(COUNTIF(BC$11:BC19,BC19)=3,OFFSET($AV$12,(ROW(BC20)-ROW(BC$12))/3,0),BC19) ->  | BD20: 0 | BE20: 0 | BF20: =IF(COUNTIF($BC$12:$BC20,$BC20)=3,0,IF($BC20=BF$11,INDEX($AZ$12:$AZ$25,MATCH(BF$11,$AV$12:$AV$25,0)),0)) -> 0 | BG20: =IF(COUNTIF($BC$12:$BC20,$BC20)=3,0,IF($BC20=BG$11,INDEX($AZ$12:$AZ$25,MATCH(BG$11,$AV$12:$AV$25,0)),0)) -> 0 | BH20: =IF(COUNTIF($BC$12:$BC20,$BC20)=3,0,IF($BC20=BH$11,INDEX($AZ$12:$AZ$25,MATCH(BH$11,$AV$12:$AV$25,0)),0)) -> 0 | BI20: =IF(COUNTIF($BC$12:$BC20,$BC20)=3,0,IF($BC20=BI$11,INDEX($AZ$12:$AZ$25,MATCH(BI$11,$AV$12:$AV$25,0)),0)) -> 0 | BJ20: =IFERROR(IF(COUNTIF($BC$12:$BC20,$BC20)=3,0,IF($BC20=BJ$11,INDEX($AZ$12:$AZ$25,MATCH(BJ$11,$AV$12:$AV$25,0)),0)),BJ19) -> 0 | BK20: =IFERROR(IF(COUNTIF($BC$12:$BC20,$BC20)=3,0,IF($BC20=BK$11,INDEX($AZ$12:$AZ$25,MATCH(BK$11,$AV$12:$AV$25,0)),0)),BK19) -> 0 | BL20: =IFERROR(IF(COUNTIF($BC$12:$BC20,$BC20)=3,0,IF($BC20=BL$11,INDEX($AZ$12:$AZ$25,MATCH(BL$11,$AV$12:$AV$25,0)),0)),BL19) -> 0 | BM20: =IFERROR(IF(COUNTIF($BC$12:$BC20,$BC20)=3,0,IF($BC20=BM$11,INDEX($AZ$12:$AZ$25,MATCH(BM$11,$AV$12:$AV$25,0)),0)),BM19) -> 0
BC21: =IF(COUNTIF(BC$11:BC20,BC20)=3,OFFSET($AV$12,(ROW(BC21)-ROW(BC$12))/3,0),BC20) ->  | BD21: 0 | BE21: 0 | BF21: =IF(COUNTIF($BC$12:$BC21,$BC21)=3,0,IF($BC21=BF$11,INDEX($AZ$12:$AZ$25,MATCH(BF$11,$AV$12:$AV$25,0)),0)) -> 0 | BG21: =IF(COUNTIF($BC$12:$BC21,$BC21)=3,0,IF($BC21=BG$11,INDEX($AZ$12:$AZ$25,MATCH(BG$11,$AV$12:$AV$25,0)),0)) -> 0 | BH21: =IF(COUNTIF($BC$12:$BC21,$BC21)=3,0,IF($BC21=BH$11,INDEX($AZ$12:$AZ$25,MATCH(BH$11,$AV$12:$AV$25,0)),0)) -> 0 | BI21: =IF(COUNTIF($BC$12:$BC21,$BC21)=3,0,IF($BC21=BI$11,INDEX($AZ$12:$AZ$25,MATCH(BI$11,$AV$12:$AV$25,0)),0)) -> 0 | BJ21: =IFERROR(IF(COUNTIF($BC$12:$BC21,$BC21)=3,0,IF($BC21=BJ$11,INDEX($AZ$12:$AZ$25,MATCH(BJ$11,$AV$12:$AV$25,0)),0)),BJ20) -> 0 | BK21: =IFERROR(IF(COUNTIF($BC$12:$BC21,$BC21)=3,0,IF($BC21=BK$11,INDEX($AZ$12:$AZ$25,MATCH(BK$11,$AV$12:$AV$25,0)),0)),BK20) -> 0 | BL21: =IFERROR(IF(COUNTIF($BC$12:$BC21,$BC21)=3,0,IF($BC21=BL$11,INDEX($AZ$12:$AZ$25,MATCH(BL$11,$AV$12:$AV$25,0)),0)),BL20) -> 0 | BM21: =IFERROR(IF(COUNTIF($BC$12:$BC21,$BC21)=3,0,IF($BC21=BM$11,INDEX($AZ$12:$AZ$25,MATCH(BM$11,$AV$12:$AV$25,0)),0)),BM20) -> 0
BC22: =IF(COUNTIF(BC$11:BC21,BC21)=3,OFFSET($AV$12,(ROW(BC22)-ROW(BC$12))/3,0),BC21) ->  | BD22: 0 | BE22: 0 | BF22: =IF(COUNTIF($BC$12:$BC22,$BC22)=3,0,IF($BC22=BF$11,INDEX($AZ$12:$AZ$25,MATCH(BF$11,$AV$12:$AV$25,0)),0)) -> 0 | BG22: =IF(COUNTIF($BC$12:$BC22,$BC22)=3,0,IF($BC22=BG$11,INDEX($AZ$12:$AZ$25,MATCH(BG$11,$AV$12:$AV$25,0)),0)) -> 0 | BH22: =IF(COUNTIF($BC$12:$BC22,$BC22)=3,0,IF($BC22=BH$11,INDEX($AZ$12:$AZ$25,MATCH(BH$11,$AV$12:$AV$25,0)),0)) -> 0 | BI22: =IF(COUNTIF($BC$12:$BC22,$BC22)=3,0,IF($BC22=BI$11,INDEX($AZ$12:$AZ$25,MATCH(BI$11,$AV$12:$AV$25,0)),0)) -> 0 | BJ22: =IFERROR(IF(COUNTIF($BC$12:$BC22,$BC22)=3,0,IF($BC22=BJ$11,INDEX($AZ$12:$AZ$25,MATCH(BJ$11,$AV$12:$AV$25,0)),0)),BJ21) -> 0 | BK22: =IFERROR(IF(COUNTIF($BC$12:$BC22,$BC22)=3,0,IF($BC22=BK$11,INDEX($AZ$12:$AZ$25,MATCH(BK$11,$AV$12:$AV$25,0)),0)),BK21) -> 0 | BL22: =IFERROR(IF(COUNTIF($BC$12:$BC22,$BC22)=3,0,IF($BC22=BL$11,INDEX($AZ$12:$AZ$25,MATCH(BL$11,$AV$12:$AV$25,0)),0)),BL21) -> 0 | BM22: =IFERROR(IF(COUNTIF($BC$12:$BC22,$BC22)=3,0,IF($BC22=BM$11,INDEX($AZ$12:$AZ$25,MATCH(BM$11,$AV$12:$AV$25,0)),0)),BM21) -> 0
BC23: =IF(COUNTIF(BC$11:BC22,BC22)=3,OFFSET($AV$12,(ROW(BC23)-ROW(BC$12))/3,0),BC22) ->  | BD23: 0 | BE23: 0 | BF23: =IF(COUNTIF($BC$12:$BC23,$BC23)=3,0,IF($BC23=BF$11,INDEX($AZ$12:$AZ$25,MATCH(BF$11,$AV$12:$AV$25,0)),0)) -> 0 | BG23: =IF(COUNTIF($BC$12:$BC23,$BC23)=3,0,IF($BC23=BG$11,INDEX($AZ$12:$AZ$25,MATCH(BG$11,$AV$12:$AV$25,0)),0)) -> 0 | BH23: =IF(COUNTIF($BC$12:$BC23,$BC23)=3,0,IF($BC23=BH$11,INDEX($AZ$12:$AZ$25,MATCH(BH$11,$AV$12:$AV$25,0)),0)) -> 0 | BI23: =IF(COUNTIF($BC$12:$BC23,$BC23)=3,0,IF($BC23=BI$11,INDEX($AZ$12:$AZ$25,MATCH(BI$11,$AV$12:$AV$25,0)),0)) -> 0 | BJ23: =IFERROR(IF(COUNTIF($BC$12:$BC23,$BC23)=3,0,IF($BC23=BJ$11,INDEX($AZ$12:$AZ$25,MATCH(BJ$11,$AV$12:$AV$25,0)),0)),BJ22) -> 0 | BK23: =IFERROR(IF(COUNTIF($BC$12:$BC23,$BC23)=3,0,IF($BC23=BK$11,INDEX($AZ$12:$AZ$25,MATCH(BK$11,$AV$12:$AV$25,0)),0)),BK22) -> 0 | BL23: =IFERROR(IF(COUNTIF($BC$12:$BC23,$BC23)=3,0,IF($BC23=BL$11,INDEX($AZ$12:$AZ$25,MATCH(BL$11,$AV$12:$AV$25,0)),0)),BL22) -> 0 | BM23: =IFERROR(IF(COUNTIF($BC$12:$BC23,$BC23)=3,0,IF($BC23=BM$11,INDEX($AZ$12:$AZ$25,MATCH(BM$11,$AV$12:$AV$25,0)),0)),BM22) -> 0
BC24: =IFERROR(IF(COUNTIF(BC$11:BC23,BC23)=3,OFFSET($AV$12,(ROW(BC24)-ROW(BC$12))/3,0),BC23),"") ->  | BD24: 0 | BE24: 0 | BF24: =IFERROR(IF(COUNTIF($BC$12:$BC24,$BC24)=3,0,IF($BC24=BF$11,INDEX($AZ$12:$AZ$25,MATCH(BF$11,$AV$12:$AV$25,0)),0)),BF23) -> 0 | BG24: =IFERROR(IF(COUNTIF($BC$12:$BC24,$BC24)=3,0,IF($BC24=BG$11,INDEX($AZ$12:$AZ$25,MATCH(BG$11,$AV$12:$AV$25,0)),0)),BG23) -> 0 | BH24: =IFERROR(IF(COUNTIF($BC$12:$BC24,$BC24)=3,0,IF($BC24=BH$11,INDEX($AZ$12:$AZ$25,MATCH(BH$11,$AV$12:$AV$25,0)),0)),BH23) -> 0 | BI24: =IFERROR(IF(COUNTIF($BC$12:$BC24,$BC24)=3,0,IF($BC24=BI$11,INDEX($AZ$12:$AZ$25,MATCH(BI$11,$AV$12:$AV$25,0)),0)),BI23) -> 0 | BJ24: =IFERROR(IF(COUNTIF($BC$12:$BC24,$BC24)=3,0,IF($BC24=BJ$11,INDEX($AZ$12:$AZ$25,MATCH(BJ$11,$AV$12:$AV$25,0)),0)),BJ23) -> 0 | BK24: =IFERROR(IF(COUNTIF($BC$12:$BC24,$BC24)=3,0,IF($BC24=BK$11,INDEX($AZ$12:$AZ$25,MATCH(BK$11,$AV$12:$AV$25,0)),0)),BK23) -> 0 | BL24: =IFERROR(IF(COUNTIF($BC$12:$BC24,$BC24)=3,0,IF($BC24=BL$11,INDEX($AZ$12:$AZ$25,MATCH(BL$11,$AV$12:$AV$25,0)),0)),BL23) -> 0 | BM24: =IFERROR(IF(COUNTIF($BC$12:$BC24,$BC24)=3,0,IF($BC24=BM$11,INDEX($AZ$12:$AZ$25,MATCH(BM$11,$AV$12:$AV$25,0)),0)),BM23) -> 0
BC25: =IFERROR(IF(COUNTIF(BC$11:BC24,BC24)=3,OFFSET($AV$12,(ROW(BC25)-ROW(BC$12))/3,0),BC24),"") ->  | BD25: =IFERROR(INDEX($BA$12:$BA$25,MATCH(BC24,$AV$12:$AV$25,0)),BD24) -> 0 | BE25: 0 | BF25: =IFERROR(IF(COUNTIF($BC$12:$BC25,$BC25)=3,0,IF($BC25=BF$11,INDEX($AZ$12:$AZ$25,MATCH(BF$11,$AV$12:$AV$25,0)),0)),BF24) -> 0 | BG25: =IFERROR(IF(COUNTIF($BC$12:$BC25,$BC25)=3,0,IF($BC25=BG$11,INDEX($AZ$12:$AZ$25,MATCH(BG$11,$AV$12:$AV$25,0)),0)),BG24) -> 0 | BH25: =IFERROR(IF(COUNTIF($BC$12:$BC25,$BC25)=3,0,IF($BC25=BH$11,INDEX($AZ$12:$AZ$25,MATCH(BH$11,$AV$12:$AV$25,0)),0)),BH24) -> 0 | BI25: =IFERROR(IF(COUNTIF($BC$12:$BC25,$BC25)=3,0,IF($BC25=BI$11,INDEX($AZ$12:$AZ$25,MATCH(BI$11,$AV$12:$AV$25,0)),0)),BI24) -> 0 | BJ25: =IFERROR(IF(COUNTIF($BC$12:$BC25,$BC25)=3,0,IF($BC25=BJ$11,INDEX($AZ$12:$AZ$25,MATCH(BJ$11,$AV$12:$AV$25,0)),0)),BJ24) -> 0 | BK25: =IFERROR(IF(COUNTIF($BC$12:$BC25,$BC25)=3,0,IF($BC25=BK$11,INDEX($AZ$12:$AZ$25,MATCH(BK$11,$AV$12:$AV$25,0)),0)),BK24) -> 0 | BL25: =IFERROR(IF(COUNTIF($BC$12:$BC25,$BC25)=3,0,IF($BC25=BL$11,INDEX($AZ$12:$AZ$25,MATCH(BL$11,$AV$12:$AV$25,0)),0)),BL24) -> 0 | BM25: =IFERROR(IF(COUNTIF($BC$12:$BC25,$BC25)=3,0,IF($BC25=BM$11,INDEX($AZ$12:$AZ$25,MATCH(BM$11,$AV$12:$AV$25,0)),0)),BM24) -> 0
BC26: =IFERROR(IF(COUNTIF(BC$11:BC25,BC25)=3,OFFSET($AV$12,(ROW(BC26)-ROW(BC$12))/3,0),BC25),"") ->  | BD26: =IFERROR(INDEX($BA$12:$BA$25,MATCH(BC25,$AV$12:$AV$25,0)),BD25) -> 0 | BE26: 0 | BF26: =IFERROR(IF(COUNTIF($BC$12:$BC26,$BC26)=3,0,IF($BC26=BF$11,INDEX($AZ$12:$AZ$25,MATCH(BF$11,$AV$12:$AV$25,0)),0)),BF25) -> 0 | BG26: =IFERROR(IF(COUNTIF($BC$12:$BC26,$BC26)=3,0,IF($BC26=BG$11,INDEX($AZ$12:$AZ$25,MATCH(BG$11,$AV$12:$AV$25,0)),0)),BG25) -> 0 | BH26: =IFERROR(IF(COUNTIF($BC$12:$BC26,$BC26)=3,0,IF($BC26=BH$11,INDEX($AZ$12:$AZ$25,MATCH(BH$11,$AV$12:$AV$25,0)),0)),BH25) -> 0 | BI26: =IFERROR(IF(COUNTIF($BC$12:$BC26,$BC26)=3,0,IF($BC26=BI$11,INDEX($AZ$12:$AZ$25,MATCH(BI$11,$AV$12:$AV$25,0)),0)),BI25) -> 0 | BJ26: =IFERROR(IF(COUNTIF($BC$12:$BC26,$BC26)=3,0,IF($BC26=BJ$11,INDEX($AZ$12:$AZ$25,MATCH(BJ$11,$AV$12:$AV$25,0)),0)),BJ25) -> 0 | BK26: =IFERROR(IF(COUNTIF($BC$12:$BC26,$BC26)=3,0,IF($BC26=BK$11,INDEX($AZ$12:$AZ$25,MATCH(BK$11,$AV$12:$AV$25,0)),0)),BK25) -> 0 | BL26: =IFERROR(IF(COUNTIF($BC$12:$BC26,$BC26)=3,0,IF($BC26=BL$11,INDEX($AZ$12:$AZ$25,MATCH(BL$11,$AV$12:$AV$25,0)),0)),BL25) -> 0 | BM26: =IFERROR(IF(COUNTIF($BC$12:$BC26,$BC26)=3,0,IF($BC26=BM$11,INDEX($AZ$12:$AZ$25,MATCH(BM$11,$AV$12:$AV$25,0)),0)),BM25) -> 0
BC27: =IFERROR(IF(COUNTIF(BC$11:BC26,BC26)=3,OFFSET($AV$12,(ROW(BC27)-ROW(BC$12))/3,0),BC26),"") ->  | BD27: 0 | BE27: 0 | BF27: =IFERROR(IF(COUNTIF($BC$12:$BC27,$BC27)=3,0,IF($BC27=BF$11,INDEX($AZ$12:$AZ$25,MATCH(BF$11,$AV$12:$AV$25,0)),0)),BF26) -> 0 | BG27: =IFERROR(IF(COUNTIF($BC$12:$BC27,$BC27)=3,0,IF($BC27=BG$11,INDEX($AZ$12:$AZ$25,MATCH(BG$11,$AV$12:$AV$25,0)),0)),BG26) -> 0 | BH27: =IFERROR(IF(COUNTIF($BC$12:$BC27,$BC27)=3,0,IF($BC27=BH$11,INDEX($AZ$12:$AZ$25,MATCH(BH$11,$AV$12:$AV$25,0)),0)),BH26) -> 0 | BI27: =IFERROR(IF(COUNTIF($BC$12:$BC27,$BC27)=3,0,IF($BC27=BI$11,INDEX($AZ$12:$AZ$25,MATCH(BI$11,$AV$12:$AV$25,0)),0)),BI26) -> 0 | BJ27: =IFERROR(IF(COUNTIF($BC$12:$BC27,$BC27)=3,0,IF($BC27=BJ$11,INDEX($AZ$12:$AZ$25,MATCH(BJ$11,$AV$12:$AV$25,0)),0)),BJ26) -> 0 | BK27: =IFERROR(IF(COUNTIF($BC$12:$BC27,$BC27)=3,0,IF($BC27=BK$11,INDEX($AZ$12:$AZ$25,MATCH(BK$11,$AV$12:$AV$25,0)),0)),BK26) -> 0 | BL27: =IFERROR(IF(COUNTIF($BC$12:$BC27,$BC27)=3,0,IF($BC27=BL$11,INDEX($AZ$12:$AZ$25,MATCH(BL$11,$AV$12:$AV$25,0)),0)),BL26) -> 0 | BM27: =IFERROR(IF(COUNTIF($BC$12:$BC27,$BC27)=3,0,IF($BC27=BM$11,INDEX($AZ$12:$AZ$25,MATCH(BM$11,$AV$12:$AV$25,0)),0)),BM26) -> 0
BC28: =IFERROR(IF(COUNTIF(BC$11:BC27,BC27)=3,OFFSET($AV$12,(ROW(BC28)-ROW(BC$12))/3,0),BC27),"") ->  | BD28: 0 | BE28: 0 | BF28: =IFERROR(IF(COUNTIF($BC$12:$BC28,$BC28)=3,0,IF($BC28=BF$11,INDEX($AZ$12:$AZ$25,MATCH(BF$11,$AV$12:$AV$25,0)),0)),BF27) -> 0 | BG28: =IFERROR(IF(COUNTIF($BC$12:$BC28,$BC28)=3,0,IF($BC28=BG$11,INDEX($AZ$12:$AZ$25,MATCH(BG$11,$AV$12:$AV$25,0)),0)),BG27) -> 0 | BH28: =IFERROR(IF(COUNTIF($BC$12:$BC28,$BC28)=3,0,IF($BC28=BH$11,INDEX($AZ$12:$AZ$25,MATCH(BH$11,$AV$12:$AV$25,0)),0)),BH27) -> 0 | BI28: =IFERROR(IF(COUNTIF($BC$12:$BC28,$BC28)=3,0,IF($BC28=BI$11,INDEX($AZ$12:$AZ$25,MATCH(BI$11,$AV$12:$AV$25,0)),0)),BI27) -> 0 | BJ28: =IFERROR(IF(COUNTIF($BC$12:$BC28,$BC28)=3,0,IF($BC28=BJ$11,INDEX($AZ$12:$AZ$25,MATCH(BJ$11,$AV$12:$AV$25,0)),0)),BJ27) -> 0 | BK28: =IFERROR(IF(COUNTIF($BC$12:$BC28,$BC28)=3,0,IF($BC28=BK$11,INDEX($AZ$12:$AZ$25,MATCH(BK$11,$AV$12:$AV$25,0)),0)),BK27) -> 0 | BL28: =IFERROR(IF(COUNTIF($BC$12:$BC28,$BC28)=3,0,IF($BC28=BL$11,INDEX($AZ$12:$AZ$25,MATCH(BL$11,$AV$12:$AV$25,0)),0)),BL27) -> 0 | BM28: =IFERROR(IF(COUNTIF($BC$12:$BC28,$BC28)=3,0,IF($BC28=BM$11,INDEX($AZ$12:$AZ$25,MATCH(BM$11,$AV$12:$AV$25,0)),0)),BM27) -> 0
BC29: =IFERROR(IF(COUNTIF(BC$11:BC28,BC28)=3,OFFSET($AV$12,(ROW(BC29)-ROW(BC$12))/3,0),BC28),"") ->  | BD29: 0 | BE29: 0 | BF29: =IFERROR(IF(COUNTIF($BC$12:$BC29,$BC29)=3,0,IF($BC29=BF$11,INDEX($AZ$12:$AZ$25,MATCH(BF$11,$AV$12:$AV$25,0)),0)),BF28) -> 0 | BG29: =IFERROR(IF(COUNTIF($BC$12:$BC29,$BC29)=3,0,IF($BC29=BG$11,INDEX($AZ$12:$AZ$25,MATCH(BG$11,$AV$12:$AV$25,0)),0)),BG28) -> 0 | BH29: =IFERROR(IF(COUNTIF($BC$12:$BC29,$BC29)=3,0,IF($BC29=BH$11,INDEX($AZ$12:$AZ$25,MATCH(BH$11,$AV$12:$AV$25,0)),0)),BH28) -> 0 | BI29: =IFERROR(IF(COUNTIF($BC$12:$BC29,$BC29)=3,0,IF($BC29=BI$11,INDEX($AZ$12:$AZ$25,MATCH(BI$11,$AV$12:$AV$25,0)),0)),BI28) -> 0 | BJ29: =IFERROR(IF(COUNTIF($BC$12:$BC29,$BC29)=3,0,IF($BC29=BJ$11,INDEX($AZ$12:$AZ$25,MATCH(BJ$11,$AV$12:$AV$25,0)),0)),BJ28) -> 0 | BK29: =IFERROR(IF(COUNTIF($BC$12:$BC29,$BC29)=3,0,IF($BC29=BK$11,INDEX($AZ$12:$AZ$25,MATCH(BK$11,$AV$12:$AV$25,0)),0)),BK28) -> 0 | BL29: =IFERROR(IF(COUNTIF($BC$12:$BC29,$BC29)=3,0,IF($BC29=BL$11,INDEX($AZ$12:$AZ$25,MATCH(BL$11,$AV$12:$AV$25,0)),0)),BL28) -> 0 | BM29: =IFERROR(IF(COUNTIF($BC$12:$BC29,$BC29)=3,0,IF($BC29=BM$11,INDEX($AZ$12:$AZ$25,MATCH(BM$11,$AV$12:$AV$25,0)),0)),BM28) -> 0
BC30: =IFERROR(IF(COUNTIF(BC$11:BC29,BC29)=3,OFFSET($AV$12,(ROW(BC30)-ROW(BC$12))/3,0),BC29),"") ->  | BD30: 0 | BE30: 0 | BF30: =IFERROR(IF(COUNTIF($BC$12:$BC30,$BC30)=3,0,IF($BC30=BF$11,INDEX($AZ$12:$AZ$25,MATCH(BF$11,$AV$12:$AV$25,0)),0)),BF29) -> 0 | BG30: =IFERROR(IF(COUNTIF($BC$12:$BC30,$BC30)=3,0,IF($BC30=BG$11,INDEX($AZ$12:$AZ$25,MATCH(BG$11,$AV$12:$AV$25,0)),0)),BG29) -> 0 | BH30: =IFERROR(IF(COUNTIF($BC$12:$BC30,$BC30)=3,0,IF($BC30=BH$11,INDEX($AZ$12:$AZ$25,MATCH(BH$11,$AV$12:$AV$25,0)),0)),BH29) -> 0 | BI30: =IFERROR(IF(COUNTIF($BC$12:$BC30,$BC30)=3,0,IF($BC30=BI$11,INDEX($AZ$12:$AZ$25,MATCH(BI$11,$AV$12:$AV$25,0)),0)),BI29) -> 0 | BJ30: =IFERROR(IF(COUNTIF($BC$12:$BC30,$BC30)=3,0,IF($BC30=BJ$11,INDEX($AZ$12:$AZ$25,MATCH(BJ$11,$AV$12:$AV$25,0)),0)),BJ29) -> 0 | BK30: =IFERROR(IF(COUNTIF($BC$12:$BC30,$BC30)=3,0,IF($BC30=BK$11,INDEX($AZ$12:$AZ$25,MATCH(BK$11,$AV$12:$AV$25,0)),0)),BK29) -> 0 | BL30: =IFERROR(IF(COUNTIF($BC$12:$BC30,$BC30)=3,0,IF($BC30=BL$11,INDEX($AZ$12:$AZ$25,MATCH(BL$11,$AV$12:$AV$25,0)),0)),BL29) -> 0 | BM30: =IFERROR(IF(COUNTIF($BC$12:$BC30,$BC30)=3,0,IF($BC30=BM$11,INDEX($AZ$12:$AZ$25,MATCH(BM$11,$AV$12:$AV$25,0)),0)),BM29) -> 0
BC31: =IFERROR(IF(COUNTIF(BC$11:BC30,BC30)=3,OFFSET($AV$12,(ROW(BC31)-ROW(BC$12))/3,0),BC30),"") ->  | BD31: 0 | BE31: 0 | BF31: =IFERROR(IF(COUNTIF($BC$12:$BC31,$BC31)=3,0,IF($BC31=BF$11,INDEX($AZ$12:$AZ$25,MATCH(BF$11,$AV$12:$AV$25,0)),0)),BF30) -> 0 | BG31: =IFERROR(IF(COUNTIF($BC$12:$BC31,$BC31)=3,0,IF($BC31=BG$11,INDEX($AZ$12:$AZ$25,MATCH(BG$11,$AV$12:$AV$25,0)),0)),BG30) -> 0 | BH31: =IFERROR(IF(COUNTIF($BC$12:$BC31,$BC31)=3,0,IF($BC31=BH$11,INDEX($AZ$12:$AZ$25,MATCH(BH$11,$AV$12:$AV$25,0)),0)),BH30) -> 0 | BI31: =IFERROR(IF(COUNTIF($BC$12:$BC31,$BC31)=3,0,IF($BC31=BI$11,INDEX($AZ$12:$AZ$25,MATCH(BI$11,$AV$12:$AV$25,0)),0)),BI30) -> 0 | BJ31: =IFERROR(IF(COUNTIF($BC$12:$BC31,$BC31)=3,0,IF($BC31=BJ$11,INDEX($AZ$12:$AZ$25,MATCH(BJ$11,$AV$12:$AV$25,0)),0)),BJ30) -> 0 | BK31: =IFERROR(IF(COUNTIF($BC$12:$BC31,$BC31)=3,0,IF($BC31=BK$11,INDEX($AZ$12:$AZ$25,MATCH(BK$11,$AV$12:$AV$25,0)),0)),BK30) -> 0 | BL31: =IFERROR(IF(COUNTIF($BC$12:$BC31,$BC31)=3,0,IF($BC31=BL$11,INDEX($AZ$12:$AZ$25,MATCH(BL$11,$AV$12:$AV$25,0)),0)),BL30) -> 0 | BM31: =IFERROR(IF(COUNTIF($BC$12:$BC31,$BC31)=3,0,IF($BC31=BM$11,INDEX($AZ$12:$AZ$25,MATCH(BM$11,$AV$12:$AV$25,0)),0)),BM30) -> 0
BC32: =IFERROR(IF(COUNTIF(BC$11:BC31,BC31)=3,OFFSET($AV$12,(ROW(BC32)-ROW(BC$12))/3,0),BC31),"") ->  | BD32: 0 | BE32: 0 | BF32: =IFERROR(IF(COUNTIF($BC$12:$BC32,$BC32)=3,0,IF($BC32=BF$11,INDEX($AZ$12:$AZ$25,MATCH(BF$11,$AV$12:$AV$25,0)),0)),BF31) -> 0 | BG32: =IFERROR(IF(COUNTIF($BC$12:$BC32,$BC32)=3,0,IF($BC32=BG$11,INDEX($AZ$12:$AZ$25,MATCH(BG$11,$AV$12:$AV$25,0)),0)),BG31) -> 0 | BH32: =IFERROR(IF(COUNTIF($BC$12:$BC32,$BC32)=3,0,IF($BC32=BH$11,INDEX($AZ$12:$AZ$25,MATCH(BH$11,$AV$12:$AV$25,0)),0)),BH31) -> 0 | BI32: =IFERROR(IF(COUNTIF($BC$12:$BC32,$BC32)=3,0,IF($BC32=BI$11,INDEX($AZ$12:$AZ$25,MATCH(BI$11,$AV$12:$AV$25,0)),0)),BI31) -> 0 | BJ32: =IFERROR(IF(COUNTIF($BC$12:$BC32,$BC32)=3,0,IF($BC32=BJ$11,INDEX($AZ$12:$AZ$25,MATCH(BJ$11,$AV$12:$AV$25,0)),0)),BJ31) -> 0 | BK32: =IFERROR(IF(COUNTIF($BC$12:$BC32,$BC32)=3,0,IF($BC32=BK$11,INDEX($AZ$12:$AZ$25,MATCH(BK$11,$AV$12:$AV$25,0)),0)),BK31) -> 0 | BL32: =IFERROR(IF(COUNTIF($BC$12:$BC32,$BC32)=3,0,IF($BC32=BL$11,INDEX($AZ$12:$AZ$25,MATCH(BL$11,$AV$12:$AV$25,0)),0)),BL31) -> 0 | BM32: =IFERROR(IF(COUNTIF($BC$12:$BC32,$BC32)=3,0,IF($BC32=BM$11,INDEX($AZ$12:$AZ$25,MATCH(BM$11,$AV$12:$AV$25,0)),0)),BM31) -> 0
BC33: =IFERROR(IF(COUNTIF(BC$11:BC32,BC32)=3,OFFSET($AV$12,(ROW(BC33)-ROW(BC$12))/3,0),BC32),"") ->  | BD33: 0 | BE33: 0 | BF33: =IFERROR(IF(COUNTIF($BC$12:$BC33,$BC33)=3,0,IF($BC33=BF$11,INDEX($AZ$12:$AZ$25,MATCH(BF$11,$AV$12:$AV$25,0)),0)),BF32) -> 0 | BG33: =IFERROR(IF(COUNTIF($BC$12:$BC33,$BC33)=3,0,IF($BC33=BG$11,INDEX($AZ$12:$AZ$25,MATCH(BG$11,$AV$12:$AV$25,0)),0)),BG32) -> 0 | BH33: =IFERROR(IF(COUNTIF($BC$12:$BC33,$BC33)=3,0,IF($BC33=BH$11,INDEX($AZ$12:$AZ$25,MATCH(BH$11,$AV$12:$AV$25,0)),0)),BH32) -> 0 | BI33: =IFERROR(IF(COUNTIF($BC$12:$BC33,$BC33)=3,0,IF($BC33=BI$11,INDEX($AZ$12:$AZ$25,MATCH(BI$11,$AV$12:$AV$25,0)),0)),BI32) -> 0 | BJ33: =IFERROR(IF(COUNTIF($BC$12:$BC33,$BC33)=3,0,IF($BC33=BJ$11,INDEX($AZ$12:$AZ$25,MATCH(BJ$11,$AV$12:$AV$25,0)),0)),BJ32) -> 0 | BK33: =IFERROR(IF(COUNTIF($BC$12:$BC33,$BC33)=3,0,IF($BC33=BK$11,INDEX($AZ$12:$AZ$25,MATCH(BK$11,$AV$12:$AV$25,0)),0)),BK32) -> 0 | BL33: =IFERROR(IF(COUNTIF($BC$12:$BC33,$BC33)=3,0,IF($BC33=BL$11,INDEX($AZ$12:$AZ$25,MATCH(BL$11,$AV$12:$AV$25,0)),0)),BL32) -> 0 | BM33: =IFERROR(IF(COUNTIF($BC$12:$BC33,$BC33)=3,0,IF($BC33=BM$11,INDEX($AZ$12:$AZ$25,MATCH(BM$11,$AV$12:$AV$25,0)),0)),BM32) -> 0
BC34: =IFERROR(IF(COUNTIF(BC$11:BC33,BC33)=3,OFFSET($AV$12,(ROW(BC34)-ROW(BC$12))/3,0),BC33),"") ->  | BD34: 0 | BE34: 0 | BF34: =IFERROR(IF(COUNTIF($BC$12:$BC34,$BC34)=3,0,IF($BC34=BF$11,INDEX($AZ$12:$AZ$25,MATCH(BF$11,$AV$12:$AV$25,0)),0)),BF33) -> 0 | BG34: =IFERROR(IF(COUNTIF($BC$12:$BC34,$BC34)=3,0,IF($BC34=BG$11,INDEX($AZ$12:$AZ$25,MATCH(BG$11,$AV$12:$AV$25,0)),0)),BG33) -> 0 | BH34: =IFERROR(IF(COUNTIF($BC$12:$BC34,$BC34)=3,0,IF($BC34=BH$11,INDEX($AZ$12:$AZ$25,MATCH(BH$11,$AV$12:$AV$25,0)),0)),BH33) -> 0 | BI34: =IFERROR(IF(COUNTIF($BC$12:$BC34,$BC34)=3,0,IF($BC34=BI$11,INDEX($AZ$12:$AZ$25,MATCH(BI$11,$AV$12:$AV$25,0)),0)),BI33) -> 0 | BJ34: =IFERROR(IF(COUNTIF($BC$12:$BC34,$BC34)=3,0,IF($BC34=BJ$11,INDEX($AZ$12:$AZ$25,MATCH(BJ$11,$AV$12:$AV$25,0)),0)),BJ33) -> 0 | BK34: =IFERROR(IF(COUNTIF($BC$12:$BC34,$BC34)=3,0,IF($BC34=BK$11,INDEX($AZ$12:$AZ$25,MATCH(BK$11,$AV$12:$AV$25,0)),0)),BK33) -> 0 | BL34: =IFERROR(IF(COUNTIF($BC$12:$BC34,$BC34)=3,0,IF($BC34=BL$11,INDEX($AZ$12:$AZ$25,MATCH(BL$11,$AV$12:$AV$25,0)),0)),BL33) -> 0 | BM34: =IFERROR(IF(COUNTIF($BC$12:$BC34,$BC34)=3,0,IF($BC34=BM$11,INDEX($AZ$12:$AZ$25,MATCH(BM$11,$AV$12:$AV$25,0)),0)),BM33) -> 0
BC35: =IFERROR(IF(COUNTIF(BC$11:BC34,BC34)=3,OFFSET($AV$12,(ROW(BC35)-ROW(BC$12))/3,0),BC34),"") ->  | BD35: 0 | BE35: 0 | BF35: =IFERROR(IF(COUNTIF($BC$12:$BC35,$BC35)=3,0,IF($BC35=BF$11,INDEX($AZ$12:$AZ$25,MATCH(BF$11,$AV$12:$AV$25,0)),0)),BF34) -> 0 | BG35: =IFERROR(IF(COUNTIF($BC$12:$BC35,$BC35)=3,0,IF($BC35=BG$11,INDEX($AZ$12:$AZ$25,MATCH(BG$11,$AV$12:$AV$25,0)),0)),BG34) -> 0 | BH35: =IFERROR(IF(COUNTIF($BC$12:$BC35,$BC35)=3,0,IF($BC35=BH$11,INDEX($AZ$12:$AZ$25,MATCH(BH$11,$AV$12:$AV$25,0)),0)),BH34) -> 0 | BI35: =IFERROR(IF(COUNTIF($BC$12:$BC35,$BC35)=3,0,IF($BC35=BI$11,INDEX($AZ$12:$AZ$25,MATCH(BI$11,$AV$12:$AV$25,0)),0)),BI34) -> 0 | BJ35: =IFERROR(IF(COUNTIF($BC$12:$BC35,$BC35)=3,0,IF($BC35=BJ$11,INDEX($AZ$12:$AZ$25,MATCH(BJ$11,$AV$12:$AV$25,0)),0)),BJ34) -> 0 | BK35: =IFERROR(IF(COUNTIF($BC$12:$BC35,$BC35)=3,0,IF($BC35=BK$11,INDEX($AZ$12:$AZ$25,MATCH(BK$11,$AV$12:$AV$25,0)),0)),BK34) -> 0 | BL35: =IFERROR(IF(COUNTIF($BC$12:$BC35,$BC35)=3,0,IF($BC35=BL$11,INDEX($AZ$12:$AZ$25,MATCH(BL$11,$AV$12:$AV$25,0)),0)),BL34) -> 0 | BM35: =IFERROR(IF(COUNTIF($BC$12:$BC35,$BC35)=3,0,IF($BC35=BM$11,INDEX($AZ$12:$AZ$25,MATCH(BM$11,$AV$12:$AV$25,0)),0)),BM34) -> 0

Sheet Risk_Factors
A2: Factors Affecting the Risk of Non Compliance and Complaints Related to Dust Emissions
C4: S: | D4: Factor related to the source of emissions (i.e., affects the amount of fugitive dust emitted).
C5: P: | D5: Factor related to the path of emissions between the source and receptors (i.e., affects dispersion)
C6: R: | D6: Factors related to the impact of the dust on the receptors
I7: Weights | O7: Risk Score
D8: Factor | E8: Possible Conditions | F8: Description | G8: Points | H8: Points Normalized | I8: =D123 -> Unpaved road / area | J8: =D124 -> Paved road / area | K8: =D125 -> Material stockpile | L8: =D126 -> Material transfer (drop operations) | M8: =D127 -> Material transport (conveying, trucks) | N8: =D128 -> Process | O8: =I8 -> Unpaved road / area | P8: =J8 -> Paved road / area | Q8: Material stockpile | R8: Material transfer (drop operations) | S8: Material transport (conveying, trucks) | T8: =N8 -> Process
B10: Steady Conditions | O10: =SUM(O12,O15,O18,O20,O23,O26,O29,O32,O35,O38,O41,O48,O50,O52,O55,O58,O64,O71,O73,O77) -> 0.5424098806 | P10: =SUM(P12,P15,P18,P20,P23,P26,P29,P32,P35,P38,P41,P48,P50,P52,P55,P58,P64,P71,P73,P77) -> 0.37946547 | Q10: 0.3932791913 | R10: 0.3314895592 | S10: 0.3687342942 | T10: 0.6129539037
O11: ='Problem Hierarchy'!V70 -> 0.167923125 | P11: ='Problem Hierarchy'!V45 -> 0.0503769375 | Q11: ='Problem Hierarchy'!V131 -> 0.05224275 | R11: ='Problem Hierarchy'!AA112 -> 0.000772446375 | S11: ='Problem Hierarchy'!V95 -> 0.0342065625 | T11: ='Problem Hierarchy'!V150 -> 0.3003958125
C12: S | D12: Frequency of process / activity that generate fugitive dust: | E12: Continuous | F12: More than once a hour (>= 10 min duration) | G12: 10 | H12: =G12/MAX(G12:G14) -> 1 | I12: =I85*I91*I92 -> 0.06 | J12: =J85*J91*J92 -> 0.012 | K12: 0.048 | L12: 0.018 | M12: 0.006 | N12: 0.015 | O12: ='Problem Hierarchy'!AF92 -> 0.04211511975 | P12: ='Problem Hierarchy'!AF65 -> 0.01408755793 | Q12: ='Problem Hierarchy'!AF142 -> 0.0088394733 | R12: ='Problem Hierarchy'!AF127 -> 0.004695130575 | S12: ='Problem Hierarchy'!AF108 -> 0.01235541038 | T12: ='Problem Hierarchy'!AF158 -> 0.1317536034
E13: Intermittent | F13: From once a day to once a hour (>= 10 min duration) | G13: 5 | H13: =G13/MAX(G12:G14) -> 0.5 | O13: ='Problem Hierarchy'!AF91 -> 0.02105755987 | P13: ='Problem Hierarchy'!AF66 -> 0.005705792695 | Q13: ='Problem Hierarchy'!AF143 -> 0.00441973665 | R13: ='Problem Hierarchy'!AF128 -> 0.002347565288 | S13: ='Problem Hierarchy'!AF109 -> 0.006177705188 | T13: ='Problem Hierarchy'!AF159 -> 0.06587680168
E14: Sporadic | F14: Less than once a day (>= 10 min duration) | G14: 1 | H14: =G14/MAX(G12:G14) -> 0.1 | O14: ='Problem Hierarchy'!AF90 -> 0.007019186625 | P14: ='Problem Hierarchy'!AF67 -> 0.002322124934 | Q14: ='Problem Hierarchy'!AF144 -> 0.00147324555 | R14: ='Problem Hierarchy'!AF129 -> 0.0007825217625 | S14: ='Problem Hierarchy'!AF110 -> 0.002059235063 | T14: ='Problem Hierarchy'!AF160 -> 0.02195893389
C15: P | D15: Position of the source related to sensible areas (e.g.: communities, working areas): | E15: Close | F15: < 200 m | G15: 10 | H15: =G15/MAX(G15:G17) -> 1 | I15: =I86*I109 -> 0.09 | J15: 0.09 | K15: 0.09 | L15: 0.09 | M15: 0.09 | N15: 0.09 | O15: ='Problem Hierarchy'!AF25 -> 0.05606808025 | P15: =$O15 -> 0.05606808025 | Q15: =$O15 -> 0.05606808025 | R15: 0.05606808025 | S15: 0.05606808025 | T15: 0.05606808025
E16: Medium | F16: 200 m to 2 km | G16: 5 | H16: =G16/MAX(G15:G17) -> 0.5 | O16: ='Problem Hierarchy'!AF26 -> 0.0146395795 | P16: =$O16 -> 0.0146395795 | Q16: 0.0146395795 | R16: 0.0146395795 | S16: 0.0146395795 | T16: 0.0146395795
E17: Far | F17: > 2 km | G17: 1 | H17: =G17/MAX(G15:G17) -> 0.1 | O17: ='Problem Hierarchy'!AF27 -> 0.00475409025 | P17: 0.00475409025 | Q17: 0.00475409025 | R17: 0.00475409025 | S17: 0.00475409025 | T17: 0.00475409025
C18: P | D18: Predominant wind direction is from the source to the closest sensible area? | E18: Yes | G18: 1 | H18: =G18/MAX(G18:G19) -> 1 | I18: =I86*I110 -> 0.03 | J18: 0.03 | K18: 0.03 | L18: 0.03 | M18: 0.03 | N18: 0.03 | O18: ='Problem Hierarchy'!AF36 -> 0.07220694375 | P18: 0.07220694375 | Q18: 0.07220694375 | R18: 0.07220694375 | S18: 0.07220694375 | T18: 0.07220694375
E19: No | G19: 0 | H19: =G19/MAX(G18:G19) -> 0 | O19: ='Problem Hierarchy'!AF37 -> 0.00802299375 | P19: 0.00802299375 | Q19: 0.00802299375 | R19: 0.00802299375 | S19: 0.00802299375 | T19: 0.00802299375
C20: S | D20: Relative amount of dust generated in the process / activity: | E20: High | F20: Clearly visible, reaching areas outside the source. | G20: 10 | H20: 0.637 | I20: =I85*I91*I93 -> 0.03 | J20: =J85*J91*J93 -> 0.006 | K20: 0.012 | L20: 0.006 | M20: 0.003 | N20: 0 | O20: =$H20*O$11*$U$20 -> 0.02139340613 | P20: =$H20*P$11*$U$20 -> 0.006418021838 | Q20: 0.00665572635 | R20: 9.840966818e-05 | S20: 0.004357916063 | T20: 0.03827042651 | U20: 0.2
E21: Medium | F21: Visible, reaching areas outside the source. | G21: 5 | H21: 0.258 | O21: =$H21*O$11*$U$20 -> 0.00866483325 | P21: 0.002599449975 | Q21: 0.0026957259 | R21: 3.985823295e-05 | S21: 0.001765058625 | T21: 0.01550042393
E22: Low | F22: Almost not visible, limited to the source area. | G22: 1 | H22: 0.105 | O22: 0.003526385625 | P22: 0.001057915688 | Q22: 0.00109709775 | R22: 1.622137387e-05 | S22: 0.0007183378125 | T22: 0.006308312063
C23: R | D23: Dust composition | E23: Heavy metals | F23: Presence of heavy metals | G23: 10 | H23: =G23/MAX(G23:G25) -> 1 | I23: =I87*I117 -> 0.06 | J23: 0.06 | K23: 0.06 | L23: 0.06 | M23: 0.06 | N23: 0.06 | O23: ='Problem Hierarchy'!AF9 -> 0.027475 | P23: =$O23 -> 0.027475 | Q23: 0.027475 | R23: 0.027475 | S23: 0.027475 | T23: 0.027475
E24: Metals | F24: Presence of metals | G24: 5 | H24: =G24/MAX(G23:G25) -> 0.5 | O24: ='Problem Hierarchy'!AF10 -> 0.027475 | P24: 0.027475 | Q24: 0.027475 | R24: 0.027475 | S24: 0.027475 | T24: 0.027475
E25: No metals | G25: 1 | H25: =G25/MAX(G23:G25) -> 0.1 | O25: ='Problem Hierarchy'!AF11 -> 0.00231 | P25: 0.00231 | Q25: 0.00231 | R25: 0.00231 | S25: 0.00231 | T25: 0.00231
C26: S, R | D26: Dust size range (higher mass percentage) | E26: Fine | F26: < 30 µm (in case size distrubution is available) | G26: 10 | H26: =G26/MAX(G26:G28) -> 1 | I26: =I85*I91*I94+I86*I94 -> 0.06 | J26: =J85*J91*J94+J86*J94 -> 0.036 | K26: 0 | L26: 0 | M26: 0.033 | N26: 0.165 | O26: =SUM('Problem Hierarchy'!AF13,'Problem Hierarchy'!AF21,'Problem Hierarchy'!AF86) -> 0.04598208069 | P26: =SUM('Problem Hierarchy'!AF13,'Problem Hierarchy'!AF21,'Problem Hierarchy'!AF61) -> 0.04505909123 | Q26: =SUM('Problem Hierarchy'!AF13,'Problem Hierarchy'!AF21,'Problem Hierarchy'!AF138) -> 0.04513686763 | R26: =SUM('Problem Hierarchy'!AF13,'Problem Hierarchy'!AF21,'Problem Hierarchy'!AF119) -> 0.04463701646 | S26: =SUM('Problem Hierarchy'!AF13,'Problem Hierarchy'!AF21) -> 0.04458831875 | T26: =SUM('Problem Hierarchy'!AF13,'Problem Hierarchy'!AF21,'Problem Hierarchy'!AF150) -> 0.04702152483
E27: Medium | F27: 30 to 100 µm (in case size distrubution is available) | G27: 5 | H27: =G27/MAX(G26:G28) -> 0.5 | O27: =SUM('Problem Hierarchy'!AF14,'Problem Hierarchy'!AF22,'Problem Hierarchy'!AF87) -> 0.01601786206 | P27: =SUM('Problem Hierarchy'!AF14,'Problem Hierarchy'!AF22,'Problem Hierarchy'!AF62) -> 0.01299333149 | Q27: =SUM('Problem Hierarchy'!AF14,'Problem Hierarchy'!AF22,'Problem Hierarchy'!AF139) -> 0.01348222287 | R27: =SUM('Problem Hierarchy'!AF14,'Problem Hierarchy'!AF22,'Problem Hierarchy'!AF120) -> 0.01198266937 | S27: =SUM('Problem Hierarchy'!AF14,'Problem Hierarchy'!AF22) -> 0.01183657625 | T27: =SUM('Problem Hierarchy'!AF14,'Problem Hierarchy'!AF22,'Problem Hierarchy'!AF151) -> 0.01913619449
E28: Coarse | F28: > 100 µm (in case size distrubution is available) | G28: 1 | H28: =G28/MAX(G26:G28) -> 0.1 | O28: =SUM('Problem Hierarchy'!AF15,'Problem Hierarchy'!AF23,'Problem Hierarchy'!AF88) -> 0.01337642662 | P28: =SUM('Problem Hierarchy'!AF15,'Problem Hierarchy'!AF23,'Problem Hierarchy'!AF63) -> 0.007869874718 | Q28: =SUM('Problem Hierarchy'!AF15,'Problem Hierarchy'!AF23,'Problem Hierarchy'!AF140) -> 0.00830514825 | R28: =SUM('Problem Hierarchy'!AF15,'Problem Hierarchy'!AF23,'Problem Hierarchy'!AF121) -> 0.005306041237 | S28: =SUM('Problem Hierarchy'!AF15,'Problem Hierarchy'!AF23) -> 0.005013855 | T28: =SUM('Problem Hierarchy'!AF15,'Problem Hierarchy'!AF23,'Problem Hierarchy'!AF152) -> 0.01961309149
C29: P | D29: Is there some wind barrier (e.g.: trees, buldings, landscape) which can prevent the emissions from this source to reach the closest sensible area? | E29: No | G29: 1 | H29: =G29/MAX(G29:G30) -> 1 | I29: =I86*I111 -> 0.03 | J29: 0.03 | K29: 0.03 | L29: 0.03 | M29: 0.03 | N29: 0.03 | O29: =$H29*I29 -> 0.03 | P29: =$H29*J29 -> 0.03 | Q29: 0.03 | R29: 0.03 | S29: 0.03 | T29: 0.03
E30: Yes | G30: 0 | H30: =G30/MAX(G29:G30) -> 0 | O30: =$H30*I29 -> 0 | P30: =$H30*J29 -> 0 | Q30: 0 | R30: 0 | S30: 0 | T30: 0
C32: S | D32: Is there some measure applied on regular basis to prevent dust emission from this source? | E32: No | G32: 1 | H32: =G32/MAX(G32:G33) -> 1 | I32: =I85*I91*I103 -> 0.015 | J32: =J85*J91*J103 -> 0.003 | K32: 0.006 | L32: 0.003 | M32: 0.0015 | N32: 0.0015 | O32: =$H32*O$11*$U32 -> 0.0167923125 | P32: =$H32*P$11*$U32 -> 0.00503769375 | Q32: 0.005224275 | R32: 7.72446375e-05 | S32: 0.00342065625 | T32: 0.03003958125 | U32: 0.1
E33: Yes | G33: 0 | H33: =G33/MAX(G32:G33) -> 0 | O33: =$H33*I32 -> 0 | P33: =$H33*J32 -> 0 | Q33: 0 | R33: 0 | S33: 0 | T33: 0
C35: S | D35: Is there some measure applied to this source to reduce dust emission once it occur (reactive)? | E35: No | G35: 1 | H35: =G35/MAX(G35:G36) -> 1 | I35: =I85*I91*I104 -> 0.015 | J35: =J85*J91*J104 -> 0.003 | K35: 0.006 | L35: 0.003 | M35: 0.0015 | N35: 0.0015 | O35: =$H35*O$11*$U35 -> 0.0167923125 | P35: =$H35*P$11*$U35 -> 0.00503769375 | Q35: 0.005224275 | R35: 7.72446375e-05 | S35: 0.00342065625 | T35: 0.03003958125 | U35: 0.1
E36: Yes | G36: 0 | H36: =G36/MAX(G35:G36) -> 0 | O36: =H36/1000 -> 0 | P36: =O$35 -> 0.0167923125 | Q36: =P$35 -> 0.00503769375 | R36: 0.005224275 | S36: 7.72446375e-05 | T36: 0.00342065625
C38: S | D38: Is there some monitoring procedure applied to this source related to fugitive dust control? | E38: No | G38: 1 | H38: =G38/MAX(G38:G39) -> 1 | I38: =I85*I91*I105 -> 0.015 | J38: =J85*J91*J105 -> 0.003 | K38: 0.006 | L38: 0.003 | M38: 0.0015 | N38: 0.0015 | O38: =$H38*O$11*$U38 -> 0.0167923125 | P38: =$H38*P$11*$U38 -> 0.00503769375 | Q38: 0.005224275 | R38: 7.72446375e-05 | S38: 0.00342065625 | T38: 0.03003958125 | U38: 0.1
E39: Yes | G39: 0 | H39: =G39/MAX(G38:G39) -> 0 | O39: =$H39*I38 -> 0 | P39: =$H39*J38 -> 0 | Q39: 0 | R39: 0 | S39: 0 | T39: 0
C41: S | D41: Monitoring data / information trigger some control measure? | E41: No | G41: 1 | H41: =G41/MAX(G41:G42) -> 1 | I41: =I85*I91*I106 -> 0.015 | J41: =J85*J91*J106 -> 0.003 | K41: 0.006 | L41: 0.003 | M41: 0.0015 | N41: 0.0015 | O41: =$H41*O$11*$U41 -> 0.0167923125 | P41: =$H41*P$11*$U41 -> 0.00503769375 | Q41: 0.005224275 | R41: 7.72446375e-05 | S41: 0.00342065625 | T41: 0.03003958125 | U41: 0.1
E42: Yes | G42: 0 | H42: =G42/MAX(G41:G42) -> 0 | O42: =$H42*I41 -> 0 | P42: =$H42*J41 -> 0 | Q42: 0 | R42: 0 | S42: 0 | T42: 0
B45: Variable Conditions
C47: Weather Condition
C48: S, P | D48: Precipitation: | E48: No | G48: 5 | H48: =G48/MAX(G48:G49) -> 1 | O48: =$H48*I48 -> 0 | P48: =$H48*J48 -> 0 | Q48: 0 | R48: 0 | S48: 0 | T48: 0
E49: Yes | G49: 1 | H49: =G49/MAX(G48:G49) -> 0.2 | O49: =$H49*I48 -> 0 | P49: =$H49*J48 -> 0 | Q49: 0 | R49: 0 | S49: 0 | T49: 0
C50: S | D50: Humidity: | E50: Dry | G50: 5 | H50: =G50/MAX(G50:G51) -> 1 | O50: =$H50*I50 -> 0 | P50: =$H50*J50 -> 0 | Q50: 0 | R50: 0 | S50: 0 | T50: 0
E51: Wet | G51: 1 | H51: =G51/MAX(G50:G51) -> 0.2 | O51: =$H51*I50 -> 0 | P51: =$H51*J50 -> 0 | Q51: 0 | R51: 0 | S51: 0 | T51: 0
C52: S | D52: Temperature: | E52: Hot | F52: > XX °C | G52: 4 | H52: =G52/MAX(G52:G54) -> 1 | O52: =$H52*I52 -> 0 | P52: =$H52*J52 -> 0 | Q52: 0 | R52: 0 | S52: 0 | T52: 0
E53: Moderate | F53: YY to XX °C | G53: 2 | H53: =G53/MAX(G52:G54) -> 0.5 | O53: =$H53*I52 -> 0 | P53: =$H53*J52 -> 0 | Q53: 0 | R53: 0 | S53: 0 | T53: 0
E54: Cold | F54: < YY °C | G54: 1 | H54: =G54/MAX(G52:G54) -> 0.25 | O54: =$H54*I52 -> 0 | P54: =$H54*J52 -> 0 | Q54: 0 | R54: 0 | S54: 0 | T54: 0
C55: S, P | D55: Wind speed: | E55: High | F55: > XX m/s | G55: 4 | H55: =G55/MAX(G55:G57) -> 1 | I55: =I85*I91*I96-I86*I112 -> 0 | J55: -0.024 | K55: -0.006 | L55: -0.024 | M55: -0.027 | N55: -0.03 | O55: =$H55*I55 -> 0 | P55: =$H55*J55 -> -0.024 | Q55: -0.006 | R55: -0.024 | S55: -0.027 | T55: -0.03
E56: Moderate | F56: YY to XX m/s | G56: 2 | H56: =G56/MAX(G55:G57) -> 0.5 | O56: =$H56*I55 -> 0 | P56: =$H56*J55 -> -0.012 | Q56: -0.003 | R56: -0.012 | S56: -0.0135 | T56: -0.015
E57: Low | F57: < YY m/s | G57: 1 | H57: =G57/MAX(G55:G57) -> 0.25 | O57: =$H57*I55 -> 0 | P57: =$H57*J55 -> -0.006 | Q57: -0.0015 | R57: -0.006 | S57: -0.00675 | T57: -0.0075
C58: P | D58: Wind direction is to closest sensible area? | E58: Yes | G58: 3 | H58: =G58/MAX(G58:G59) -> 1 | I58: =I86*I113 -> 0.12 | J58: 0.12 | K58: 0.12 | L58: 0.12 | M58: 0.12 | N58: 0.12 | O58: =$H58*I58 -> 0.12 | P58: =$H58*J58 -> 0.12 | Q58: 0.12 | R58: 0.12 | S58: 0.12 | T58: 0.12
E59: No | G59: 1 | H59: =G59/MAX(G58:G59) -> 0.3333333333 | O59: =$H59*I58 -> 0.04 | P59: =$H59*J58 -> 0.04 | Q59: 0.04 | R59: 0.04 | S59: 0.04 | T59: 0.04
C62: Unpaved / Paved Road
D63: Road conditions
C64: S | D64: Surface moisture | E64: Dry | G64: 5 | H64: =G64/MAX(G64:G65) -> 1 | I64: =I85*I91*I97 -> 0.03 | J64: 0.006 | K64: 0.012 | L64: 0 | M64: 0 | N64: 0 | O64: =$H64*I64 -> 0.03 | P64: =$H64*J64 -> 0.006 | Q64: 0.012 | R64: 0 | S64: 0 | T64: 0
E65: Wet | G65: 1 | H65: =G65/MAX(G64:G65) -> 0.2 | O65: =$H65*I64 -> 0.006 | P65: =$H65*J64 -> 0.0012 | Q65: 0.0024 | R65: 0 | S65: 0 | T65: 0
C66: S | D66: Dust accumulated | E66: High | G66: 10 | H66: =G66/MAX(G66:G68) -> 1 | I66: =I85*I91*I98 -> 0.03 | J66: 0.006 | K66: 0 | L66: 0 | M66: 0 | N66: 0 | O66: =$H66*I66 -> 0.03 | P66: =$H66*J66 -> 0.006 | Q66: 0 | R66: 0 | S66: 0 | T66: 0
E67: Moderate | G67: 5 | H67: =G67/MAX(G66:G68) -> 0.5 | O67: =$H67*I66 -> 0.015 | P67: =$H67*J66 -> 0.003 | Q67: 0 | R67: 0 | S67: 0 | T67: 0
E68: Low | G68: 1 | H68: =G68/MAX(G66:G68) -> 0.1 | O68: =$H68*I66 -> 0.003 | P68: =$H68*J66 -> 0.0006 | Q68: 0 | R68: 0 | S68: 0 | T68: 0
D70: Vehicles
C71: S | D71: Speed | E71: High | F71: Exceeds speed limits at the site. | G71: 5 | H71: =G71/MAX(G71:G72) -> 1 | I71: =I85*I91*I99 -> 0.03 | J71: 0.006 | K71: 0 | L71: 0 | M71: 0.009 | N71: 0 | O71: =$H71*I71 -> 0.03 | P71: =$H71*J71 -> 0.006 | Q71: 0 | R71: 0 | S71: 0.009 | T71: 0
E72: Low | F72: Meet speed limits at the site | G72: 1 | H72: =G72/MAX(G71:G72) -> 0.2 | O72: =$H72*I71 -> 0.006 | P72: =$H72*J71 -> 0.0012 | Q72: 0 | R72: 0 | S72: 0.0018 | T72: 0
C73: S | D73: Granular material exceeding bucket height | E73: Yes | G73: 5 | H73: =G73/MAX(G73:G74) -> 1 | I73: =I85*I91*I101 -> 0 | J73: 0 | K73: 0 | L73: 0 | M73: 0.006 | N73: 0 | O73: =$H73*I73 -> 0 | P73: =$H73*J73 -> 0 | Q73: 0 | R73: 0 | S73: 0.006 | T73: 0
E74: No | G74: 1 | H74: =G74/MAX(G73:G74) -> 0.2 | O74: =$H74*I73 -> 0 | P74: =$H74*J73 -> 0 | Q74: 0 | R74: 0 | S74: 0.0012 | T74: 0
D76: Visible Emissions
C77: S | D77: Visible emissions | E77: High | G77: 5 | H77: =G77/MAX(G77:G79) -> 1 | O77: =$H77*I77 -> 0 | P77: =$H77*J77 -> 0 | Q77: 0 | R77: 0 | S77: 0 | T77: 0
E78: Moderate | G78: 2 | H78: =G78/MAX(G77:G79) -> 0.4 | O78: =$H78*I77 -> 0 | P78: =$H78*J77 -> 0 | Q78: 0 | R78: 0 | S78: 0 | T78: 0
E79: Low | G79: 1 | H79: =G79/MAX(G77:G79) -> 0.2 | O79: =$H79*I77 -> 0 | P79: =$H79*J77 -> 0 | Q79: 0 | R79: 0 | S79: 0 | T79: 0
I83: Relative Importance
D84: Risk Factors | I84: =I8 -> Unpaved road / area | J84: =J8 -> Paved road / area | K84: Material stockpile | L84: Material transfer (drop operations) | M84: Material transport (conveying, trucks) | N84: Process
D85: Source | I85: 0.6 | J85: 0.6 | K85: 0.6 | L85: 0.6 | M85: 0.6 | N85: 0.6
D86: Path | I86: 0.3 | J86: 0.3 | K86: 0.3 | L86: 0.3 | M86: 0.3 | N86: 0.3
D87: Receptor | I87: 0.1 | J87: 0.1 | K87: 0.1 | L87: 0.1 | M87: 0.1 | N87: 0.1
D88: Total | I88: =SUM(I85:I87) -> 1 | J88: =SUM(J85:J87) -> 1 | K88: 1 | L88: 1 | M88: 1 | N88: 1
D90: Source Factors
D91: Relative amount of dust generated compared to other source categories at the Site: | I91: 0.5 | J91: 0.1 | K91: 0.2 | L91: 0.1 | M91: 0.05 | N91: 0.05 | O91: =SUM(I91:N91) -> 1
D92: =D12 -> Frequency of process / activity that generate fugitive dust: | I92: 0.2 | J92: 0.2 | K92: 0.4 | L92: 0.3 | M92: 0.2 | N92: 0.5
D93: =D20 -> Relative amount of dust generated in the process / activity: | I93: 0.1 | J93: 0.1 | K93: 0.1 | L93: 0.1 | M93: 0.1
D94: =D26 -> Dust size range (higher mass percentage) | I94: 0.1 | J94: 0.1 | M94: 0.1 | N94: 0.5
D95: Total surface area | I95: 0.2 | J95: 0.2 | K95: 0.2
D96: =D55 -> Wind speed: | I96: 0.1 | J96: 0.1 | K96: 0.2 | L96: 0.1 | M96: 0.1
D97: =D64 -> Surface moisture | I97: 0.1 | J97: 0.1 | K97: 0.1
D98: =D66 -> Dust accumulated | I98: 0.1 | J98: 0.1
D99: =D71 -> Speed | I99: 0.1 | J99: 0.1 | M99: 0.3
D100: Drop height | L100: 0.5
D101: =D73 -> Granular material exceeding bucket height | M101: 0.2
D102: Total | I102: =SUM(I92:I101) -> 1 | J102: 1 | K102: 1 | L102: 1 | M102: 1 | N102: 1
D103: =D32 -> Is there some measure applied on regular basis to prevent dust emission from this source? | I103: 0.05 | J103: 0.05 | K103: 0.05 | L103: 0.05 | M103: 0.05 | N103: 0.05
D104: =D35 -> Is there some measure applied to this source to reduce dust emission once it occur (reactive)? | I104: 0.05 | J104: 0.05 | K104: 0.05 | L104: 0.05 | M104: 0.05 | N104: 0.05
D105: =D38 -> Is there some monitoring procedure applied to this source related to fugitive dust control? | I105: 0.05 | J105: 0.05 | K105: 0.05 | L105: 0.05 | M105: 0.05 | N105: 0.05
D106: =D41 -> Monitoring data / information trigger some control measure? | I106: 0.05 | J106: 0.05 | K106: 0.05 | L106: 0.05 | M106: 0.05 | N106: 0.05
D108: Path Factors
D109: =D15 -> Position of the source related to sensible areas (e.g.: communities, working areas): | I109: 0.3 | J109: 0.3 | K109: 0.3 | L109: 0.3 | M109: 0.3 | N109: 0.3
D110: =D18 -> Predominant wind direction is from the source to the closest sensible area? | I110: 0.1 | J110: 0.1 | K110: 0.1 | L110: 0.1 | M110: 0.1 | N110: 0.1
D111: =D29 -> Is there some wind barrier (e.g.: trees, buldings, landscape) which can prevent the emissions from this source to reach the closest sensible area? | I111: 0.1 | J111: 0.1 | K111: 0.1 | L111: 0.1 | M111: 0.1 | N111: 0.1
D112: =D55 -> Wind speed: | I112: 0.1 | J112: 0.1 | K112: 0.1 | L112: 0.1 | M112: 0.1 | N112: 0.1
D113: =D58 -> Wind direction is to closest sensible area? | I113: 0.4 | J113: 0.4 | K113: 0.4 | L113: 0.4 | M113: 0.4 | N113: 0.4
D114: Total | I114: =SUM(I109:I113) -> 1 | J114: =SUM(J109:J113) -> 1 | K114: 1 | L114: 1 | M114: 1 | N114: 1
D116: Receptors
D117: =D23 -> Dust composition | I117: 0.6 | J117: 0.6 | K117: 0.6 | L117: 0.6 | M117: 0.6 | N117: 0.6
D118: =D26 -> Dust size range (higher mass percentage) | I118: 0.4 | J118: 0.4 | K118: 0.4 | L118: 0.4 | M118: 0.4 | N118: 0.4
D119: Total | I119: =SUM(I117:I118) -> 1 | J119: =SUM(J117:J118) -> 1 | K119: 1 | L119: 1 | M119: 1 | N119: 1
D122: Sources
D123: Unpaved road / area
D124: Paved road / area
D125: Material stockpile
D126: Material transfer (drop operations)
D127: Material transport (conveying, trucks)
D128: Process
D129: Blasting
D130: Top soil removal
D137: Factors affecting fugitive dust emission
D138: Wind speed
D139: Wind direction
D140: Material moisture
D141: Soil moisture
D142: Surface moisture
D143: Material granulometry
D144: Material density
D145: Loading conditions (drop height)
D146: Vehicle speed
D147: Conveyor speed
D148: Distribution of material in the truck bucket

Sheet Problem Hierarchy
B1: Dust Risk Hierarchy
B2: Weights calculated according to the Analytic Hierarchy Process (Saaty, Thomas L., 2008) | AH2: 0.02
B3: Level 1 | E3: Level 2 | I3: Level 3 | O3: Level 4 | T3: Level 5 | Y3: Level 6 | AD3: Alternatives
F4: =SUM(F6:F998) -> 1 | K4: =SUM(K6:K998) -> 1 | AH4: =SUM(AH6:AH998) -> 1.022243208
A6: 1 | B6: Minimize risks of non compliance and complaints | D6: 1.1 | E6: Minimize health effects | F6: =Weights!H30 -> 0.25 | H6: 1.1.1 | I6: Receptor sensitivity (health) | J6: =Weights!J36 -> 0.047 | K6: =F$6*J6 -> 0.01175 | AD6: Sensitive | AE6: =Weights!H50 -> 0.8333333333 | AF6: =K6*AE6 -> 0.009791666667 | AH6: =AF6 -> 0.009791666667
AD7: Non Sensitive | AE7: =Weights!H51 -> 0.1666666667 | AF7: =K6*AE7 -> 0.001958333333 | AH7: =AF7 -> 0.001958333333
H9: 1.1.2 | I9: Dust toxicity (composition) | J9: =Weights!J37 -> 0.14 | K9: =F$6*J9 -> 0.035 | AD9: Heavy metals | AE9: =Weights!I56 -> 0.785 | AF9: =K$9*AE9 -> 0.027475 | AH9: =AF9 -> 0.027475
AD10: Metals | AE10: =Weights!I57 -> 0.785 | AF10: =K$9*AE10 -> 0.027475 | AH10: =AF10 -> 0.027475
AD11: No metals | AE11: =Weights!I58 -> 0.066 | AF11: =K$9*AE11 -> 0.00231 | AH11: =AF11 -> 0.00231
H13: 1.1.3 | I13: Dust particle size | J13: =Weights!J38 -> 0.196 | K13: =F$6*J13 -> 0.049 | AD13: Fine | AE13: =Weights!I63 -> 0.731 | AF13: =K$13*AE13 -> 0.035819 | AH13: =AF13 -> 0.035819
AD14: Medium | AE14: =Weights!I64 -> 0.188 | AF14: =K$13*AE14 -> 0.009212 | AH14: =AF14 -> 0.009212
AD15: Coarse | AE15: =Weights!I65 -> 0.081 | AF15: =K$13*AE15 -> 0.003969 | AH15: =AF15 -> 0.003969
H16: 1.1.4 | I16: Quantity of dust at the receptor | J16: =Weights!J39 -> 0.617 | K16: =F$6*J16 -> 0.15425
D18: 1.2 | E18: Minimize aesthetic effects | F18: =Weights!H31 -> 0.75 | H18: 1.2.1 | I18: Receptor sensitivity (welfare) | J18: =Weights!H44 -> 0.1 | K18: =F18*J18 -> 0.075 | AD18: Sensitive | AE18: =Weights!H70 -> 0.75 | AF18: =K18*AE18 -> 0.05625 | AH18: =AF18 -> 0.05625
AD19: Non Sensitive | AE19: =Weights!H71 -> 0.25 | AF19: =K18*AE19 -> 0.01875 | AH19: =AF19 -> 0.01875
H21: 1.2.2 | I21: Quantity of dust at the receptor | J21: =Weights!H45 -> 0.9 | K21: =F18*J21 -> 0.675 | L21: =SUM(K16,K21) -> 0.82925 | N21: 1.2.2.1 | O21: Dispersion | P21: =Weights!H75 -> 0.25 | Q21: =L$21*P21 -> 0.2073125 | S21: 1.2.2.1.1 | T21: Dust particle size | U21: =Weights!M81 -> 0.06 | V21: =Q$21*U21 -> 0.01243875 | AD21: Fine | AE21: =Weights!I164 -> 0.705 | AF21: =V$21*AE21 -> 0.00876931875 | AH21: =AF21 -> 0.00876931875
AD22: Medium | AE22: =Weights!I165 -> 0.211 | AF22: =V$21*AE22 -> 0.00262457625 | AH22: =AF22 -> 0.00262457625
AD23: Coarse | AE23: =Weights!I166 -> 0.084 | AF23: =V$21*AE23 -> 0.001044855 | AH23: =AF23 -> 0.001044855
S25: 1.2.2.1.2 | T25: Distance source - receptor | U25: =Weights!M82 -> 0.364 | V25: =Q$21*U25 -> 0.07546175 | AD25: Close | AE25: =Weights!I171 -> 0.743 | AF25: =V$25*AE25 -> 0.05606808025 | AH25: =AF25 -> 0.05606808025
AD26: Medium | AE26: =Weights!I172 -> 0.194 | AF26: =V$25*AE26 -> 0.0146395795 | AH26: =AF26 -> 0.0146395795
AD27: Far | AE27: =Weights!I173 -> 0.063 | AF27: =V$25*AE27 -> 0.00475409025 | AH27: =AF27 -> 0.00475409025
S29: 1.2.2.1.3 | T29: Wind breaks | U29: =Weights!M83 -> 0.064 | V29: 0.013268 | AD29: No | AE29: =Weights!H178 -> 0.9 | AF29: =V$29*AE29 -> 0.0119412 | AH29: =AF29 -> 0.0119412
AD30: Yes | AE30: =Weights!H179 -> 0.1 | AF30: =V$29*AE30 -> 0.0013268 | AH30: =AF30 -> 0.0013268
S32: 1.2.2.1.4 | T32: Wind speed | U32: =Weights!M84 -> 0.049 | V32: 0.0101583125 | AD32: Low | AE32: =Weights!I184 -> 0.637 | AF32: =$V$32*AE32 -> 0.006470845063 | AH32: =AF32 -> 0.006470845063
AD33: Medium | AE33: =Weights!I185 -> 0.258 | AF33: =$V$32*AE33 -> 0.002620844625 | AH33: =AF33 -> 0.002620844625
AD34: High | AE34: =Weights!I186 -> 0.105 | AF34: 0.001066622812 | AH34: =AF34 -> 0.001066622812
S36: 1.2.2.1.5 | T36: Wind direction | U36: =Weights!M85 -> 0.387 | V36: 0.0802299375 | AD36: Yes | AE36: =Weights!H191 -> 0.9 | AF36: =$V$36*AE36 -> 0.07220694375 | AH36: =AF36 -> 0.07220694375
AD37: No | AE37: =Weights!H192 -> 0.1 | AF37: =$V$36*AE37 -> 0.00802299375 | AH37: =AF37 -> 0.00802299375
S39: 1.2.2.1.6 | T39: Atmospheric stability | U39: =Weights!M86 -> 0.043 | V39: 0.0089144375 | AD39: Stable | AE39: =Weights!H197 -> 0.8333333333 | AF39: =$V$39*AE39 -> 0.007428697917 | AH39: =AF39 -> 0.007428697917
AD40: Not stable | AE40: =Weights!H198 -> 0.1666666667 | AF40: =$V$39*AE40 -> 0.001485739583 | AH40: =AF40 -> 0.001485739583
S42: 1.2.2.1.7 | T42: Precipitation | U42: =Weights!M87 -> 0.033 | V42: 0.0068413125 | AD42: No | AE42: =Weights!H203 -> 0.75 | AF42: =$V$42*AE42 -> 0.005130984375 | AH42: =AF42 -> 0.005130984375
AD43: Yes | AE43: =Weights!H204 -> 0.25 | AF43: =$V$42*AE43 -> 0.001710328125 | AH43: =AF43 -> 0.001710328125
N45: 1.2.2.2 | O45: Emission (quantity of dust emitted) | P45: =Weights!H76 -> 0.75 | Q45: =L$21*P45 -> 0.6219375 | S45: 1.2.2.2.1 | T45: Paved roads and areas | U45: =Weights!L92 -> 0.081 | V45: =Q$45*U45 -> 0.0503769375 | X45: 1.2.2.2.1.1 | Y45: Surface silt loading | Z45: =Weights!M102 -> 0.136 | AA45: =$V$45*Z45 -> 0.0068512635 | AD45: High | AE45: =Weights!H209 -> 0.875 | AF45: =$AA$45*AE45 -> 0.005994855563 | AH45: =AF45 -> 0.005994855563
AD46: Low | AE46: =Weights!H210 -> 0.125 | AF46: =$AA$45*AE46 -> 0.0008564079375 | AH46: =AF46 -> 0.0008564079375
X48: 1.2.2.2.1.2 | Y48: Road surface moisture | Z48: =Weights!M103 -> 0.213 | AA48: =$V$45*Z48 -> 0.01073028769 | AD48: Dry | AE48: =Weights!H215 -> 0.9 | AF48: =AA$48*AE48 -> 0.009657258919 | AH48: =AF48 -> 0.009657258919
AD49: Wet | AE49: =Weights!H216 -> 0.1 | AF49: =AA$48*AE49 -> 0.001073028769 | AH49: =AF49 -> 0.001073028769
X51: 1.2.2.2.1.3 | Y51: Vehicle weight | Z51: =Weights!M104 -> 0.03 | AA51: =$V$45*Z51 -> 0.001511308125 | AD51: Heavy | AE51: =Weights!H221 -> 0.75 | AF51: =AA$51*AE51 -> 0.001133481094 | AH51: =AF51 -> 0.001133481094
AD52: Light | AE52: =Weights!H222 -> 0.25 | AF52: =AA$51*AE52 -> 0.0003778270312 | AH52: =AF52 -> 0.0003778270312
X54: 1.2.2.2.1.4 | Y54: Vehicle speed | Z54: =Weights!M105 -> 0.046 | AA54: =$V$45*Z54 -> 0.002317339125 | AD54: Fast | AE54: =Weights!H227 -> 0.75 | AF54: =AA$54*AE54 -> 0.001738004344 | AH54: =AF54 -> 0.001738004344
AD55: Slow | AE55: =Weights!H228 -> 0.25 | AF55: =AA$54*AE55 -> 0.0005793347813 | AH55: =AF55 -> 0.0005793347813
X57: 1.2.2.2.1.5 | Y57: Wind speed on road surface | Z57: =Weights!M106 -> 0.047 | AA57: =$V$45*Z57 -> 0.002367716063 | AD57: High | AE57: =Weights!I233 -> 0.743 | AF57: =AA$57*AE57 -> 0.001759213034 | AH57: =AF57 -> 0.001759213034
AD58: Medium | AE58: =Weights!I234 -> 0.194 | AF58: =AA$57*AE58 -> 0.0004593369161 | AH58: =AF58 -> 0.0004593369161
AD59: Low | AE59: =Weights!I235 -> 0.063 | AF59: =AA$57*AE59 -> 0.0001491661119 | AH59: =AF59 -> 0.0001491661119
X61: 1.2.2.2.1.6 | Y61: Dust Particle size | Z61: =Weights!M107 -> 0.089 | AA61: =$V$45*Z61 -> 0.004483547437 | AD61: Fine | AE61: =Weights!I240 -> 0.105 | AF61: =AA$61*AE61 -> 0.0004707724809 | AH61: =AF61 -> 0.0004707724809
AD62: Medium | AE62: =Weights!I241 -> 0.258 | AF62: =AA$61*AE62 -> 0.001156755239 | AH62: =AF62 -> 0.001156755239
AD63: Coarse | AE63: =Weights!I242 -> 0.637 | AF63: =AA$61*AE63 -> 0.002856019718 | AH63: =AF63 -> 0.002856019718
X65: 1.2.2.2.1.7 | Y65: VKT | Z65: =Weights!M108 -> 0.439 | AA65: =$V$45*Z65 -> 0.02211547556 | AD65: Large | AE65: =Weights!I247 -> 0.637 | AF65: =AA$65*AE65 -> 0.01408755793 | AH65: =AF65 -> 0.01408755793
AD66: Moderate | AE66: =Weights!I248 -> 0.258 | AF66: =AA$65*AE66 -> 0.005705792695 | AH66: =AF66 -> 0.005705792695
AD67: Small | AE67: =Weights!I249 -> 0.105 | AF67: =AA$65*AE67 -> 0.002322124934 | AH67: =AF67 -> 0.002322124934
S70: 1.2.2.2.2 | T70: Unpaved roads and areas | U70: =Weights!L93 -> 0.27 | V70: =Q$45*U70 -> 0.167923125 | Y70: Surface silt loading | Z70: =Weights!M113 -> 0.105 | AA70: =V$70*Z70 -> 0.01763192813 | AD70: High | AE70: 0.8 | AF70: =AA70*AE70 -> 0.0141055425 | AH70: =AF70 -> 0.0141055425
AD71: Low | AE71: 0.2 | AF71: =AA70*AE71 -> 0.003526385625 | AH71: =AF71 -> 0.003526385625
Y73: Road surface moisture | Z73: =Weights!M114 -> 0.173 | AA73: =V$70*Z73 -> 0.02905070062 | AD73: Dry | AE73: 0.9 | AF73: =AA73*AE73 -> 0.02614563056 | AH73: =AF73 -> 0.02614563056
AD74: Wet | AE74: 0.1 | AF74: =AA73*AE74 -> 0.002905070063 | AH74: =AF74 -> 0.002905070063
Y76: Vehicle weight | Z76: =Weights!M115 -> 0.155 | AA76: =V$70*Z76 -> 0.02602808437 | AD76: Heavy | AE76: 0.6 | AF76: =AA76*AE76 -> 0.01561685062 | AH76: =AF76 -> 0.01561685062
AD77: Light | AE77: 0.4 | AF77: =AA76*AE77 -> 0.01041123375 | AH77: =AF77 -> 0.01041123375
Y79: Vehicle speed | Z79: =Weights!M116 -> 0.034 | AA79: =V$70*Z79 -> 0.00570938625 | AD79: Fast | AE79: 0.7 | AF79: =AA79*AE79 -> 0.003996570375 | AH79: =AF79 -> 0.003996570375
AD80: Slow | AE80: 0.3 | AF80: =AA79*AE80 -> 0.001712815875 | AH80: =AF80 -> 0.001712815875
Y82: Wind speed on road surface | Z82: =Weights!M117 -> 0.032 | AA82: =V$70*Z82 -> 0.00537354 | AD82: High | AE82: 0.6 | AF82: =AA82*AE82 -> 0.003224124 | AH82: =AF82 -> 0.003224124
AD83: Medium | AE83: 0.3 | AF83: =AA82*AE83 -> 0.001612062 | AH83: =AF83 -> 0.001612062
AD84: Low | AE84: 0.1 | AF84: =AA82*AE84 -> 0.000537354 | AH84: =AF84 -> 0.000537354
Y86: Dust Particle size | Z86: =Weights!M118 -> 0.083 | AA86: =V$70*Z86 -> 0.01393761938 | AD86: Fine | AE86: 0.1 | AF86: =AA86*AE86 -> 0.001393761938 | AH86: =AF86 -> 0.001393761938
AD87: Medium | AE87: 0.3 | AF87: =AA86*AE87 -> 0.004181285813 | AH87: =AF87 -> 0.004181285813
AD88: Coarse | AE88: 0.6 | AF88: =AA86*AE88 -> 0.008362571625 | AH88: =AF88 -> 0.008362571625
Y90: VKT | Z90: =Weights!M119 -> 0.418 | AA90: =V$70*Z90 -> 0.07019186625 | AD90: Small | AE90: 0.1 | AF90: =AA90*AE90 -> 0.007019186625 | AH90: =AF90 -> 0.007019186625
AD91: Moderate | AE91: 0.3 | AF91: =AA90*AE91 -> 0.02105755987 | AH91: =AF91 -> 0.02105755987
AD92: Large | AE92: 0.6 | AF92: =AA90*AE92 -> 0.04211511975 | AH92: =AF92 -> 0.04211511975
S95: 1.2.2.2.3 | T95: Material transport | U95: =Weights!L94 -> 0.055 | V95: =Q$45*U95 -> 0.0342065625 | Y95: Surface silt loading | Z95: =Weights!K124 -> 0.117 | AA95: =V95*Z95 -> 0.004002167813 | AD95: High | AE95: 0.8 | AF95: =AA95*AE95 -> 0.00320173425 | AH95: =AF95 -> 0.00320173425
AD96: Low | AE96: 0.2 | AF96: =AA95*AE96 -> 0.0008004335625 | AH96: =AF96 -> 0.0008004335625
Y98: Material moisture | Z98: =Weights!K125 -> 0.191 | AA98: =V95*Z98 -> 0.006533453438 | AD98: Dry | AE98: 0.9 | AF98: =AA98*AE98 -> 0.005880108094 | AH98: =AF98 -> 0.005880108094
AD99: Wet | AE99: 0.1 | AF99: =AA98*AE99 -> 0.0006533453438 | AH99: =AF99 -> 0.0006533453438
X101: ` | Y101: Vehicle speed | Z101: =Weights!K126 -> 0.049 | AA101: =V95*Z101 -> 0.001676121563 | AD101: Fast | AE101: 0.7 | AF101: =AA101*AE101 -> 0.001173285094 | AH101: =AF101 -> 0.001173285094
AD102: Slow | AE102: 0.3 | AF102: =AA101*AE102 -> 0.0005028364688 | AH102: =AF102 -> 0.0005028364688
Y104: Wind speed on material surface | Z104: =Weights!K127 -> 0.041 | AA104: =V95*Z104 -> 0.001402469063 | AD104: High | AE104: 0.6 | AF104: =AA104*AE104 -> 0.0008414814375 | AH104: =AF104 -> 0.0008414814375
AD105: Medium | AE105: 0.3 | AF105: =AA104*AE105 -> 0.0004207407188 | AH105: =AF105 -> 0.0004207407188
AD106: Low | AE106: 0.1 | AF106: =AA104*AE106 -> 0.0001402469063 | AH106: =AF106 -> 0.0001402469063
Y108: Quantity of material transported | Z108: =Weights!K128 -> 0.602 | AA108: =V95*Z108 -> 0.02059235063 | AD108: Large | AE108: 0.6 | AF108: =AA108*AE108 -> 0.01235541038 | AH108: =AF108 -> 0.01235541038
AD109: Moderate | AE109: 0.3 | AF109: =AA108*AE109 -> 0.006177705188 | AH109: =AF109 -> 0.006177705188
AD110: Small | AE110: 0.1 | AF110: =AA108*AE110 -> 0.002059235063 | AH110: =AF110 -> 0.002059235063
S112: 1.2.2.2.4 | T112: Material transfer (drop operations) | U112: =Weights!L95 -> 0.027 | V112: =Q$45*U112 -> 0.0167923125 | Y112: Material moisture | Z112: =Weights!K133 -> 0.046 | AA112: =V112*Z112 -> 0.000772446375 | AD112: Dry | AE112: 0.9 | AF112: =AA112*AE112 -> 0.0006952017375 | AH112: =AF112 -> 0.0006952017375
T113: Eq. 1 / Section 13.2.4 | AD113: Wet | AE113: 0.1 | AF113: =AA112*AE113 -> 7.72446375e-05 | AH113: =AF113 -> 7.72446375e-05
Y115: Wind speed on material surface | Z115: =Weights!K134 -> 0.282 | AA115: =V112*Z115 -> 0.004735432125 | AD115: High | AE115: 0.6 | AF115: =AA115*AE115 -> 0.002841259275 | AH115: =AF115 -> 0.002841259275
AD116: Medium | AE116: 0.3 | AF116: =AA115*AE116 -> 0.001420629637 | AH116: =AF116 -> 0.001420629637
AD117: Low | AE117: 0.1 | AF117: =AA115*AE117 -> 0.0004735432125 | AH117: =AF117 -> 0.0004735432125
Y119: Dust Particle size | Z119: =Weights!K135 -> 0.029 | AA119: =V112*Z119 -> 0.0004869770625 | AD119: Fine | AE119: 0.1 | AF119: =AA119*AE119 -> 4.869770625e-05 | AH119: =AF119 -> 4.869770625e-05
AD120: Medium | AE120: 0.3 | AF120: =AA119*AE120 -> 0.0001460931187 | AH120: =AF120 -> 0.0001460931187
AD121: Coarse | AE121: 0.6 | AF121: =AA119*AE121 -> 0.0002921862375 | AH121: =AF121 -> 0.0002921862375
Y123: Drop height | Z123: =Weights!K136 -> 0.176 | AA123: =V112*Z123 -> 0.002955447 | AD123: High | AE123: 0.6 | AF123: =AA123*AE123 -> 0.0017732682 | AH123: =AF123 -> 0.0017732682
AD124: Medium | AE124: 0.3 | AF124: =AA123*AE124 -> 0.0008866341 | AH124: =AF124 -> 0.0008866341
AD125: Small | AE125: 0.1 | AF125: =AA123*AE125 -> 0.0002955447 | AH125: =AF125 -> 0.0002955447
Y127: Quantity of material disturbed | Z127: =Weights!K137 -> 0.466 | AA127: =V112*Z127 -> 0.007825217625 | AD127: High | AE127: 0.6 | AF127: =AA127*AE127 -> 0.004695130575 | AH127: =AF127 -> 0.004695130575
AD128: Medium | AE128: 0.3 | AF128: =AA127*AE128 -> 0.002347565288 | AH128: =AF128 -> 0.002347565288
AD129: Low | AE129: 0.1 | AF129: =AA127*AE129 -> 0.0007825217625 | AH129: =AF129 -> 0.0007825217625
S131: 1.2.2.2.5 | T131: Stockpiles | U131: =Weights!L96 -> 0.084 | V131: =Q$45*U131 -> 0.05224275 | Y131: Material moisture - surface layer | Z131: =Weights!K142 -> 0.098 | AA131: =V131*Z131 -> 0.0051197895 | AD131: Dry | AE131: 0.9 | AF131: =AA131*AE131 -> 0.00460781055 | AH131: =AF131 -> 0.00460781055
AD132: Wet | AE132: 0.1 | AF132: =AA131*AE132 -> 0.00051197895 | AH132: =AF132 -> 0.00051197895
Y134: Wind speed on material surface | Z134: =Weights!K143 -> 0.054 | AA134: =V131*Z134 -> 0.0028211085 | AD134: High | AE134: 0.6 | AF134: =AA134*AE134 -> 0.0016926651 | AH134: =AF134 -> 0.0016926651
AD135: Medium | AE135: 0.3 | AF135: =AA134*AE135 -> 0.00084633255 | AH135: =AF135 -> 0.00084633255
AD136: Low | AE136: 0.1 | AF136: =AA134*AE136 -> 0.00028211085 | AH136: =AF136 -> 0.00028211085
Y138: Dust Particle size | Z138: =Weights!K144 -> 0.105 | AA138: =V131*Z138 -> 0.00548548875 | AD138: Fine | AE138: 0.1 | AF138: =AA138*AE138 -> 0.000548548875 | AH138: =AF138 -> 0.000548548875
AD139: Medium | AE139: 0.3 | AF139: =AA138*AE139 -> 0.001645646625 | AH139: =AF139 -> 0.001645646625
AD140: Coarse | AE140: 0.6 | AF140: =AA138*AE140 -> 0.00329129325 | AH140: =AF140 -> 0.00329129325
Y142: Frequency of disturbance | Z142: =Weights!K145 -> 0.282 | AA142: =V131*Z142 -> 0.0147324555 | AD142: High | AE142: 0.6 | AF142: =AA142*AE142 -> 0.0088394733 | AH142: =AF142 -> 0.0088394733
AD143: Medium | AE143: 0.3 | AF143: =AA142*AE143 -> 0.00441973665 | AH143: =AF143 -> 0.00441973665
AD144: Low | AE144: 0.1 | AF144: =AA142*AE144 -> 0.00147324555 | AH144: =AF144 -> 0.00147324555
Y146: Area of the pile | Z146: =Weights!K146 -> 0.461 | AA146: =Z146*V131 -> 0.02408390775 | AD146: High | AE146: 0.6 | AF146: =AA146*AE146 -> 0.01445034465 | AH146: =AF146 -> 0.01445034465
AD147: Medium | AE147: 0.3 | AF147: =AA146*AE147 -> 0.007225172325 | AH147: =AF147 -> 0.007225172325
AD148: Low | AE148: 0.1 | AF148: =AA146*AE148 -> 0.002408390775 | AH148: =AF148 -> 0.002408390775
S150: 1.2.2.2.6 | T150: Process emissions | U150: =Weights!L97 -> 0.483 | V150: =Q$45*U150 -> 0.3003958125 | Y150: Dust Particle size | Z150: =Weights!I150 -> 0.081 | AA150: =Z150*V150 -> 0.02433206081 | AD150: Fine | AE150: 0.1 | AF150: =AA150*AE150 -> 0.002433206081 | AH150: =AF150 -> 0.002433206081
AD151: Medium | AE151: 0.3 | AF151: =AA150*AE151 -> 0.007299618244 | AH151: =AF151 -> 0.007299618244
AD152: Coarse | AE152: 0.6 | AF152: =AA150*AE152 -> 0.01459923649 | AH152: =AF152 -> 0.01459923649
Y154: Intensity of disturbance | Z154: =Weights!I151 -> 0.188 | AA154: =V150*Z154 -> 0.05647441275 | AD154: High | AE154: 0.6 | AF154: =AA154*AE154 -> 0.03388464765 | AH154: =AF154 -> 0.03388464765
AD155: Medium | AE155: 0.3 | AF155: =AA154*AE155 -> 0.01694232383 | AH155: =AF155 -> 0.01694232383
AD156: Low | AE156: 0.1 | AF156: =AA154*AE156 -> 0.005647441275 | AH156: =AF156 -> 0.005647441275
Y158: Amount of material disturbed | Z158: =Weights!I152 -> 0.731 | AA158: =V150*Z158 -> 0.2195893389 | AD158: High | AE158: 0.6 | AF158: =AA158*AE158 -> 0.1317536034 | AH158: =AF158 -> 0.1317536034
AD159: Medium | AE159: 0.3 | AF159: =AA158*AE159 -> 0.06587680168 | AH159: =AF159 -> 0.06587680168
AD160: Low | AE160: 0.1 | AF160: =AA158*AE160 -> 0.02195893389 | AH160: =AF160 -> 0.02195893389

Sheet Weights (hidden)
C2: Intensity of Importance on a absolute scale | E2: Definition | H2: Explanation
C4: 1 | E4: Equal importance | H4: Two activities contribute equally to the objective
C6: 2 | E6: Weak or slight
C7: 3 | E7: Moderate importance of one over another | H7: Experience and judgment strongly favor one activity over another
C9: 4 | E9: Moderate plus
C10: 5 | E10: Strong importance | H10: Experience and judgement strongly favor one activity over another
C12: 6 | E12: Strong plus
C13: 7 | E13: Very strong or demonstrated importance | H13: An activity is favoured very strongly over another; its dominance demonstrated in practice
C15: 8 | E15: Very, very strong
C16: 9 | E16: Extreme importance | H16: The evidence favoring one activity over another is of the highest possible order of affirmation
C18: Reciprocals of above | E18: If activity i has one of the above non-zero numbers assigned to it when compared with activity j, then j has the reciprocal value when compared with i
C20: 1.1 - 1.9 | E20: If the activities are very close | H20: May be difficult to assign the best value but when compared with other contrasting activities the size of the small numbers would not be too noticeable, yet they can still indicate the relative importance of the activities.
C25: Source: | D25: Saaty, Thomas L., 2008. Decision making with the Analytic Hierarchy Process. Int. J. Services Sciences, Vol 1, No. 1, 83-98.
B28: 1 - Risks of non compliance and complaints
C29: Criteria | E29: 1 | F29: 2 | H29: W Norm. | J29: n = | K29: 2
C30: Health effects | D30: 1 | E30: 1 | F30: =1/3 -> 0.3333333333 | H30: =IF(F30<E31,1/(1/F30+1),F30/(F30+1)) -> 0.25 | J30: CI (table) = | K30: NA
C31: Aesthetic effects | D31: 2 | E31: =1/F30 -> 3 | F31: 1 | H31: =1-H30 -> 0.75 | J31: L max = | K31: 2
B34: 1.1 - Health effects
C35: Criteria | E35: 1 | F35: 2 | G35: 3 | H35: 4 | J35: W Norm. | L35: n = | M35: 4
C36: Receptor sensitivity (health) | D36: 1 | E36: 1 | F36: 0.2 | G36: 0.2 | H36: 0.1428571429 | J36: 0.047 | L36: CI (table) = | M36: 0.9
C37: Dust toxicity (composition) | D37: 2 | E37: 5 | F37: 1 | G37: 0.5 | H37: 0.2 | J37: 0.14 | L37: L max = | M37: 4.269
C38: Dust particle size | D38: 3 | E38: 5 | F38: 2 | G38: 1 | H38: 0.2 | J38: 0.196 | L38: CI = | M38: 0.08966666667
C39: Quantity of dust at the receptor | D39: 4 | E39: 7 | F39: 5 | G39: 5 | H39: 1 | J39: 0.617 | L39: CR = | M39: 0.09962962963 | N39: Weights are reasonable values
B42: 1.2 - Aesthetic effects
C43: Criteria | E43: 1 | F43: 2 | H43: W Norm. | J43: n = | K43: 2
C44: Receptor sensitivity (welfare) | D44: 1 | E44: 1 | F44: =1/9 -> 0.1111111111 | H44: =IF(F44<E45,1/(1/F44+1),F44/(F44+1)) -> 0.1 | J44: CI (table) = | K44: NA
C45: Quantity of dust at the receptor | D45: 2 | E45: =1/F44 -> 9 | F45: 1 | H45: =1-H44 -> 0.9 | J45: L max = | K45: 2
B48: 1.2.1 - Receptor sensitivity (health)
C49: Criteria | E49: 1 | F49: 2 | H49: W Norm. | J49: n = | K49: 2
C50: Sensitive | D50: 1 | E50: 1 | F50: 5 | H50: =IF(F50<E51,1/(1/F50+1),F50/(F50+1)) -> 0.8333333333 | J50: CI (table) = | K50: NA
C51: Non Sensitive | D51: 2 | E51: =1/F50 -> 0.2 | F51: 1 | H51: =1-H50 -> 0.1666666667 | J51: L max = | K51: 2
B54: 1.2.2 - Dust toxicity (composition)
C55: Criteria | E55: 1 | F55: 2 | G55: 3 | I55: W Norm. | K55: n = | L55: 3 | Q55: Intensities
C56: Heavy metals | D56: 1 | E56: 1 | F56: 7 | G56: 9 | I56: 0.785 | K56: CI (table) = | L56: 0.58 | Q56: =I56/MAX(I56:I58) -> 1
C57: Metals | D57: 2 | E57: 0.1428571429 | F57: 1 | G57: 3 | I57: 0.785 | K57: L max = | L57: 3.081 | Q57: =I57/MAX(I56:I58) -> 1
C58: No metals | D58: 3 | E58: 0.1111111111 | F58: 0.3333333333 | G58: 1 | I58: 0.066 | K58: CI = | L58: 0.0405 | Q58: =I58/MAX(I56:I58) -> 0.08407643312
K59: CR = | L59: 0.06982758621 | M59: Weights are reasonable values
B61: 1.2.3 - Dust particle size
C62: Criteria | E62: 1 | F62: 2 | G62: 3 | I62: W Norm. | K62: n = | L62: 3 | Q62: Intensities
C63: Fine | D63: 1 | E63: 1 | F63: 5 | G63: 7 | I63: 0.731 | K63: CI (table) = | L63: 0.58 | Q63: =I63/MAX(I63:I65) -> 1
C64: Medium | D64: 2 | E64: 0.2 | F64: 1 | G64: 3 | I64: 0.188 | K64: L max = | L64: 3.065 | Q64: =I64/MAX(I63:I65) -> 0.2571819425
C65: Coarse | D65: 3 | E65: 0.1428571429 | F65: 0.3333333333 | G65: 1 | I65: 0.081 | K65: CI = | L65: 0.0325 | Q65: =I65/MAX(I63:I65) -> 0.1108071135
K66: CR = | L66: 0.05603448276 | M66: Weights are reasonable values
B68: 1.2.1 - Receptor sensitivity (welfare)
C69: Criteria | E69: 1 | F69: 2 | H69: W Norm. | J69: n = | K69: 2
C70: Sensitive | D70: 1 | E70: 1 | F70: 3 | H70: =IF(F70<E71,1/(1/F70+1),F70/(F70+1)) -> 0.75 | J70: CI (table) = | K70: NA
C71: Non Sensitive | D71: 2 | E71: =1/F70 -> 0.3333333333 | F71: 1 | H71: =1-H70 -> 0.25 | J71: L max = | K71: 2
B73: 1.2.2 - Quantity of dust at the receptor
C74: Criteria | E74: 1 | F74: 2 | H74: W Norm. | J74: n = | K74: 2
C75: Dispersion | D75: 1 | E75: 1 | F75: =1/3 -> 0.3333333333 | H75: =IF(F75<E76,1/(1/F75+1),F75/(F75+1)) -> 0.25 | J75: CI (table) = | K75: NA
C76: Emission (quantity of dust emitted) | D76: 2 | E76: 3 | F76: 1 | H76: =1-H75 -> 0.75 | J76: L max = | K76: 2
B79: 1.2.2.1 - Dispersion
C80: Criteria | E80: 1 | F80: 2 | G80: 3 | H80: 4 | I80: 5 | J80: 6 | K80: 7 | M80: W Norm. | O80: n = | P80: 7
C81: Dust particle size | D81: 1 | E81: 1 | F81: 0.1428571429 | G81: 1 | H81: 1 | I81: 0.1428571429 | J81: 2 | K81: 2 | M81: 0.06 | O81: CI (table) = | P81: 1.32
C82: Distance source - receptor | D82: 2 | E82: 7 | F82: 1 | G82: 7 | H82: 7 | I82: 1 | J82: 8 | K82: 9 | M82: 0.364 | O82: L max = | P82: 7.168
C83: Wind breaks | D83: 3 | E83: 1 | F83: 0.1428571429 | G83: 1 | H83: 1 | I83: 0.125 | J83: 2 | K83: 3 | M83: 0.064 | O83: CI = | P83: 0.028
C84: Wind speed | D84: 4 | E84: 1 | F84: 0.1428571429 | G84: 1 | H84: 1 | I84: 0.125 | J84: 1 | K84: 1 | M84: 0.049 | O84: CR = | P84: 0.02121212121 | Q84: Weights are reasonable values
C85: Wind direction | D85: 5 | E85: 7 | F85: 1 | G85: 8 | H85: 8 | I85: 1 | J85: 9 | K85: 9 | M85: 0.387 | N85: Rounded
C86: Atmospheric stability | D86: 6 | E86: 0.5 | F86: 0.125 | G86: 0.5 | H86: 1 | I86: 0.1111111111 | J86: 1 | K86: 2 | M86: 0.043
C87: Precipitation | D87: 7 | E87: 0.5 | F87: 0.1111111111 | G87: 0.3333333333 | H87: 1 | I87: 0.1111111111 | J87: 0.5 | K87: 1 | M87: 0.033
B90: 1.2.2.2 - Emission (quantity of dust emitted)
C91: Criteria | E91: 1 | F91: 2 | G91: 3 | H91: 4 | I91: 5 | J91: 6 | L91: W Norm. | N91: n = | O91: 6
C92: Paved roads and areas | D92: 1 | E92: 1 | F92: 0.1428571429 | G92: 1 | H92: 1 | I92: 0.3333333333 | J92: 5 | K92: 0.081 | L92: =K92 -> 0.081 | N92: CI (table) = | O92: 1.24
C93: Unpaved roads and areas | D93: 2 | E93: 7 | F93: 1 | G93: 7 | H93: 7 | I93: 3 | J93: 9 | K93: 0.483 | L93: =K96 -> 0.27 | N93: L max = | O93: 6.379
C94: Material transport | D94: 3 | E94: 1 | F94: 0.1428571429 | G94: 1 | H94: 0.3333333333 | I94: 0.1428571429 | J94: 3 | K94: 0.055 | L94: 0.055 | N94: CI = | O94: 0.0758
C95: Material transfer (drop operations) | D95: 4 | E95: 1 | F95: 0.1428571429 | G95: 3 | H95: 1 | I95: 0.2 | J95: 3 | K95: 0.084 | L95: =K97 -> 0.027 | N95: CR = | O95: 0.06112903226 | P95: Weights are reasonable values
C96: Stockpiles | D96: 5 | E96: 3 | F96: 0.3333333333 | G96: 7 | H96: 5 | I96: 1 | J96: 9 | K96: 0.27 | L96: =K95 -> 0.084
C97: Process emissions | D97: 6 | E97: 0.2 | F97: 0.1111111111 | G97: 0.3333333333 | H97: 0.3333333333 | I97: 0.1111111111 | J97: 1 | K97: 0.027 | L97: =K93 -> 0.483
L98: =SUM(L92:L97) -> 1
B100: 1.2.2.2.1 - Paved roads and areas
C101: Criteria | E101: 1 | F101: 2 | G101: 3 | H101: 4 | I101: 5 | J101: 6 | K101: 7 | M101: W Norm. | O101: n = | P101: 7
C102: Surface silt loading | D102: 1 | E102: 1 | F102: 0.3333333333 | G102: 3 | H102: 5 | I102: 5 | J102: 2 | K102: 0.2 | M102: 0.136 | O102: CI (table) = | P102: 1.32
C103: Road surface moisture | D103: 2 | E103: 3 | F103: 1 | G103: 5 | H103: 3 | I103: 6 | J103: 3 | K103: 0.3333333333 | M103: 0.213 | O103: L max = | P103: 7.513
C104: Vehicle weight | D104: 3 | E104: 0.3333333333 | F104: 0.2 | G104: 1 | H104: 0.5 | I104: 0.3333333333 | J104: 0.2 | K104: 0.1111111111 | M104: 0.03 | O104: CI = | P104: 0.0855
C105: Vehicle speed | D105: 4 | E105: 0.2 | F105: 0.3333333333 | G105: 2 | H105: 1 | I105: 1 | J105: 0.3333333333 | K105: 0.1428571429 | M105: 0.046 | O105: CR = | P105: 0.06477272727 | Q105: Weights are reasonable values
C106: Wind speed on road surface | D106: 5 | E106: 0.2 | F106: 0.1666666667 | G106: 3 | H106: 1 | I106: 1 | J106: 0.5 | K106: 0.1428571429 | M106: 0.047
C107: Dust Particle size | D107: 6 | E107: 0.5 | F107: 0.3333333333 | G107: 5 | H107: 3 | I107: 2 | J107: 1 | K107: 0.1428571429 | M107: 0.089
C108: VKT | D108: 7 | E108: 5 | F108: 3 | G108: 9 | H108: 7 | I108: 7 | J108: 7 | K108: 1 | M108: 0.439
B111: 1.2.2.2.2 - Unpaved roads and areas
C112: Criteria | E112: 1 | F112: 2 | G112: 3 | H112: 4 | I112: 5 | J112: 6 | K112: 7 | M112: W Norm. | O112: n = | P112: 7
C113: Surface silt loading | D113: 1 | E113: 1 | F113: 0.3333333333 | G113: 0.3333333333 | H113: 5 | I113: 5 | J113: 2 | K113: 0.2 | M113: 0.105 | O113: CI (table) = | P113: 1.32
C114: Road surface moisture | D114: 2 | E114: 3 | F114: 1 | G114: 0.5 | H114: 5 | I114: 6 | J114: 3 | K114: 0.3333333333 | M114: 0.173 | O114: L max = | P114: 7.599
C115: Vehicle weight | D115: 3 | E115: 3 | F115: 2 | G115: 1 | H115: 3 | I115: 3 | J115: 1 | K115: 0.2 | M115: 0.155 | O115: CI = | P115: 0.09983333333
C116: Vehicle speed | D116: 4 | E116: 0.2 | F116: 0.2 | G116: 0.3333333333 | H116: 1 | I116: 1 | J116: 0.3333333333 | K116: 0.1428571429 | M116: 0.034 | O116: CR = | P116: 0.07563131313 | Q116: Weights are reasonable values
C117: Wind speed on road surface | D117: 5 | E117: 0.2 | F117: 0.1666666667 | G117: 0.3333333333 | H117: 1 | I117: 1 | J117: 0.3333333333 | K117: 0.1111111111 | M117: 0.032
C118: Dust Particle size | D118: 6 | E118: 0.5 | F118: 0.3333333333 | G118: 1 | H118: 3 | I118: 3 | J118: 1 | K118: 0.2 | M118: 0.083
C119: VKT | D119: 7 | E119: 5 | F119: 3 | G119: 5 | H119: 7 | I119: 9 | J119: 5 | K119: 1 | M119: 0.418
B122: 1.2.2.2.3 - Material Transport
C123: Criteria | E123: 1 | F123: 2 | G123: 3 | H123: 4 | I123: 5 | K123: W Norm. | M123: n = | N123: 5
C124: Surface silt loading | D124: 1 | E124: 1 | F124: 0.3333333333 | G124: 3 | H124: 5 | I124: 0.1428571429 | K124: 0.117 | M124: CI (table) = | N124: 1.12
C125: Material moisture | D125: 2 | E125: 3 | F125: 1 | G125: 3 | H125: 5 | I125: 0.2 | K125: 0.191 | M125: L max = | N125: 5.304
C126: Vehicle speed | D126: 3 | E126: 0.3333333333 | F126: 0.3333333333 | G126: 1 | H126: 1 | I126: 0.1111111111 | K126: 0.049 | M126: CI = | N126: 0.076
C127: Wind speed on material surface | D127: 4 | E127: 0.2 | F127: 0.2 | G127: 1 | H127: 1 | I127: 0.1111111111 | K127: 0.041 | M127: CR = | N127: 0.06785714286 | O127: Weights are reasonable values
C128: Quantity of material transported | D128: 5 | E128: 7 | F128: 5 | G128: 9 | H128: 9 | I128: 1 | K128: 0.602
B131: 1.2.2.2.4 - Material transfer (drop operations)
C132: Criteria | E132: 1 | F132: 2 | G132: 3 | H132: 4 | I132: 5 | K132: W Norm. | M132: n = | N132: 5
C133: Material moisture | D133: 1 | E133: 1 | F133: 0.1428571429 | G133: 3 | H133: 0.1428571429 | I133: 0.1111111111 | K133: 0.046 | M133: CI (table) = | N133: 1.12
C134: Wind speed on material surface | D134: 2 | E134: 7 | F134: 1 | G134: 8 | H134: 3 | I134: 0.3333333333 | K134: 0.282 | M134: L max = | N134: 5.405
C135: Dust Particle size | D135: 3 | E135: 0.3333333333 | F135: 0.125 | G135: 1 | H135: 0.1428571429 | I135: 0.1111111111 | K135: 0.029 | M135: CI = | N135: 0.10125
C136: Drop height | D136: 4 | E136: 7 | F136: 0.3333333333 | G136: 7 | H136: 1 | I136: 0.3333333333 | K136: 0.176 | M136: CR = | N136: 0.09040178571 | O136: Weights are reasonable values
C137: Quantity of material disturbed | D137: 5 | E137: 9 | F137: 3 | G137: 9 | H137: 3 | I137: 1 | K137: 0.466
B140: 1.2.2.2.5 - Stockpiles
C141: Criteria | E141: 1 | F141: 2 | G141: 3 | H141: 4 | I141: 5 | K141: W Norm. | M141: n = | N141: 5
C142: Material moisture - surface layer | D142: 1 | E142: 1 | F142: 3 | G142: 1 | H142: 0.2 | I142: 0.2 | K142: 0.098 | M142: CI (table) = | N142: 1.12
C143: Wind speed on material surface | D143: 2 | E143: 0.3333333333 | F143: 1 | G143: 0.3333333333 | H143: 0.3333333333 | I143: 0.1428571429 | K143: 0.054 | M143: L max = | N143: 5.239
C144: Dust particle size | D144: 3 | E144: 1 | F144: 3 | G144: 1 | H144: 0.3333333333 | I144: 0.2 | K144: 0.105 | M144: CI = | N144: 0.05975
C145: Frequency of disturbance | D145: 4 | E145: 5 | F145: 3 | G145: 3 | H145: 1 | I145: 0.5 | K145: 0.282 | M145: CR = | N145: 0.05334821429 | O145: Weights are reasonable values
C146: Area of the pile | D146: 5 | E146: 5 | F146: 7 | G146: 5 | H146: 2 | I146: 1 | K146: 0.461
B148: 1.2.2.2.6 - Process Emissions
C149: Criteria | E149: 1 | F149: 2 | G149: 3 | I149: W Norm. | K149: n = | L149: 3
C150: Dust Particle size | D150: 1 | E150: 1 | F150: 0.3333333333 | G150: 0.1428571429 | I150: 0.081 | K150: CI (table) = | L150: 0.58
C151: Intensity of disturbance | D151: 2 | E151: 3 | F151: 1 | G151: 0.2 | I151: 0.188 | K151: L max = | L151: 3.065
C152: Amount of material disturbed | D152: 3 | E152: 7 | F152: 5 | G152: 1 | I152: 0.731 | K152: CI = | L152: 0.0325
K153: CR = | L153: 0.05603448276 | M153: Weights are reasonable values
B155: Relative amount of dust
C156: Criteria | E156: 1 | F156: 2 | G156: 3 | I156: W Norm. | K156: n = | L156: 3
C157: High | D157: 1 | E157: 1 | F157: 3 | G157: 5 | I157: 0.637 | K157: CI (table) = | L157: 0.58
C158: Medium | D158: 2 | E158: 0.3333333333 | F158: 1 | G158: 3 | I158: 0.258 | K158: L max = | L158: 3.039
C159: Low | D159: 3 | E159: 0.2 | F159: 0.3333333333 | G159: 1 | I159: 0.105 | K159: CI = | L159: 0.0195
K160: CR = | L160: 0.03362068966 | M160: Weights are reasonable values
B162: 1.2.2.1.1 - Dust particle size
C163: Criteria | E163: 1 | F163: 2 | G163: 3 | I163: W Norm. | K163: n = | L163: 3
C164: Fine | D164: 1 | E164: 1 | F164: 4 | G164: 7 | I164: 0.705 | K164: CI (table) = | L164: 0.58
C165: Medium | D165: 2 | E165: 0.25 | F165: 1 | G165: 3 | I165: 0.211 | K165: L max = | L165: 3.033
C166: Coarse | D166: 3 | E166: 0.1428571429 | F166: 0.3333333333 | G166: 1 | I166: 0.084 | K166: CI = | L166: 0.0165
K167: CR = | L167: 0.02844827586 | M167: Weights are reasonable values
B169: 1.2.2.1.2 - Distance source - receptor
C170: Criteria | E170: 1 | F170: 2 | G170: 3 | I170: W Norm. | K170: n = | L170: 3
C171: Close | D171: 1 | E171: 1 | F171: 5 | G171: 9 | I171: 0.743 | K171: CI (table) = | L171: 0.58 | Q171: 73.52
C172: Medium | D172: 2 | E172: 0.2 | F172: 1 | G172: 4 | I172: 0.194 | K172: L max = | L172: 3.072 | Q172: 19.94
C173: Far | D173: 3 | E173: 0.1111111111 | F173: 0.25 | G173: 1 | I173: 0.063 | K173: CI = | L173: 0.036 | Q173: 6.54
K174: CR = | L174: 0.06206896552 | M174: Weights are reasonable values
Q175: 0.062
B176: 1.2.2.1.3 - Wind breaks
C177: Criteria | E177: 1 | F177: 2 | H177: W Norm. | J177: n = | K177: 2
C178: No | D178: 1 | E178: 1 | F178: 9 | H178: =IF(F178<E179,1/(1/F178+1),F178/(F178+1)) -> 0.9 | J178: CI (table) = | K178: NA
C179: Yes | D179: 2 | E179: =1/F178 -> 0.1111111111 | F179: 1 | H179: =1-H178 -> 0.1 | J179: L max = | K179: 2
B182: 1.2.2.1.4 - Wind speed
C183: Criteria | E183: 1 | F183: 2 | G183: 3 | I183: W Norm. | K183: n = | L183: 3
C184: Low | D184: 1 | E184: 1 | F184: 3 | G184: 5 | I184: 0.637 | K184: CI (table) = | L184: 0.58 | Q184: 63.33
C185: Medium | D185: 2 | E185: 0.3333333333 | F185: 1 | G185: 3 | I185: 0.258 | K185: L max = | L185: 3.039 | Q185: 26.05
C186: High | D186: 3 | E186: 0.2 | F186: 0.3333333333 | G186: 1 | I186: 0.105 | K186: CI = | L186: 0.0195 | Q186: 10.62
K187: CR = | L187: 0.03362068966 | M187: Weights are reasonable values
B189: 1.2.2.1.5 - Wind direction
C190: Criteria | E190: 1 | F190: 2 | H190: W Norm. | J190: n = | K190: 2
C191: Yes | D191: 1 | E191: 1 | F191: 9 | H191: =IF(F191<E192,1/(1/F191+1),F191/(F191+1)) -> 0.9 | J191: CI (table) = | K191: NA
C192: No | D192: 2 | E192: =1/F191 -> 0.1111111111 | F192: 1 | H192: =1-H191 -> 0.1 | J192: L max = | K192: 2
B195: 1.2.2.1.6 - Atmospheric stability
C196: Criteria | E196: 1 | F196: 2 | H196: W Norm. | J196: n = | K196: 2
C197: Stable | D197: 1 | E197: 1 | F197: 5 | H197: =IF(F197<E198,1/(1/F197+1),F197/(F197+1)) -> 0.8333333333 | J197: CI (table) = | K197: NA
C198: Not stable | D198: 2 | E198: =1/F197 -> 0.2 | F198: 1 | H198: =1-H197 -> 0.1666666667 | J198: L max = | K198: 2
B201: 1.2.2.1.7 - Precipitation
C202: Criteria | E202: 1 | F202: 2 | H202: W Norm. | J202: n = | K202: 2
C203: No | D203: 1 | E203: 1 | F203: 3 | H203: =IF(F203<E204,1/(1/F203+1),F203/(F203+1)) -> 0.75 | J203: CI (table) = | K203: NA
C204: Yes | D204: 2 | E204: =1/F203 -> 0.3333333333 | F204: 1 | H204: =1-H203 -> 0.25 | J204: L max = | K204: 2
B207: 1.2.2.2.1.1 - Surface silt loading
C208: Criteria | E208: 1 | F208: 2 | H208: W Norm. | J208: n = | K208: 2
C209: High | D209: 1 | E209: 1 | F209: 7 | H209: =IF(F209<E210,1/(1/F209+1),F209/(F209+1)) -> 0.875 | J209: CI (table) = | K209: NA
C210: Low | D210: 2 | E210: =1/F209 -> 0.1428571429 | F210: 1 | H210: =1-H209 -> 0.125 | J210: L max = | K210: 2
B213: 1.2.2.2.1.2 - Road surface moisture
C214: Criteria | E214: 1 | F214: 2 | H214: W Norm. | J214: n = | K214: 2
C215: Dry | D215: 1 | E215: 1 | F215: 9 | H215: =IF(F215<E216,1/(1/F215+1),F215/(F215+1)) -> 0.9 | J215: CI (table) = | K215: NA
C216: Wet | D216: 2 | E216: =1/F215 -> 0.1111111111 | F216: 1 | H216: =1-H215 -> 0.1 | J216: L max = | K216: 2
B219: 1.2.2.2.1.3 - Vehicle weight
C220: Criteria | E220: 1 | F220: 2 | H220: W Norm. | J220: n = | K220: 2
C221: Heavy | D221: 1 | E221: 1 | F221: 3 | H221: =IF(F221<E222,1/(1/F221+1),F221/(F221+1)) -> 0.75 | J221: CI (table) = | K221: NA
C222: Light | D222: 2 | E222: =1/F221 -> 0.3333333333 | F222: 1 | H222: =1-H221 -> 0.25 | J222: L max = | K222: 2
B225: 1.2.2.2.1.4 - Vehicle speed
C226: Criteria | E226: 1 | F226: 2 | H226: W Norm. | J226: n = | K226: 2
C227: Fast | D227: 1 | E227: 1 | F227: 3 | H227: =IF(F227<E228,1/(1/F227+1),F227/(F227+1)) -> 0.75 | J227: CI (table) = | K227: NA
C228: Slow | D228: 2 | E228: =1/F227 -> 0.3333333333 | F228: 1 | H228: =1-H227 -> 0.25 | J228: L max = | K228: 2
B231: 1.2.2.2.1.5 - Wind speed on road surface
C232: Criteria | E232: 1 | F232: 2 | G232: 3 | I232: W Norm. | K232: n = | L232: 3
C233: High | D233: 1 | E233: 1 | F233: 5 | G233: 9 | I233: 0.743 | K233: CI (table) = | L233: 0.58
C234: Medium | D234: 2 | E234: 0.2 | F234: 1 | G234: 4 | I234: 0.194 | K234: L max = | L234: 3.072
C235: Low | D235: 3 | E235: 0.1111111111 | F235: 0.25 | G235: 1 | I235: 0.063 | K235: CI = | L235: 0.036
K236: CR = | L236: 0.06206896552 | M236: Weights are reasonable values
B238: 1.2.2.2.1.6 - Dust Particle size
C239: Criteria | E239: 1 | F239: 2 | G239: 3 | I239: W Norm. | K239: n = | L239: 3
C240: Fine | D240: 1 | E240: 1 | F240: 0.3333333333 | G240: 0.2 | I240: 0.105 | K240: CI (table) = | L240: 0.58
C241: Medium | D241: 2 | E241: 3 | F241: 1 | G241: 0.3333333333 | I241: 0.258 | K241: L max = | L241: 3.039
C242: Coarse | D242: 3 | E242: 5 | F242: 3 | G242: 1 | I242: 0.637 | K242: CI = | L242: 0.0195
K243: CR = | L243: 0.03362068966 | M243: Weights are reasonable values
B245: 1.2.2.2.1.7 - VKT
C246: Criteria | E246: 1 | F246: 2 | G246: 3 | I246: W Norm. | K246: n = | L246: 3
C247: Large | D247: 1 | E247: 1 | F247: 3 | G247: 5 | I247: 0.637 | K247: CI (table) = | L247: 0.58
C248: Moderate | D248: 2 | E248: 0.3333333333 | F248: 1 | G248: 3 | I248: 0.258 | K248: L max = | L248: 3.039
C249: Small | D249: 3 | E249: 0.2 | F249: 0.3333333333 | G249: 1 | I249: 0.105 | K249: CI = | L249: 0.0195
K250: CR = | L250: 0.03362068966 | M250: Weights are reasonable values
